Workbook

Sheet AER Sheet Heading (hidden)
B1: =IF(dms_MultiYear_ResponseFlag="Yes","REGULATORY REPORTING STATEMENT - HISTORICAL INFORMATION",INDEX(dms_Worksheet_List,MATCH(dms_Model,dms_Model_List))) -> REGULATORY REPORTING STATEMENT
B2: =INDEX(dms_TradingNameFull_List,MATCH(dms_TradingName,dms_TradingName_List)) -> United Energy
B3: =dms_Header_Span -> 2021-22 to 2025-26
B4: XX
C11: EXPENDITURE
C12: =CONCATENATE("Forecast ($0's, real ",dms_DollarReal,")") -> Forecast ($0's, real June 2021)
C13: =CRCP_y4 -> 2019-20 | D13: =CRCP_y5 -> 2020-21 | E13: =FRCP_y1 -> 2021-22 | F13: =FRCP_y2 -> 2022-23 | G13: =FRCP_y3 -> 2023-24 | H13: =FRCP_y4 -> 2024-25 | I13: =FRCP_y5 -> 2025-26
C42: VOLUMES
C43: 0's
C44: =CRCP_y4 -> 2019-20 | D44: =CRCP_y5 -> 2020-21 | E44: =FRCP_y1 -> 2021-22 | F44: =FRCP_y2 -> 2022-23 | G44: =FRCP_y3 -> 2023-24 | H44: =FRCP_y4 -> 2024-25 | I44: =FRCP_y5 -> 2025-26

Sheet AER CF (hidden)
B1: AER CONDITIONAL FORMATTING
B4: CONDITIONAL FORMATTING MAP
F5: =INDEX(dms_CF_3.6.1, MATCH(dms_TradingName,dms_CF_TradingName))="Y" | G5: =INDEX(dms_CF_3.6.5, MATCH(dms_TradingName,dms_CF_TradingName))="Y" | H5: =INDEX(dms_CF_3.6.6, MATCH(dms_TradingName,dms_CF_TradingName))="Y" | I5: =INDEX(dms_CF_3.6.7.1, MATCH(dms_TradingName,dms_CF_TradingName))="Y" | J5: =INDEX(dms_CF_3.6.7.2, MATCH(dms_TradingName,dms_CF_TradingName))="Y" | K5: =INDEX(dms_CF_3.6.7.3, MATCH(dms_TradingName,dms_CF_TradingName))="Y" | L5: =INDEX(dms_CF_3.6.7.4, MATCH(dms_TradingName,dms_CF_TradingName))="Y" | M5: =INDEX(dms_CF_3.6.8, MATCH(dms_TradingName,dms_CF_TradingName))="Y" | N5: =INDEX(dms_CF_4.1, MATCH(dms_TradingName,dms_CF_TradingName))="Y" | O5: =INDEX(dms_CF_6.6.1, MATCH(dms_TradingName,dms_CF_TradingName))="Y" | P5: =INDEX(dms_CF_6.8, MATCH(dms_TradingName,dms_CF_TradingName))="Y" | Q5: =INDEX(dms_CF_7.12, MATCH(dms_TradingName,dms_CF_TradingName))="Y" | R5: =INDEX(dms_CF_8.1_A, MATCH(dms_TradingName,dms_CF_TradingName))="Y" | S5: =INDEX(dms_CF_8.1_B, MATCH(dms_TradingName,dms_CF_TradingName))="Y" | T5: =INDEX(dms_CF_8.1_Neg, MATCH(dms_TradingName,dms_CF_TradingName))="Y" | U5: =INDEX(dms_CF_4.4.1_Neg, MATCH(dms_TradingName,dms_CF_TradingName))="Y"
B6: dms_CF_TradingName | C6: JurisdictionList | D6: Sector | E6: Segment | F6: dms_CF_3.6.1 | G6: dms_CF_3.6.5 | H6: dms_CF_3.6.6 | I6: dms_CF_3.6.7.1 | J6: dms_CF_3.6.7.2 | K6: dms_CF_3.6.7.3 | L6: dms_CF_3.6.7.4 | M6: dms_CF_3.6.8 | N6: dms_CF_4.1 | O6: dms_CF_6.6.1 | P6: dms_CF_6.8 | Q6: dms_CF_7.12 | R6: dms_CF_8.1_A | S6: dms_CF_8.1_B | T6: dms_CF_8.1_Neg | U6: dms_CF_4.4.1 | V6: dms_CF_MAIFI_flag | W6: Spare1 | X6: Spare2
B7: ActewAGL Distribution | C7: ACT | D7: Electricity | E7: Distribution | G7: Y | I7: Y | J7: Y | K7: N | L7: Y | M7: N | N7: N | O7: N | P7: Y | Q7: Y | R7: N | S7: Y | T7: Y | U7: N | V7: N | W7: N | X7: N
B8: Ausgrid | C8: NSW | D8: Electricity | E8: Distribution | G8: Y | I8: N | J8: N | K8: N | L8: Y | M8: N | N8: N | O8: N | P8: Y | Q8: Y | R8: N | S8: Y | T8: Y | U8: N | V8: N | W8: N | X8: N
B9: AusNet (D) | C9: Vic | D9: Electricity | E9: Distribution | G9: N | I9: N | J9: N | K9: N | L9: N | M9: N | N9: Y | O9: N | P9: Y | Q9: N | R9: N | S9: N | T9: Y | U9: N | V9: N | W9: N | X9: N
B10: AusNet (T) | C10: Vic | D10: Electricity | E10: Transmission | G10: N | I10: N | J10: N | K10: N | L10: N | M10: N | N10: Y | O10: N | P10: Y | Q10: N | R10: N | S10: N | T10: Y | U10: N | V10: N | W10: N | X10: N
B11: CitiPower | C11: Vic | D11: Electricity | E11: Distribution | G11: N | I11: N | J11: N | K11: N | L11: N | M11: N | N11: Y | O11: N | P11: Y | Q11: N | R11: N | S11: N | T11: Y | U11: N | V11: N | W11: N | X11: N
B12: Directlink | C12: Qld | D12: Electricity | E12: Transmission | G12: N | I12: N | J12: N | K12: N | L12: N | M12: N | N12: Y | O12: N | P12: Y | Q12: N | R12: N | S12: Y | T12: Y | U12: N | V12: N | W12: N | X12: N
B13: ElectraNet | C13: SA | D13: Electricity | E13: Transmission | G13: N | I13: N | J13: N | K13: N | L13: N | M13: N | N13: Y | O13: N | P13: Y | Q13: N | R13: N | S13: Y | T13: Y | U13: N | V13: N | W13: N | X13: N
B14: Endeavour Energy | C14: NSW | D14: Electricity | E14: Distribution | G14: Y | I14: N | J14: N | K14: N | L14: Y | M14: N | N14: N | O14: N | P14: Y | Q14: Y | R14: N | S14: Y | T14: Y | U14: Y | V14: N | W14: N | X14: N
B15: Energex | C15: Qld | D15: Electricity | E15: Distribution | G15: Y | I15: N | J15: N | K15: N | L15: N | M15: N | N15: N | O15: N | P15: Y | Q15: Y | R15: N | S15: Y | T15: Y | U15: Y | V15: N | W15: N | X15: N
B16: Ergon Energy | C16: Qld | D16: Electricity | E16: Distribution | G16: Y | I16: N | J16: N | K16: N | L16: N | M16: N | N16: N | O16: N | P16: Y | Q16: Y | R16: N | S16: Y | T16: Y | U16: N | V16: N | W16: N | X16: N
B17: Essential Energy | C17: NSW | D17: Electricity | E17: Distribution | G17: Y | I17: N | J17: N | K17: N | L17: Y | M17: N | N17: N | O17: N | P17: Y | Q17: Y | R17: N | S17: Y | T17: Y | U17: N | V17: N | W17: N | X17: N
B18: Jemena Electricity | C18: Vic | D18: Electricity | E18: Distribution | G18: N | I18: N | J18: N | K18: N | L18: N | M18: N | N18: Y | O18: N | P18: Y | Q18: N | R18: N | S18: N | T18: Y | U18: N | V18: N | W18: N | X18: N
B19: Murraylink | C19: SA | D19: Electricity | E19: Transmission | G19: N | I19: N | J19: N | K19: N | L19: N | M19: N | N19: Y | O19: N | P19: Y | Q19: N | R19: N | S19: Y | T19: Y | U19: N | V19: N | W19: N | X19: N
B20: Power and Water | C20: NT | D20: Electricity | E20: Distribution | G20: N | I20: N | J20: Y | K20: N | L20: N | M20: Y | N20: Y | O20: Y | P20: Y | Q20: Y | R20: N | S20: Y | T20: Y | U20: N | V20: N | W20: N | X20: N
B21: Powercor Australia | C21: Vic | D21: Electricity | E21: Distribution | G21: N | I21: N | J21: N | K21: N | L21: N | M21: N | N21: Y | O21: N | P21: Y | Q21: N | R21: N | S21: N | T21: Y | U21: N | V21: N | W21: N | X21: N
B22: Powerlink | C22: Qld | D22: Electricity | E22: Transmission | G22: N | I22: N | J22: N | K22: N | L22: N | M22: N | N22: Y | O22: N | P22: Y | Q22: N | R22: N | S22: Y | T22: Y | U22: N | V22: N | W22: N | X22: N
B23: SA Power Networks | C23: SA | D23: Electricity | E23: Distribution | G23: Y | I23: N | J23: N | K23: N | L23: N | M23: N | N23: Y | O23: N | P23: Y | Q23: Y | R23: Y | S23: Y | T23: N | U23: N | V23: N | W23: N | X23: N
B24: TasNetworks (D) | C24: Tas | D24: Electricity | E24: Distribution | G24: Y | I24: N | J24: N | K24: N | L24: N | M24: N | N24: N | O24: N | P24: Y | Q24: Y | R24: N | S24: Y | T24: Y | U24: N | V24: N | W24: N | X24: N
B25: TasNetworks (T) | C25: Tas | D25: Electricity | E25: Transmission | G25: N | I25: N | J25: N | K25: N | L25: N | M25: N | N25: Y | O25: N | P25: Y | Q25: N | R25: N | S25: Y | T25: Y | U25: N | V25: N | W25: N | X25: N
B26: TransGrid | C26: NSW | D26: Electricity | E26: Transmission | G26: N | I26: N | J26: N | K26: N | L26: N | M26: N | N26: Y | O26: N | P26: Y | Q26: N | R26: N | S26: Y | T26: Y | U26: N | V26: N | W26: N | X26: N
B27: United Energy | C27: Vic | D27: Electricity | E27: Distribution | G27: N | I27: N | J27: N | K27: N | L27: N | M27: N | N27: Y | O27: N | P27: Y | Q27: N | R27: N | S27: N | T27: Y | U27: N | V27: N | W27: N | X27: N
B30: Confidential
B31: Amended
B33: Worksheet 6.2 STPIS reliability
B34: Formula | F34: Applied to:
B36: =INDEX(dms_CBD_flag,MATCH(dms_TradingName,dms_TradingName_List))="NO" | F36: $D$11,$D$17,$D$23,$D$33,$D$39,$D$45,$D$55,$D$61,$D$67,$D$77,$D$83,$D$89
B37: =INDEX(dms_Urban_flag,MATCH(dms_TradingName,dms_TradingName_List))="NO" | F37: $D$12,$D$18,$D$24,$D$56,$D$62,$D$78,$D$68,$D$84
B38: =INDEX(dms_ShortRural_flag,MATCH(dms_TradingName,dms_TradingName_List))="NO" | F38: $D$13,$D$19,$D$25,$D$57,$D$63,$D$69,$D$79,$D$85
B39: =INDEX(dms_LongRural_flag,MATCH(dms_TradingName,dms_TradingName_List))="NO" | F39: $D$14,$D$20,$D$26,$D$58,$D$64,$D$65,$D$70,$D$71,$D$80,$D$86
B40: =INDEX(dms_FeederType_5_flag,MATCH(dms_TradingName,dms_TradingName_List))="NO" | F40: $D$87,$D$81,$D$71,$D$65,$D$59,$D$49,$D$43,$D$37,$D$21,$D$15
B41: =dms_MAIFI_Flag="No" | F41: $D$55:$D$72
B44: Business & other details
B45: =(INDEX(dms_Model_Span,MATCH(dms_Model,dms_Model_List))>1)
B46: =(INDEX(dms_Model_Span,MATCH(dms_Model,dms_Model_List))=1)
B49: STYLES IN USE
B50: HEADING ONE | C50: dms_1
B51: HEADING TWO | C51: dms_2
B52: HEADING THREE | C52: dms_3
B53: HEADING FOUR | C53: dms_4
B54: HEADING FIVE | C54: dms_5
C55: dms_NUM
C56: dms_NUM%
C57: dms_Row_Locked
C58: dms_Row1
C59: dms_Row2
C60: dms_T1
C61: dms_T2
C62: dms_BH
C63: dms_BY1
C64: dms_BY2
C65: dms_GH
C66: dms_GY1
C67: dms_GY2

Sheet AER NRs (hidden)
B1: AER NAMED RANGES
B3: DROP DOWN SELECTORS USED IN WORKBOOKS
B5: COVER SHEET | C5: dms_DataQuality_List | D5: dms_Confid_status_List
C6: -- select -- | D6: -- select --
C7: Actual | D7: Public
C8: Estimate | D8: Confidential
C9: Consolidated
C12: For all files either AER or business needs to be able to specify the type of submission | D12: For PTRM & RFM templates we must provide a choice in case they change their form of control - otherwise it is drawn from the business specific lookup table above.
C13: dms_SourceList | D13: dms_FormControl_Choices
C14: -- select -- | D14: Revenue cap
C15: After appeal | D15: Revenue yield
C16: Draft decision | D16: Weighted average price cap
C17: Final decision
C18: PTRM update 1
C19: PTRM update 2
C20: PTRM update 3
C21: PTRM update 4
C22: PTRM update 5
C23: PTRM update 6
C24: PTRM update 7
C25: Regulatory proposal
C26: Reporting
C27: Revised regulatory proposal
K30: This is used to create an image to insert on 6.3 STPIS sheet - not for dropdown lists. | N30: GAS
B31: CA & RESET RINS DNSP | C31: dms_DNSP_020301_SubstationType | D31: dms_DNSP_020301_ProjectType | E31: dms_DNSP_020301_ProjectTrigger | F31: dms_DNSP_020302_ProjectType | G31: dms_DNSP_020302_ProjectTrigger | H31: dms_STPIS_Exclusion_List | I31: dms_Reason_Interruption | J31: dms_Reason_Interruption_Detailed | K31: Reason for interruption | N31: dms_N0205_AssetType
C32: Subtransmission substation | D32: New substation establishment | E32: Demand growth | F32: New line on new route - single circuit | G32: Demand growth | H32: Weather | I32: Animal | J32: Animal impact | K32: Animal | L32: Animal impact | N32: Cast Iron
C33: Zone substation | D33: Substation upgrade - capacity | E33: Voltage issues | F33: New line on new route - dual circuit | G33: Voltage issues | H33: Equipment failure | I33: Asset failure | J33: Animal nesting/burrowing, etc and other | L33: Animal nesting/burrowing, etc and other | N33: PVC
C34: Switching station | D34: Substation upgrade - voltage | E34: Reactive power issue | F34: New line on new route - other | G34: Reactive power issue | H34: Operational error | I34: Other | J34: Other | L34: Other | N34: Polyamide
C35: Other | D35: Other | E35: Fault level issues | F35: Line rebuild over existing route - single circuit | G35: Fault level issues | H35: Vegetation | I35: Overloads | J35: LV | K35: Asset failure | L35: LV | N35: High density polyethylene (80)
E36: Safety | F36: Line rebuild over existing route - dual circuit | G36: Net market benefit | H36: Animals | I36: Planned | J36: Distribution substation | L36: Distribution substation | N36: High density polyethylene (100)
E37: Environment | F37: Reconductor - Single circuit | G37: Safety | H37: Third party impacts | I37: Network business | J37: HV | L37: HV | N37: High density polyethylene (250)
E38: Other | F38: Reconductor - Dual circuit | G38: Environment | H38: Transmission failure | I38: Third party | J38: Zone substation | L38: Zone substation | N38: High density polyethylene (575)
F39: Reconductor - Other | G39: Other | H39: Load shedding | I39: Unknown | J39: Subtransmission | L39: Subtransmission | N39: Medium density polyethylene
F40: Line upgrade - raising/retensoring | H40: Inter-distributor connection failure | I40: Vegetation | J40: insert description of 'other' | K40: Other | L40: insert description of 'other' | N40: Unprotected steel
F41: Line upgrade - voltage upgrade | H41: Other | I41: Weather | J41: Network error | K41: Overloads | N41: Protected steel
F42: Line upgrade - capacity | I42: 2 - STPIS Exclusion (3.3)(a) | J42: Switching and protection error | K42: Planned | N42: Other
F43: String spare circuit | I43: 3 - STPIS Exclusion (3.3)(a) | J43: Fire | K43: Network business | L43: Network error
F44: Other | I44: 4 - STPIS Exclusion (3.3)(a) | J44: Other | L44: Switching and protection error
I45: 5 - STPIS Exclusion (3.3)(a) | J45: Dig-in | K45: Third party | L45: Fire
I46: 6 - STPIS Exclusion (3.3)(a) | J46: Unauthorised access | L46: Other
I47: 7 - STPIS Exclusion (3.3)(a) | J47: Vehicle impact | L47: Dig-in
J48: Unknown | L48: Unauthorised access
J49: Blow-in/Fall-in - NSP responsibility | L49: Vehicle impact
J50: Grow-in - NSP responsibility | K50: Unknown | L50: Unknown
J51: Blow-in/Fall-in - Other responsible party | K51: Vegetation | L51: Blow-in/Fall-in - NSP responsibility
J52: Grow-in - Other responsible party | L52: Grow-in - NSP responsibility
L53: Blow-in/Fall-in - Other responsible party
L54: Grow-in - Other responsible party
K55: Weather
K56: 2 - STPIS Exclusion (3.3)(a)
K57: 3 - STPIS Exclusion (3.3)(a)
K58: 4 - STPIS Exclusion (3.3)(a)
K59: 5 - STPIS Exclusion (3.3)(a)
K60: 6 - STPIS Exclusion (3.3)(a)
K61: 7 - STPIS Exclusion (3.3)(a)
B64: CA & RESET RINS TNSP | C64: dms_TNSP_0203_SubstationType | D64: dms_TNSP_020301_ProjectType | E64: dms_TNSP_020301_ProjectTrigger | F64: dms_TNSP_020302_ProjectType | G64: dms_TNSP_0203_ProjectTrigger
C65: Terminal station | D65: New substation establishment | E65: Demand growth | F65: New line on new route - single circuit | G65: Demand growth
C66: Switching station | D66: Capacity upgrade | E66: Voltage issues | F66: New line on new route - dual circuit | G66: Voltage issues
C67: Transmission substation | D67: Voltage upgrade | E67: Reactive power issue | F67: New line on new route - other | G67: Reactive power issue
C68: Other | D68: Other | E68: Fault level issues | F68: Line rebuild over existing route - single circuit | G68: Fault level issues
E69: Net market benefit | F69: Line rebuild over existing route - dual circuit | G69: Net market benefit
E70: Safety | F70: Reconductor - Single circuit | G70: Safety
E71: Environment | F71: Reconductor - Dual circuit | G71: Environment
E72: Other | F72: Reconductor - Other | G72: Other
F73: Line upgrade - raising/retensoring
F74: Line upgrade - voltage upgrade
F75: Line upgrade - capacity
F76: String spare circuit
F77: Other
B81: NAMED RANGES USED IN ETL PROCESS
B83: CA & RESET RINS DNSP ONLY | C83: dms_020303_01_UOM | D83: dms_020501_01_UOM | E83: dms_020501_02_UOM | F83: dms_020501_03_UOM | G83: dms_020501_04_UOM | H83: dms_020701_01_UOM | I83: dms_020701_02_UOM | J83: dms_020701_01_Rows | K83: dms_040102_01_UOM | L83: dms_040102_04_UOM | M83: dms_S140101_UOM | N83: dms_S140102_UOM | O83: dms_S140201_UOM
C84: Circuit line length in km | D84: 0's | E84: 0's | F84: 0's | G84: 0's | H84: km | I84: km | J84: Route line length within zone | K84: 0's | L84: days | M84: number | N84: number | O84: number per km
C85: Circuit line length in km | D85: 0's | E85: 0's | F85: 0's | G85: 0's | H85: 0's | I85: 0's | J85: Number of maintenance spans | K85: 0's | L85: 0's | M85: number | N85: number | O85: number
C86: Circuit line length in km | D86: MVA added | E86: MVA added | F86: MVA added | G86: MVA added | H86: km | I86: km | J86: Total length of maintenance spans | K86: 0's | L86: $0s | M86: number | N86: number | O86: number
C87: Circuit line length in km | D87: 0's | E87: 0's | F87: 0's | G87: 0's | H87: km | I87: km | J87: Length of vegetation corridors | K87: $0s | L87: 0's | M87: km | N87: number
C88: Number | D88: total spend $0s | E88: total spend $0s | F88: total spend $0s | G88: total spend $0s | H88: 0's | I88: 0's | J88: Average number of trees per maintenance span
C89: Number | D89: net circuit km added | E89: net circuit km added | F89: net circuit km added | G89: net circuit km added | H89: years | I89: years | J89: Average frequency of cutting cycle
C90: Number | D90: total spend $0s | E90: total spend $0s | F90: total spend $0s | G90: total spend $0s
D91: net circuit km added | E91: net circuit km added | F91: net circuit km added | G91: net circuit km added
D92: total spend $0s | E92: total spend $0s | F92: total spend $0s | G92: total spend $0s
D93: 0's | F93: $0s
D94: 0's
D95: 0's
D96: $0s
B99: CA & RESET RINS TNSP ONLY | C99: dms_020701_01_UOM
C100: km
C101: 0's
C102: km
C103: 0's
C104: km
C105: metres
C106: years
B109: CA & RESET RINS DNSP & TNSP | C109: dms_020603_01_UOM
C110: 0's
C111: 0's
C112: 0's
C113: 0's
C114: (per cent)
B117: EB & RESET RINS DNSP ONLY | C117: dms_030601_01_UOM | D117: dms_030601_02_UOM | E117: dms_030701_01_UOM | F117: dms_030702_01_UOM | G117: dms_030703_01_UOM
C118: minutes/customer | D118: minutes/customer | E118: Customer / km | F118: % | G118: km
C119: minutes/customer | D119: minutes/customer | E119: MWh/customer | F119: Number of spans
C120: interruptions/customer | D120: interruptions/customer | E120: kVA / customer | F120: Number of spans
C121: interruptions/customer | D121: interruptions/customer | F121: Number of spans
F122: Number of spans
F123: Years
F124: Years
F125: Trees
F126: Trees
F127: Defects
F128: Defects
F129: Spans
F130: km
F131: Spans
C133: WHEN INSERTING COVER SHEET INTO A TNSP FILE - APPLY THESE NAMED RANGES
B134: EB & RESET RINS TNSP ONLY | C134: dms_030601_01_UOM | E134: dms_030701_01_UOM | F134: dms_030702_01_UOM
C135: % | E135: Number of spans | F135: km
C136: number | E136: Years | F136: %
C137: number | E137: Trees | F137: km
C138: % | E138: Defects | F138: number
C139: number | E139: Number of spans
C140: number | E140: km
C141: % | E141: km
C142: number | E142: Number of spans
C143: number
C144: %
C145: number
C146: %
C147: number
C148: %
C149: number
B151: EB & RESET RINS DNSP & TNSP | C151: dms_EB_RAB_PIT
C152: Beginning of year
C153: End of year
C154: End of year
C155: End of year
C156: End of year
C157: End of year
B159: ARR DNSP ONLY | C159: dms_030605_UOM | D159: dms_03060703_UOM | E159: Spare | F159: Spare
C160: number | D160: number
C161: number | D161: number
C162: number | D162: number
C163: number | D163: number
C164: number | D164: (per cent)
C165: number
C166: number
C167: number
C168: number
C169: number
C170: number
C171: number
C172: (per cent)
C173: (per cent)
B175: RFM | C175: dms_Beg | D175: dms_Mid | E175: dms_End
C176: Beginning of year | D176: Mid year | E176: End of Year
B178: PTRM | C178: dms_PTRM_RAB_PIT | D178: dms_PTRM_TAB_PIT | E178: DMS_Xfactor
C179: Beginning of year | D179: Beginning of year | E179: x factors
C180: End of year | D180: End of year
C181: End of year | D181: End of year
C182: End of year | D182: End of year
C183: End of year
B186: STPIS & MIC NAMED RANGES
B188: These "row descriptions" are the column headings in the various templates but become row descriptions in the ETL process
B190: Table 6.3 sustained interruptions - row descriptions | C190: dms_060301_CustNo_Affected_Row | D190: dms_060301_Avg_Duration_Sustained_Int_Row | E190: dms_060301_Effect_unplanned_SAIDI_Row | F190: dms_060301_Effect_unplanned_SAIFI_Row
C191: Number of customers affected by the interruption | D191: Average duration of sustained customer interruption | E191: Effect on unplanned SAIDI | F191: Effect on unplanned SAIFI
B194: Table 6.1 telephone answering - row descriptions and start date | C194: dms_060101_Rows | D194: dms_060102_Rows | E194: dms_060101_StartDateTxt
C195: Total number of calls (after removing excluded events) | D195: Number of calls answered within 30 seconds (after excluding excluded events) | E195: =dms_060701_StartDateTxt -> 2015-01-01
B198: Table 6.8.1 - row descriptions | C198: dms_060801_01_Rows | D198: dms_060801_02_Rows | E198: dms_060801_03_Rows | F198: dms_060801_04_Rows
C199: Number of interruptions | D199: Duration of interruptions | E199: Total unplanned minutes off supply | F199: Effect on unplanned MAIFI
B202: Table 7.9.4 - market impact component - row descriptions | C202: dms_070904_01_Rows | D202: without exclusions | E202: with exclusions
B205: These headings (Lists) are determined from the INDEX/MATCH function on the NSP selected on the Business & other details sheet
B207: Table 6.7.1 - daily performance data - unplanned - MAIFI -- row descriptions and header named range values | C207: dms_060701_Feeder_Header_Lvl4 | D207: =INDEX(dms_FeederName_1,MATCH(dms_TradingName,dms_TradingName_List)) -> CBD | E207: =INDEX(dms_FeederName_1,MATCH(dms_TradingName,dms_TradingName_List)) -> CBD | F207: =INDEX(dms_FeederName_2,MATCH(dms_TradingName,dms_TradingName_List)) -> Urban | G207: =INDEX(dms_FeederName_2,MATCH(dms_TradingName,dms_TradingName_List)) -> Urban | H207: =INDEX(dms_FeederName_3,MATCH(dms_TradingName,dms_TradingName_List)) -> Short rural | I207: =INDEX(dms_FeederName_3,MATCH(dms_TradingName,dms_TradingName_List)) -> Short rural | J207: =INDEX(dms_FeederName_4,MATCH(dms_TradingName,dms_TradingName_List)) -> Long rural | K207: =INDEX(dms_FeederName_4,MATCH(dms_TradingName,dms_TradingName_List)) -> Long rural | L207: =IF((INDEX(dms_FeederName_5,MATCH(dms_TradingName,dms_TradingName_List))=0),"Network",(INDEX(dms_FeederName_5,MATCH(dms_TradingName,dms_TradingName_List)))) -> Network | M207: =IF((INDEX(dms_FeederName_5,MATCH(dms_TradingName,dms_TradingName_List))=0),"Network",(INDEX(dms_FeederName_5,MATCH(dms_TradingName,dms_TradingName_List)))) -> Network | N207: Network | O207: Network
C209: dms_060701_Rows | D209: All events | E209: After removing excluded events | F209: All events | G209: After removing excluded events | H209: All events | I209: After removing excluded events | J209: All events | K209: After removing excluded events | L209: All events | M209: After removing excluded events | N209: All events | O209: After removing excluded events
D210: the number of column headings changes from 10 to 12 depending on the number of feeder categories for the NSP
C212: dms_0603_FeederList | D212: =INDEX(dms_FeederName_1,MATCH(dms_TradingName,dms_TradingName_List)) -> CBD | E212: =INDEX(dms_FeederName_2,MATCH(dms_TradingName,dms_TradingName_List)) -> Urban | F212: =INDEX(dms_FeederName_3,MATCH(dms_TradingName,dms_TradingName_List)) -> Short rural | G212: =INDEX(dms_FeederName_4,MATCH(dms_TradingName,dms_TradingName_List)) -> Long rural
B215: Use these to add to specific worksheets in existing files | C215: Use these to add to specific worksheets in existing files
B218: ARRs 6.7 STPIS daily performance | C218: dms_060101_Values | D218: dms_060102_Values | E218: dms_060701_Values
C219: dms_LeapYear
B222: ARR's 6.8 STPIS exclusions | C222: dms_060801_Event_Date | D222: dms_060801_OutageID | E222: dms_060801_FeederID | F222: dms_060801_FeederClass | G222: dms_060801_CauseID | H222: dms_060801_01_Values | I222: dms_060801_02_Values | J222: dms_060801_03_Values | K222: dms_060801_Excl_Cat | L222: dms_060801_04_Values
C223: dms_060801_StartCell
B226: CA 6.3 sustained interruptions | C226: dms_060301_Event_Date | D226: dms_060301_Event_Time | E226: dms_060301_AssetID | F226: dms_060301_FeederClass | G226: dms_060301_Reason | H226: dms_060301_DetailedReason | I226: dms_060301_CustNo_Affected_Values | J226: dms_060301_Avg_Duration_Sustained_Int_Values | K226: dms_060301_Effect_unplanned_SAIDI_Values | L226: dms_060301_Effect_unplanned_SAIFI_Values | M226: dms_060301_MED

Sheet AER lookups (hidden)
B1: AER LOOKUP TABLES
B3: Data in these columns used for data validation and database purposes.
B4: Date last modified: | C4: 2017-01-16 | D4: added (Albury and Victora) for AGN
C5: 2016-10-17 | D5: updated TransGrid's correct legal name, corrected TasNetworks (T) to June financial year
C6: 2017-02-01 | D6: inserted Power and Water, added NRs (dms_FeederCat_1 and dms_FeederCat_2)
C7: 2017-03-03 | D7: inserted AEMO as a business | Z7: FOR ELECTRICITY BUSINESSES ONLY
C8: 2018-03-28 | D8: major changes to accommodate STPIS
C9: Template Version | D9: 5 | Z9: Feeder Types | AD9: TasNetworks (D) | AE9: MAIFI flag | AF9: Feeder Names
Z11: CBD | AA11: Urban | AB11: Short rural | AC11: long rural | AD11: EXTRA
B12: dms_TradingName_List | C12: dms_TradingNameFull_List | D12: dms_ABN_List | E12: dms_JurisdictionList | F12: dms_Sector_List | G12: dms_Segment_List | H12: dms_FormControl_List | I12: dms_RPT_List | J12: dms_RPTMonth_List | K12: dms_CRCPlength_List | L12: dms_FRCPlength_List | M12: dms_PRCPlength_List | N12: dms_663_List | O12: dms_DeterminationRef_List | P12: dms_Addr1_List | Q12: dms_Addr2_List | R12: dms_Suburb_List | S12: dms_State_List | T12: dms_PostCode_List | U12: dms_PAddr1_List | V12: dms_PAddr2_List | W12: dms_PSuburb_List | X12: dms_PState_List | Y12: dms_PPostCode_List | Z12: dms_CBD_flag | AA12: dms_Urban_flag | AB12: dms_ShortRural_flag | AC12: dms_LongRural_flag | AD12: dms_FeederType_5_flag | AE12: dms_MAIFI_flag_List | AF12: dms_FeederName_1 | AG12: dms_FeederName_2 | AH12: dms_FeederName_3 | AI12: dms_FeederName_4 | AJ12: dms_FeederName_5 | AK12: dms_Public_Lighting_List | AL12: Name
B13: AusNet (D) | C13: AusNet Electricity Services Pty Ltd | D13: 91064651118 | E13: Vic | F13: Electricity | G13: Distribution | H13: Revenue cap | I13: Financial | J13: June | K13: 5 | L13: 5 | M13: 5 | N13: 2 | O13: 2016-20 Distribution Determination | P13: Level 32 | Q13: 2 Southbank Boulevard | R13: SOUTHBANK | S13: Vic | T13: 3006 | U13: Locked Bag 14051 | W13: MELBOURNE CITY MAIL CENTRE | X13: Vic | Y13: 8001 | Z13: NO | AA13: YES | AB13: YES | AC13: YES | AD13: NO | AE13: YES | AF13: CBD | AG13: Urban | AH13: Short rural | AI13: Long rural | AK13: YES | AL13: =B13 -> AusNet (D)
B14: Australian Distribution Co. (Vic) | C14: Australian Distribution Co. (Victoria) | D14: 11222333444 | E14: Vic | F14: Electricity | G14: Distribution | H14: Revenue cap | I14: Financial | J14: June | K14: 5 | L14: 5 | M14: 5 | N14: 2 | O14: distribution determination | P14: 123 Straight Street | R14: MELBOURNE | S14: Vic | T14: 3000 | U14: PO Box 123 | W14: MELBOURNE | X14: Vic | Y14: 3000 | Z14: NO | AA14: NO | AB14: NO | AC14: NO | AD14: NO | AE14: YES | AF14: CBD | AG14: Urban | AH14: Short rural | AI14: Long rural | AK14: YES | AL14: Australian Distribution Co. (Vic)
B15: CitiPower | C15: CitiPower | D15: 76064651056 | E15: Vic | F15: Electricity | G15: Distribution | H15: Revenue cap | I15: Financial | J15: June | K15: 5 | L15: 5 | M15: 5 | N15: 2 | O15: 2016-20 Distribution Determination | P15: 40 Market Street | R15: MELBOURNE | S15: Vic | T15: 3000 | U15: Locked Bag 14090 | W15: MELBOURNE | X15: Vic | Y15: 8001 | Z15: YES | AA15: YES | AB15: NO | AC15: NO | AD15: NO | AE15: YES | AF15: CBD | AG15: Urban | AH15: Short rural | AI15: Long rural | AK15: YES | AL15: CitiPower
B16: Jemena Electricity | C16: Jemena Electricity | D16: 82064651083 | E16: Vic | F16: Electricity | G16: Distribution | H16: Revenue cap | I16: Financial | J16: June | K16: 5 | L16: 5 | M16: 5 | N16: 2 | O16: 2016-20 Distribution Determination | P16: Level 16 | Q16: 567 Collins Street | R16: MELBOURNE | S16: Vic | T16: 3000 | U16: PO Box 16182 | W16: MELBOURNE | X16: Vic | Y16: 8001 | Z16: NO | AA16: YES | AB16: YES | AC16: NO | AD16: NO | AE16: YES | AF16: CBD | AG16: Urban | AH16: Short rural | AI16: Long rural | AK16: YES | AL16: Jemena Electricity
B17: Powercor Australia | C17: Powercor Australia | D17: 89064651109 | E17: Vic | F17: Electricity | G17: Distribution | H17: Revenue cap | I17: Financial | J17: June | K17: 5 | L17: 5 | M17: 5 | N17: 2 | O17: 2016-20 Distribution Determination | P17: 40 Market Street | R17: MELBOURNE | S17: Vic | T17: 3000 | U17: Locked bag 14090 | W17: MELBOURNE | X17: Vic | Y17: 8001 | Z17: NO | AA17: NO | AB17: YES | AC17: YES | AD17: NO | AE17: YES | AF17: CBD | AG17: Urban | AH17: Short rural | AI17: Long rural | AK17: YES | AL17: Powercor Australia
B18: United Energy | C18: United Energy | D18: 70064651029 | E18: Vic | F18: Electricity | G18: Distribution | H18: Revenue cap | I18: Financial | J18: June | K18: 5 | L18: 5 | M18: 5 | N18: 2 | O18: 2016-20 Distribution Determination | P18: 43-45 Centreway | R18: MOUNT WAVERLEY | S18: Vic | T18: 3149 | U18: PO Box 449 | W18: MOUNT WAVERLEY | X18: Vic | Y18: 3170 | Z18: NO | AA18: NO | AB18: YES | AC18: NO | AD18: NO | AE18: YES | AF18: CBD | AG18: Urban | AH18: Short rural | AI18: Long rural | AK18: YES | AL18: United Energy
B23: The Reg Year Ending (dms_RYE) must be set to the last year of the regulatory period. For forecast data is is usually (FRCP_y5) for actual it is a single year (CRY). For historical actual data the RYE will need to be set manually in the business details sheet by setting the dms_Multiyear_flag to 1 and putting the correct value in 'dms_Specified_FinalYear. See cells C67:C68
B24: dms_Model_List | C24: dms_Model_Name_Format1 | D24: dms_Worksheet_List | E24: dms_Model_Span_List
B25: ARR | C25: Annual Reporting | D25: =IF(dms_MultiYear_ResponseFlag="yes","NEW HISTORICAL ANNUAL REPORTING","ANNUAL REPORTING") -> ANNUAL REPORTING | E25: 1
B26: CA | C26: Category Analysis | D26: =IF(dms_MultiYear_ResponseFlag="yes","NEW HISTORICAL CATEGORY ANALYSIS","CATEGORY ANALYSIS") -> CATEGORY ANALYSIS | E26: 1
B27: CESS | C27: Capitlal Expenditure | D27: CAPITLAL EXPENDITURE SHARING SCHEMING | E27: 5
B28: CPI | C28: CPI | D28: CPI | E28: 5
B29: EB | C29: Economic Benchmarking | D29: =IF(dms_MultiYear_ResponseFlag="yes","NEW HISTORICAL ECONOMIC BENCHMARKING","ECONOMIC BENCHMARKING") -> ECONOMIC BENCHMARKING | E29: 1
B30: Pricing | C30: Pricing Proposal | D30: PRICING PROPOSAL | E30: 5
B31: PTRM | C31: Post Tax Revenue Model | D31: POST TAX REVENUE MODEL | E31: 5
B32: Reset | C32: Regulatory Reporting (Reset) | D32: REGULATORY REPORTING STATEMENT | E32: 5
B33: RFM | C33: Roll Forward Model | D33: ROLL FORWARD MODEL | E33: 5
B34: WACC | C34: Weighted Average Cost of Capital | D34: WEIGHTED AVERAGE COST OF CAPITAL | E34: 1
B38: Financial | C38: Calendar | E38: PREVIOUS | G38: CURRENT | I38: FORTHCOMING
B39: 1987-88 | C39: 1988 | D39: PRCP_y1 | E39: =INDEX(INDIRECT(dms_RPT),dms_PRCP_start_row) -> 2011-12 | F39: CRCP_y1 | G39: =INDEX(INDIRECT(dms_RPT),dms_CRCP_start_row) -> 2016-17 | H39: =FRCP_y1 -> 2021-22 | I39: =INDEX(INDIRECT(dms_RPT),dms_FRCP_start_row) -> 2021-22
B40: 1988-89 | C40: 1989 | D40: PRCP_y2 | E40: =INDEX(INDIRECT(dms_RPT),dms_PRCP_start_row+1) -> 2012-13 | F40: CRCP_y2 | G40: =INDEX(INDIRECT(dms_RPT),dms_CRCP_start_row+1) -> 2017-18 | H40: FRCP_y2 | I40: =INDEX(INDIRECT(dms_RPT),dms_FRCP_start_row+1) -> 2022-23
B41: 1989-90 | C41: 1990 | D41: PRCP_y3 | E41: =INDEX(INDIRECT(dms_RPT),dms_PRCP_start_row+2) -> 2013-14 | F41: CRCP_y3 | G41: =INDEX(INDIRECT(dms_RPT),dms_CRCP_start_row+2) -> 2018-19 | H41: FRCP_y3 | I41: =INDEX(INDIRECT(dms_RPT),dms_FRCP_start_row+2) -> 2023-24
B42: 1990-91 | C42: 1991 | D42: PRCP_y4 | E42: =INDEX(INDIRECT(dms_RPT),dms_PRCP_start_row+3) -> 2014-15 | F42: CRCP_y4 | G42: =INDEX(INDIRECT(dms_RPT),dms_CRCP_start_row+3) -> 2019-20 | H42: FRCP_y4 | I42: =INDEX(INDIRECT(dms_RPT),dms_FRCP_start_row+3) -> 2024-25
B43: 1991-92 | C43: 1992 | D43: PRCP_y5 | E43: =INDEX(INDIRECT(dms_RPT),dms_PRCP_start_row+4) -> 2015-16 | F43: CRCP_y5 | G43: =INDEX(INDIRECT(dms_RPT),dms_CRCP_start_row+4) -> 2020-21 | H43: FRCP_y5 | I43: =INDEX(INDIRECT(dms_RPT),dms_FRCP_start_row+4) -> 2025-26
B44: 1992-93 | C44: 1993 | D44: PRCP_y6 | E44: =INDEX(INDIRECT(dms_RPT),dms_PRCP_start_row+5) -> 2016-17 | F44: CRCP_y6 | G44: =INDEX(INDIRECT(dms_RPT),dms_CRCP_start_row+5) -> 2021-22 | H44: FRCP_y6 | I44: =INDEX(INDIRECT(dms_RPT),dms_FRCP_start_row+5) -> 2026-27
B45: 1993-94 | C45: 1994 | D45: PRCP_y7 | E45: =INDEX(INDIRECT(dms_RPT),dms_PRCP_start_row+6) -> 2017-18 | F45: CRCP_y7 | G45: =INDEX(INDIRECT(dms_RPT),dms_CRCP_start_row+6) -> 2022-23 | H45: FRCP_y7 | I45: =INDEX(INDIRECT(dms_RPT),dms_FRCP_start_row+6) -> 2027-28
B46: 1994-95 | C46: 1995 | D46: PRCP_y8 | E46: =INDEX(INDIRECT(dms_RPT),dms_PRCP_start_row+7) -> 2018-19 | F46: CRCP_y8 | G46: =INDEX(INDIRECT(dms_RPT),dms_CRCP_start_row+7) -> 2023-24 | H46: FRCP_y8 | I46: =INDEX(INDIRECT(dms_RPT),dms_FRCP_start_row+7) -> 2028-29
B47: 1995-96 | C47: 1996 | D47: PRCP_y9 | E47: =INDEX(INDIRECT(dms_RPT),dms_PRCP_start_row+8) -> 2019-20 | F47: CRCP_y9 | G47: =INDEX(INDIRECT(dms_RPT),dms_CRCP_start_row+8) -> 2024-25 | H47: FRCP_y9 | I47: =INDEX(INDIRECT(dms_RPT),dms_FRCP_start_row+8) -> 2029-30
B48: 1996-97 | C48: 1997 | D48: PRCP_y10 | E48: =INDEX(INDIRECT(dms_RPT),dms_PRCP_start_row+9) -> 2020-21 | F48: CRCP_y10 | G48: =INDEX(INDIRECT(dms_RPT),dms_CRCP_start_row+9) -> 2025-26 | H48: FRCP_y10 | I48: =INDEX(INDIRECT(dms_RPT),dms_FRCP_start_row+9) -> 2030-31
B49: 1997-98 | C49: 1998 | D49: PRCP_y11 | E49: =INDEX(INDIRECT(dms_RPT),dms_PRCP_start_row+10) -> 2021-22 | F49: CRCP_y11 | G49: =INDEX(INDIRECT(dms_RPT),dms_CRCP_start_row+10) -> 2026-27 | H49: FRCP_y11 | I49: =INDEX(INDIRECT(dms_RPT),dms_FRCP_start_row+10) -> 2031-32
B50: 1998-99 | C50: 1999 | D50: PRCP_y12 | E50: =INDEX(INDIRECT(dms_RPT),dms_PRCP_start_row+11) -> 2022-23 | F50: CRCP_y12 | G50: =INDEX(INDIRECT(dms_RPT),dms_CRCP_start_row+11) -> 2027-28 | H50: FRCP_y12 | I50: =INDEX(INDIRECT(dms_RPT),dms_FRCP_start_row+11) -> 2032-33
B51: 1999-00 | C51: 2000 | D51: PRCP_y13 | E51: =INDEX(INDIRECT(dms_RPT),dms_PRCP_start_row+12) -> 2023-24 | F51: CRCP_y13 | G51: =INDEX(INDIRECT(dms_RPT),dms_CRCP_start_row+12) -> 2028-29 | H51: FRCP_y13 | I51: =INDEX(INDIRECT(dms_RPT),dms_FRCP_start_row+12) -> 2033-34
B52: 2000-01 | C52: 2001 | D52: PRCP_y14 | E52: =INDEX(INDIRECT(dms_RPT),dms_PRCP_start_row+13) -> 2024-25 | F52: CRCP_y14 | G52: =INDEX(INDIRECT(dms_RPT),dms_CRCP_start_row+13) -> 2029-30 | H52: FRCP_y14 | I52: =INDEX(INDIRECT(dms_RPT),dms_FRCP_start_row+13) -> 2034-35
B53: 2001-02 | C53: 2002 | D53: PRCP_y15 | E53: =INDEX(INDIRECT(dms_RPT),dms_PRCP_start_row+14) -> 2025-26 | F53: CRCP_y15 | G53: =INDEX(INDIRECT(dms_RPT),dms_CRCP_start_row+14) -> 2030-31 | H53: FRCP_y15 | I53: =INDEX(INDIRECT(dms_RPT),dms_FRCP_start_row+14) -> 2035-36
B54: 2002-03 | C54: 2003 | D54: PRCP_y16 | E54: =INDEX(INDIRECT(dms_RPT),dms_PRCP_start_row+15) -> 2026-27 | F54: CRCP_y16 | G54: =INDEX(INDIRECT(dms_RPT),dms_CRCP_start_row+15) -> 2031-32 | H54: FRCP_y16 | I54: =INDEX(INDIRECT(dms_RPT),dms_FRCP_start_row+15) -> 2036-37
B55: 2003-04 | C55: 2004
B56: 2004-05 | C56: 2005
B57: 2005-06 | C57: 2006 | E57: CRY - FRY
B58: 2006-07 | C58: 2007 | D58: dms_y1 | E58: =IFERROR(INDEX(INDIRECT(dms_RPT),dms_CRY_start_row),0) -> 2019-20
B59: 2007-08 | C59: 2008 | D59: dms_y2 | E59: =IFERROR(INDEX(INDIRECT(dms_RPT),dms_CRY_start_row+1),0) -> 2020-21
B60: 2008-09 | C60: 2009 | D60: dms_y3 | E60: =IFERROR(INDEX(INDIRECT(dms_RPT),dms_CRY_start_row+2),0) -> 2021-22
B61: 2009-10 | C61: 2010 | D61: dms_y4 | E61: =IFERROR(INDEX(INDIRECT(dms_RPT),dms_CRY_start_row+3),0) -> 2022-23
B62: 2010-11 | C62: 2011 | D62: dms_y5 | E62: =IFERROR(INDEX(INDIRECT(dms_RPT),dms_CRY_start_row+4),0) -> 2023-24
B63: 2011-12 | C63: 2012 | D63: dms_y6 | E63: =IFERROR(INDEX(INDIRECT(dms_RPT),dms_CRY_start_row+5),0) -> 2024-25
B64: 2012-13 | C64: 2013 | D64: dms_y7 | E64: =IFERROR(INDEX(INDIRECT(dms_RPT),dms_CRY_start_row+6),0) -> 2025-26
B65: 2013-14 | C65: 2014 | D65: dms_y8 | E65: =IFERROR(INDEX(INDIRECT(dms_RPT),dms_CRY_start_row+7),0) -> 2026-27
B66: 2014-15 | C66: 2015 | D66: dms_y9 | E66: =IFERROR(INDEX(INDIRECT(dms_RPT),dms_CRY_start_row+8),0) -> 2027-28
B67: 2015-16 | C67: 2016 | D67: dms_y10 | E67: =IFERROR(INDEX(INDIRECT(dms_RPT),dms_CRY_start_row+9),0) -> 2028-29
B68: 2016-17 | C68: 2017 | D68: dms_y11 | E68: =IFERROR(INDEX(INDIRECT(dms_RPT),dms_CRY_start_row+10),0) -> 2029-30
B69: 2017-18 | C69: 2018 | D69: dms_y12 | E69: =IFERROR(INDEX(INDIRECT(dms_RPT),dms_CRY_start_row+11),0) -> 2030-31
B70: 2018-19 | C70: 2019 | D70: dms_y13 | E70: =IFERROR(INDEX(INDIRECT(dms_RPT),dms_CRY_start_row+12),0) -> 2031-32
B71: 2019-20 | C71: 2020 | D71: dms_y14 | E71: =IFERROR(INDEX(INDIRECT(dms_RPT),dms_CRY_start_row+13),0) -> 2032-33
B72: 2020-21 | C72: 2021 | D72: dms_y15 | E72: =IFERROR(INDEX(INDIRECT(dms_RPT),dms_CRY_start_row+14),0) -> 2033-34
B73: 2021-22 | C73: 2022 | D73: dms_y16 | E73: =IFERROR(INDEX(INDIRECT(dms_RPT),dms_CRY_start_row+15),0) -> 2034-35
B74: 2022-23 | C74: 2023
B75: 2023-24 | C75: 2024
B76: 2024-25 | C76: 2025
B77: 2025-26 | C77: 2026
B78: 2026-27 | C78: 2027
B79: 2027-28 | C79: 2028
B80: 2028-29 | C80: 2029
B81: 2029-30 | C81: 2030
B82: 2030-31 | C82: 2031
B83: 2031-32 | C83: 2032
B84: 2032-33 | C84: 2033
B85: 2033-34 | C85: 2034
B86: 2034-35 | C86: 2035
B87: 2035-36 | C87: 2036
B88: 2036-37 | C88: 2037

Sheet AER ETL (hidden)
B1: AER ETL INFORMATION
B3: USES NAMED RANGES FLAG | C3: yes | D3: dms_Defined_Names_Used
B5: IF THIS IS AN ABC RIN - make sure the the named range CRY is applied and the named range dms_dollar_nom_UOM is applied
B6: IF THIS IS A RESET RIN - make sure the named ranges CRY and dms_dollar_nom_UOM are NOT present in the workbook
B7: FOR ABC RINS THAT SPAN MULTIPLE YEARS - make sure MultiYear Flag is set and final year entered as required
B9: Full trading name | C9: =INDEX(dms_TradingNameFull_List,MATCH(dms_TradingName,dms_TradingName_List)) -> United Energy | E9: dms_TradingNameFull
B10: Trading name | C10: =dms_TradingName -> United Energy
A11: Selected here | B11: Model / RIN | C11: Reset | D11: dms_Model
A12: Read from Business & other details | B12: Source | C12: Regulatory proposal | D12: dms_Source
B13: Data quality | C13: =dms_Selected_Quality -> Consolidated | D13: dms_DQ_1
B14: Data status | C14: =dms_Selected_Status -> Public | D14: dms_DQ_2
B15: Amendment reason | C15: =dms_Amendment_Text -> . | F15: dms_AmendmentReason
B16: Submission date | C16: =dms_Typed_Submission_Date -> 2020-01-31 | D16: dms_SubmissionDate
A18: Redundant | B18: EBSS - First application of scheme in forthcoming period? | C18: No
A19: Pre-populated from lookup table | B19: Data ingestion data quality | C19: =dms_Selected_Quality -> Consolidated | D19: dms_DataQuality | E19: =IF(dms_DQ_2="Confidential","Consolidated","Public")
B20: Sector | C20: =INDEX(dms_Sector_List,MATCH(dms_TradingName,dms_TradingName_List)) -> Electricity | D20: dms_Sector | E20: =INDEX(dms_Sector_List,MATCH(dms_TradingName,dms_TradingName_List))
B21: Segment | C21: =INDEX(dms_Segment_List,MATCH(dms_TradingName,dms_TradingName_List)) -> Distribution | D21: dms_Segment | E21: =INDEX(dms_Segment_List,MATCH(dms_TradingName,dms_TradingName_List))
B22: Regulatory Year Ending | C22: =dms_RYE_result -> 2026 | D22: dms_RYE | E22: =IF(dms_MultiYear_Flag=1,LEFT(dms_Specified_FinalYear,2)&RIGHT(dms_Specified_FinalYear,2),INDEX(dms_RYE_Formula_Result,MATCH(dms_Model,dms_Model_List)))
B23: Reporting Period Type | C23: =INDEX(dms_RPT_List,MATCH(dms_TradingName,dms_TradingName_List)) -> Financial | D23: dms_RPT | E23: =INDEX(dms_RPT_List,MATCH(dms_TradingName,dms_TradingName_List))
B24: EB/CA Unit of Measure for Monetary Values | C24: $0s | D24: dms_dollar_nom_UOM | E24: If the cover sheet is attached to an ABC RIN apply the NAMED RANGE to the cell
B25: Security Classification | C25: Public | D25: dms_Classification | E25: Always Public
B26: Jurisdiction | C26: =INDEX(dms_JurisdictionList,MATCH(dms_TradingName,dms_TradingName_List)) -> Vic | D26: dms_Jurisdiction | E26: =INDEX(dms_JurisdictionList,MATCH(dms_TradingName,dms_TradingName_List))
A27: Relevant for PTRM, RFMs and Reset RINS | B27: $ REAL REFERENCES
B28: Does the named range CRY exist in this file? | C28: =IFERROR(CRY,"NO") -> NO
B29: CRY-1 (last full calendar year before CRY) | C29: =IFERROR(IF(dms_RPT="calendar",CRY-1,LEFT(CRY,4)),"CRY not present") -> CRY not present | D29: dms_Cal_Year_B4_CRY | E29: '=IF(dms_RPT="financial",VALUE(LEFT(dms_SingleYear_FinalYear_Result,4)),VALUE(LEFT(dms_SingleYear_FinalYear_Result,4)-1))
B30: Dollar $ real month | C30: =INDEX(dms_RPTMonth_List,MATCH(dms_TradingName,dms_TradingName_List)) -> June | D30: dms_RPTMonth | E30: =INDEX(dms_RPTMonth_List,MATCH(dms_TradingName,dms_TradingName_List))
B31: Dollar $ real (the last month before the FRCP_y1) | C31: =IF(dms_SingleYearModel="yes",CONCATENATE(dms_RPTMonth)&" "&VALUE((LEFT(CRY,2))&RIGHT(CRY,2)),CONCATENATE(dms_RPTMonth)&" "&dms_DollarReal_year) -> June 2021 | D31: dms_DollarReal | E31: =IF(SUM(dms_SingleYear_Model)>0,CONCATENATE(dms_RPTMonth)&" "&VALUE((LEFT(CRY,2))&RIGHT(CRY,2)),CONCATENATE(dms_RPTMonth)&" "&VALUE((LEFT(dms_RYE,2)&RIGHT(dms_RYE,2))))
B32: Dollar $ real previous year (PRCP_y5) | C32: =IF(dms_SingleYearModel="yes",CONCATENATE(dms_RPTMonth)&" "&VALUE((LEFT(CRY,2))&RIGHT(CRY,2)),CONCATENATE(dms_RPTMonth)&" "&dms_Previous_DollarReal_year) -> June 2016 | D32: dms_DollarReal_Prev | E32: =IF(SUM(dms_SingleYear_Model)>0,CONCATENATE(dms_RPTMonth)&" "&VALUE(((LEFT(CRY,2))&RIGHT(CRY,2))-1),CONCATENATE(dms_RPTMonth)&" "&VALUE(((LEFT(dms_CRCP_FirstYear_Result,2)&RIGHT(dms_CRCP_FirstYear_Result,2))))-1)
B33: PTRM/ RFMs
B34: Form of control | C34: =INDEX(dms_FormControl_List,MATCH(dms_TradingName,dms_TradingName_List)) -> Revenue cap | D34: dms_FormControl | E34: =INDEX(dms_FormControl_List,MATCH(dms_TradingName,dms_TradingName_List))
A35: All potential values for Regulatory Years or RYEs as calculated | B35: This block works out the various RYE's for ALL RIN types and MODELS
B36: dms_start_year | C36: =FRCP_y1 -> 2021-22 | D36: =FRCP_y1 | E36: FRCP_y1 from cover sheet
B37: dms_CRY_start_year | C37: =IFERROR(CRY,CRCP_y4) -> 2019-20 | D37: =IFERROR(CRY,CRCP_y4)
B38: dms_CRY_start_row | C38: =IFERROR(MATCH(dms_CRY_start_year,INDIRECT(dms_RPT),0),0) -> 33 | D38: =IFERROR(MATCH(dms_CRY_start_year,INDIRECT(dms_RPT),0),0)
B39: dms_FRCP_start_row | C39: =MATCH(dms_start_year,INDIRECT(dms_RPT),0) -> 35 | D39: =MATCH(dms_start_year,INDIRECT(dms_RPT),0) | E39: Uses FRCP_y1 as a start reference
B40: dms_CRCP_start_row | C40: =dms_FRCP_start_row-dms_CRCPlength_Num -> 30 | D40: =dms_FRCP_start_row-dms_CRCPlength_Num | E40: Uses the value in dms_CRCPlength_Num
B41: dms_PRCP_start_row | C41: =dms_FRCP_start_row-dms_CRCPlength_Num-dms_PRCPlength_Num -> 25 | D41: =dms_FRCP_start_row-dms_CRCPlength_Num-dms_PRCPlength_Num | E41: Uses the value in dms_CRCPlength_Num and dms_PRCPlength_Num
B42: dms_RYE_start_row | C42: =dms_FRCP_start_row+(dms_FRCPlength_Num-1) -> 39 | D42: =dms_FRCP_start_row+(dms_FRCPlength_Num-1) | E42: Uses the value in dms_FRCPlength_Num-1
B43: FRCP_start_year | C43: =INDEX(INDIRECT(dms_RPT),dms_FRCP_start_row) -> 2021-22 | D43: =INDEX(INDIRECT(dms_RPT),dms_FRCP_start_row) | E43: Converts the FRCP start row to display the year
B44: CRCP_start_year | C44: =INDEX(INDIRECT(dms_RPT),dms_CRCP_start_row) -> 2016-17 | D44: =INDEX(INDIRECT(dms_RPT),dms_CRCP_start_row) | E44: Converts the CRCP start row to display the year
B45: PRCP_start_year | C45: =INDEX(INDIRECT(dms_RPT),dms_PRCP_start_row) -> 2011-12 | D45: =INDEX(INDIRECT(dms_RPT),dms_PRCP_start_row) | E45: Converts the PRCP start row to display the year
B46: FRCP_final_year | C46: =INDEX(INDIRECT(dms_RPT),dms_FRCP_start_row+dms_FRCPlength_Num-1) -> 2025-26 | D46: =INDEX(INDIRECT(dms_RPT),dms_FRCP_start_row+dms_FRCPlength_Num-1) | E46: Finds the FRCP final year
B47: CRCP_final_year | C47: =INDEX(INDIRECT(dms_RPT),dms_CRCP_start_row+dms_CRCPlength_Num-1) -> 2020-21 | D47: =INDEX(INDIRECT(dms_RPT),dms_CRCP_start_row+dms_CRCPlength_Num-1) | E47: Finds the CRCP final year
B48: PRCP_final_year | C48: =INDEX(INDIRECT(dms_RPT),dms_PRCP_start_row+dms_FRCPlength_Num-1) -> 2015-16 | D48: =INDEX(INDIRECT(dms_RPT),dms_PRCP_start_row+dms_FRCPlength_Num-1) | E48: Finds the PRCP final year
B49: dms_Reset_final_year | C49: =INDEX(INDIRECT(dms_RPT),dms_RYE_start_row) -> 2025-26 | D49: =INDEX(INDIRECT(dms_RPT),dms_RYE_start_row) | E49: For Resets and PTRM/RFMs (same as FRCP_final_year)
B50: dms_SpecifiedYear_final_year | C50: =FRY -> 2017-18 | D50: =FRY | E50: FRY from cover sheet
B51: dms_DollarReal_year | C51: =LEFT(CRCP_final_year,2)&RIGHT(CRCP_final_year,2) -> 2021 | D51: =LEFT(CRCP_final_year,2)&RIGHT(CRCP_final_year,2) | E51: Uses the value in CRCP_final_year
B52: dms_Previous_DollarReal_year | C52: =LEFT(PRCP_final_year,2)&RIGHT(PRCP_final_year,2) -> 2016 | D52: =LEFT(PRCP_final_year,2)&RIGHT(PRCP_final_year,2) | E52: Uses the value in PRCP_final_year
B53: dms_CRY_RYE | C53: =IFERROR(LEFT(CRY,2)&RIGHT(CRY,2),0) -> 0 | D53: =IFERROR(LEFT(CRY,2)&RIGHT(CRY,2),0) | E53: For ABC single year RINS
B54: dms_Reset_RYE | C54: =IF(dms_Model_Span>1,IF(dms_Model="RFM",(LEFT(dms_DollarReal_year,2)&RIGHT(dms_DollarReal_year,2)),(LEFT(dms_Reset_final_year,2)&RIGHT(dms_Reset_final_year,2))),0) -> 2026 | D54: =IF(dms_Model_Span>1,IF(dms_Model="RFM",(LEFT(dms_DollarReal_year,2)&RIGHT(dms_DollarReal_year,2)),(LEFT(dms_Reset_final_year,2)&RIGHT(dms_Reset_final_year,2))),0) | E54: If model span > 1 then uses dms_Reset_RYE otherwise it's a multi year ABC and uses dms_Specified_RYE
B55: dms_Specified_RYE | C55: =IF(dms_MultiYear_ResponseFlag="Yes",(LEFT(dms_Specified_FinalYear,2)&RIGHT(dms_Specified_FinalYear,2)),0) -> 0 | D55: =IF(dms_MultiYear_ResponseFlag="Yes",(LEFT(dms_Specified_FinalYear,2)&RIGHT(dms_Specified_FinalYear,2)),0) | E55: If multi year ABC - uses dms_Specified_FinalYear
B56: dms_Model_Span | C56: =INDEX(dms_Model_Span_List,MATCH(dms_Model,dms_Model_List)) -> 5 | D56: =INDEX(dms_Model_Span_List,MATCH(dms_Model,dms_Model_List)) | E56: A result of 5 is used to signify that it is more than 1 year span
B57: dms_RYE_result | C57: =IF(dms_MultiYear_ResponseFlag="yes",dms_Specified_RYE,(IF(dms_Model_Span>1,dms_Reset_RYE,dms_CRY_RYE))) -> 2026 | D57: =IF(dms_MultiYear_ResponseFlag="yes",dms_Specified_RYE,(IF(dms_Model_Span>1,dms_Reset_RYE,dms_CRY_RYE))) | E57: Nested IF - feeds into dms_RYE
B58: dms_Reset_Span | C58: =IF(dms_Reset_RYE>0,CONCATENATE(FRCP_y1," to ",FRCP_final_year),0) -> 2021-22 to 2025-26 | D58: =IF(dms_Reset_RYE>0,CONCATENATE(FRCP_y1," to ",FRCP_final_year),0) | E58: Reset span of years as text
B59: dms_SpecifiedYear_Span | C59: =IF(dms_Specified_RYE>0,CONCATENATE(CRY," to ",dms_Specified_FinalYear),0) -> 0 | D59: =IF(dms_Specified_RYE>0,CONCATENATE(CRY," to ",dms_Specified_FinalYear),0) | E59: Multi year ABC span of years as text
B60: dms_Header_Span | C60: =IF(dms_MultiYear_Flag=1,dms_SpecifiedYear_Span,IF(dms_Model_Span>1,dms_Reset_Span,CRY)) -> 2021-22 to 2025-26 | D60: =IF(dms_MultiYear_Flag=1,dms_SpecifiedYear_Span,IF(dms_Model_Span>1,dms_Reset_Span,CRY)) | E60: NESTED IF - for Sheet Headers
B61: ABC RINS THAT SPAN MULTIPLE YEARS
B62: This is a multi year ABC RIN? | C62: No
C63: =IF(dms_MultiYear_ResponseFlag="No",0,1) -> 0 | D63: dms_MultiYear_Flag | E63: This is set from the answer provided above
C64: =IF(dms_MultiYear_Flag=1,FRY,"not a Multiple year submission") -> not a Multiple year submission | D64: dms_Specified_FinalYear | E64: The result here is returned to dms_CRCP_FinalYear_Result if response to Q in C73 is "yes" and dms_MultiYear_Flag is set to 1
B65: Start year for 5.2 in Multi year ABC RINS | C65: =IFERROR(IF(dms_MultiYear_Flag=1,FRY,CRY),"not an ABC") -> not an ABC | D65: dms_0502_Inst_Year | E65: =IF(dms_MultiYear_Flag=1,FRY,CRY) | G65: For single year RINS this is CRY - multi year RINS need to start a the end of the span of years (ie. FRY)
B66: WHAT IS THE RYE?
B67: Reg Period Lengths
B68: PRCP length in years | C68: =INDEX(dms_PRCPlength_List,MATCH(dms_TradingName,dms_TradingName_List)) -> 5 | D68: dms_PRCPlength_Num | E68: =INDEX(dms_PRCPlength_List,MATCH(dms_TradingName,dms_TradingName_List))
B69: CRCP length in years | C69: =INDEX(dms_CRCPlength_List,MATCH(dms_TradingName,dms_TradingName_List)) -> 5 | D69: dms_CRCPlength_Num | E69: =INDEX(dms_CRCPlength_List,MATCH(dms_TradingName,dms_TradingName_List))
B70: FRCP length in years | C70: =INDEX(dms_FRCPlength_List,MATCH(dms_TradingName,dms_TradingName_List)) -> 5 | D70: dms_FRCPlength_Num | E70: =INDEX(dms_FRCPlength_List,MATCH(dms_TradingName,dms_TradingName_List))
B71: Single year RIN?
B72: Single Year ABC RIN ? | C72: =IF(dms_Model="EB",1,0) -> 0 | D72: dms_EB
C73: =IF(dms_Model="CA",1,0) -> 0 | D73: dms_CA | E73: =dms_SingleYear_Model
C74: =IF(dms_Model="ARR",1,0) -> 0 | D74: dms_ARR
B75: Is this a single Year ABC RIN? | C75: =IF(SUM(dms_SingleYear_Model)=1,"yes","no") -> no | D75: dms_SingleYearModel | E75: =IF(SUM(dms_SingleYear_Model)=1,"yes","no")
B76: Single Year Final Year Result | C76: =IF(AND(dms_SingleYearModel="yes",dms_MultiYear_Flag=0),CRY,0) -> 0 | D76: dms_SingleYear_FinalYear_Result | E76: =IFERROR(IF(SUM(dms_SingleYear_Model)<>0,(INDIRECT(dms_SingleYear_FinalYear_Ref)),"not a single year RIN"),"CRY not present")
B77: Multi year RIN?
B79: Multi Year Reset/Model? | C79: =IF(dms_Model_Span>1,"yes","no") -> yes
B80: Final year result for Reset/Model | C80: =IF(dms_Model_Span>1,dms_Reset_final_year,0) -> 2025-26 | D80: dms_MultiYear_FinalYear_Result | E80: dms_CRCP_FinalYear_Result
B82: Multi Year ABC RIN? | C82: =IF(dms_MultiYear_Flag=1,"yes","no") -> no | D82: dms_MultiYear_ABC_RIN
B83: Final year result for ABC multi year | C83: =IF(dms_MultiYear_Flag=1,C50,0) -> 0
B85: EB RINS
B86: Calendar Year for table 3.6 data | C86: =IFERROR(IF(dms_Segment="Transmission",dms_Cal_Year_B4_CRY,CRY),"CRY not present") -> CRY not present | D86: dms_0306_Year | E86: =IF(dms_Segment="Transmission",dms_Cal_Year_B4_CRY,CRY)
B87: CA RINS
B88: Find how many rows in tables 6.3 sustained interruptions? | E88: dms_060301_MaxRows only returns a valid value when cover sheet is attached to a CA file
C89: =IF(dms_Model<>"CA","not a CA","Is a CA") -> not a CA | E89: =IF(dms_Model<>"CA","not a CA","Is a CA")
B90: dms_060301_Avg_Duration_Sustained_Int_Values present? | C90: =IFERROR(IF(INDEX(dms_060301_Avg_Duration_Sustained_Int_Values,1,1)<>"","yes","no"),"no") -> no | D90: dms_060301_checkvalue | E90: =IFERROR(IF(INDEX(dms_060301_Avg_Duration_Sustained_Int_Values,1,1)<>"","yes","no"),"no")
C91: =IF(AND(dms_Model="CA",(dms_060301_checkvalue="no")),"error - NR not present","no errors") -> no errors | E91: =IF(AND(dms_Model="CA",(dms_060301_checkvalue="no")),"error - NR not present","no errors")
B92: Table 6.3.1 - last row reference | C92: =IFERROR(IF(dms_Model="CA",LOOKUP(2,1/(dms_060301_Avg_Duration_Sustained_Int_Values<>""),(ROW(dms_060301_Avg_Duration_Sustained_Int_Values))),"not a CA"),"6.3 not present") -> not a CA | D92: dms_060301_LastRow | E92: =IFERROR(IF(dms_Model="CA",LOOKUP(2,1/(dms_060301_Avg_Duration_Sustained_Int_Values<>""),(ROW(dms_060301_Avg_Duration_Sustained_Int_Values))),"not a CA"),"6.3 not present")
B93: Table 6.3.1 - max number rows | C93: =IFERROR(IF(dms_Model="CA",(dms_060301_LastRow-15),"not a CA"),"error") -> not a CA | D93: dms_060301_MaxRows | E93: =IFERROR(IF(dms_Model="CA",(dms_060301_LastRow-15),"not a CA"),"error")
B94: Table 6.6.3 - Public lighting repair - no. business days | C94: =INDEX(dms_663_List,MATCH(dms_TradingName,dms_TradingName_List)) -> 2 | D94: dms_663 | E94: =INDEX(dms_663_List,MATCH(dms_TradingName,dms_TradingName_List))
B95: ARR or RESET RINS
B96: How many rows in tables 6.1 or 6.7? (leap year?) | C96: insert dms_LeapYear NR if required | E96: 'dms_LeapYear is used to determine dms_060701_Max_Rows BUT it is only found on worksheet 6.1 or 6.7 and the date value in the cell is used to determine whether it is a leap year
B97: Is dms_LeapYear named range present? | C97: =IFERROR(IF(dms_LeapYear,"yes"),"no") -> no
B98: Table 6.7.1 - includes a leap year? | C98: =IFERROR(IF(MONTH(DATE(YEAR(dms_LeapYear),2,29))=2,"is a leap year","not a leap year"), "dms_LeapYear not present") -> dms_LeapYear not present | D98: dms_LeapYear_Result | E98: =IFERROR(IF(MONTH(DATE(YEAR(dms_LeapYear),2,29))=2,"is a leap year","not a leap year"),"dms_LeapYear not present")
B99: MaxRows if Reset and leap year | C99: =IF(dms_LeapYear_Result="is a leap year",1827,1826) -> 1826 | D99: dms_060701_Reset_MaxRows | E99: =IF(dms_LeapYear_Result="is a leap year",1827,1826) | H99: number of days present in Reset RIN table
B100: MaxRows if ARR and leap year | C100: =IF(dms_LeapYear_Result="is a leap year",366,365) -> 365 | D100: dms_060701_ARR_MaxRows | E100: =IF(dms_LeapYear_Result="is a leap year",366,365) | H100: number of days present in ARR RIN table
B101: Table 6.7.1 - Max Rows (leap year/ non leap year) | C101: =IF(dms_Model="ARR",dms_060701_ARR_MaxRows,IF(dms_Model="Reset",dms_060701_Reset_MaxRows,"not a relevant RIN type")) -> 1826 | D101: dms_060701_MaxRows | E101: =IF(dms_Model="ARR",dms_060701_ARR_MaxRows,IF(dms_Model="Reset",dms_060701_Reset_MaxRows,"not a relevant RIN type"))
B102: How many columns in 6.7? (4 or 5 feeder categories) | C102: =IF(dms_FifthFeeder_flag_NSP="NO","This NSP has only 4 feeder categories","This NSP has 5 feeder categories") -> This NSP has only 4 feeder categories
B103: Table 6.7.1 - Last column (# of feeder categories > 4) | C103: =IF(dms_FifthFeeder_flag_NSP="NO",10,12) -> 10 | D103: dms_060701_MaxCols | E103: =IF(dms_FifthFeeder_flag_NSP="NO",8,10)
B104: Table 6.7.1 - Number of offset rows | C104: =IF(dms_Model="ARR",15,9) -> 9 | D104: dms_060701_OffsetRows | E104: =IF(dms_Model="ARR",15,9)
B105: Start date for telephone answering in 6.1 or 6.7? | E105: Using 060101 as naming standard not 060701 for start dates
B106: Table 6.1.1 and 6.7.1 - Start Date as Text | C106: 2015-01-01 | D106: dms_060101_StartDateTxt | E106: =IF(SUM(dms_SingleYear_Model)>1,(CONCATENATE(IF(LEN(CRY)=4,"1-Jan-","1-Jul-"),LEFT(CRY,4))),(CONCATENATE(IF(LEN(CRCP_y4)=4,"1-Jan-","1-Jul-"),LEFT(CRCP_y4,4))))
B107: Table 6.1.1 and 6.7.1 - Start Date as Date Value | C107: 42005 | D107: dms_060101_StartDateVal | E107: =DATEVALUE(dms_060701_StartDateTxt)
B108: ARRs
B109: How many rows in table 6.8? | C109: insert dms_060801_StartCell NR if required | E109: dms_060801_StartCell is only found on worksheet 6.8 and is used to determine the starting date for the date range
B110: Is dms_060801_StartCell named range present? | C110: yes | E110: =IFERROR(IF((ROW(dms_060801_StartCell)-1)=1,"yes","yes"),"no")
B111: Table 6.8 - Number of offset rows | C111: 12 | D111: dms_0608_OffsetRows | E111: =IFERROR(IF(dms_Model="ARR",(ROW(dms_060801_StartCell)-1),"not an ARR"),"6.8 error")
B112: Table 6.8 - Last row | C112: 0 | D112: dms_0608_LastRow | E112: =IFERROR(IF(dms_060801_StartCell<>"",IF(dms_Model="ARR",(LOOKUP(2,1/(dms_060801_01_Values<>""),(ROW(dms_060801_01_Values)))),"not an ARR"),0),"0")
B113: Table 6.8 - MaxRows | C113: =IFERROR(IF(dms_Model="ARR",(MAX(0,dms_0608_LastRow-dms_0608_OffsetRows)),"not an ARR"),"0") -> not an ARR | D113: dms_060801_MaxRows | E113: =IFERROR(IF(dms_Model="ARR",(MAX(0,dms_0608_LastRow-dms_0608_OffsetRows)),"not an ARR"),"0")
B114: TNSP RESET RINS
B115: Table 7.9.4 only appears in TNSPs Reset RIN
B116: Table 7.9.4 - first year | C116: =LEFT(PRCP_y3,4) -> 2013 | D116: dms_070904_Start_Year | E116: =LEFT(PRCP_y3,4)
B118: MISC
B119: Distribution Determination Reference | C119: =INDEX(dms_DeterminationRef_List,MATCH(dms_TradingName,dms_TradingName_List)) -> 2016-20 Distribution Determination | D119: dms_DeterminationRef
B120: Public lighting NSP? | C120: =INDEX(dms_Public_Lighting_List,MATCH(dms_TradingName,dms_TradingName_List)) -> YES | D120: dms_Public_Lighting | E120: =INDEX(dms_Public_Lighting_List,MATCH(dms_TradingName,dms_TradingName_List))
B121: CBD Feeder for this business | C121: =INDEX(dms_CBD_flag,MATCH(dms_TradingName,dms_TradingName_List)) -> NO | D121: dms_CBD_flag_NSP
B122: Urban Feeder for this business | C122: =INDEX(dms_Urban_flag,MATCH(dms_TradingName,dms_TradingName_List)) -> NO | D122: dms_Urban_flag_NSP
B123: Short rural Feeder for this business | C123: =INDEX(dms_ShortRural_flag,MATCH(dms_TradingName,dms_TradingName_List)) -> YES | D123: dms_ShortRural_flag_NSP
B124: Long rural Feeder for this business | C124: =INDEX(dms_LongRural_flag,MATCH(dms_TradingName,dms_TradingName_List)) -> NO | D124: dms_LongRural_flag_NSP
B125: Fifth Feeder Category (eg. TasNetworks (D)) | C125: =INDEX(dms_FeederType_5_flag,MATCH(dms_TradingName,dms_TradingName_List)) -> NO | D125: dms_FifthFeeder_flag_NSP | E125: =INDEX(dms_FeederType_5_flag,MATCH(dms_TradingName,dms_TradingName_List))
B127: DISCARD FILES
B128: discard this record? | C128: NO | D128: dms_DISCARD | E128: If record is to be discarded from DB set this flag to YES
B130: SUBSET FILES
B131: Is this Submission File a Subset File | C131: NO | D131: dms_Partial
B134: REGULATORY YEARS FOR MULTI RYE SUBMISSIONS
B135: Multiple RYE flag | C135: NO | D135: dms_Multi_RYE_flag
C136: Manually specify RYE | D136: Named ranges to apply
C137: 2013 | D137: dms_RYE_01
C138: 2014 | D138: dms_RYE_02
C139: 2015 | D139: dms_RYE_03
C140: 2016 | D140: dms_RYE_04
C141: 2017 | D141: dms_RYE_05
C142: 2018 | D142: dms_RYE_06
C143: 2019 | D143: dms_RYE_07
C144: 2020 | D144: dms_RYE_08
C145: 2021 | D145: dms_RYE_09

Sheet Instructions
B2: =CONCATENATE(dms_Sector," ",dms_Segment," ", "Network Service Provider") -> Electricity Distribution Network Service Provider
B3: =IF(dms_Model="Reset","Regulatory Proposal RIN Template","Annual Reporting RIN") -> Regulatory Proposal RIN Template
B4: =CONCATENATE("This template is to be used by ",dms_TradingNameFull," to fulfil its reporting obligations to the AER.") -> This template is to be used by United Energy to fulfil its reporting obligations to the AER.
B5: INSTRUCTIONS
B6: GENERAL | C6: Complete the Business & other details worksheet before entering data or values in any other worksheets. The Business & other details worksheet is linked to other worksheets within the workbook and automatically generates certain column headings and conditional formatting.
B8: CONFIDENTIAL INFORMATION | C8: Please use the macro at the top of each worksheet to identify confidential information in the confidential workbook.
C9: -Do this by selecting the cell or cells that contain confidential information and then run the Mark selection as CONFIDENTIAL macro. This will format the cells a specific colour that is identified by the AER's database which in turn marks that information as confidential. -To reverse this, select the cell or cells and run the Return selection to NON-CONFIDENTIAL macro.
B11: RESPONSES | C11: Please return two (2) files to the AER: 1. A confidential version which must contain a complete set of all responses with confidential information marked using the Mark selection CONFIDENTIAL macro and which has been completed using the locked template file provided by the AER. 2. A public version with confidential information either removed completely or aggregated in some form together with writtten consent to disclose the public version of the response. Use the drop down box on the Business and other details worksheet to identify the file as either confidential ('consolidated') or public.
B13: AMENDMENTS | C13: If an NSP wishes to correct data previously submitted to the AER it should resubmit that data using the original completed submission as the starting point. Please make any necessary changes to the data. Data that is not being amended should be left unchanged. NSPs must identify the reason for the amendments in the Amendment Reason box on the Business and other details worksheet. NSPs may provide further details regarding any amendments in the Amendments worksheet. .
C14: NSP may use Amended Data macro to highlight cells that contain amended data. NB: if data is also CONFIDENTIAL, re-apply the Confidentiality macro after applying the Amended macro
C15: Please resubmit two (2) files - a confidential version and a public version of the amended submission to the AER
B17: UNITS OF MEASURE | C17: All amounts are to be unrounded and reported on a one for one basis: that is 1000 is to be entered as '1000'. Applicable units of measure may be identified in the table column headings or row descriptors.
B19: INPUT / NON-INPUT CELLS
D20: Yellow = Input cell (mandatory)
D21: Darker yellow = input cell (mandatory)
D22: Orange = input cell (if data available)
D23: Grey = Not applicable/No inputs required
D24: PLEASE DO NOT ENTER TEXT into cells that are to contain numeric data.
B27: NAVIGATION | C27: Many tables in the worksheets have been "grouped" to allow for easy navigation. To ungroup or group data use the outline symbols in the left margin (for Row groupings) or above the columns (for column groupings).

Sheet CONTENTS
C1: =IF(dms_MultiYear_ResponseFlag="Yes","REGULATORY REPORTING STATEMENT - HISTORICAL INFORMATION",INDEX(dms_Worksheet_List,MATCH(dms_Model,dms_Model_List))) -> REGULATORY REPORTING STATEMENT
C2: =INDEX(dms_TradingNameFull_List,MATCH(dms_TradingName,dms_TradingName_List)) -> United Energy
C3: =dms_Header_Span -> 2021-22 to 2025-26
D7: CONTENTS
D9: SUBMISSION | E9: Business & other details
E10: CPI series
D12: EXPENDITURE | E12: 2.1 Expenditure summary
E13: 2.2 Repex
E14: 2.3 Augex (a)
E15: 2.3 Augex (b)
E16: 2.5 Connections
E17: 2.6 Non-network
E18: 2.10 Overheads
E19: 2.11 Labour
E20: 2.14 Forecast price changes
E21: 2.16 Opex Summary
E22: 2.17 Step Changes
D24: ECONOMIC BENCHMARKING | E24: 3.1 Revenue
E25: 3.2 Operating expenditure
E26: 3.3 Assets (RAB)
E27: 3.4 Operational data
E28: 3.5 Physical assets
E29: 3.6 Quality of service
E30: 3.7 Operating Environment
D32: ALTERNATIVE CONTROL | E32: 4.1 Public lighting
E33: 4.2 Metering
E34: 4.3 Fee-based services
E35: 4.4 Quoted services
D37: NETWORK | E37: 5.4 MD & utilisation-Spatial
D39: SERVICE | E39: 6.1 Telephone answering
E40: 6.2 Reliability & Cust serv
D42: OTHER | E42: 7.1 Policies and Procedures
E43: 7.2 Contingent projects
E44: 7.3 Obligations
E45: 7.4 Shared Assets
E46: 7.7 TSS-LRMC
D48: FINANCIAL | E48: 8.2 Capex

Sheet Business & other details
V1: =INDEX(dms_Worksheet_List,MATCH(dms_Model,dms_Model_List)) -> REGULATORY REPORTING STATEMENT
V2: =INDEX(dms_TradingNameFull_List,MATCH(dms_TradingName,dms_TradingName_List)) -> United Energy
V3: =dms_Header_Span -> 2021-22 to 2025-26
V4: BUSINESS & OTHER DETAILS
V6: INSTRUCTIONS
V7: Complete the following business details regulatory template before entering data or values in any other regulatory template. This regulatory template is linked to other cells within the spreadsheet and automatically generates column headings and conditional formatting to distinguish business specific input and non-input cells.
Q9: SUBMISSION PARTICULARS INPUT SHEET
V12: ENTITY DETAILS
V14: Business Name
V16: Short name | AL16: United Energy
V17: ACN/ABN | AL17: =INDEX(dms_ABN_List,MATCH(dms_TradingName,dms_TradingName_List)) -> 70064651029
V21: Business Address | BQ21: Postal Address
V23: Address 1 | AL23: =INDEX(dms_Addr1_List,MATCH(dms_TradingName,dms_TradingName_List)) -> 43-45 Centreway | BI23: Address 1 | BQ23: =INDEX(dms_PAddr1_List,MATCH(dms_TradingName,dms_TradingName_List)) -> PO Box 449
V24: Address 2 | AL24: =IF(ISBLANK(INDEX(dms_Addr2_List,MATCH(dms_TradingName,dms_TradingName_List))),"",(INDEX(dms_Addr2_List,MATCH(dms_TradingName,dms_TradingName_List)))) ->  | BI24: Address 2 | BQ24: =IF(ISBLANK(INDEX(dms_PAddr2_List,MATCH(dms_TradingName,dms_TradingName_List))),"",(INDEX(dms_PAddr2_List,MATCH(dms_TradingName,dms_TradingName_List)))) -> 
V25: Suburb | AL25: =INDEX(dms_Suburb_List,MATCH(dms_TradingName,dms_TradingName_List)) -> MOUNT WAVERLEY | BI25: Suburb | BQ25: =INDEX(dms_PSuburb_List,MATCH(dms_TradingName,dms_TradingName_List)) -> MOUNT WAVERLEY
V26: State | AL26: =INDEX(dms_State_List,MATCH(dms_TradingName,dms_TradingName_List)) -> Vic | AV26: Post code | BI26: State | BQ26: =INDEX(dms_PState_List,MATCH(dms_TradingName,dms_TradingName_List)) -> Vic | CA26: Post code
BA28: `
V30: Contact Names
V32: Name | AL32: Brent Cleeve | BI32: Name
V33: Phone | AL33: (03) 9683 4465 | BI33: Phone
V34: Email | AL34: bcleeve@powercor.com.au | BI34: Email
Q39: REGULATORY CONTROL PERIODS
Z42: Forthcoming period | AL42: 2021-22 | AU42: =FRCP_y2 -> 2022-23 | BD42: =FRCP_y3 -> 2023-24 | BM42: =FRCP_y4 -> 2024-25 | BV42: =FRCP_y5 -> 2025-26
AL43: =FRCP_y6 -> 2026-27 | AU43: =FRCP_y7 -> 2027-28 | BD43: =FRCP_y8 -> 2028-29 | BM43: =FRCP_y9 -> 2029-30 | BV43: =FRCP_y10 -> 2030-31
AL44: =FRCP_y11 -> 2031-32 | AU44: =FRCP_y12 -> 2032-33 | BD44: =FRCP_y13 -> 2033-34 | BM44: =FRCP_y14 -> 2034-35 | BV44: =FRCP_y15 -> 2035-36
X46: RESETS | Z46: Current period | AL46: =CRCP_y1 -> 2016-17 | AU46: =CRCP_y2 -> 2017-18 | BD46: =CRCP_y3 -> 2018-19 | BM46: =CRCP_y4 -> 2019-20 | BV46: =CRCP_y5 -> 2020-21
AL47: =CRCP_y6 -> 2021-22 | AU47: =CRCP_y7 -> 2022-23 | BD47: =CRCP_y8 -> 2023-24 | BM47: =CRCP_y9 -> 2024-25 | BV47: =CRCP_y10 -> 2025-26
AL48: =CRCP_y11 -> 2026-27 | AU48: =CRCP_y12 -> 2027-28 | BD48: =CRCP_y13 -> 2028-29 | BM48: =CRCP_y14 -> 2029-30 | BV48: =CRCP_y15 -> 2030-31
Z50: Previous period | AL50: =PRCP_y1 -> 2011-12 | AU50: =PRCP_y2 -> 2012-13 | BD50: =PRCP_y3 -> 2013-14 | BM50: =PRCP_y4 -> 2014-15 | BV50: =PRCP_y5 -> 2015-16
AL51: =PRCP_y6 -> 2016-17 | AU51: =PRCP_y7 -> 2017-18 | BD51: =PRCP_y8 -> 2018-19 | BM51: =PRCP_y9 -> 2019-20 | BV51: =PRCP_y10 -> 2020-21
AL52: =PRCP_y11 -> 2021-22 | AU52: =PRCP_y12 -> 2022-23 | BD52: =PRCP_y13 -> 2023-24 | BM52: =PRCP_y14 -> 2024-25 | BV52: =PRCP_y15 -> 2025-26
Z54: Commencing year | AL54: 2017-18
X55: ANNUAL RINS
Z56: Final year | AL56: 2017-18
Q60: SUBMISSION DETAILS
Z62: RIN type | AL62: =INDIRECT(dms_Model) -> Regulatory Reporting (Reset)
Z64: Source | AL64: Regulatory proposal
X66: THIS FILE | Z66: Data Quality | AL66: Consolidated
Z68: Confidentiality Status | AL68: Public
Z70: Amended RIN Amendment Reason | AL70: .
Z74: Submission Date | AL74: 2020-01-31 | BD74: Please enter date this file submitted to AER

Sheet CPI series
B1: =INDEX(dms_Worksheet_List,MATCH(dms_Model,dms_Model_List)) -> REGULATORY REPORTING STATEMENT
B2: =INDEX(dms_TradingNameFull_List,MATCH(dms_TradingName,dms_TradingName_List)) -> United Energy
B3: =dms_Header_Span -> 2021-22 to 2025-26
B4: CPI SERIES
B8: NOMINATED CPI SERIES
B10: Name of CPI series | C10: ABS CPI All Groups, Weighted Average of Eight Capital Cities , December quarter (to December 2018)
C12: =CRCP_y1 -> 2016-17 | D12: =CRCP_y2 -> 2017-18 | E12: =CRCP_y3 -> 2018-19 | F12: =CRCP_y4 -> 2019-20 | G12: =CRCP_y5 -> 2020-21 | H12: =FRCP_y1 -> 2021-22 | I12: =FRCP_y2 -> 2022-23 | J12: =FRCP_y3 -> 2023-24 | K12: =FRCP_y4 -> 2024-25 | L12: =FRCP_y5 -> 2025-26
B13: Series data | C13: 110 | D13: 112.1 | E13: 114.1 | F13: =E13*1.02 -> 116.382 | G13: =F13*1.02 -> 118.70964 | H13: =G13*1.024 -> 121.5586714 | I13: =H13*1.024 -> 124.4760795 | J13: 127.4635054 | K13: 130.5226295 | L13: 133.6551726

Sheet 2.1 Expenditure summary
B1: =INDEX(dms_Worksheet_List,MATCH(dms_Model,dms_Model_List)) -> REGULATORY REPORTING STATEMENT
B2: =INDEX(dms_TradingNameFull_List,MATCH(dms_TradingName,dms_TradingName_List)) -> United Energy
B3: =dms_Header_Span -> 2021-22 to 2025-26
B4: 2.1 EXPENDITURE SUMMARY & RECONCILIATION
B7: 2.1.1 - STANDARD CONTROL SERVICES CAPEX
C8: =CONCATENATE("Forecast ($0's, real ", dms_DollarReal, ")") -> Forecast ($0's, real June 2021)
C9: =CRCP_y4 -> 2019-20 | D9: =CRCP_y5 -> 2020-21 | E9: =FRCP_y1 -> 2021-22 | F9: =FRCP_y2 -> 2022-23 | G9: =FRCP_y3 -> 2023-24 | H9: =FRCP_y4 -> 2024-25 | I9: =FRCP_y5 -> 2025-26
B10: Replacement expenditure | C10: =SUM('2.2 Repex'!E$12:E$146) -> 65051964.14 | D10: =SUM('2.2 Repex'!F$12:F$146) -> 71947067.8 | E10: =SUM('2.2 Repex'!G$12:G$146) -> 89283675.34 | F10: =SUM('2.2 Repex'!H$12:H$146) -> 108165612.6 | G10: =SUM('2.2 Repex'!I$12:I$146) -> 107979641.5 | H10: =SUM('2.2 Repex'!J$12:J$146) -> 106432555.8 | I10: =SUM('2.2 Repex'!K$12:K$146) -> 93069949.64
B11: Connections | C11: =SUM('2.5 Connections'!E$105:E$118) -> 67756815.77 | D11: =SUM('2.5 Connections'!F$105:F$118) -> 68523366.42 | E11: =SUM('2.5 Connections'!G$105:G$118) -> 73612243.36 | F11: =SUM('2.5 Connections'!H$105:H$118) -> 72203856.41 | G11: =SUM('2.5 Connections'!I$105:I$118) -> 77535839.12 | H11: =SUM('2.5 Connections'!J$105:J$118) -> 75646640.36 | I11: =SUM('2.5 Connections'!K$105:K$118) -> 70241227.55
B12: Augmentation Expenditure | C12: =SUM('2.3 Augex (b)'!D$48:D$56) -> 21840560.99 | D12: =SUM('2.3 Augex (b)'!E$48:E$56) -> 20698208.83 | E12: =SUM('2.3 Augex (b)'!F$48:F$56) -> 38273781.06 | F12: =SUM('2.3 Augex (b)'!G$48:G$56) -> 39235673.2 | G12: =SUM('2.3 Augex (b)'!H$48:H$56) -> 35343183.68 | H12: =SUM('2.3 Augex (b)'!I$48:I$56) -> 37994285.53 | I12: =SUM('2.3 Augex (b)'!J$48:J$56) -> 31196841.68
B13: Non-network | C13: =SUM('2.6 Non-network'!E$32:E$39) -> 32750468.16 | D13: =SUM('2.6 Non-network'!F$32:F$39) -> 31170888.89 | E13: =SUM('2.6 Non-network'!G$32:G$39) -> 77927121.88 | F13: =SUM('2.6 Non-network'!H$32:H$39) -> 55687568.9 | G13: =SUM('2.6 Non-network'!I$32:I$39) -> 60276351.62 | H13: =SUM('2.6 Non-network'!J$32:J$39) -> 50000018.28 | I13: =SUM('2.6 Non-network'!K$32:K$39) -> 35954221.49
B14: Public lighting
B15: Metering
B16: Capitalised network overheads | C16: ='2.10 Overheads'!D$15 -> 22311277.9 | D16: ='2.10 Overheads'!E$15 -> 22738034.01 | E16: ='2.10 Overheads'!F$15 -> 23172952.85 | F16: ='2.10 Overheads'!G$15 -> 23626970.27 | G16: ='2.10 Overheads'!H$15 -> 24077325.29 | H16: ='2.10 Overheads'!I$15 -> 24527510.84 | I16: ='2.10 Overheads'!J$15 -> 24997404.79
B17: Capitalised corporate overheads
B18: capcons (included in the above) | C18: =SUM('2.5 Connections'!E$141:E$154) -> 43541975.33 | D18: =SUM('2.5 Connections'!F$141:F$154) -> 44318354.86 | E18: =SUM('2.5 Connections'!G$141:G$154) -> 47984081.81 | F18: =SUM('2.5 Connections'!H$141:H$154) -> 47037092.56 | G18: =SUM('2.5 Connections'!I$141:I$154) -> 51194416.55 | H18: =SUM('2.5 Connections'!J$141:J$154) -> 48681103.6 | I18: =SUM('2.5 Connections'!K$141:K$154) -> 45072911.42
B19: Total | C19: =SUM(C10:C17) -> 209711087 | D19: 215077566 | E19: 302269774.5 | F19: 298919681.4 | G19: 305212341.3 | H19: 294601010.8 | I19: 255459645.2
B22: 2.1.2 - STANDARD CONTROL SERVICES OPEX BY CATEGORY
C23: =CONCATENATE("Forecast ($0's, real ", dms_DollarReal, ")") -> Forecast ($0's, real June 2021)
C24: =CRCP_y4 -> 2019-20 | D24: =CRCP_y5 -> 2020-21
B25: Vegetation management | C25: 16480082.35 | D25: 17528211.87
B26: Maintenance | C26: 24835105.91 | D26: 26414613.05
B27: Emergency response | C27: 15580195.77 | D27: 16571092.71
B28: Non-network
B29: Metering
B30: Network overheads | C30: ='2.10 Overheads'!D12 -> 16183565.15 | D30: ='2.10 Overheads'!E12 -> 16493114.22
B31: Corporate overheads | C31: ='2.10 Overheads'!D27 -> 54578305.01 | D31: ='2.10 Overheads'!E27 -> 55622244.55
B32: Total | C32: =SUM(C25:C31) -> 127657254.2 | D32: =SUM(D25:D31) -> 132629276.4
B35: 2.1.3 - ALTERNATIVE CONTROL SERVICES CAPEX
C36: =CONCATENATE("Forecast ($0's, real ", dms_DollarReal, ")") -> Forecast ($0's, real June 2021)
C37: =CRCP_y4 -> 2019-20 | D37: =CRCP_y5 -> 2020-21 | E37: =FRCP_y1 -> 2021-22 | F37: =FRCP_y2 -> 2022-23 | G37: =FRCP_y3 -> 2023-24 | H37: =FRCP_y4 -> 2024-25 | I37: =FRCP_y5 -> 2025-26
B38: Connections
B39: Metering | C39: =SUM('4.2 Metering'!E29,'4.2 Metering'!E47,'4.2 Metering'!E59,'4.2 Metering'!E61) -> 13848870.24 | D39: =SUM('4.2 Metering'!F29,'4.2 Metering'!F47,'4.2 Metering'!F59,'4.2 Metering'!F61) -> 12873071.7 | E39: =SUM('4.2 Metering'!G29,'4.2 Metering'!G47,'4.2 Metering'!G59,'4.2 Metering'!G61) -> 11913275.27 | F39: =SUM('4.2 Metering'!H29,'4.2 Metering'!H47,'4.2 Metering'!H59,'4.2 Metering'!H61) -> 10190473.46 | G39: =SUM('4.2 Metering'!I29,'4.2 Metering'!I47,'4.2 Metering'!I59,'4.2 Metering'!I61) -> 9778606.838 | H39: =SUM('4.2 Metering'!J29,'4.2 Metering'!J47,'4.2 Metering'!J59,'4.2 Metering'!J61) -> 10412782.66 | I39: =SUM('4.2 Metering'!K29,'4.2 Metering'!K47,'4.2 Metering'!K59,'4.2 Metering'!K61) -> 12533187.84
B40: Public lighting | C40: ='4.1 Public lighting'!D18 -> 1873644.525 | D40: ='4.1 Public lighting'!E18 -> 1835364.264 | E40: ='4.1 Public lighting'!F18 -> 1797084.002 | F40: ='4.1 Public lighting'!G18 -> 2916647.787 | G40: ='4.1 Public lighting'!H18 -> 2956701.561 | H40: ='4.1 Public lighting'!I18 -> 2986997.022 | I40: ='4.1 Public lighting'!J18 -> 3004074.516
B41: Fee and quoted
B42: Network overheads
B43: Corporate overheads
B44: Total | C44: =SUM(C38:C43) -> 15722514.77 | D44: 14708435.96 | E44: 13710359.27 | F44: 13107121.24 | G44: 12735308.4 | H44: 13399779.68 | I44: 15537262.36
B47: 2.1.4 - ALTERNATIVE CONTROL SERVICES OPEX
C48: =CONCATENATE("Forecast ($0's, real ", dms_DollarReal, ")") -> Forecast ($0's, real June 2021)
C49: =CRCP_y4 -> 2019-20 | D49: =CRCP_y5 -> 2020-21 | E49: =FRCP_y1 -> 2021-22 | F49: =FRCP_y2 -> 2022-23 | G49: =FRCP_y3 -> 2023-24 | H49: =FRCP_y4 -> 2024-25 | I49: =FRCP_y5 -> 2025-26
B50: Connections | C50: =SUM('4.2 Metering'!E44:E46) -> 10368184.34 | D50: =SUM('4.2 Metering'!F44:F46) -> 13182785.15 | E50: =SUM('4.2 Metering'!G44:G46) -> 11098143.31 | F50: =SUM('4.2 Metering'!H44:H46) -> 10934742.26 | G50: =SUM('4.2 Metering'!I44:I46) -> 10794779.02 | H50: =SUM('4.2 Metering'!J44:J46) -> 10729215.19 | I50: =SUM('4.2 Metering'!K44:K46) -> 10640581.86
B51: Metering | C51: =SUM('4.2 Metering'!E32:E43,'4.2 Metering'!E50:E58,'4.2 Metering'!E60,'4.2 Metering'!E62) -> 7638696.077 | D51: =SUM('4.2 Metering'!F32:F43,'4.2 Metering'!F50:F58,'4.2 Metering'!F60,'4.2 Metering'!F62) -> 7857970.679 | E51: =SUM('4.2 Metering'!G32:G43,'4.2 Metering'!G50:G58,'4.2 Metering'!G60,'4.2 Metering'!G62) -> 7017502.563 | F51: =SUM('4.2 Metering'!H32:H43,'4.2 Metering'!H50:H58,'4.2 Metering'!H60,'4.2 Metering'!H62) -> 7205805.204 | G51: =SUM('4.2 Metering'!I32:I43,'4.2 Metering'!I50:I58,'4.2 Metering'!I60,'4.2 Metering'!I62) -> 7396434.421 | H51: =SUM('4.2 Metering'!J32:J43,'4.2 Metering'!J50:J58,'4.2 Metering'!J60,'4.2 Metering'!J62) -> 7580823.284 | I51: =SUM('4.2 Metering'!K32:K43,'4.2 Metering'!K50:K58,'4.2 Metering'!K60,'4.2 Metering'!K62) -> 7754817.948
B52: Public lighting | C52: ='4.1 Public lighting'!D22 -> 2749666.444 | D52: ='4.1 Public lighting'!E22 -> 3394785.084 | E52: ='4.1 Public lighting'!F22 -> 4039903.725 | F52: ='4.1 Public lighting'!G22 -> 3973100.458 | G52: ='4.1 Public lighting'!H22 -> 3918291.718 | H52: ='4.1 Public lighting'!I22 -> 3855224.496 | I52: ='4.1 Public lighting'!J22 -> 3837635.964
B53: Fee and quoted | C53: =SUM('4.3 Fee-based services'!C13:C14,'4.3 Fee-based services'!C16:C28,'4.4 Quoted services'!C12:C20) -> 5022068.716 | D53: =SUM('4.3 Fee-based services'!D13:D14,'4.3 Fee-based services'!D16:D28,'4.4 Quoted services'!D12:D20) -> 5167244.417 | E53: =SUM('4.3 Fee-based services'!E13:E14,'4.3 Fee-based services'!E16:E28,'4.4 Quoted services'!E12:E20) -> 4083384.36 | F53: =SUM('4.3 Fee-based services'!F13:F14,'4.3 Fee-based services'!F16:F28,'4.4 Quoted services'!F12:F20) -> 4142297.042 | G53: =SUM('4.3 Fee-based services'!G13:G14,'4.3 Fee-based services'!G16:G28,'4.4 Quoted services'!G12:G20) -> 4208039.977 | H53: =SUM('4.3 Fee-based services'!H13:H14,'4.3 Fee-based services'!H16:H28,'4.4 Quoted services'!H12:H20) -> 4281430.401 | I53: =SUM('4.3 Fee-based services'!I13:I14,'4.3 Fee-based services'!I16:I28,'4.4 Quoted services'!I12:I20) -> 4363383.598
B54: Network overheads
B55: Corporate overheads
B56: Total | C56: =SUM(C50:C55) -> 25778615.57 | D56: 29602785.33 | E56: 26238933.96 | F56: 26255944.96 | G56: 26317545.13 | H56: 26446693.38 | I56: 26596419.37
B59: 2.1.5 - DUAL FUNCTION ASSETS CAPEX
C60: =CONCATENATE("Forecast ($0's, real ", dms_DollarReal, ")") -> Forecast ($0's, real June 2021)
C61: =CRCP_y4 -> 2019-20 | D61: =CRCP_y5 -> 2020-21 | E61: =FRCP_y1 -> 2021-22 | F61: =FRCP_y2 -> 2022-23 | G61: =FRCP_y3 -> 2023-24 | H61: =FRCP_y4 -> 2024-25 | I61: =FRCP_y5 -> 2025-26
B62: Replacement expenditure
B63: Connections
B64: Augmentation expenditure
B65: Non-network
B66: Capitalised network overheads
B67: Capitalised corporate overheads
B68: capcons (included in the above)
B69: Total | C69: =SUM(C62:C67) -> 0 | D69: 0 | E69: 0 | F69: 0 | G69: 0 | H69: 0 | I69: 0
B72: 2.1.6 - DUAL FUNCTION ASSETS OPEX BY CATEGORY
C73: =CONCATENATE("Forecast ($0's, real ", dms_DollarReal, ")") -> Forecast ($0's, real June 2021)
C74: =CRCP_y4 -> 2019-20 | D74: =CRCP_y5 -> 2020-21
B75: Vegetation management
B76: Maintenance
B77: Emergency response
B78: Non-network
B79: Metering
B80: Network overheads
B81: Corporate overheads
B96: Total | C96: =SUM(C75:C95) -> 0 | D96: =SUM(D75:D95) -> 0
B99: 2.1.7 - STANDARD CONTROL SERVICES CAPCONS
C100: =CONCATENATE("Forecast ($0's, real ", dms_DollarReal, ")") -> Forecast ($0's, real June 2021)
C101: =CRCP_y4 -> 2019-20 | D101: =CRCP_y5 -> 2020-21 | E101: =FRCP_y1 -> 2021-22 | F101: =FRCP_y2 -> 2022-23 | G101: =FRCP_y3 -> 2023-24 | H101: =FRCP_y4 -> 2024-25 | I101: =FRCP_y5 -> 2025-26
B102: Replacement expenditure
B103: Connections | C103: =C18 -> 43541975.33 | D103: =D18 -> 44318354.86 | E103: 47984081.81 | F103: 47037092.56 | G103: 51194416.55 | H103: 48681103.6 | I103: 45072911.42
B104: Augmentation Expenditure
B105: Non-network
B106: Capitalised network overheads
B107: Capitalised corporate overheads
B108: Total | C108: =SUM(C102:C107) -> 43541975.33 | D108: 44318354.86 | E108: 47984081.81 | F108: 47037092.56 | G108: 51194416.55 | H108: 48681103.6 | I108: 45072911.42
B111: 2.1.8 - STANDARD CONTROL SERVICES CAPITALISED OVERHEADS
C112: =CONCATENATE("Forecast ($0's, real ", dms_DollarReal, ")") -> Forecast ($0's, real June 2021)
C113: =CRCP_y4 -> 2019-20 | D113: =CRCP_y5 -> 2020-21 | E113: =FRCP_y1 -> 2021-22 | F113: =FRCP_y2 -> 2022-23 | G113: =FRCP_y3 -> 2023-24 | H113: =FRCP_y4 -> 2024-25 | I113: =FRCP_y5 -> 2025-26
B114: Replacement expenditure | C114: =C10/SUM(C$10:C$12)*'2.10 Overheads'!D$15 -> 9385054.221 | D114: =D10/SUM(D$10:D$12)*'2.10 Overheads'!E$15 -> 10150453.86 | E114: 10516509.79 | F114: 11828307.89 | G114: 11631801.24 | H114: 11721439.97 | I114: 11858157.27
B115: Connections | C115: =C11/SUM(C$10:C$12)*'2.10 Overheads'!D$15 -> 9775283.472 | D115: =D11/SUM(D$10:D$12)*'2.10 Overheads'!E$15 -> 9667430.379 | E115: 8470733.807 | F115: 7779038.816 | G115: 8458755.1 | H115: 8438697.841 | I115: 9056672.271
B116: Augmentation Expenditure | C116: =C12/SUM(C$10:C$12)*'2.10 Overheads'!D$15 -> 3150940.203 | D116: =D12/SUM(D$10:D$12)*'2.10 Overheads'!E$15 -> 2920149.773 | E116: 4185709.248 | F116: 4019623.562 | G116: 3986768.953 | H116: 4367373.024 | I116: 4082575.25
B117: Non-network
B118: capcons (included in the above)
B119: Total | C119: =SUM(C114:C117) -> 22311277.9 | D119: 22738034.01 | E119: 23172952.85 | F119: 23626970.27 | G119: 24077325.29 | H119: 24527510.84 | I119: 24997404.79

Sheet 2.2 Repex
B1: =INDEX(dms_Worksheet_List,MATCH(dms_Model,dms_Model_List)) -> REGULATORY REPORTING STATEMENT
B2: =INDEX(dms_TradingNameFull_List,MATCH(dms_TradingName,dms_TradingName_List)) -> United Energy
B3: =dms_Header_Span -> 2021-22 to 2025-26
B4: 2.2 REPEX
B6: There are THREE sub-tables on this worksheet. The table has been sub-grouped for easy navigation. See the Instructions sheet on how to group or ungroup tables.
B8: 2.2.1 - REPLACEMENT EXPENDITURE, VOLUMES AND ASSET FAILURES BY ASSET CATEGORY
B9: EXPENDITURE
E10: =CONCATENATE("EXPENDITURE ($0's, real ", dms_DollarReal,")") -> EXPENDITURE ($0's, real June 2021)
B11: ASSET GROUP | C11: ASSET CATEGORY | D11: UNITS | E11: =CRCP_y4 -> 2019-20 | F11: =CRCP_y5 -> 2020-21 | G11: =FRCP_y1 -> 2021-22 | H11: =FRCP_y2 -> 2022-23 | I11: =FRCP_y3 -> 2023-24 | J11: =FRCP_y4 -> 2024-25 | K11: =FRCP_y5 -> 2025-26
B12: POLES BY: HIGHEST OPERATING VOLTAGE ; MATERIAL TYPE | C12: Staking of a wooden pole | E12: 0 | F12: 0 | G12: 0 | H12: 0 | I12: 0 | J12: 0 | K12: 0
C13: ˂ = 1 kV; Wood | E13: 3753576.648 | F13: 4020448.947 | G13: 5230670.159 | H13: 5607007.827 | I13: 5973940.52 | J13: 6049773.936 | K13: 6405223.418
C14: > 1 kV & < = 11 kV; Wood | E14: 2224527.054 | F14: 2359969.734 | G14: 3049672.9 | H14: 3248483.335 | I14: 3441182.879 | J14: 3462226.333 | K14: 3647186.19
C15: ˃ 11 kV & < = 22 kV; Wood | E15: 3336790.581 | F15: 3539954.601 | G15: 4573511.786 | H15: 4871685.182 | I15: 5160706.88 | J15: 5192575.205 | K15: 5470006.091
C16: > 22 kV & < = 66 kV; Wood | E16: 819638.5927 | F16: 872697.9949 | G16: 1262480.389 | H16: 1344681.598 | I16: 1422771.116 | J16: 1393781.005 | K16: 1466674.843
C17: > 66 kV & < = 132 kV; Wood | E17: 0 | F17: 0 | G17: 0 | H17: 0 | I17: 0 | J17: 0 | K17: 0
C18: > 132 kV; Wood | E18: 0 | F18: 0 | G18: 0 | H18: 0 | I18: 0 | J18: 0 | K18: 0
C19: ˂ = 1 kV; Concrete | E19: 0 | F19: 0 | G19: 0 | H19: 0 | I19: 0 | J19: 0 | K19: 0
C20: > 1 kV & < = 11 kV; Concrete | E20: 0 | F20: 0 | G20: 0 | H20: 0 | I20: 0 | J20: 0 | K20: 0
C21: ˃ 11 kV & < = 22 kV; Concrete | E21: 0 | F21: 386894.8294 | G21: 784187.3967 | H21: 795802.2125 | I21: 806707.8742 | J21: 816862.4332 | K21: 826373.6969
C22: > 22 kV & < = 66 kV; Concrete | E22: 0 | F22: 0 | G22: 0 | H22: 0 | I22: 0 | J22: 0 | K22: 0
C23: > 66 kV & < = 132 kV; Concrete | E23: 0 | F23: 0 | G23: 0 | H23: 0 | I23: 0 | J23: 0 | K23: 0
C24: > 132 kV; Concrete | E24: 0 | F24: 0 | G24: 0 | H24: 0 | I24: 0 | J24: 0 | K24: 0
C25: ˂ = 1 kV; Steel | E25: 0 | F25: 0 | G25: 0 | H25: 0 | I25: 0 | J25: 0 | K25: 0
C26: > 1 kV & < = 11 kV; Steel | E26: 0 | F26: 0 | G26: 0 | H26: 0 | I26: 0 | J26: 0 | K26: 0
C27: ˃ 11 kV & < = 22 kV; Steel | E27: 0 | F27: 0 | G27: 0 | H27: 0 | I27: 0 | J27: 0 | K27: 0
C28: > 22 kV & < = 66 kV; Steel | E28: 0 | F28: 0 | G28: 0 | H28: 0 | I28: 0 | J28: 0 | K28: 0
C29: > 66 kV & < = 132 kV; Steel | E29: 0 | F29: 0 | G29: 0 | H29: 0 | I29: 0 | J29: 0 | K29: 0
C30: > 132 kV; Steel | E30: 0 | F30: 0 | G30: 0 | H30: 0 | I30: 0 | J30: 0 | K30: 0
C31: Other | E31: 0 | F31: 0 | G31: 0 | H31: 0 | I31: 0 | J31: 0 | K31: 0
B32: POLE TOP STRUCTURES BY: HIGHEST OPERATING VOLTAGE | C32: ˂ = 1 kV | E32: 9155455.451 | F32: 9155455.451 | G32: 9188519.343 | H32: 9324587.103 | I32: 9450458.493 | J32: 9597601.396 | K32: 9709960.02
C33: > 1 kV & < = 11 kV | E33: 1294768.559 | F33: 1294768.559 | G33: 1249111.847 | H33: 1267594.61 | I33: 1283625.14 | J33: 1319537.257 | K33: 1335327.275
C34: ˃ 11 kV & < = 22 kV | E34: 1942152.839 | F34: 2624114.003 | G34: 3248081.82 | H34: 3281849.293 | I34: 3310303.199 | J34: 3366911.29 | K34: 3391889.751
C35: > 22 kV & < = 66 kV | E35: 434883.1042 | F35: 434883.1042 | G35: 436399.9571 | H35: 442862.3499 | I35: 448839.3388 | J35: 455844.7172 | K35: 461181.6327
C36: > 66 kV & < = 132 kV | E36: 0 | F36: 0 | G36: 0 | H36: 0 | I36: 0 | J36: 0 | K36: 0
C37: > 132 kV | E37: 0 | F37: 0 | G37: 0 | H37: 0 | I37: 0 | J37: 0 | K37: 0
C38: Other | E38: 989450.7906 | F38: 989450.7906 | G38: 1002746.458 | H38: 1017598.412 | I38: 1031543.566 | J38: 1044528.279 | K38: 1056690.405
B39: STAKING WOODEN POLES BY: HIGHEST OPERATING VOLTAGE | C39: ˂ = 1 Kv | D39: for year wooden pole staked | E39: 0 | F39: 0 | G39: 0 | H39: 0 | I39: 0 | J39: 0 | K39: 0
C40: > 1 kV & < = 11 kV | D40: for year wooden pole staked | E40: 0 | F40: 0 | G40: 0 | H40: 0 | I40: 0 | J40: 0 | K40: 0
C41: ˃ 11 kV & < = 22 kV | D41: for year wooden pole staked | E41: 1771146.2 | F41: 1889843.471 | G41: 2035530.349 | H41: 2187753.088 | I41: 2341480.86 | J41: 2496259.129 | K41: 2652088.228
C42: > 22 kV & < = 66 kV | D42: for year wooden pole staked | E42: 0 | F42: 0 | G42: 0 | H42: 0 | I42: 0 | J42: 0 | K42: 0
C43: > 66 kV & < = 132 kV | D43: for year wooden pole staked | E43: 0 | F43: 0 | G43: 0 | H43: 0 | I43: 0 | J43: 0 | K43: 0
C44: > 132 kV | D44: for year wooden pole staked | E44: 0 | F44: 0 | G44: 0 | H44: 0 | I44: 0 | J44: 0 | K44: 0
B45: OVERHEAD CONDUCTORS BY: Highest operating voltage; Number of phases (at HV) | C45: ˂ = 1 kV | D45: per km | E45: 295768.5478 | F45: 282866.343 | G45: 286667.3373 | H45: 290913.2463 | I45: 294899.9171 | J45: 298612.015 | K45: 302088.95
C46: > 1 kV & < = 11 kV | D46: per km | E46: 35929.37225 | F46: 35929.37225 | G46: 36412.17037 | H46: 36951.48107 | I46: 37457.86361 | J46: 37929.37021 | K46: 38371.00668
C47: ˃ 11 kV & < = 22 kV ; SWER | D47: per km | E47: 0 | F47: 0 | G47: 0 | H47: 0 | I47: 0 | J47: 0 | K47: 0
C48: ˃ 11 kV & < = 22 kV ; Single-Phase | D48: per km | E48: 197651.4367 | F48: 0 | G48: 0 | H48: 0 | I48: 0 | J48: 0 | K48: 0
C49: ˃ 11 kV & < = 22 kV ; Multiple-Phase | D49: per km | E49: 1873070.516 | F49: 2411871.762 | G49: 2465410.014 | H49: 2501925.881 | I49: 2536212.236 | J49: 2568137.197 | K49: 2323089.397
C50: > 22 kV & < = 66 kV | D50: per km | E50: 0 | F50: 0 | G50: 0 | H50: 0 | I50: 0 | J50: 0 | K50: 0
C51: > 66 kV & < = 132 kV | D51: per km | E51: 0 | F51: 0 | G51: 0 | H51: 0 | I51: 0 | J51: 0 | K51: 0
C52: > 132 kV | D52: per km | E52: 0 | F52: 0 | G52: 0 | H52: 0 | I52: 0 | J52: 0 | K52: 0
C53: Other | D53: per km | E53: 649230.5856 | F53: 824579.4715 | G53: 226164.9928 | H53: 229514.7849 | I53: 232660.0521 | J53: 235588.6961 | K53: 238331.8094
B54: UNDERGROUND CABLES BY: Highest operating voltage | C54: ˂ = 1 kV | D54: per km | E54: 229614.2584 | F54: 229614.2584 | G54: 232699.682 | H54: 236146.2611 | I54: 239382.406 | J54: 242395.6687 | K54: 245218.0401
C55: > 1 kV & < = 11 kV | D55: per km | E55: 1272097.111 | F55: 1612243.748 | G55: 1572598.722 | H55: 1638846.538 | I55: 1531413.648 | J55: 1576625.234 | K55: 1749743.195
C56: > 11 kV & < = 22 kV | D56: per km | E56: 970716.2486 | F56: 656411.4046 | G56: 594749.8689 | H56: 643001.9764 | I56: 711999.5018 | J56: 800631.4778 | K56: 911714.6395
C57: > 22 kV & < = 33 kV | D57: per km | E57: 0 | F57: 0 | G57: 0 | H57: 0 | I57: 0 | J57: 0 | K57: 0
C58: > 33 kV & < = 66 kV | D58: per km | E58: 0 | F58: 0 | G58: 0 | H58: 0 | I58: 500464.4637 | J58: 506764.1369 | K58: 0
C59: > 66 kV & < = 132 kV | D59: per km | E59: 0 | F59: 0 | G59: 0 | H59: 0 | I59: 0 | J59: 0 | K59: 0
C60: > 132 kV | D60: per km | E60: 0 | F60: 0 | G60: 0 | H60: 0 | I60: 0 | J60: 0 | K60: 0
C61: Other | D61: per km | E61: 2540175.08 | F61: 2858244.5 | G61: 3218995.388 | H61: 3273976.907 | I61: 3326247.622 | J61: 3375614.661 | K61: 3422503.834
B62: SERVICE LINES BY: Connection voltage; Customer type; Connection complexity | C62: ˂ = 11 kV ; Residential ; Simple Type | D62: per number of spans | E62: 3036027.875 | F62: 3744195.624 | G62: 4495061.193 | H62: 4416212.049 | I62: 4330434.157 | J62: 4218139.218 | K62: 4115853.741
C63: ˂ = 11 kV ; Commercial & Industrial ; Simple Type | D63: per number of spans | E63: 365786.491 | F63: 365786.491 | G63: 377292.961 | H63: 382884.1219 | I63: 388269.3601 | J63: 391091.3624 | K63: 395601.6025
C64: ˂ = 11 kV ; Residential ; Complex Type | D64: per number of spans | E64: 219471.8946 | F64: 219471.8946 | G64: 226375.7766 | H64: 229730.4731 | I64: 232961.6161 | J64: 234654.8174 | K64: 237360.9615
C65: ˂ = 11 kV ; Commercial & Industrial ; Complex Type | D65: per number of spans | E65: 36578.6491 | F65: 36578.6491 | G65: 37729.2961 | H65: 38288.41219 | I65: 38826.93601 | J65: 39109.13624 | K65: 39560.16025
C66: ˂ = 11 kV ; Subdivision ; Complex Type | D66: per number of spans | E66: 0 | F66: 0 | G66: 0 | H66: 0 | I66: 0 | J66: 0 | K66: 0
C67: > 11 kV & < = 22 kV ; Commercial & Industrial | D67: per number of spans | E67: 0 | F67: 0 | G67: 0 | H67: 0 | I67: 0 | J67: 0 | K67: 0
C68: > 11 kV & < = 22 kV ; Subdivision | D68: per number of spans | E68: 0 | F68: 0 | G68: 0 | H68: 0 | I68: 0 | J68: 0 | K68: 0
C69: > 22 kV & < = 33 kV ; Commercial & Industrial | D69: per number of spans | E69: 0 | F69: 0 | G69: 0 | H69: 0 | I69: 0 | J69: 0 | K69: 0
C70: > 22 kV & < = 33 kV ; Subdivision | D70: per number of spans | E70: 0 | F70: 0 | G70: 0 | H70: 0 | I70: 0 | J70: 0 | K70: 0
C71: > 33 kV & < = 66 kV ; Commercial & Industrial | D71: per number of spans | E71: 0 | F71: 0 | G71: 0 | H71: 0 | I71: 0 | J71: 0 | K71: 0
C72: > 33 kV & < = 66 kV ; Subdivision | D72: per number of spans | E72: 0 | F72: 0 | G72: 0 | H72: 0 | I72: 0 | J72: 0 | K72: 0
C73: > 66 kV & < = 132 kV ; Commercial & Industrial | D73: per number of spans | E73: 0 | F73: 0 | G73: 0 | H73: 0 | I73: 0 | J73: 0 | K73: 0
C74: > 66 kV & < = 132 kV ; Subdivision | D74: per number of spans | E74: 0 | F74: 0 | G74: 0 | H74: 0 | I74: 0 | J74: 0 | K74: 0
C75: > 132 kV ; Commercial & Industrial | D75: per number of spans | E75: 0 | F75: 0 | G75: 0 | H75: 0 | I75: 0 | J75: 0 | K75: 0
C76: > 132 kV ; Subdivision | D76: per number of spans | E76: 0 | F76: 0 | G76: 0 | H76: 0 | I76: 0 | J76: 0 | K76: 0
C77: Other | D77: per number of spans | E77: 0 | F77: 0 | G77: 0 | H77: 0 | I77: 0 | J77: 0 | K77: 0
B78: TRANSFORMERS BY: Mounting type; Highest operating voltage; Ampere rating; Number of phases (at LV) | C78: Pole Mounted ; < = 22kV ; < = 60 kVA ; Single Phase | E78: 292238.4934 | F78: 292238.4934 | G78: 296165.4252 | H78: 300552.013 | I78: 304670.7733 | J78: 308505.8634 | K78: 312097.9989
C79: Pole Mounted ; < = 22kV ; > 60 kVA and < = 600 kVA ; Single Phase | E79: 13955.08021 | F79: 13955.08021 | G79: 14142.60051 | H79: 14352.07046 | I79: 14548.75102 | J79: 14731.88566 | K79: 14903.41864
C80: Pole Mounted ; < = 22kV ; > 600 kVA ; Single Phase | E80: 0 | F80: 0 | G80: 0 | H80: 0 | I80: 0 | J80: 0 | K80: 0
C81: Pole Mounted ; < = 22kV ; < = 60 kVA ; Multiple Phase | E81: 97412.83113 | F81: 97412.83113 | G81: 98721.8084 | H81: 100184.0043 | I81: 101556.9244 | J81: 102835.2878 | K81: 104032.6663
C82: Pole Mounted ; < = 22kV ; > 60 kVA and < = 600 kVA ; Multiple Phase | E82: 707738.4102 | F82: 692311.7259 | G82: 701614.6104 | H82: 712006.4179 | I82: 721763.7432 | J82: 730849.055 | K82: 739358.8086
C83: Pole Mounted ; < = 22kV ; > 600 kVA ; Multiple Phase | E83: 0 | F83: 0 | G83: 0 | H83: 0 | I83: 0 | J83: 0 | K83: 0
C84: Kiosk Mounted ; < = 22kV ; < = 60 kVA ; Single Phase | E84: 0 | F84: 0 | G84: 0 | H84: 0 | I84: 0 | J84: 0 | K84: 0
C85: Kiosk Mounted ; < = 22kV ; > 60 kVA and < = 600 kVA ; Single Phase | E85: 0 | F85: 0 | G85: 0 | H85: 0 | I85: 0 | J85: 0 | K85: 0
C86: Kiosk Mounted ; < = 22kV ; > 600 kVA ; Single Phase | E86: 0 | F86: 0 | G86: 0 | H86: 0 | I86: 0 | J86: 0 | K86: 0
C87: Kiosk Mounted ; < = 22kV ; < = 60 kVA ; Multiple Phase | E87: 0 | F87: 0 | G87: 0 | H87: 0 | I87: 0 | J87: 0 | K87: 0
C88: Kiosk Mounted ; < = 22kV ; > 60 kVA and < = 600 kVA ; Multiple Phase | E88: 1316532.784 | F88: 1328798.988 | G88: 1329323.094 | H88: 1348788.945 | I88: 1343591.23 | J88: 1379289.072 | K88: 1448229.287
C89: Kiosk Mounted ; < = 22kV ; > 600 kVA ; Multiple Phase | E89: 99525.77711 | F89: 99525.77711 | G89: 100863.1469 | H89: 102357.0588 | I89: 103759.7584 | J89: 105065.8503 | K89: 106289.2007
C90: Ground Outdoor / Indoor Chamber Mounted; ˂ 22 kV ; < = 60 kVA ; Single Phase | E90: 0 | F90: 0 | G90: 0 | H90: 0 | I90: 0 | J90: 0 | K90: 0
C91: Ground Outdoor / Indoor Chamber Mounted; ˂ 22 kV ; > 60 kVA and < = 600 kVA ; Single Phase | E91: 0 | F91: 0 | G91: 0 | H91: 0 | I91: 0 | J91: 0 | K91: 0
C92: Ground Outdoor / Indoor Chamber Mounted; ˂ 22 kV ; > 600 kVA ; Single Phase | E92: 0 | F92: 0 | G92: 0 | H92: 0 | I92: 0 | J92: 0 | K92: 0
C93: Ground Outdoor / Indoor Chamber Mounted; ˂ 22 kV ; < = 60 kVA ; Multiple Phase | E93: 0 | F93: 0 | G93: 0 | H93: 0 | I93: 0 | J93: 0 | K93: 0
C94: Ground Outdoor / Indoor Chamber Mounted; ˂ 22 kV ; > 60 kVA and < = 600 kVA ; Multiple Phase | E94: 360152.0014 | F94: 345504.2702 | G94: 350146.9567 | H94: 355333.0799 | I94: 360202.5591 | J94: 364736.664 | K94: 368983.5316
C95: Ground Outdoor / Indoor Chamber Mounted; ˂ 22 kV ; > 600 kVA ; Multiple Phase | E95: 175403.2893 | F95: 180505.0772 | G95: 138857.8202 | H95: 140914.4816 | I95: 142845.5716 | J95: 144643.6621 | K95: 146327.8429
C96: Ground Outdoor / Indoor Chamber Mounted; > = 22 kV & < = 33 kV ; < = 15 MVA | E96: 336143.1735 | F96: 274033.3388 | G96: 277715.6403 | H96: 281828.9633 | I96: 285691.1432 | J96: 289287.3242 | K96: 292655.6858
C97: Ground Outdoor / Indoor Chamber Mounted; > = 22 kV & < = 33 kV ; > 15 MVA and < = 40 MVA | E97: 0 | F97: 0 | G97: 0 | H97: 0 | I97: 0 | J97: 0 | K97: 0
C98: Ground Outdoor / Indoor Chamber Mounted; > = 22 kV & < = 33 kV ; > 40 MVA | E98: 0 | F98: 0 | G98: 0 | H98: 0 | I98: 0 | J98: 0 | K98: 0
C99: Ground Outdoor / Indoor Chamber Mounted; > 33 kV & < = 66 kV ; < = 15 MVA | E99: 0 | F99: 0 | G99: 0 | H99: 0 | I99: 0 | J99: 0 | K99: 0
C100: Ground Outdoor / Indoor Chamber Mounted; > 33 kV & < = 66 kV ; > 15 MVA and < = 40 MVA | E100: 2107500.398 | F100: 3414142.947 | G100: 3702637.482 | H100: 4650677.708 | I100: 5486498.06 | J100: 5479753.996 | K100: 4895448.117
C101: Ground Outdoor / Indoor Chamber Mounted; > 33 kV & < = 66 kV ; > 40 MVA | E101: 0 | F101: 0 | G101: 0 | H101: 0 | I101: 0 | J101: 0 | K101: 0
C102: Ground Outdoor / Indoor Chamber Mounted; > 66 kV & < = 132 kV ; < = 100 MVA | E102: 0 | F102: 0 | G102: 0 | H102: 0 | I102: 0 | J102: 0 | K102: 0
C103: Ground Outdoor / Indoor Chamber Mounted; > 66 kV & < = 132 kV ; > 100 MVA | E103: 0 | F103: 0 | G103: 0 | H103: 0 | I103: 0 | J103: 0 | K103: 0
C104: Ground Outdoor / Indoor Chamber Mounted; > 132 kV ; < = 100 MVA | E104: 0 | F104: 0 | G104: 0 | H104: 0 | I104: 0 | J104: 0 | K104: 0
C105: Ground Outdoor / Indoor Chamber Mounted; > 132 kV ; > 100 MVA | E105: 0 | F105: 0 | G105: 0 | H105: 0 | I105: 0 | J105: 0 | K105: 0
C106: Other | E106: 1965320.751 | F106: 1564702.856 | G106: 1590227.209 | H106: 1476738.783 | I106: 1294996.924 | J106: 1106776.389 | K106: 1135416.115
B107: SWITCHGEAR BY: Highest operating voltage; Switch function | C107: ˂ = 11 kV ; FUSE | E107: 2205049.011 | F107: 2828008.467 | G107: 2937181.826 | H107: 3051936.751 | I107: 3167348.742 | J107: 2541576.768 | K107: 1859127.536
C108: ˂ = 11 kV ; Switch | E108: 4899888.717 | F108: 5056495.436 | G108: 5283152.805 | H108: 5522464.862 | I108: 5761413.65 | J108: 5999260.513 | K108: 6236362.991
C109: ˂ = 11 kV ; Circuit Breaker | E109: 1596695.374 | F109: 2031993.17 | G109: 1891188.333 | H109: 1916521.802 | I109: 1658607.811 | J109: 1904907.962 | K109: 2561651.057
C110: > 11 kV & < = 22 kV ; Switch | E110: 1365934.844 | F110: 1418137.084 | G110: 1490096.893 | H110: 1565854.403 | I110: 1641735.852 | J110: 1717509.516 | K110: 1793257.324
C111: > 11 kV & < = 22 kV ; Circuit Breaker | E111: 1127713.409 | F111: 652263.3424 | G111: 41487.87174 | H111: 615985.7452 | I111: 1295821.582 | J111: 723062.2199 | K111: 0
C112: > 22 kV & < = 33 kV ; Switch | E112: 0 | F112: 0 | G112: 0 | H112: 0 | I112: 0 | J112: 0 | K112: 0
C113: > 22 kV & < = 33 kV ; Circuit Breaker | E113: 0 | F113: 0 | G113: 0 | H113: 0 | I113: 0 | J113: 0 | K113: 0
C114: > 33 kV & < = 66 kV ; Switch | E114: 500351.9407 | F114: 746843.7696 | G114: 809951.9492 | H114: 1017335.749 | I114: 1200171.451 | J114: 1198696.187 | K114: 1070879.276
C115: > 33 kV & < = 66 kV ; Circuit Breaker | E115: 0 | F115: 83395.04031 | G115: 169031.3092 | H115: 171534.8786 | I115: 173885.59 | J115: 176074.4015 | K115: 89062.27548
C116: > 66 kV & < = 132 kV ; Switch | E116: 0 | F116: 0 | G116: 0 | H116: 0 | I116: 0 | J116: 0 | K116: 0
C117: > 66 kV & < = 132 kV ; Circuit Breaker | E117: 0 | F117: 0 | G117: 0 | H117: 0 | I117: 0 | J117: 0 | K117: 0
C118: > 132 kV ; Switch | E118: 0 | F118: 0 | G118: 0 | H118: 0 | I118: 0 | J118: 0 | K118: 0
C119: > 132 kV ; Circuit Breaker | E119: 0 | F119: 0 | G119: 0 | H119: 0 | I119: 0 | J119: 0 | K119: 0
C120: Other | E120: 722846.2293 | F120: 748406.2944 | G120: 791682.1112 | H120: 837119.1175 | I120: 882764.1472 | J120: 928479.3979 | K120: 974296.5218
B121: PUBLIC LIGHTING BY: Asset type ; Lighting obligation | C121: Luminaires ; Major Road | E121: 0 | F121: 0 | G121: 0 | H121: 0 | I121: 0 | J121: 0 | K121: 0
C122: Luminaires ; Minor Road | E122: 0 | F122: 0 | G122: 0 | H122: 0 | I122: 0 | J122: 0 | K122: 0
C123: Brackets ; Major Road | E123: 0 | F123: 0 | G123: 0 | H123: 0 | I123: 0 | J123: 0 | K123: 0
C124: Brackets ; Minor Road | E124: 0 | F124: 0 | G124: 0 | H124: 0 | I124: 0 | J124: 0 | K124: 0
C125: Lamps ; Major Road | E125: 0 | F125: 0 | G125: 0 | H125: 0 | I125: 0 | J125: 0 | K125: 0
C126: Lamps ; Minor Road | E126: 0 | F126: 0 | G126: 0 | H126: 0 | I126: 0 | J126: 0 | K126: 0
C127: Poles / Columns ; Major Road | E127: 0 | F127: 0 | G127: 0 | H127: 0 | I127: 0 | J127: 0 | K127: 0
C128: Poles / Columns ; Minor Road | E128: 0 | F128: 0 | G128: 0 | H128: 0 | I128: 0 | J128: 0 | K128: 0
C129: Other | E129: 0 | F129: 0 | G129: 0 | H129: 0 | I129: 0 | J129: 0 | K129: 0
B130: SCADA, NETWORK CONTROL AND PROTECTION SYSTEMS BY: Function | C130: Field Devices | E130: 3999613.498 | F130: 4232645.177 | G130: 5613294.6 | H130: 5656465.527 | I130: 5810955.09 | J130: 5513841.716 | K130: 5506949.463
C131: Local Network Wiring Assets | E131: 519482.3877 | F131: 864222.1043 | G131: 948688.1809 | H131: 1083886.014 | I131: 956370.7016 | J131: 871568.2875 | K131: 682439.6414
C132: Communications Network Assets | E132: 576003.377 | F132: 889808.4272 | G132: 1254156.682 | H132: 4720238.596 | I132: 804220.8538 | J132: 3649118.99 | K132: 217465.028
C133: Master Station Assets | E133: 0 | F133: 0 | G133: 0 | H133: 0 | I133: 0 | J133: 0 | K133: 0
C134: Communications Site Infrastructure | E134: 0 | F134: 0 | G134: 0 | H134: 0 | I134: 0 | J134: 0 | K134: 0
C135: Communications Linear Assets | E135: 117875.5967 | F135: 24407.96476 | G135: 68778.943 | H135: 52348.2351 | I135: 19144.24105 | J135: 96765.23608 | K135: 136625.5576
C136: AFLC | E136: 0 | F136: 0 | G136: 0 | H136: 0 | I136: 0 | J136: 0 | K136: 0
C137: Other | E137: 43122.26931 | F137: 0 | G137: 0 | H137: 0 | I137: 0 | J137: 0 | K137: 0
B138: OTHER BY: enter DNSP defined asset group here | C138: Zone Substaion Miscellaneous | E138: 0 | F138: 0 | G138: 0 | H138: 0 | I138: 0 | J138: 0 | K138: 0
C139: Buildings | E139: 919740.7766 | F139: 1212576.637 | G139: 957484.9473 | H139: 1002650.008 | I139: 1016390.309 | J139: 1001232.467 | K139: 814281.597
C140: Civil | E140: 764302.442 | F140: 987566.6427 | G140: 741845.7957 | H140: 965568.6902 | I140: 1207118.127 | J140: 990385.6975 | K140: 618764.989
C141: Capacitor Banks - Large | E141: 91139.12779 | F141: 120257.3855 | G141: 121873.3347 | H141: 271988.6374 | I141: 426058.6097 | J141: 279186.5827 | K141: 128429.6567
C142: Fences | E142: 207032.7638 | F142: 234548.53 | G142: 0 | H142: 0 | I142: 0 | J142: 0 | K142: 0
C143: CTs and VTs | E143: 183139.0013 | F143: 142993.2763 | G143: 20699.41894 | H143: 143981.0149 | I143: 289824.3523 | J143: 167243.1218 | K143: 12444.44866
C144: NER's | E144: 0 | F144: 0 | G144: 0 | H144: 0 | I144: 0 | J144: 0 | K144: 0
C145: Other | E145: 295602.5008 | F145: 523092.6669 | G145: 11711594.74 | H145: 22777701.87 | I145: 22434895.35 | J145: 18925977.73 | K145: 10362130.72
C146: 0 | E146: 0 | F146: 0 | G146: 0 | H146: 0 | I146: 0 | J146: 0 | K146: 0
B182: ASSET REPLACEMENTS
E183: VOLUMES (0's)
B184: ASSET GROUP | C184: ASSET CATEGORY | E184: =CRCP_y4 -> 2019-20 | F184: =CRCP_y5 -> 2020-21 | G184: =FRCP_y1 -> 2021-22 | H184: =FRCP_y2 -> 2022-23 | I184: =FRCP_y3 -> 2023-24 | J184: =FRCP_y4 -> 2024-25 | K184: =FRCP_y5 -> 2025-26
B185: POLES BY: HIGHEST OPERATING VOLTAGE ; MATERIAL TYPE | C185: Staking of a wooden pole | E185: 0 | F185: 0 | G185: 0 | H185: 0 | I185: 0 | J185: 0 | K185: 0
C186: ˂ = 1 kV; Wood | E186: 441 | F186: 473 | G186: 579.3065539 | H186: 612.7547569 | I186: 645.2029598 | J186: 653.755814 | K186: 685.755814
C187: > 1 kV & < = 11 kV; Wood | E187: 163 | F187: 173 | G187: 211.6934461 | H187: 222.2452431 | I187: 232.7970402 | J187: 234.244186 | K187: 244.244186
C188: ˃ 11 kV & < = 22 kV; Wood | E188: 245 | F188: 260 | G188: 370 | H188: 386 | I188: 402 | J188: 388 | K188: 403
C189: > 22 kV & < = 66 kV; Wood | E189: 40 | F189: 43 | G189: 54 | H189: 58 | I189: 60 | J189: 60 | K189: 63
C190: > 66 kV & < = 132 kV; Wood | E190: 0 | F190: 0 | G190: 0 | H190: 0 | I190: 0 | J190: 0 | K190: 0
C191: > 132 kV; Wood | E191: 0 | F191: 0 | G191: 0 | H191: 0 | I191: 0 | J191: 0 | K191: 0
C192: ˂ = 1 kV; Concrete | E192: 0 | F192: 0 | G192: 0 | H192: 0 | I192: 0 | J192: 0 | K192: 0
C193: > 1 kV & < = 11 kV; Concrete | E193: 0 | F193: 0 | G193: 0 | H193: 0 | I193: 0 | J193: 0 | K193: 0
C194: ˃ 11 kV & < = 22 kV; Concrete | E194: 0 | F194: 278 | G194: 278 | H194: 278 | I194: 278 | J194: 278 | K194: 278
C195: > 22 kV & < = 66 kV; Concrete | E195: 0 | F195: 0 | G195: 0 | H195: 0 | I195: 0 | J195: 0 | K195: 0
C196: > 66 kV & < = 132 kV; Concrete | E196: 0 | F196: 0 | G196: 0 | H196: 0 | I196: 0 | J196: 0 | K196: 0
C197: > 132 kV; Concrete | E197: 0 | F197: 0 | G197: 0 | H197: 0 | I197: 0 | J197: 0 | K197: 0
C198: ˂ = 1 kV; Steel | E198: 0 | F198: 0 | G198: 0 | H198: 0 | I198: 0 | J198: 0 | K198: 0
C199: > 1 kV & < = 11 kV; Steel | E199: 0 | F199: 0 | G199: 0 | H199: 0 | I199: 0 | J199: 0 | K199: 0
C200: ˃ 11 kV & < = 22 kV; Steel | E200: 0 | F200: 0 | G200: 0 | H200: 0 | I200: 0 | J200: 0 | K200: 0
C201: > 22 kV & < = 66 kV; Steel | E201: 0 | F201: 0 | G201: 0 | H201: 0 | I201: 0 | J201: 0 | K201: 0
C202: > 66 kV & < = 132 kV; Steel | E202: 0 | F202: 0 | G202: 0 | H202: 0 | I202: 0 | J202: 0 | K202: 0
C203: > 132 kV; Steel | E203: 0 | F203: 0 | G203: 0 | H203: 0 | I203: 0 | J203: 0 | K203: 0
C204: Other | E204: 0 | F204: 0 | G204: 0 | H204: 0 | I204: 0 | J204: 0 | K204: 0
B205: POLE TOP STRUCTURES BY: HIGHEST OPERATING VOLTAGE | C205: ˂ = 1 kV | E205: 3119 | F205: 3119 | G205: 3039.346763 | H205: 3039.324136 | I205: 3037.677961 | J205: 3061.634044 | K205: 3062.144449
C206: > 1 kV & < = 11 kV | E206: 366 | F206: 366 | G206: 352.8003207 | H206: 352.7965711 | I206: 352.5237764 | J206: 356.4936416 | K206: 356.5782229
C207: ˃ 11 kV & < = 22 kV | E207: 549 | F207: 990 | G207: 975.7670435 | H207: 971.7644207 | I207: 966.5736054 | J207: 965.3504601 | K207: 960.4096234
C208: > 22 kV & < = 66 kV | E208: 77 | F208: 77 | G208: 76.74586084 | H208: 76.74578865 | I208: 76.74053642 | J208: 76.81696995 | K208: 76.81859843
C209: > 66 kV & < = 132 kV | E209: 0 | F209: 0 | G209: 0 | H209: 0 | I209: 0 | J209: 0 | K209: 0
C210: > 132 kV | E210: 0 | F210: 0 | G210: 0 | H210: 0 | I210: 0 | J210: 0 | K210: 0
C211: Other | E211: 584 | F211: 584 | G211: 584 | H211: 584 | I211: 584 | J211: 584 | K211: 584
B212: STAKING WOODEN POLES BY: HIGHEST OPERATING VOLTAGE | C212: ˂ = 1 Kv | E212: 0 | F212: 0 | G212: 0 | H212: 0 | I212: 0 | J212: 0 | K212: 0
C213: > 1 kV & < = 11 kV | E213: 0 | F213: 0 | G213: 0 | H213: 0 | I213: 0 | J213: 0 | K213: 0
C214: ˃ 11 kV & < = 22 kV | E214: 1444 | F214: 1542 | G214: 1639 | H214: 1737 | I214: 1835 | J214: 1932 | K214: 2028
C215: > 22 kV & < = 66 kV | E215: 0 | F215: 0 | G215: 0 | H215: 0 | I215: 0 | J215: 0 | K215: 0
C216: > 66 kV & < = 132 kV | E216: 0 | F216: 0 | G216: 0 | H216: 0 | I216: 0 | J216: 0 | K216: 0
C217: > 132 kV | E217: 0 | F217: 0 | G217: 0 | H217: 0 | I217: 0 | J217: 0 | K217: 0
B218: OVERHEAD CONDUCTORS BY: Highest operating voltage; Number of phases (at HV) | C218: ˂ = 1 kV | E218: 3956 | F218: 3796 | G218: 3796 | H218: 3796 | I218: 3796 | J218: 3796 | K218: 3796
C219: > 1 kV & < = 11 kV | E219: 460 | F219: 460 | G219: 460 | H219: 460 | I219: 460 | J219: 460 | K219: 460
C220: ˃ 11 kV & < = 22 kV ; SWER | E220: 0 | F220: 0 | G220: 0 | H220: 0 | I220: 0 | J220: 0 | K220: 0
C221: ˃ 11 kV & < = 22 kV ; Single-Phase | E221: 2961.11 | F221: 0 | G221: 0 | H221: 0 | I221: 0 | J221: 0 | K221: 0
C222: ˃ 11 kV & < = 22 kV ; Multiple-Phase | E222: 12388.7917 | F222: 10054.25483 | G222: 10054.25483 | H222: 10054.25483 | I222: 10054.25483 | J222: 10054.25483 | K222: 10054.25483
C223: > 22 kV & < = 66 kV | E223: 0 | F223: 0 | G223: 0 | H223: 0 | I223: 0 | J223: 0 | K223: 0
C224: > 66 kV & < = 132 kV | E224: 0 | F224: 0 | G224: 0 | H224: 0 | I224: 0 | J224: 0 | K224: 0
C225: > 132 kV | E225: 0 | F225: 0 | G225: 0 | H225: 0 | I225: 0 | J225: 0 | K225: 0
C226: Other | E226: 22 | F226: 22 | G226: 22 | H226: 22 | I226: 22 | J226: 22 | K226: 22
B227: UNDERGROUND CABLES BY: Highest operating voltage | C227: ˂ = 1 kV | E227: 1323 | F227: 1323 | G227: 1323 | H227: 1323 | I227: 1323 | J227: 1323 | K227: 1323
C228: > 1 kV & < = 11 kV | E228: 1272 | F228: 1192 | G228: 1192 | H228: 1192 | I228: 1212 | J228: 1192 | K228: 1692
C229: > 11 kV & < = 22 kV | E229: 2772.666667 | F229: 1563.333333 | G229: 1386 | H229: 1386 | I229: 1386 | J229: 1406 | K229: 1406
C230: > 22 kV & < = 33 kV | E230: 0 | F230: 0 | G230: 0 | H230: 0 | I230: 0 | J230: 0 | K230: 0
C231: > 33 kV & < = 66 kV | E231: 0 | F231: 0 | G231: 0 | H231: 0 | I231: 0 | J231: 188 | K231: 0
C232: > 66 kV & < = 132 kV | E232: 0 | F232: 0 | G232: 0 | H232: 0 | I232: 0 | J232: 0 | K232: 0
C233: > 132 kV | E233: 0 | F233: 0 | G233: 0 | H233: 0 | I233: 0 | J233: 0 | K233: 0
C234: Other | E234: 734 | F234: 925 | G234: 935 | H234: 944 | I234: 954 | J234: 963 | K234: 973
B235: SERVICE LINES BY: Connection voltage; Customer type; Connection complexity | C235: ˂ = 11 kV ; Residential ; Simple Type | E235: 3797 | F235: 3797 | G235: 5938.443673 | H235: 5731.476292 | I235: 5526.973212 | J235: 5297.879853 | K235: 5090.419974
C236: ˂ = 11 kV ; Commercial & Industrial ; Simple Type | E236: 457 | F236: 457 | G236: 465.8486353 | H236: 465.8525653 | I236: 466.0329171 | J236: 463.3710667 | K236: 463.3156595
C237: ˂ = 11 kV ; Residential ; Complex Type | E237: 274 | F237: 274 | G237: 279.3091812 | H237: 279.3115392 | I237: 279.4197502 | J237: 277.82264 | K237: 277.7893957
... 224 more rows

Sheet 2.3 Augex (a)
B1: =INDEX(dms_Worksheet_List,MATCH(dms_Model,dms_Model_List)) -> REGULATORY REPORTING STATEMENT
B2: =INDEX(dms_TradingNameFull_List,MATCH(dms_TradingName,dms_TradingName_List)) -> United Energy
B3: =dms_Header_Span -> 2021-22 to 2025-26
B4: 2.3 AUGEX PROJECT DATA
B6: There are TWO tables on this worksheet - each has been 'grouped' (and sub-grouped) for easy navigation. Both ROWS and COLUMNS have been grouped. See the Instructions sheet on how to group or ungroup tables.
B9: 2.3.1 - AUGEX ASSET DATA - SUBTRANSMISSION SUBSTATIONS, SWITCHING STATIONS AND ZONE SUBSTATIONS
B10: PROJECT DESCRIPTION AND CHANGES | L10: PLANT AND EQUIPMENT EXPENDITURE AND VOLUME | X10: OTHER EXPENDITURE | Z10: TOTAL DIRECT EXPENDITURE ($0's) | AA10: YEARS INCURRED | AB10: ALL RELATED PARTY CONTRACTS | AD10: ALL NON-RELATED PARTY CONTRACTS | AE10: LAND AND EASEMENTS
B11: SUBSTATION ID | C11: SUBSTATION TYPE (drop down) | D11: PROJECT ID | E11: PROJECT TYPE (drop down) | F11: PROJECT TRIGGER (drop down) | G11: VOLTAGE (KV) | H11: SUBSTATION RATING NORMAL CYCLIC (MVA) | J11: SUBSTATION RATING N-1 EMERGENCY (MVA) | L11: TRANSFORMERS | O11: SWITCHGEAR | R11: CAPACITORS | U11: OTHER PLANT ITEM | V11: INSTALLATION (LABOUR) | X11: CIVIL WORKS | Y11: OTHER DIRECT | AB11: RELATED PARTY MARGINS | AC11: TOTAL | AE11: LAND PURCHASE | AF11: EASEMENTS
H12: PRE | I12: POST | J12: PRE | K12: POST | L12: UNITS ADDED | M12: MVA ADDED | N12: =CONCATENATE("EXPENDITURE ($0's, real ", dms_DollarReal,")") -> EXPENDITURE ($0's, real June 2021) | O12: UNITS ADDED | Q12: =CONCATENATE("EXPENDITURE ($0's, real ", dms_DollarReal,")") -> EXPENDITURE ($0's, real June 2021) | R12: MVAR ADDED | T12: =CONCATENATE("EXPENDITURE ($0's, real ", dms_DollarReal,")") -> EXPENDITURE ($0's, real June 2021) | U12: =CONCATENATE("EXPENDITURE ($0's, real ", dms_DollarReal,")") -> EXPENDITURE ($0's, real June 2021) | V12: VOLUME | W12: =CONCATENATE("EXPENDITURE ($0's, real ", dms_DollarReal,")") -> EXPENDITURE ($0's, real June 2021) | X12: =CONCATENATE("EXPENDITURE ($0's, real ", dms_DollarReal,")") -> EXPENDITURE ($0's, real June 2021) | AB12: =CONCATENATE("EXPENDITURE ($0's, real ", dms_DollarReal,")") -> EXPENDITURE ($0's, real June 2021) | AE12: =CONCATENATE("EXPENDITURE ($0's, real ", dms_DollarReal,")") -> EXPENDITURE ($0's, real June 2021)
B13: KBH | C13: Zone substation | D13: KBH000365 | E13: KBH 2nd transformer | F13: Demand growth | G13: 66/22 | H13: 46.7 | I13: 93.4 | J13: 0 | K13: 46.7 | L13: 1 | M13: 46.7 | N13: 959303.5731 | O13: 7 | Q13: 330426.7863 | R13: 0 | T13: 0 | U13: 696334.0696 | V13: 7171 | W13: 853971.6177 | X13: 1480531.56 | Y13: 2248350.867 | Z13: 6568918.474 | AA13: 2021/22,2022/23 | AB13: 0 | AC13: 0 | AD13: 6568918.474 | AE13: 0 | AF13: 0
B14: EM | C14: Zone substation | D14: EM000347 | E14: EM New switchboard | F14: Demand growth | G14: 66/11 | H14: 63.9 | I14: 63.9 | J14: 38 | K14: 38 | L14: 0 | M14: 0 | N14: 0 | O14: 7 | Q14: 330426.7863 | R14: 0 | T14: 0 | U14: 382925.3509 | V14: 2378 | W14: 283073.7689 | X14: 898708.275 | Y14: 954478.4953 | Z14: 2849612.676 | AA14: 2022/23,2023/24 | AB14: 0 | AC14: 0 | AD14: 2849612.676 | AE14: 0 | AF14: 0
B15: DC | C15: Zone substation | D15: DC000295 | E15: DC 4th transformer | F15: Demand growth | G15: 66/22 | H15: 110.4 | I15: 147.2 | J15: 81.4 | K15: 108.5 | L15: 1 | M15: 46.7 | N15: 916667.8587 | O15: 7 | Q15: 508430.8937 | R15: 0 | T15: 0 | U15: 697474.7228 | V15: 10142 | W15: 1083360.685 | X15: 1094842.02 | Y15: 2131368.414 | Z15: 6432144.593 | AA15: 2023/24,2024/25 | AB15: 0 | AC15: 0 | AD15: 6432144.593 | AE15: 0 | AF15: 0
B16: MTN | C16: Zone substation | D16: MTN000376 | E16: MTN 3rd Transformer | F16: Demand growth | G16: 66/22 | H16: 92.9 | I16: 139.4 | J16: 46.7 | K16: 93.4 | L16: 1 | M16: 46.7 | N16: 906008.9302 | O16: 7 | Q16: 421027.6793 | R16: 0 | T16: 0 | U16: 762934.1317 | V16: 6220 | W16: 718175.2807 | X16: 1603811.679 | Y16: 2662552.421 | Z16: 7074510.121 | AA16: 2024/25,2025/26 | AB16: 0 | AC16: 0 | AD16: 7074510.121 | AE16: 0 | AF16: 0
Z17: =IF(SUM(N17,Q17,T17,U17,W17,X17,Y17)<>0,SUM(N17,Q17,T17,U17,W17,X17,Y17),"") -> 
D65: Non material projects - [forecast] | Z65: 2536222.778 | AA65: 2019/20,2020/21,2021/22,2022/23,2023/24,2024/25,2025/26
B68: 2.3.2 - AUGEX ASSET DATA - SUBTRANSMISSION LINES
B69: PROJECT DESCRIPTION AND CHANGES | L69: PLANT AND EQUIPMENT EXPENDITURE AND VOLUME | X69: OTHER EXPENDITURE | Z69: TOTAL DIRECT EXPENDITURE ($0's) | AA69: YEARS INCURRED | AB69: ALL RELATED PARTY CONTRACTS | AD69: ALL NON RELATED PARTY CONTRACTS | AE69: LAND AND EASEMENTS
B70: LINE ID | D70: PROJECT ID | E70: PROJECT TYPE (drop down) | F70: PROJECT TRIGGER (drop down) | G70: VOLTAGE (KV) (drop down) | H70: ROUTE LINE LENGTH ADDED | L70: POLES/TOWERS (INCLUDING STRUCTURES, AND CIVIL WORKS) | O70: OVERHEAD LINES | R70: UNDERGROUND CABLES | U70: OTHER PLANT ITEM | V70: INSTALLATION (LABOUR) | X70: CIVIL WORKS | Y70: OTHER DIRECT | AB70: RELATED PARTY MARGINS | AC70: TOTAL | AE70: LAND PURCHASE | AF70: EASEMENTS
H71: KM ADDED | L71: POLES/TOWERS ADDED | M71: POLES/TOWERS UPGRADED | N71: =CONCATENATE("EXPENDITURE ($0's, real ", dms_DollarReal,")") -> EXPENDITURE ($0's, real June 2021) | O71: CIRCUIT KM ADDED | P71: CIRCUIT KM UPGRADED | Q71: =CONCATENATE("EXPENDITURE ($0's, real ", dms_DollarReal,")") -> EXPENDITURE ($0's, real June 2021) | R71: CIRCUIT KM ADDED | S71: CIRCUIT KM UPGRADED | T71: =CONCATENATE("EXPENDITURE ($0's, real ", dms_DollarReal,")") -> EXPENDITURE ($0's, real June 2021) | U71: =CONCATENATE("EXPENDITURE ($0's, real ", dms_DollarReal,")") -> EXPENDITURE ($0's, real June 2021) | V71: VOLUME | W71: =CONCATENATE("EXPENDITURE ($0's, real ", dms_DollarReal,")") -> EXPENDITURE ($0's, real June 2021) | X71: =CONCATENATE("EXPENDITURE ($0's, real ", dms_DollarReal,")") -> EXPENDITURE ($0's, real June 2021) | AB71: =CONCATENATE("EXPENDITURE ($0's, real ", dms_DollarReal,")") -> EXPENDITURE ($0's, real June 2021) | AE71: =CONCATENATE("EXPENDITURE ($0's, real ", dms_DollarReal,")") -> EXPENDITURE ($0's, real June 2021)
Z72: =IF(SUM(N72,Q72,T72,U72,W72,X72,Y72)<>0,SUM(N72,Q72,T72,U72,W72,X72,Y72),"") -> 
Z73: =IF(SUM(N73,Q73,T73,U73,W73,X73,Y73)<>0,SUM(N73,Q73,T73,U73,W73,X73,Y73),"") -> 
Z74: =IF(SUM(N74,Q74,T74,U74,W74,X74,Y74)<>0,SUM(N74,Q74,T74,U74,W74,X74,Y74),"") -> 
D126: Non material projects - [forecast] | Z126: 1165144.815 | AA126: 2019/20,2022/23,2023/24,2024/25,2025/26

Sheet 2.3 Augex (b)
B1: =INDEX(dms_Worksheet_List,MATCH(dms_Model,dms_Model_List)) -> REGULATORY REPORTING STATEMENT
B2: =INDEX(dms_TradingNameFull_List,MATCH(dms_TradingName,dms_TradingName_List)) -> United Energy
B3: =dms_Header_Span -> 2021-22 to 2025-26
B4: 2.3 AUGEX PROJECT DATA
B6: There are FOUR tables on this worksheet. These tables have been 'grouped' (and sub-grouped) for easy navigation. See the Instructions sheet on how to group or ungroup tables.
B8: NOTE: DNSP must provide expenditure information on an 'as incurred' basis.
B9: 2.3.3 - AUGEX DATA - HV/LV FEEDERS AND DISTRIBUTION SUBSTATIONS
B10: PROJECT TYPE | C10: Units | D10: VOLUMES (0's)
D11: =CRCP_y4 -> 2019-20 | E11: =CRCP_y5 -> 2020-21 | F11: =FRCP_y1 -> 2021-22 | G11: =FRCP_y2 -> 2022-23 | H11: =FRCP_y3 -> 2023-24 | I11: =FRCP_y4 -> 2024-25 | J11: =FRCP_y5 -> 2025-26
B12: DESCRIPTOR METRICS - UNITS ADDED
B13: HV Feeder Augmentations - Overhead Lines | C13: Circuit Line Length in KM | D13: 0 | E13: 0 | F13: 0 | G13: 0 | H13: 0 | I13: 0.36 | J13: 1.6
B14: HV Feeder Augmentations - Underground Cables | C14: Circuit Line Length in KM | D14: 1.05 | E14: 1.66 | F14: 1.36 | G14: 2 | H14: 5.11 | I14: 7.2 | J14: 5.8
B15: LV Feeder Augmentations - Overhead Lines | C15: Circuit Line Length in KM | D15: 0 | E15: 0 | F15: 0 | G15: 0 | H15: 0 | I15: 0 | J15: 0
B16: LV Feeder Augmentations - Underground Cables | C16: Circuit Line Length in KM | D16: 0 | E16: 0 | F16: 0 | G16: 0 | H16: 0 | I16: 0 | J16: 0
B17: Distribution Substation Augmentations - Pole Mounted | C17: Number | D17: 11.27258831 | E17: 12.57823974 | F17: 12.23291692 | G17: 12.80847031 | H17: 12.46312445 | I17: 10.39345458 | J17: 9.125035392
B18: Distribution Substation Augmentations - Ground Mounted | C18: Number | D18: 0.9802250704 | E18: 1.093759977 | F18: 1.063731906 | G18: 1.113780027 | H18: 1.083749953 | I18: 0.9037786591 | J18: 0.7934813384
B19: Distribution Substation Augmentations - Indoor | C19: Number | D19: 0.2450562676 | E19: 0.2734399943 | F19: 0.2659329765 | G19: 0.2784450068 | H19: 0.2709374881 | I19: 0.2259446648 | J19: 0.1983703346
B20: DESCRIPTOR METRICS - UNITS UPGRADED
B21: HV Feeder Augmentations - Overhead Lines | C21: Circuit Line Length in KM | D21: 0 | E21: 0.65 | F21: 0 | G21: 0.26 | H21: 2.516 | I21: 2.97 | J21: 0
B22: HV Feeder Augmentations - Underground Cables | C22: Circuit Line Length in KM | D22: 0 | E22: 0 | F22: 0 | G22: 0 | H22: 0.23 | I22: 0 | J22: 0
B23: LV Feeder Augmentations - Overhead Lines | C23: Circuit Line Length in KM | D23: 0 | E23: 0 | F23: 0 | G23: 0 | H23: 0 | I23: 0 | J23: 0
B24: LV Feeder Augmentations - Underground Cables | C24: Circuit Line Length in KM | D24: 0 | E24: 0 | F24: 0 | G24: 0 | H24: 0 | I24: 0 | J24: 0
B25: Distribution Substation Augmentations - Pole Mounted | C25: Number | D25: 73.51688028 | E25: 82.0319983 | F25: 79.77989295 | G25: 83.53350204 | H25: 81.28124644 | I25: 67.78339943 | J25: 59.51110038
B26: Distribution Substation Augmentations - Ground Mounted | C26: Number | D26: 2.450562676 | E26: 2.734399943 | F26: 2.659329765 | G26: 2.784450068 | H26: 2.709374881 | I26: 2.259446648 | J26: 1.983703346
B27: Distribution Substation Augmentations - Indoor | C27: Number | D27: 0.2450562676 | E27: 0.2734399943 | F27: 0.2659329765 | G27: 0.2784450068 | H27: 0.2709374881 | I27: 0.2259446648 | J27: 0.1983703346
B29: COST METRICS
B30: PROJECT TYPE | D30: =CONCATENATE("TOTAL DIRECT EXPENDITURE ($0's, real ", dms_DollarReal,")") -> TOTAL DIRECT EXPENDITURE ($0's, real June 2021)
D31: =CRCP_y4 -> 2019-20 | E31: =CRCP_y5 -> 2020-21 | F31: =FRCP_y1 -> 2021-22 | G31: =FRCP_y2 -> 2022-23 | H31: =FRCP_y3 -> 2023-24 | I31: =FRCP_y4 -> 2024-25 | J31: =FRCP_y5 -> 2025-26
B32: HV Feeder Augmentations - Overhead Lines | D32: 282980.3873 | E32: 282980.3873 | F32: 69459.86582 | G32: 626029.4813 | H32: 1091089.988 | I32: 1293334.638 | J32: 768456.7136
B33: HV Feeder Augmentations - Underground Cables | D33: 1008474.592 | E33: 1072495.739 | F33: 1501087.624 | G33: 2885963.743 | H33: 4171397.352 | I33: 4604522.029 | J33: 2298728.386
B34: HV Feeder Non-Material Projects | D34: 1162423.88 | E34: 1026007.544 | F34: 725161.7029 | G34: 544656.1996 | H34: 493634.5069 | I34: 802852.2293 | J34: 2923695.219
B35: LV Feeder Augmentations - Overhead Lines | D35: 0 | E35: 0 | F35: 0 | G35: 0 | H35: 0 | I35: 0 | J35: 0
B36: LV Feeder Augmentations - Underground Cables | D36: 0 | E36: 0 | F36: 0 | G36: 0 | H36: 0 | I36: 0 | J36: 0
B37: LV Feeder Non-Material Projects | D37: 1280652.536 | E37: 1428984.558 | F37: 1405799.473 | G37: 1491070.422 | H37: 1474581.703 | I37: 1244587.477 | J37: 1103949.501
B38: Distribution Substation Augmentations - Pole Mounted | D38: 3498442.065 | E38: 3903650.324 | F38: 3840314.113 | G38: 4073254.326 | H38: 4028211.018 | I38: 3399920.788 | J38: 3015730.857
B39: Distribution Substation Augmentations - Ground Mounted | D39: 258777.0856 | E39: 288750.0309 | F39: 284065.0997 | G39: 301295.5093 | H39: 297963.6902 | I39: 251489.5421 | J39: 223071.3065
B40: Distribution Substation Augmentations - Indoor | D40: 42652.52368 | E40: 47592.76696 | F40: 46820.5806 | G40: 49660.55559 | H40: 49111.39378 | I40: 41451.36585 | J40: 36767.37514
B45: 2.3.4 - AUGEX - TOTAL EXPENDITURE
D46: =CONCATENATE("TOTAL DIRECT EXPENDITURE ($0's, real ", dms_DollarReal,")") -> TOTAL DIRECT EXPENDITURE ($0's, real June 2021)
D47: =CRCP_y4 -> 2019-20 | E47: =CRCP_y5 -> 2020-21 | F47: =FRCP_y1 -> 2021-22 | G47: =FRCP_y2 -> 2022-23 | H47: =FRCP_y3 -> 2023-24 | I47: =FRCP_y4 -> 2024-25 | J47: =FRCP_y5 -> 2025-26
B48: Subtransmission Substations, Switching Stations, Zone Substations | D48: 324843.3737 | E48: 560660.3735 | F48: 4690531.578 | G48: 4298471.136 | H48: 5835849.008 | I48: 7730514.948 | J48: 2988333.491
B49: Subtransmission Lines | D49: 0 | E49: 0 | F49: 0 | G49: 0 | H49: 0 | I49: 489775.1814 | J49: 745938.9521
B50: HV Feeders | D50: 2662365.897 | E50: 2381483.89 | F50: 2295709.192 | G50: 4056649.424 | H50: 5756121.846 | I50: 6700708.896 | J50: 5990880.319
B51: HV Feeders - Land Purchases and Easements | D51: 0 | E51: 0 | F51: 0 | G51: 0 | H51: 0 | I51: 0 | J51: 0
B52: Distribution Substations | D52: 3799417.293 | E52: 4239486.112 | F52: 4171199.793 | G52: 4424210.391 | H52: 4375286.102 | I52: 3692861.696 | J52: 3275569.538
B53: Distribution Substations - Land Purchases and Easements | D53: 0 | E53: 0 | F53: 0 | G53: 0 | H53: 0 | I53: 0 | J53: 0
B54: LV Feeders | D54: 1281106.917 | E54: 1429491.568 | F54: 1405799.473 | G54: 1491070.422 | H54: 1474581.703 | I54: 1244587.477 | J54: 1103949.501
B55: LV Feeders - Land Purchases and Easements | D55: 0 | E55: 0 | F55: 0 | G55: 0 | H55: 0 | I55: 0 | J55: 0
B56: Other Assets | D56: 13772827.51 | E56: 12087086.89 | F56: 25710541.02 | G56: 24965271.83 | H56: 17901345.02 | I56: 18135837.33 | J56: 17092169.88
B60: 2.3.5 - AUGEX - BY DRIVER
D61: =CONCATENATE("TOTAL DIRECT EXPENDITURE ($0's, real ", dms_DollarReal,")") -> TOTAL DIRECT EXPENDITURE ($0's, real June 2021)
D62: =CRCP_y4 -> 2019-20 | E62: =CRCP_y5 -> 2020-21 | F62: =FRCP_y1 -> 2021-22 | G62: =FRCP_y2 -> 2022-23 | H62: =FRCP_y3 -> 2023-24 | I62: =FRCP_y4 -> 2024-25 | J62: =FRCP_y5 -> 2025-26
B63: "Greenfield" driven augex (network expansion capex) | D63: 1166695.301 | E63: 1455934.204 | F63: 5355580.5 | G63: 2465324.532 | H63: 4843737.226 | I63: 10188893.15 | J63: 5570273.787
B64: Reinforcement driven augex (augmentation of the existing network) | D64: 20673865.69 | E64: 19242274.63 | F64: 32918198.15 | G64: 36770347.05 | H64: 30499445.6 | I64: 27805390.53 | J64: 25626568.28
B68: 2.3.6 - AUGEX - GREENFIELDS DRIVEN
D69: =CONCATENATE("TOTAL DIRECT EXPENDITURE ($0's, real ", dms_DollarReal,")") -> TOTAL DIRECT EXPENDITURE ($0's, real June 2021)
D70: =CRCP_y4 -> 2019-20 | E70: =CRCP_y5 -> 2020-21 | F70: =FRCP_y1 -> 2021-22 | G70: =FRCP_y2 -> 2022-23 | H70: =FRCP_y3 -> 2023-24 | I70: =FRCP_y4 -> 2024-25 | J70: =FRCP_y5 -> 2025-26
B71: Subtransmission Substations, Switching Stations, Zone Substations | D71: 0 | E71: 117908.4999 | F71: 4571261.698 | G71: 2221268.376 | H71: 4488123.956 | I71: 7233393.003 | J71: 2611652.794
B72: Subtransmission Lines | D72: 0 | E72: 0 | F72: 0 | G72: 0 | H72: 0 | I72: 389356.5438 | J72: 393365.8213
B73: HV Feeders | D73: 1166695.301 | E73: 1338025.704 | F73: 784318.8028 | G73: 244056.1557 | H73: 355613.27 | I73: 2566143.608 | J73: 2565255.172
B74: HV Feeders - Land Purchases and Easements | D74: 0 | E74: 0 | F74: 0 | G74: 0 | H74: 0 | I74: 0 | J74: 0
B75: Distribution Substations | D75: 0 | E75: 0 | F75: 0 | G75: 0 | H75: 0 | I75: 0 | J75: 0
B76: Distribution Substations - Land Purchases and Easements | D76: 0 | E76: 0 | F76: 0 | G76: 0 | H76: 0 | I76: 0 | J76: 0
B77: LV Feeders | D77: 0 | E77: 0 | F77: 0 | G77: 0 | H77: 0 | I77: 0 | J77: 0
B78: LV Feeders - Land Purchases and Easements | D78: 0 | E78: 0 | F78: 0 | G78: 0 | H78: 0 | I78: 0 | J78: 0
B79: Other Assets | D79: 0 | E79: 0 | F79: 0 | G79: 0 | H79: 0 | I79: 0 | J79: 0

Sheet 2.5 Connections
B1: =INDEX(dms_Worksheet_List,MATCH(dms_Model,dms_Model_List)) -> REGULATORY REPORTING STATEMENT
B2: =INDEX(dms_TradingNameFull_List,MATCH(dms_TradingName,dms_TradingName_List)) -> United Energy
B3: =dms_Header_Span -> 2021-22 to 2025-26
B4: 2.5 CONNECTIONS
B6: There are THREE tables on this worksheet - each has been 'grouped' (and sub-grouped) for easy navigation. See the Instructions sheet on how to group or ungroup tables.
B8: 2.5.1 - DESCRIPTOR METRICS
B9: VOLUMES AND EXPENDITURE - ALL
B10: CONNECTION SUBCATEGORY | C10: DESCRIPTOR METRIC | D10: Unit of Measure | E10: =CONCATENATE("VOLUMES and EXPENDITURE (0's, real ", dms_DollarReal, ")") -> VOLUMES and EXPENDITURE (0's, real June 2021)
E11: =CRCP_y4 -> 2019-20 | F11: =CRCP_y5 -> 2020-21 | G11: =FRCP_y1 -> 2021-22 | H11: =FRCP_y2 -> 2022-23 | I11: =FRCP_y3 -> 2023-24 | J11: =FRCP_y4 -> 2024-25 | K11: =FRCP_y5 -> 2025-26
B12: RESIDENTIAL | C12: Underground connections | D12: 0's | E12: 8832.803731 | F12: 8732.644086 | G12: 8944.934648 | H12: 9245.014539 | I12: 9395.054485 | J12: 9468.478289 | K12: 9517.161463
C13: Overhead connections | D13: 0's | E13: 323.4462694 | F13: 319.778548 | G13: 327.5523639 | H13: 338.5409157 | I13: 344.0351916 | J13: 346.7238798 | K13: 348.506597
C14: Distribution substations installed | D14: MVA added | E14: 0 | F14: 0 | G14: 0 | H14: 0 | I14: 0 | J14: 0 | K14: 0
C15: Distribution substations installed | D15: 0's | E15: 0 | F15: 0 | G15: 0 | H15: 0 | I15: 0 | J15: 0 | K15: 0
C16: Distribution substations installed | D16: total spend $0s | E16: 0 | F16: 0 | G16: 0 | H16: 0 | I16: 0 | J16: 0 | K16: 0
C17: Augmentation HV | D17: net circuit KM added | E17: 0 | F17: 0 | G17: 0 | H17: 0 | I17: 0 | J17: 0 | K17: 0
C18: Augmentation HV | D18: total spend $0s | E18: 0 | F18: 0 | G18: 0 | H18: 0 | I18: 0 | J18: 0 | K18: 0
C19: Augmentation LV | D19: net circuit KM added | E19: 0.2253901635 | F19: 0.22283435 | G19: 0.2282514526 | H19: 0.2359087105 | I19: 0.2397373394 | J19: 0.2416109238 | K19: 0.2428531917
C20: Augmentation LV | D20: total spend $0s | E20: 15469573.51 | F20: 15294156.17 | G20: 15665957.08 | H20: 16191510.24 | I20: 16454286.82 | J20: 16582879.62 | K20: 16668142.23
C21: Mean days to connect residential customer with LV single phase connection | D21: 0's | E21: 8.45 | F21: 8.45 | G21: 8.45 | H21: 8.45 | I21: 8.45 | J21: 8.45 | K21: 8.45
C22: Volume of GSL breaches for residential customers | D22: 0's | E22: 353.25 | F22: 353.25 | G22: 353.25 | H22: 353.25 | I22: 353.25 | J22: 353.25 | K22: 353.25
C23: Volume of customer complaints relating to connection services | D23: 0's | E23: 402 | F23: 402 | G23: 402 | H23: 402 | I23: 402 | J23: 402 | K23: 402
C24: GSL payments | D24: $0's | E24: 69790 | F24: 69790 | G24: 69790 | H24: 69790 | I24: 69790 | J24: 69790 | K24: 69790
B25: COMMERCIAL/INDUSTRIAL | C25: Underground connections | D25: 0's | E25: 1844.489891 | F25: 1889.029751 | G25: 1858.165117 | H25: 1725.363798 | I25: 1678.187988 | J25: 1685.15045 | K25: 1687.514455
C26: Overhead connections | D26: 0's | E26: 1666.770182 | F26: 1707.018551 | G26: 1679.127776 | H26: 1559.122088 | I26: 1516.491747 | J26: 1522.783364 | K26: 1524.919593
C27: Distribution substations installed | D27: MVA added | E27: 145.99725 | F27: 150.4464789 | G27: 162.3449961 | H27: 151.896567 | I27: 161.5468156 | J27: 151.6194182 | K27: 132.4973994
C28: Distribution substations installed | D28: 0's | E28: 221.75 | F28: 228.5077745 | G28: 246.5800068 | H28: 230.7102615 | I28: 245.3676789 | J28: 230.2893101 | K28: 201.2455598
C29: Distribution substations installed | D29: total spend $0s | E29: 20503600.88 | F29: 21128442.87 | G29: 22799450.03 | H29: 21332090.74 | I29: 22687354.94 | J29: 21293168.44 | K29: 18607705.24
C30: Augmentation HV | D30: net circuit KM added | E30: 25.382 | F30: 26.15550996 | G30: 28.224098 | H30: 26.40761154 | I30: 28.08533225 | J30: 26.3594285 | K30: 23.03501601
C31: Augmentation HV | D31: total spend $0s | E31: 20475873.44 | F31: 21099870.44 | G31: 22768617.86 | H31: 21303242.91 | I31: 22656674.36 | J31: 21264373.25 | K31: 18582541.66
C32: Augmentation LV | D32: net circuit KM added | E32: 16.50425 | F32: 17.0072128 | G32: 18.35227994 | H32: 17.17113792 | I32: 18.26204967 | J32: 17.13980765 | K32: 14.97816023
C33: Augmentation LV | D33: total spend $0s | E33: 5556899.774 | F33: 5726244.874 | G33: 6179122.363 | H33: 5781437.656 | I33: 6148742.275 | J33: 5770888.909 | K33: 5043072.857
B34: SUBDIVISION | C34: Underground connections | D34: 0's | E34: 797.4878653 | F34: 727.9383022 | G34: 691.2851941 | H34: 710.7753088 | I34: 786.5198804 | J34: 812.3679315 | K34: 817.3402219
C35: Overhead connections | D35: 0's | E35: 1.668384656 | F35: 1.522883477 | G35: 1.446203335 | H35: 1.486977633 | I35: 1.64543908 | J35: 1.699514501 | K35: 1.709916782
C36: Distribution substations installed | D36: MVA added | E36: 6.1715 | F36: 5.669408108 | G36: 5.434175233 | H36: 5.587251461 | I36: 6.117222586 | J36: 6.297918578 | K36: 6.336388923
C37: Distribution substations installed | D37: 0's | E37: 27.75 | F37: 25.49235599 | G37: 24.43463708 | H37: 25.12294062 | I37: 27.50594292 | J37: 28.31843807 | K37: 28.49141904
C38: Distribution substations installed | D38: total spend $0s | E38: 1329420.526 | F38: 1221263.471 | G38: 1170591.282 | H38: 1203565.872 | I38: 1317728.473 | J38: 1356652.715 | K38: 1364939.723
C39: Augmentation HV | D39: net circuit KM added | E39: 5.06875 | F39: 4.656374033 | G39: 4.463173574 | H39: 4.588897487 | I39: 5.024171106 | J39: 5.172579566 | K39: 5.204175865
C40: Augmentation HV | D40: total spend $0s | E40: 774346.3602 | F40: 711348.2189 | G40: 681833.2355 | H40: 701039.9145 | I40: 767536.1005 | J40: 790208.2683 | K40: 795035.194
C41: Augmentation LV | D41: net circuit KM added | E41: 11.3070444 | F41: 10.38714238 | G41: 9.95616311 | H41: 10.23662 | I41: 11.20760064 | J41: 11.53866078 | K41: 11.60914379
C42: Augmentation LV | D42: total spend $0s | E42: 3749980.688 | F42: 3444895.231 | G42: 3301960.979 | H42: 3394974.492 | I42: 3717000.172 | J42: 3826796.248 | K42: 3850171.935
C43: Cost per lot | D43: $0's | E43: 7324.90996 | F43: 7371.889042 | G43: 7440.669668 | H43: 7440.489802 | I43: 7361.735669 | J43: 7338.037236 | K43: 7337.947419
B44: EMBEDDED GENERATION | C44: Underground connections | D44: 0's | E44: 7928.458954 | F44: 7625.368593 | G44: 7625.368593 | H44: 7596.502844 | I44: 7596.502844 | J44: 7596.502844 | K44: 7582.06997
C45: Overhead connections | D45: 0's | E45: 5255.541046 | F45: 5054.631407 | G45: 5054.631407 | H45: 5035.497156 | I45: 5035.497156 | J45: 5035.497156 | K45: 5025.93003
C46: Distribution substations installed | D46: MVA added | E46: 0 | F46: 0 | G46: 0 | H46: 0 | I46: 0 | J46: 0 | K46: 0
C47: Distribution substations installed | D47: 0's | E47: 0 | F47: 0 | G47: 0 | H47: 0 | I47: 0 | J47: 0 | K47: 0
C48: Distribution substations installed | D48: total spend $0's | E48: 0 | F48: 0 | G48: 0 | H48: 0 | I48: 0 | J48: 0 | K48: 0
C49: Augmentation HV | D49: net circuit KM added | E49: 0 | F49: 0 | G49: 0 | H49: 0 | I49: 0 | J49: 0 | K49: 0
C50: Augmentation HV | D50: total spend $0s | E50: 0 | F50: 0 | G50: 0 | H50: 0 | I50: 0 | J50: 0 | K50: 0
C51: Augmentation LV | D51: net circuit KM added | E51: 0 | F51: 0 | G51: 0 | H51: 0 | I51: 0 | J51: 0 | K51: 0
C52: Augmentation LV | D52: total spend $0s | E52: 0 | F52: 0 | G52: 0 | H52: 0 | I52: 0 | J52: 0 | K52: 0
B54: VOLUMES AND EXPENDITURE - STANDARD CONTROL SERVICES
B55: CONNECTION SUBCATEGORY | C55: DESCRIPTOR METRIC | D55: Unit of Measure | E55: =CONCATENATE("VOLUMES and EXPENDITURE (0's, real ", dms_DollarReal, ")") -> VOLUMES and EXPENDITURE (0's, real June 2021)
E56: =CRCP_y4 -> 2019-20 | F56: =CRCP_y5 -> 2020-21 | G56: =FRCP_y1 -> 2021-22 | H56: =FRCP_y2 -> 2022-23 | I56: =FRCP_y3 -> 2023-24 | J56: =FRCP_y4 -> 2024-25 | K56: =FRCP_y5 -> 2025-26
B57: RESIDENTIAL | C57: Underground connections | D57: 0's | E57: 8832.803731 | F57: 8732.644086 | G57: 8944.934648 | H57: 9245.014539 | I57: 9395.054485 | J57: 9468.478289 | K57: 9517.161463
C58: Overhead connections | D58: 0's | E58: 323.4462694 | F58: 319.778548 | G58: 327.5523639 | H58: 338.5409157 | I58: 344.0351916 | J58: 346.7238798 | K58: 348.506597
C59: Distribution substations installed | D59: MVA added | E59: 0 | F59: 0 | G59: 0 | H59: 0 | I59: 0 | J59: 0 | K59: 0
C60: Distribution substations installed | D60: 0's | E60: 0 | F60: 0 | G60: 0 | H60: 0 | I60: 0 | J60: 0 | K60: 0
C61: Distribution substations installed | D61: total spend $0s | E61: 0 | F61: 0 | G61: 0 | H61: 0 | I61: 0 | J61: 0 | K61: 0
C62: Augmentation HV | D62: net circuit KM added | E62: 0 | F62: 0 | G62: 0 | H62: 0 | I62: 0 | J62: 0 | K62: 0
C63: Augmentation HV | D63: total spend $0s | E63: 0 | F63: 0 | G63: 0 | H63: 0 | I63: 0 | J63: 0 | K63: 0
C64: Augmentation LV | D64: net circuit KM added | E64: 0.2253901635 | F64: 0.22283435 | G64: 0.2282514526 | H64: 0.2359087105 | I64: 0.2397373394 | J64: 0.2416109238 | K64: 0.2428531917
C65: Augmentation LV | D65: total spend $0s | E65: 3142554.246 | F65: 3106919.229 | G65: 3182448.429 | H65: 3289211.51 | I65: 3342593.051 | J65: 3368715.932 | K65: 3386036.538
C66: Mean days to connect residential customer with LV single phase connection | D66: 0's | E66: 8.45 | F66: 8.45 | G66: 8.45 | H66: 8.45 | I66: 8.45 | J66: 8.45 | K66: 8.45
C67: Volume of GSL breaches for residential customers | D67: 0's | E67: 353.25 | F67: 353.25 | G67: 353.25 | H67: 353.25 | I67: 353.25 | J67: 353.25 | K67: 353.25
C68: Volume of customer complaints relating to connection services | D68: 0's | E68: 402 | F68: 402 | G68: 402 | H68: 402 | I68: 402 | J68: 402 | K68: 402
C69: GSL payments | D69: $0's | E69: 69790 | F69: 69790 | G69: 69790 | H69: 69790 | I69: 69790 | J69: 69790 | K69: 69790
B70: COMMERCIAL/INDUSTRIAL | C70: Underground connections | D70: 0's | E70: 1844.489891 | F70: 1889.029751 | G70: 1858.165117 | H70: 1725.363798 | I70: 1678.187988 | J70: 1685.15045 | K70: 1687.514455
C71: Overhead connections | D71: 0's | E71: 1666.770182 | F71: 1707.018551 | G71: 1679.127776 | H71: 1559.122088 | I71: 1516.491747 | J71: 1522.783364 | K71: 1524.919593
C72: Distribution substations installed | D72: MVA added | E72: 145.99725 | F72: 150.4464789 | G72: 162.3449961 | H72: 151.896567 | I72: 161.5468156 | J72: 151.6194182 | K72: 132.4973994
C73: Distribution substations installed | D73: 0's | E73: 221.75 | F73: 228.5077745 | G73: 246.5800068 | H73: 230.7102615 | I73: 245.3676789 | J73: 230.2893101 | K73: 201.2455598
C74: Distribution substations installed | D74: total spend $0s | E74: 7784575.613 | F74: 7974029.095 | G74: 8476554.717 | H74: 7978383.429 | I74: 8069659.492 | J74: 8087602.315 | K74: 7181407.252
C75: Augmentation HV | D75: net circuit KM added | E75: 25.382 | F75: 26.15550996 | G75: 28.224098 | H75: 26.40761154 | I75: 28.08533225 | J75: 26.3594285 | K75: 23.03501601
C76: Augmentation HV | D76: total spend $0s | E76: 7774048.371 | F76: 7963245.65 | G76: 8465091.697 | H76: 7967594.096 | I76: 8058746.725 | J76: 8076665.283 | K76: 7171695.687
C77: Augmentation LV | D77: net circuit KM added | E77: 16.50425 | F77: 17.0072128 | G77: 18.35227994 | H77: 17.17113792 | I77: 18.26204967 | J77: 17.13980765 | K77: 14.97816023
C78: Augmentation LV | D78: total spend $0s | E78: 2109780.946 | F78: 2161126.757 | G78: 2297321.591 | H78: 2162306.872 | I78: 2187044.572 | J78: 2191907.448 | K78: 1946309.849
B79: SUBDIVISION | C79: Underground connections | D79: 0's | E79: 797.4878653 | F79: 727.9383022 | G79: 691.2851941 | H79: 710.7753088 | I79: 786.5198804 | J79: 812.3679315 | K79: 817.3402219
C80: Overhead connections | D80: 0's | E80: 1.668384656 | F80: 1.522883477 | G80: 1.446203335 | H80: 1.486977633 | I80: 1.64543908 | J80: 1.699514501 | K80: 1.709916782
C81: Distribution substations installed | D81: MVA added | E81: 6.1715 | F81: 5.669408108 | G81: 5.434175233 | H81: 5.587251461 | I81: 6.117222586 | J81: 6.297918578 | K81: 6.336388923
C82: Distribution substations installed | D82: 0's | E82: 27.75 | F82: 25.49235599 | G82: 24.43463708 | H82: 25.12294062 | I82: 27.50594292 | J82: 28.31843807 | K82: 28.49141904
C83: Distribution substations installed | D83: total spend $0s | E83: 777866.2757 | F83: 685949.783 | G83: 641515.4174 | H83: 668961.1183 | I83: 766767.5529 | J83: 800122.705 | K83: 807045.1994
C84: Augmentation HV | D84: net circuit KM added | E84: 5.06875 | F84: 4.656374033 | G84: 4.463173574 | H84: 4.588897487 | I84: 5.024171106 | J84: 5.172579566 | K84: 5.204175865
C85: Augmentation HV | D85: total spend $0s | E85: 453083.0594 | F85: 399544.5438 | G85: 373662.8995 | H85: 389649.1718 | I85: 446618.3965 | J85: 466046.7415 | K85: 470078.8804
C86: Augmentation LV | D86: net circuit KM added | E86: 11.3070444 | F86: 10.38714238 | G86: 9.95616311 | H86: 10.23662 | I86: 11.20760064 | J86: 11.53866078 | K86: 11.60914379
C87: Augmentation LV | D87: total spend $0s | E87: 2194176.676 | F87: 1934902.003 | G87: 1809563.173 | H87: 1886981 | I87: 2162869.806 | J87: 2256956.796 | K87: 2276483.515
C88: Cost per lot | D88: $0's | E88: 4285.927829 | F88: 4140.585393 | G88: 4077.686533 | H88: 4135.542969 | I88: 4283.689819 | J88: 4327.806326 | K88: 4338.693599
B89: EMBEDDED GENERATION | C89: Underground connections | D89: 0's | E89: 7928.458954 | F89: 7625.368593 | G89: 7625.368593 | H89: 7596.502844 | I89: 7596.502844 | J89: 7596.502844 | K89: 7582.06997
C90: Overhead connections | D90: 0's | E90: 5255.541046 | F90: 5054.631407 | G90: 5054.631407 | H90: 5035.497156 | I90: 5035.497156 | J90: 5035.497156 | K90: 5025.93003
C91: Distribution substations installed | D91: MVA added | E91: 0 | F91: 0 | G91: 0 | H91: 0 | I91: 0 | J91: 0 | K91: 0
C92: Distribution substations installed | D92: 0's | E92: 0 | F92: 0 | G92: 0 | H92: 0 | I92: 0 | J92: 0 | K92: 0
C93: Distribution substations installed | D93: total spend $0s | E93: 0 | F93: 0 | G93: 0 | H93: 0 | I93: 0 | J93: 0 | K93: 0
C94: Augmentation HV | D94: net circuit KM added | E94: 0 | F94: 0 | G94: 0 | H94: 0 | I94: 0 | J94: 0 | K94: 0
C95: Augmentation HV | D95: total spend $0s | E95: 0 | F95: 0 | G95: 0 | H95: 0 | I95: 0 | J95: 0 | K95: 0
C96: Augmentation LV | D96: net circuit KM added | E96: 0 | F96: 0 | G96: 0 | H96: 0 | I96: 0 | J96: 0 | K96: 0
C97: Augmentation LV | D97: total spend $0s | E97: 0 | F97: 0 | G97: 0 | H97: 0 | I97: 0 | J97: 0 | K97: 0
B101: 2.5.2 - COST METRICS BY CONNECTION CLASSIFICATION
B102: EXPENDITURE - ALL
B103: CONNECTION SUBCATEGORY | C103: CONNECTION CLASSICIATION | E103: =CONCATENATE("EXPENDITURE ($'0s, real ", dms_DollarReal,")") -> EXPENDITURE ($'0s, real June 2021)
E104: =CRCP_y4 -> 2019-20 | F104: =CRCP_y5 -> 2020-21 | G104: =FRCP_y1 -> 2021-22 | H104: =FRCP_y2 -> 2022-23 | I104: =FRCP_y3 -> 2023-24 | J104: =FRCP_y4 -> 2024-25 | K104: =FRCP_y5 -> 2025-26
B105: RESIDENTIAL | C105: Simple connection LV | E105: 15303186.39 | F105: 15129655.79 | G105: 15742099.27 | H105: 16563987.09 | I105: 17134665.8 | J105: 17531733.87 | K105: 17871939.24
C106: Complex connection LV | E106: 0 | F106: 0 | G106: 0 | H106: 0 | I106: 0 | J106: 0 | K106: 0
C107: Complex connection HV | E107: 0 | F107: 0 | G107: 0 | H107: 0 | I107: 0 | J107: 0 | K107: 0
B108: COMMERCIAL/INDUSTRIAL | C108: Simple connection LV | E108: 4280129.179 | F108: 4384199.979 | G108: 4375979.532 | H108: 4153722.794 | I108: 4197066.447 | J108: 4351789.09 | K108: 4458814.356
C109: Complex connection HV (customer connected at LV, minor HV works) | E109: 19770216.53 | F109: 20250926.84 | G109: 20212956.02 | H109: 19186336.58 | I109: 19386543.95 | J109: 20101218.67 | K109: 20595575.88
C110: Complex connection HV (customer connected at LV, upstream asset works) | E110: 2689409.33 | F110: 2754801.978 | G110: 2749636.679 | H110: 2609982.169 | I110: 2637217.053 | J110: 2734436.67 | K110: 2801685.75
C111: Complex connection HV (customer connected at HV) | E111: 19923436.74 | F111: 20684416.48 | G111: 25352403.71 | H111: 24268615.74 | I111: 28138507.26 | J111: 24612372.77 | K111: 18069385.85
C112: Complex connection sub-transmission | E112: 0 | F112: 0 | G112: 0 | H112: 0 | I112: 0 | J112: 0 | K112: 0
B113: SUBDIVISION | C113: Complex connection LV | E113: 2469130.947 | F113: 2253139.189 | G113: 2172538.544 | H113: 2274127.776 | I113: 2562852.22 | J113: 2687811.674 | K113: 2742639.574
C114: Complex connection HV (no upstream asset works) | E114: 2831720.325 | F114: 2619467.29 | G114: 2575852.451 | H114: 2696163.714 | I114: 2970816.725 | J114: 3094330.636 | K114: 3157368.495
C115: Complex connection HV (with upstream asset works) | E115: 489586.342 | F115: 446758.8787 | G115: 430777.1526 | H115: 450920.5558 | I115: 508169.6638 | J115: 532946.9816 | K115: 543818.4143
B116: EMBEDDED GENERATION | C116: Simple connection LV | E116: 0 | F116: 0 | G116: 0 | H116: 0 | I116: 0 | J116: 0 | K116: 0
C117: Complex connection HV (small capacity) | E117: 0 | F117: 0 | G117: 0 | H117: 0 | I117: 0 | J117: 0 | K117: 0
C118: Complex connection HV (large capacity) | E118: 0 | F118: 0 | G118: 0 | H118: 0 | I118: 0 | J118: 0 | K118: 0
B120: EXPENDITURE - STANDARD CONTROL SERVICES
E121: =CONCATENATE("EXPENDITURE ($'0s, real ", dms_DollarReal,")") -> EXPENDITURE ($'0s, real June 2021)
E122: =CRCP_y4 -> 2019-20 | F122: =CRCP_y5 -> 2020-21 | G122: =FRCP_y1 -> 2021-22 | H122: =FRCP_y2 -> 2022-23 | I122: =FRCP_y3 -> 2023-24 | J122: =FRCP_y4 -> 2024-25 | K122: =FRCP_y5 -> 2025-26
B123: RESIDENTIAL | C123: Simple connection LV | E123: 3108753.665 | F123: 3073501.929 | G123: 3197916.275 | H123: 3364878.024 | I123: 3480808.099 | J123: 3561470.177 | K123: 3630580.927
C124: Complex connection LV | E124: 0 | F124: 0 | G124: 0 | H124: 0 | I124: 0 | J124: 0 | K124: 0
C125: Complex connection HV | E125: 0 | F125: 0 | G125: 0 | H125: 0 | I125: 0 | J125: 0 | K125: 0
B126: COMMERCIAL/INDUSTRIAL | C126: Simple connection LV | E126: 2635079.613 | F126: 2706752.332 | G126: 2696156.128 | H126: 2537355.999 | I126: 2561409.162 | J126: 2662950.557 | K126: 2731917.052
C127: Complex connection HV (customer connected at LV, minor HV works) | E127: 10621343.37 | F127: 10910389.97 | G127: 10867568.73 | H127: 10227046.38 | I127: 10323946.05 | J127: 10733359.49 | K127: 11011407.55
C128: Complex connection HV (customer connected at LV, upstream asset works) | E128: 929879.1934 | F128: 961380.1879 | G128: 953119.5981 | H128: 879138.3268 | I128: 885476.8024 | J128: 926443.5822 | K128: 953293.3151
C129: Complex connection HV (customer connected at HV) | E129: 3529930.443 | F129: 3563463.612 | G129: 5073257.801 | H129: 5143299.36 | I129: 5572254.152 | J129: 5354926.333 | K129: 3029171.197
C130: Complex connection sub-transmission | E130: 0 | F130: 0 | G130: 0 | H130: 0 | I130: 0 | J130: 0 | K130: 0
B131: SUBDIVISION | C131: Complex connection LV | E131: 1465205.568 | F131: 1279393.772 | G131: 1199653.586 | H131: 1274962.521 | I131: 1511124.806 | J131: 1608053.737 | K131: 1645227.734
C132: Complex connection HV (no upstream asset works) | E132: 1453264.568 | F132: 1279980.915 | G132: 1225728.129 | H132: 1305927.442 | I132: 1517127.05 | J132: 1605200.324 | K132: 1643118.548
C133: Complex connection HV (with upstream asset works) | E133: 471384.0258 | F133: 430148.8435 | G133: 414761.3015 | H133: 434155.7936 | I133: 489276.4388 | J133: 513132.5614 | K133: 523599.8054
B134: EMBEDDED GENERATION | C134: Simple connection LV | E134: 0 | F134: 0 | G134: 0 | H134: 0 | I134: 0 | J134: 0 | K134: 0
C135: Complex connection HV (small capacity) | E135: 0 | F135: 0 | G135: 0 | H135: 0 | I135: 0 | J135: 0 | K135: 0
C136: Complex connection HV (large capacity) | E136: 0 | F136: 0 | G136: 0 | H136: 0 | I136: 0 | J136: 0 | K136: 0
B138: EXPENDITURE - STANDARD CONTROL SERVICES - CAPITAL CONTRIBUTIONS
E139: =CONCATENATE("EXPENDITURE ($'0s, real ", dms_DollarReal,")") -> EXPENDITURE ($'0s, real June 2021)
E140: =CRCP_y4 -> 2019-20 | F140: =CRCP_y5 -> 2020-21 | G140: =FRCP_y1 -> 2021-22 | H140: =FRCP_y2 -> 2022-23 | I140: =FRCP_y3 -> 2023-24 | J140: =FRCP_y4 -> 2024-25 | K140: =FRCP_y5 -> 2025-26
B141: RESIDENTIAL | C141: Simple connection LV | E141: 12194432.72 | F141: 12056153.86 | G141: 12544182.99 | H141: 13199109.06 | I141: 13653857.7 | J141: 13970263.69 | K141: 14241358.31
C142: Complex connection LV | E142: 0 | F142: 0 | G142: 0 | H142: 0 | I142: 0 | J142: 0 | K142: 0
C143: Complex connection HV | E143: 0 | F143: 0 | G143: 0 | H143: 0 | I143: 0 | J143: 0 | K143: 0
B144: COMMERCIAL/INDUSTRIAL | C144: Simple connection LV | E144: 1645049.567 | F144: 1677447.647 | G144: 1679823.403 | H144: 1616366.796 | I144: 1635657.285 | J144: 1688838.533 | K144: 1726897.304
C145: Complex connection HV (customer connected at LV, minor HV works) | E145: 9148873.156 | F145: 9340536.872 | G145: 9345387.29 | H145: 8959290.195 | I145: 9062597.891 | J145: 9367859.183 | K145: 9584168.321
C146: Complex connection HV (customer connected at LV, upstream asset works) | E146: 1759530.137 | F146: 1793421.79 | G146: 1796517.081 | H146: 1730843.842 | I146: 1751740.251 | J146: 1807993.088 | K146: 1848392.435
C147: Complex connection HV (customer connected at HV) | E147: 16393506.29 | F147: 17120952.87 | G147: 20279145.91 | H147: 19125316.38 | I147: 22566253.11 | J147: 19257446.43 | K147: 15040214.65
C148: Complex connection sub-transmission | E148: 0 | F148: 0 | G148: 0 | H148: 0 | I148: 0 | J148: 0 | K148: 0
B149: SUBDIVISION | C149: Complex connection LV | E149: 1003925.38 | F149: 973745.4167 | G149: 972884.9587 | H149: 999165.2542 | I149: 1051727.414 | J149: 1079757.937 | K149: 1097411.84
C150: Complex connection HV (no upstream asset works) | E150: 1378455.757 | F150: 1339486.375 | G150: 1350124.321 | H150: 1390236.272 | I150: 1453689.675 | J150: 1489130.313 | K150: 1514249.947
C151: Complex connection HV (with upstream asset works) | E151: 18202.31626 | F151: 16610.03526 | G151: 16015.85113 | H151: 16764.76213 | I151: 18893.22504 | J151: 19814.42021 | K151: 20218.60889
B152: EMBEDDED GENERATION | C152: Simple connection LV | E152: 0 | F152: 0 | G152: 0 | H152: 0 | I152: 0 | J152: 0 | K152: 0
C153: Complex connection HV (small capacity) | E153: 0 | F153: 0 | G153: 0 | H153: 0 | I153: 0 | J153: 0 | K153: 0
C154: Complex connection HV (large capacity) | E154: 0 | F154: 0 | G154: 0 | H154: 0 | I154: 0 | J154: 0 | K154: 0
B158: 2.5.3 - VOLUMES BY CONNECTION CLASSIFICATION
B159: NEW CONNECTIONS - ALL
E160: VOLUMES (0's)
E161: =CRCP_y4 -> 2019-20 | F161: =CRCP_y5 -> 2020-21 | G161: =FRCP_y1 -> 2021-22 | H161: =FRCP_y2 -> 2022-23 | I161: =FRCP_y3 -> 2023-24 | J161: =FRCP_y4 -> 2024-25 | K161: =FRCP_y5 -> 2025-26
B162: RESIDENTIAL | C162: Simple connection LV | E162: 9156.25 | F162: 9052.422634 | G162: 9272.487012 | H162: 9583.555455 | I162: 9739.089677 | J162: 9815.202169 | K162: 9865.66806
C163: Complex connection LV | E163: 0 | F163: 0 | G163: 0 | H163: 0 | I163: 0 | J163: 0 | K163: 0
C164: Complex connection HV | E164: 0 | F164: 0 | G164: 0 | H164: 0 | I164: 0 | J164: 0 | K164: 0
B165: COMMERCIAL/INDUSTRIAL | C165: Simple connection LV | E165: 883.886186 | F165: 905.3777669 | G165: 889.6364418 | H165: 829.474391 | I165: 823.3647443 | J165: 840.9030243 | K165: 849.528408
C166: Complex connection HV (customer connected at LV, minor HV works) | E166: 1375.360216 | F166: 1408.801926 | G166: 1384.307831 | H166: 1290.693413 | I166: 1281.186572 | J166: 1308.476797 | K166: 1321.898219
C167: Complex connection HV (customer connected at LV, upstream asset works) | E167: 18.80224984 | F167: 19.25942417 | G167: 18.92457073 | H167: 17.64478842 | I167: 17.51482247 | J167: 17.88790119 | K167: 18.07138252
C168: Complex connection HV (customer connected at HV) | E168: 1233.211421 | F168: 1262.609184 | G168: 1244.424049 | H168: 1146.673293 | I168: 1072.613596 | J168: 1040.666092 | K168: 1022.936039
C169: Complex connection sub-transmission | E169: 0 | F169: 0 | G169: 0 | H169: 0 | I169: 0 | J169: 0 | K169: 0
B170: SUBDIVISION | C170: Complex connection LV | E170: 334.9375 | F170: 305.6382278 | G170: 290.1248671 | H170: 298.3049891 | I170: 330.2555831 | J170: 341.1592045 | K170: 343.2475416
C171: Complex connection HV (no upstream asset works) | E171: 417.8125 | F171: 381.4761797 | G171: 362.4091588 | H171: 372.6265539 | I171: 412.1521752 | J171: 425.6399621 | K171: 428.2449746
C172: Complex connection HV (with upstream asset works) | E172: 46.40625 | F172: 42.34677816 | G172: 40.19737149 | H172: 41.3307435 | I172: 45.7575612 | J172: 47.26827941 | K172: 47.55762262
B173: EMBEDDED GENERATION | C173: Simple connection LV | E173: 0 | F173: 0 | G173: 0 | H173: 0 | I173: 0 | J173: 0 | K173: 0
C174: Complex connection HV (small capacity) | E174: 0 | F174: 0 | G174: 0 | H174: 0 | I174: 0 | J174: 0 | K174: 0
C175: Complex connection HV (large capacity) | E175: 0 | F175: 0 | G175: 0 | H175: 0 | I175: 0 | J175: 0 | K175: 0
B177: NEW CONNECTIONS - STANDARD CONTROL SERVICES
E178: VOLUMES (0's)
E179: =CRCP_y4 -> 2019-20 | F179: =CRCP_y5 -> 2020-21 | G179: =FRCP_y1 -> 2021-22 | H179: =FRCP_y2 -> 2022-23 | I179: =FRCP_y3 -> 2023-24 | J179: =FRCP_y4 -> 2024-25 | K179: =FRCP_y5 -> 2025-26
B180: RESIDENTIAL | C180: Simple connection LV | E180: 9156.25 | F180: 9052.422634 | G180: 9272.487012 | H180: 9583.555455 | I180: 9739.089677 | J180: 9815.202169 | K180: 9865.66806
C181: Complex connection LV | E181: 0 | F181: 0 | G181: 0 | H181: 0 | I181: 0 | J181: 0 | K181: 0
C182: Complex connection HV | E182: 0 | F182: 0 | G182: 0 | H182: 0 | I182: 0 | J182: 0 | K182: 0
B183: COMMERCIAL/INDUSTRIAL | C183: Simple connection LV | E183: 883.886186 | F183: 905.3777669 | G183: 889.6364418 | H183: 829.474391 | I183: 823.3647443 | J183: 840.9030243 | K183: 849.528408
C184: Complex connection HV (customer connected at LV, minor HV works) | E184: 1375.360216 | F184: 1408.801926 | G184: 1384.307831 | H184: 1290.693413 | I184: 1281.186572 | J184: 1308.476797 | K184: 1321.898219
C185: Complex connection HV (customer connected at LV, upstream asset works) | E185: 18.80224984 | F185: 19.25942417 | G185: 18.92457073 | H185: 17.64478842 | I185: 17.51482247 | J185: 17.88790119 | K185: 18.07138252
C186: Complex connection HV (customer connected at HV) | E186: 1233.211421 | F186: 1262.609184 | G186: 1244.424049 | H186: 1146.673293 | I186: 1072.613596 | J186: 1040.666092 | K186: 1022.936039
C187: Complex connection sub-transmission | E187: 0 | F187: 0 | G187: 0 | H187: 0 | I187: 0 | J187: 0 | K187: 0
B188: SUBDIVISION | C188: Complex connection LV | E188: 334.9375 | F188: 305.6382278 | G188: 290.1248671 | H188: 298.3049891 | I188: 330.2555831 | J188: 341.1592045 | K188: 343.2475416
C189: Complex connection HV (no upstream asset works) | E189: 417.8125 | F189: 381.4761797 | G189: 362.4091588 | H189: 372.6265539 | I189: 412.1521752 | J189: 425.6399621 | K189: 428.2449746
C190: Complex connection HV (with upstream asset works) | E190: 46.40625 | F190: 42.34677816 | G190: 40.19737149 | H190: 41.3307435 | I190: 45.7575612 | J190: 47.26827941 | K190: 47.55762262
B191: EMBEDDED GENERATION | C191: Simple connection LV | E191: 0 | F191: 0 | G191: 0 | H191: 0 | I191: 0 | J191: 0 | K191: 0
C192: Complex connection HV (small capacity) | E192: 0 | F192: 0 | G192: 0 | H192: 0 | I192: 0 | J192: 0 | K192: 0
C193: Complex connection HV (large capacity) | E193: 0 | F193: 0 | G193: 0 | H193: 0 | I193: 0 | J193: 0 | K193: 0
B195: EXISTING CONNECTIONS
E196: VOLUMES (0's)
E197: =CRCP_y4 -> 2019-20 | F197: =CRCP_y5 -> 2020-21 | G197: =FRCP_y1 -> 2021-22 | H197: =FRCP_y2 -> 2022-23 | I197: =FRCP_y3 -> 2023-24 | J197: =FRCP_y4 -> 2024-25 | K197: =FRCP_y5 -> 2025-26
B198: RESIDENTIAL | C198: Simple connection LV | E198: 435624.9167 | F198: 440717.006
C199: Complex connection LV | E199: 0 | F199: 0
C200: Complex connection HV | E200: 0 | F200: 0
B201: COMMERCIAL/INDUSTRIAL | C201: Simple connection LV | E201: 21826.51082 | F201: 22075.7548
C202: Complex connection HV (customer connected at LV, minor HV works) | E202: 34765.2705 | F202: 35127.96438
C203: Complex connection HV (customer connected at LV, upstream asset works) | E203: 507.682262 | F203: 511.6250436
C204: Complex connection HV (customer connected at HV) | E204: 30718.46316 | F204: 31057.29749
C205: Complex connection sub-transmission | E205: 0 | F205: 0
B206: SUBDIVISION | C206: Complex connection LV | E206: 84057.76542 | F206: 84363.40364
C207: Complex connection HV (no upstream asset works) | E207: 89787.31623 | F207: 90168.79241
C208: Complex connection HV (with upstream asset works) | E208: 9005.074607 | F208: 9047.421385
B209: EMBEDDED GENERATION | C209: Simple connection LV | E209: 0 | F209: 0
C210: Complex connection HV (small capacity) | E210: 0 | F210: 0
C211: Complex connection HV (large capacity) | E211: 0 | F211: 0

Sheet 2.6 Non-network
B1: =INDEX(dms_Worksheet_List,MATCH(dms_Model,dms_Model_List)) -> REGULATORY REPORTING STATEMENT
B2: =INDEX(dms_TradingNameFull_List,MATCH(dms_TradingName,dms_TradingName_List)) -> United Energy
B3: =dms_Header_Span -> 2021-22 to 2025-26
B4: 2.6 NON NETWORK EXPENDITURE
B6: There are THREE tables on this worksheet - each has been 'grouped' (and sub-grouped) for easy navigation. See the Instructions sheet on how to group or ungroup tables.
B8: 2.6.1 - NON-NETWORK EXPENDITURE
E9: =CONCATENATE("EXPENDITURE ($'0s, real ", dms_DollarReal,")") -> EXPENDITURE ($'0s, real June 2021)
B10: SERVICE SUBCATEGORY | C10: ASSET CATEGORY | E10: =CRCP_y4 -> 2019-20 | F10: =CRCP_y5 -> 2020-21 | G10: =FRCP_y1 -> 2021-22 | H10: =FRCP_y2 -> 2022-23 | I10: =FRCP_y3 -> 2023-24 | J10: =FRCP_y4 -> 2024-25 | K10: =FRCP_y5 -> 2025-26
B11: OPEX
B12: IT & COMMUNICATIONS | C12: Total IT and communications | E12: 21262196.9 | F12: 21668886.85 | G12: 22787969.7 | H12: 23219344.78 | I12: 23954334.79 | J12: 24533486.5 | K12: 24977058.6
B13: MOTOR VEHICLES | C13: Car | E13: 316239.304 | F13: 322288.1308 | G13: 328452.6558 | H13: 334887.8835 | I13: 341271.2005 | J13: 347652.1154 | K13: 354312.3765
C14: Light commercial vehicle | E14: 2776880.169 | F14: 2829994.589 | G14: 2884124.948 | H14: 2940632.334 | I14: 2996683.894 | J14: 3052714.36 | K14: 3111197.752
C15: Elevated work platform (LCV) | E15: 0 | F15: 0 | G15: 0 | H15: 0 | I15: 0 | J15: 0 | K15: 0
C16: Elevated work platform (HCV) | E16: 3916660.558 | F16: 3991575.982 | G16: 4067924.341 | H16: 4147625.384 | I16: 4226683.508 | J16: 4305711.88 | K16: 4388199.989
C17: Heavy commercial vehicle | E17: 1385059.152 | F17: 1411551.693 | G17: 1438550.968 | H17: 1466735.861 | I17: 1494693.397 | J17: 1522640.412 | K17: 1551810.902
B18: BUILDINGS AND PROPERTY | C18: Total buildings and property expenditure | E18: 4870584.89 | F18: 4963746.379 | G18: 5058689.803 | H18: 5157802.477 | I18: 5256115.643 | J18: 5354391.812 | K18: 5456970.355
B19: OTHER | C19: Other expenditure | E19: 0 | F19: 0 | G19: 0 | H19: 0 | I19: 0 | J19: 0 | K19: 0
B20: OTHER - DNSP nominated | C20: Office furniture and equipment
C21: Plant and equipment
C22: Crane borer plant HCV
C23: Other fleet assets
C24: EWP Hired
C25: Car Hired
C26: LCV Hired
C27: Other Hire
B31: CAPEX
B32: IT & COMMUNICATIONS | C32: Total IT and communications | E32: 28773136.06 | F32: 24673033.95 | G32: 56262617.58 | H32: 38431417.15 | I32: 39809519.36 | J32: 35614308.75 | K32: 24143290.09
B33: MOTOR VEHICLES | C33: Car | E33: 24007.65615 | F33: 149312.9227 | G33: 134170.9843 | H33: 122298.7657 | I33: 360922.823 | J33: 0 | K33: 87469.58908
C34: Light commercial vehicle | E34: 301634.6541 | F34: 821758.1717 | G34: 330103.2154 | H34: 697317.5238 | I34: 1156249.762 | J34: 1325933.078 | K34: 499670.0276
C35: Elevated work platform (LCV) | E35: 0 | F35: 0 | G35: 0 | H35: 0 | I35: 0 | J35: 0 | K35: 0
C36: Elevated work platform (HCV) | E36: 1256313.875 | F36: 2030226.071 | G36: 4259396.328 | H36: 268199.0476 | I36: 405227.7204 | J36: 271707.598 | K36: 546684.9318
C37: Heavy commercial vehicle | E37: 477882.8605 | F37: 1579064.722 | G37: 745394.3573 | H37: 268199.0476 | I37: 135075.9068 | J37: 0 | K37: 820027.3977
B38: BUILDINGS AND PROPERTY | C38: Total buildings and property expenditure | E38: 1588564.817 | F38: 1588564.817 | G38: 15774141.88 | H38: 15478839.83 | I38: 17988058.51 | J38: 12366771.32 | K38: 9435781.922
B39: OTHER | C39: Other expenditure | E39: 328928.2309 | F39: 328928.2309 | G39: 421297.5341 | H39: 421297.5341 | I39: 421297.5341 | J39: 421297.5341 | K39: 421297.5341
B40: OTHER - DNSP nominated
B54: 2.6.2 - ANNUAL DESCRIPTOR METRICS
B55: IT & COMMUNICATIONS
E56: VOLUMES (0's)
E57: =CRCP_y4 -> 2019-20 | F57: =CRCP_y5 -> 2020-21 | G57: =FRCP_y1 -> 2021-22 | H57: =FRCP_y2 -> 2022-23 | I57: =FRCP_y3 -> 2023-24 | J57: =FRCP_y4 -> 2024-25 | K57: =FRCP_y5 -> 2025-26
B58: Employee numbers | E58: 215 | F58: 215 | G58: 215 | H58: 215 | I58: 215 | J58: 215 | K58: 215
B59: User numbers | E59: 1142 | F59: 1142 | G59: 1142 | H59: 1142 | I59: 1142 | J59: 1142 | K59: 1142
B60: Number of devices | E60: 893 | F60: 893 | G60: 893 | H60: 893 | I60: 893 | J60: 893 | K60: 893
B62: MOTOR VEHICLES
E63: VOLUMES (0's or %)
B64: ASSET CATEGORY | C64: DESCRIPTOR METRIC | D64: Units | E64: =CRCP_y4 -> 2019-20 | F64: =CRCP_y5 -> 2020-21 | G64: =FRCP_y1 -> 2021-22 | H64: =FRCP_y2 -> 2022-23 | I64: =FRCP_y3 -> 2023-24 | J64: =FRCP_y4 -> 2024-25 | K64: =FRCP_y5 -> 2025-26
B65: CAR | C65: Average kilometres travelled | D65: 0's | E65: 19101.36667 | F65: 19101.36667 | G65: 19101.36667 | H65: 19101.36667 | I65: 19101.36667 | J65: 19101.36667 | K65: 19101.36667
C66: Number purchased | D66: 0's | E66: 1 | F66: 2 | G66: 3 | H66: 3 | I66: 9 | K66: 2
C67: Number leased | D67: 0's | E67: 1 | F67: 2.5 | G67: 2 | H67: 2 | I67: 1 | J67: 2.5 | K67: 2
C68: Number in fleet | D68: 0's | E68: 33 | F68: 34.5 | G68: 32.5 | H68: 26.75 | I68: 35.75 | J68: 31.5 | K68: 30.5
C69: Proportion of total fleet expenditure allocated as regulatory expenditure | D69: % | E69: 1 | F69: 1 | G69: 1 | H69: 1 | I69: 1 | J69: 1 | K69: 1
B70: LIGHT COMMERCIAL VEHICLE | C70: Average kilometres travelled | D70: 0's | E70: 23398.82867 | F70: 23398.82867 | G70: 23398.82867 | H70: 23398.82867 | I70: 23398.82867 | J70: 23398.82867 | K70: 23398.82867
C71: Number purchased | D71: 0's | E71: 8 | F71: 12 | G71: 5 | H71: 7 | I71: 17 | J71: 30 | K71: 8
C72: Number leased | D72: 0's
C73: Number in fleet | D73: 0's | E73: 175.5 | F73: 187.5 | G73: 192.5 | H73: 192.4583333 | I73: 209.4583333 | J73: 214.5 | K73: 216
C74: Proportion of total fleet expenditure allocated as regulatory expenditure | D74: % | E74: 1 | F74: 1 | G74: 1 | H74: 1 | I74: 1 | J74: 1 | K74: 1
B75: ELEVATED WORK PLATFORM (LCV) | C75: Average kilometres travelled | D75: 0's | E75: 0 | F75: 0 | G75: 0 | H75: 0 | I75: 0 | J75: 0 | K75: 0
C76: Number purchased | D76: 0's
C77: Number leased | D77: 0's
C78: Number in fleet | D78: 0's
C79: Proportion of total fleet expenditure allocated as regulatory expenditure | D79: % | E79: 0 | F79: 0 | G79: 0 | H79: 0 | I79: 0 | J79: 0 | K79: 0
B80: ELEVATED WORK PLATFORM (HCV) | C80: Average kilometres travelled | D80: 0's | E80: 18036.72761 | F80: 18036.72761 | G80: 18036.72761 | H80: 18036.72761 | I80: 18036.72761 | J80: 18036.72761 | K80: 18036.72761
C81: Number purchased | D81: 0's | E81: 5 | F81: 5 | G81: 15 | H81: 1 | I81: 3 | J81: 1 | K81: 1
C82: Number leased | D82: 0's | E82: 0 | F82: 0 | G82: 11 | H82: 11 | I82: 5.5 | J82: 5.5 | K82: 0
C83: Number in fleet | D83: 0's | E83: 81 | F83: 86 | G83: 95.5 | H83: 85.75 | I83: 88.75 | J83: 62 | K83: 60.5
C84: Proportion of total fleet expenditure allocated as regulatory expenditure | D84: % | E84: 1 | F84: 1 | G84: 1 | H84: 1 | I84: 1 | J84: 1 | K84: 1
B85: HEAVY COMMERCIAL VEHICLE | C85: Average kilometres travelled | D85: 0's | E85: 13593.66346 | F85: 13593.66346 | G85: 13593.66346 | H85: 13593.66346 | I85: 13593.66346 | J85: 13593.66346 | K85: 13593.66346
C86: Number purchased | D86: 0's | E86: 1 | F86: 7 | G86: 5 | H86: 1 | I86: 1 | K86: 3
C87: Number leased | D87: 0's | E87: 0 | F87: 1.5 | G87: 1.5 | H87: 4 | I87: 4 | J87: 0 | K87: 1.5
C88: Number in fleet | D88: 0's | E88: 45.5 | F88: 51 | G88: 53.5 | H88: 49 | I88: 42 | J88: 32 | K88: 46.5
C89: Proportion of total fleet expenditure allocated as regulatory expenditure | D89: % | E89: 1 | F89: 1 | G89: 1 | H89: 1 | I89: 1 | J89: 1 | K89: 1
B92: Table 2.6.4 intentionally omitted
B94: 2.6.5 - INFORMATION & COMMUNICATIONS TECHNOLOGY - CAPEX
E95: =CONCATENATE("EXPENDITURE ($'0s, real ", dms_DollarReal,")") -> EXPENDITURE ($'0s, real June 2021)
E96: =CRCP_y4 -> 2019-20 | F96: =CRCP_y5 -> 2020-21 | G96: =FRCP_y1 -> 2021-22 | H96: =FRCP_y2 -> 2022-23 | I96: =FRCP_y3 -> 2023-24 | J96: =FRCP_y4 -> 2024-25 | K96: =FRCP_y5 -> 2025-26
B97: RECURRENT
B98: Market Compliance | C98: Market Compliance | D98: Market Compliance | E98: 1562765.418 | F98: 1738027.21 | G98: 4551978.891 | H98: 2091529.257 | I98: 2803730.688 | J98: 2017809.922 | K98: 4829606.698
B99: Customer Engagement | C99: Customer Engagement | D99: Customer Engagement | E99: 1046543.86 | F99: 1163912.179 | G99: 3052949.055 | H99: 1207072.706 | I99: 611913.9909 | J99: 0 | K99: 209495.6349
B100: Corporate Services | C100: Corporate Services | D100: Corporate Services | E100: 7273826.835 | F100: 8089575.575 | G100: 4020262.504 | H100: 5203444.085 | I100: 3798966.071 | J100: 12259757.7 | K100: 3606449.84
B101: Field Work & Construction | C101: Field Work & Construction | D101: Field Work & Construction | E101: 1569079.2 | F101: 1745049.072 | G101: 2658601.93 | H101: 3413569.07 | I101: 1368460.128 | J101: 654788.3108 | K101: 1254083.093
B102: Service Management and Ops | C102: Service Management and Ops | D102: Service Management and Ops | E102: 1332264.173 | F102: 1481675.596 | G102: 786450.7529 | H102: 537248.4163 | I102: 546022.5492 | J102: 617204.2665 | K102: 770019.3893
B103: Network Assets and Network Operations | C103: Network Assets and Network Operations | D103: Network Assets and Network Operations | E103: 9918783.359 | F103: 11031159.99 | G103: 6865527.499 | H103: 6365515.002 | I103: 5454327.111 | J103: 5232638.468 | K103: 7395778.073
B104: Cyber Security | C104: Cyber Security | D104: Cyber Security | E104: 1289662.66 | F104: 1434296.387 | G104: 4696327.405 | H104: 2462260.133 | I104: 1788797.192 | J104: 1993295.767 | K104: 2692937.618
B108: NON-RECURRENT
B109: Market Compliance | C109: Market Compliance | D109: Market Compliance | E109: 1808058.521 | F109: 2010829.565 | G109: 14447566.18 | H109: 3109288.3 | I109: 123661.3529 | J109: 145944.0379 | K109: 246378.8832
B110: Customer Engagement | C110: Customer Engagement | D110: Customer Engagement | E110: 1526898.982 | F110: 1698138.407 | G110: 9046495.804 | H110: 1098347.457 | I110: 1954188.73 | J110: 914680.4218 | K110: 0
B111: Corporate Services | C111: Corporate Services | D111: Corporate Services | E111: 221739.3507 | F111: 246607.0854 | G111: 0 | H111: 0 | I111: 0 | J111: 0 | K111: 0
B112: Field Work & Construction | C112: Field Work & Construction | D112: Field Work & Construction | E112: 1184705.415 | F112: 1317568.346 | G112: 0 | H112: 3647516.301 | I112: 11421648.41 | J112: 8697026.471 | K112: 0
B113: Service Management and Ops | C113: Service Management and Ops | D113: Service Management and Ops | E113: 0 | F113: 0 | G113: 0 | H113: 0 | I113: 0 | J113: 0 | K113: 0
B114: Network Assets and Network Operations | C114: Network Assets and Network Operations | D114: Network Assets and Network Operations | E114: 38808.29074 | F114: 43160.58218 | G114: 4166568.705 | H114: 8230229.899 | I114: 9171175.774 | J114: 2253103.49 | K114: 1972196.209
B115: Cyber Security | C115: Cyber Security | D115: Cyber Security | E115: 0 | F115: 0 | G115: 1969888.862 | H115: 1065396.525 | I115: 766627.3678 | J115: 828059.8949 | K115: 1166344.649

Sheet 2.10 Overheads
B1: =INDEX(dms_Worksheet_List,MATCH(dms_Model,dms_Model_List)) -> REGULATORY REPORTING STATEMENT
B2: =INDEX(dms_TradingNameFull_List,MATCH(dms_TradingName,dms_TradingName_List)) -> United Energy
B3: =dms_Header_Span -> 2021-22 to 2025-26
B4: 2.10 OVERHEADS
B6: There are TWO tables on this worksheet. Each table has been 'grouped' (and sub-grouped) for easy navigation. See the Instructions sheet on how to group or ungroup data.
B8: 2.10.1 - NETWORK OVERHEADS EXPENDITURE
D9: =CONCATENATE("EXPENDITURE ($0's, real ", dms_DollarReal,")") -> EXPENDITURE ($0's, real June 2021)
D10: =CRCP_y4 -> 2019-20 | E10: =CRCP_y5 -> 2020-21 | F10: =FRCP_y1 -> 2021-22 | G10: =FRCP_y2 -> 2022-23 | H10: =FRCP_y3 -> 2023-24 | I10: =FRCP_y4 -> 2024-25 | J10: =FRCP_y5 -> 2025-26
B11: OPEX
B12: Standard Control Services | C12: Total | D12: 16183565.15 | E12: 16493114.22 | F12: 27898032.02 | G12: 27037328.58 | H12: 27652194.36 | I12: 28234500.33 | J12: 28831060.35
B13: Alternative Control Services | C13: Total | D13: 681665.8464 | E13: =D13 -> 681665.8464 | F13: =E13 -> 681665.8464 | G13: 681665.8464 | H13: 681665.8464 | I13: 681665.8464 | J13: 681665.8464
B14: CAPEX
B15: Standard Control Services | C15: Total | D15: 22311277.9 | E15: 22738034.01 | F15: 23172952.85 | G15: 23626970.27 | H15: 24077325.29 | I15: 24527510.84 | J15: 24997404.79
B16: Alternative Control Services | C16: Total | D16: 1040643.077 | E16: =D16 -> 1040643.077 | F16: =E16 -> 1040643.077 | G16: 1040643.077 | H16: 1040643.077 | I16: 1040643.077 | J16: 1040643.077
B17: OTHER DISTRIBUTION SERVICES
B18: Negotiated Services | C18: Total | D18: 487464.4685 | E18: =D18 -> 487464.4685 | F18: 487464.4685 | G18: 487464.4685 | H18: 487464.4685 | I18: 487464.4685 | J18: 487464.4685
B19: Unregulated Distribution Services | C19: Total | D19: 0 | E19: =D19 -> 0 | F19: 0 | G19: 0 | H19: 0 | I19: 0 | J19: 0
B23: 2.10.2 - CORPORATE OVERHEADS EXPENDITURE
D24: =CONCATENATE("EXPENDITURE ($0's, real ", dms_DollarReal,")") -> EXPENDITURE ($0's, real June 2021)
D25: =CRCP_y4 -> 2019-20 | E25: =CRCP_y5 -> 2020-21 | F25: =FRCP_y1 -> 2021-22 | G25: =FRCP_y2 -> 2022-23 | H25: =FRCP_y3 -> 2023-24 | I25: =FRCP_y4 -> 2024-25 | J25: =FRCP_y5 -> 2025-26
B26: OPEX
B27: Standard Control Services | C27: Total | D27: 54578305.01 | E27: 55622244.55 | F27: 58176572.27 | G27: 59290364.59 | H27: 60702334.13 | I27: 61957735.74 | J27: 63106621.07
B28: Alternative Control Services | C28: Total | D28: 9075677.9 | E28: =D28 -> 9075677.9 | F28: 9075677.9 | G28: 9075677.9 | H28: 9075677.9 | I28: 9075677.9 | J28: 9075677.9
B29: CAPEX
B30: Standard Control Services | C30: Total | D30: 0 | E30: =D30 -> 0 | F30: 0 | G30: 0 | H30: 0 | I30: 0 | J30: 0
B31: Alternative Control Services | C31: Total | D31: 0 | E31: =D31 -> 0 | F31: 0 | G31: 0 | H31: 0 | I31: 0 | J31: 0
B32: OTHER DISTRIBUTION SERVICES
B33: Negotiated Services | C33: Total | D33: 0 | E33: =D33 -> 0 | F33: 0 | G33: 0 | H33: 0 | I33: 0 | J33: 0
B34: Unregulated Distribution Services | C34: Total | D34: 0 | E34: =D34 -> 0 | F34: 0 | G34: 0 | H34: 0 | I34: 0 | J34: 0

Sheet 2.11 Labour
B1: =INDEX(dms_Worksheet_List,MATCH(dms_Model,dms_Model_List)) -> REGULATORY REPORTING STATEMENT
B2: =INDEX(dms_TradingNameFull_List,MATCH(dms_TradingName,dms_TradingName_List)) -> United Energy
B3: =dms_Header_Span -> 2021-22 to 2025-26
B4: 2.11 LABOUR
B6: Table numbering on this worksheet starts at 2.11.3.
B8: 2.11.3 - LABOUR / NON-LABOUR EXPENDITURE SPLIT - STANDARD CONTROL SERVICES
C9: EXPENDITURE
C10: =CONCATENATE("($0's, real ", dms_DollarReal,")") -> ($0's, real June 2021)
C11: =CRCP_y4 -> 2019-20 | D11: =CRCP_y5 -> 2020-21 | E11: =FRCP_y1 -> 2021-22 | F11: =FRCP_y2 -> 2022-23 | G11: =FRCP_y3 -> 2023-24 | H11: =FRCP_y4 -> 2024-25 | I11: =FRCP_y5 -> 2025-26
B12: OPEX
B13: In-house labour expenditure
B14: Labour expenditure outsourced to related parties
B15: Labour expenditure outsourced to unrelated parties
B16: Controllable non-labour expenditure
B17: Uncontrollable non-labour expenditure
B18: Total | C18: =SUM(C13:C17) -> 0 | D18: 0 | E18: 0 | F18: 0 | G18: 0 | H18: 0 | I18: 0
B19: CAPEX
B20: In-house labour expenditure
B21: Labour expenditure outsourced to related parties
B22: Labour expenditure outsourced to unrelated parties
B23: Controllable non-labour expenditure
B24: Uncontrollable non-labour expenditure
B25: Total | C25: =SUM(C20:C24) -> 0 | D25: 0 | E25: 0 | F25: 0 | G25: 0 | H25: 0 | I25: 0

Sheet 2.14 Forecast price changes
B1: =INDEX(dms_Worksheet_List,MATCH(dms_Model,dms_Model_List)) -> REGULATORY REPORTING STATEMENT
B2: =INDEX(dms_TradingNameFull_List,MATCH(dms_TradingName,dms_TradingName_List)) -> United Energy
B3: =dms_Header_Span -> 2021-22 to 2025-26
B4: 2.14 FORECAST PRICE CHANGES
B6: There is ONE table on this worksheet. It has been grouped for easy navigation. See the Instructions sheet on how to group or ungroup data.
B8: Instructions
B9: =CONCATENATE(dms_TradingName, " must provide all forecast price changes used to forecast opex and capex, including forecast changes in CPI. Forecast price changes must be expressed in real terms, except for CPI. "&"If the same escalators are not used for capex and opex, report capex and opex escalators separately. Add additional rows as required. If price changes for a given year were not used to forecast either opex or capex enter '0' for that year.") -> United Energy must provide all forecast price changes used to forecast opex and capex, including forecast changes in CPI. Forecast price changes must be expressed in real terms, except for CPI. If the same escalators are not used for capex and opex, report capex and opex escalators separately. Add additional rows as required. If price changes for a given year were not used to forecast either opex or capex enter '0' for that year.
B11: 2.14.2 - FORECAST CAPEX AND OPEX PRICE CHANGES
C12: Price changes (% YoY real) Current regulatory period | E12: Price changes (%YoY real) Forthcoming regulatory period
C13: Forecast
C14: =CRCP_y4 -> 2019-20 | D14: =CRCP_y5 -> 2020-21 | E14: =FRCP_y1 -> 2021-22 | F14: =FRCP_y2 -> 2022-23 | G14: =FRCP_y3 -> 2023-24 | H14: =FRCP_y4 -> 2024-25 | I14: =FRCP_y5 -> 2025-26
B15: OPEX
B16: CPI | C16: 0.02 | D16: 0.02 | E16: 0.02399804305 | F16: 0.02399804305 | G16: 0.02399804305 | H16: 0.02399804305 | I16: 0.02399804305
B17: Real labour escalation | C17: 0.0143 | D17: 0.0138 | E17: 0.02003652968 | F17: 0.02172318182 | G17: 0.02160180995 | H17: 0.01906981982 | I17: 0.01714080717
B18: Real non-labour escalation | C18: 0 | D18: 0 | E18: 0 | F18: 0 | G18: 0 | H18: 0 | I18: 0
B19: CAPEX
B20: CPI
B21: Real labour escalation | C21: =C17 -> 0.0143 | D21: =D17 -> 0.0138 | E21: 0.02003652968 | F21: 0.02172318182 | G21: 0.02160180995 | H21: 0.01906981982 | I21: 0.01714080717
B22: Real materials escalation | C22: 0 | D22: 0 | E22: 0 | F22: 0 | G22: 0 | H22: 0 | I22: 0
B23: Real contracts escalaction | C23: 0.0047 | D23: 0.0056 | E23: 0.01431050228 | F23: 0.01921181818 | G23: 0.01878914027 | H23: 0.01394684685 | I23: 0.01442869955

Sheet 2.16 Opex Summary
B1: =INDEX(dms_Worksheet_List,MATCH(dms_Model,dms_Model_List)) -> REGULATORY REPORTING STATEMENT
B2: =INDEX(dms_TradingNameFull_List,MATCH(dms_TradingName,dms_TradingName_List)) -> United Energy
B3: =dms_Header_Span -> 2021-22 to 2025-26
B4: 2.16 OPEX SUMMARY
B6: There are FOUR tables on this worksheet. Each table has been 'grouped' (and 'sub-grouped') for easy navigation. See the Instructions sheet on how to group or ungroup data.
B8: Instructions | J8: IMPORTANT!
B9: =CONCATENATE("Complete the tables below in accordance with the regulatory information notice. ",dms_TradingName,"'s total forecast opex must reconcile to Table 2.16.1 (and if ",dms_TradingName," owns any dual function assets Table 2.16.3). If ",dms_TradingName," did not forecast its total opex using a Base Year approach, total forecast opex must reconcile to Table 2.16.2 (and if ",dms_TradingName," owns any dual function assets Table 2.16.4).") -> Complete the tables below in accordance with the regulatory information notice. United Energy's total forecast opex must reconcile to Table 2.16.1 (and if United Energy owns any dual function assets Table 2.16.3). If United Energy did not forecast its total opex using a Base Year approach, total forecast opex must reconcile to Table 2.16.2 (and if United Energy owns any dual function assets Table 2.16.4). | J9: =CONCATENATE("Has ",dms_TradingName," used a base-step-trend model to derive its opex forecast? ") -> Has United Energy used a base-step-trend model to derive its opex forecast? | L9: Yes
B10: =CONCATENATE("If ",dms_TradingName," does not own any dual function assets,Table 2.16.3 and 2.16.4 may be left blank.") -> If United Energy does not own any dual function assets,Table 2.16.3 and 2.16.4 may be left blank. | J10: Yes / No
B11: The total step changes in Table 2.16.1 and Table 2.16.3 must "&"reconcile (in each year) to the total step changes for each year in Table 2.17.1 and Table 2.17.3 of worksheet '2.17 Step Changes', respectively.") | J11: Please nominate the base year. | L11: 2019
B14: 2.16.1 - STANDARD CONTROL SERVICES - OPEX BY DRIVER
C15: EXPENDITURE
C16: =CONCATENATE("Forecast ($0's, real ", dms_DollarReal,")") -> Forecast ($0's, real June 2021)
C17: 2017 | D17: 2018 | E17: 2019 | F17: 2020 | G17: 2021 | H17: =FRCP_y1 -> 2021-22 | I17: =FRCP_y2 -> 2022-23 | J17: =FRCP_y3 -> 2023-24 | K17: =FRCP_y4 -> 2024-25 | L17: =FRCP_y5 -> 2025-26
B18: Base year total opex, excluding category specific | E18: 123313866 | F18: =E18 -> 123313866 | G18: =F18 -> 123313866 | H18: =G25-G24 -> 126853177.8 | I18: =H18 -> 126853177.8 | J18: =I18 -> 126853177.8 | K18: 126853177.8 | L18: 126853177.8
B19: Increment from base year to final year | G19: 3539311.836
B20: Price growth | H20: 1572995.746 | I20: 3310132.536 | J20: 5070613.03 | K20: 6656109.512 | L20: 8110140.996
B21: Output growth | H21: 1658324.038 | I21: 3277806.562 | J21: 4865744.625 | K21: 6640931.489 | L21: 8676924.343
B22: Productivity growth | H22: -682446.151 | I22: -1378263.168 | J22: -2087343.192 | K22: -2809681.234 | L22: -3545857.706
B23: Step changes | H23: 14992684.25 | I23: 13814851.65 | J23: 14881650.74 | K23: 15165131.39 | L23: 14960299.88
B24: Category specific | G24: 6404732.618 | H24: =G24 -> 6404732.618 | I24: =H24 -> 6404732.618 | J24: 6404732.618 | K24: 6404732.618 | L24: 6404732.618
B25: Total opex | C25: =SUM(C18:C24) -> 0 | D25: 0 | E25: 123313866 | F25: 123313866 | G25: 133257910.4 | H25: 150799468.3 | I25: 152282438 | J25: 155988575.6 | K25: 158910401.6 | L25: 161459417.9
B28: 2.16.2 - STANDARD CONTROL SERVICES - OPEX BY CATEGORY
C29: EXPENDITURE
C30: =CONCATENATE("Forecast ($0's, real ", dms_DollarReal,")") -> Forecast ($0's, real June 2021)
C31: =CRCP_y1 -> 2016-17 | D31: =CRCP_y2 -> 2017-18 | E31: =CRCP_y3 -> 2018-19 | F31: =CRCP_y4 -> 2019-20 | G31: =CRCP_y5 -> 2020-21 | H31: =FRCP_y1 -> 2021-22 | I31: =FRCP_y2 -> 2022-23 | J31: =FRCP_y3 -> 2023-24 | K31: =FRCP_y4 -> 2024-25 | L31: =FRCP_y5 -> 2025-26
B32: Vegetation management
B33: Maintenance
B34: Emergency response
B35: Non-network
B36: Metering
B37: Network overheads
B38: Corporate overheads
B39: Total opex | C39: =SUM(C32:C38) -> 0 | D39: 0 | E39: 0 | F39: 0 | G39: 0 | H39: 0 | I39: 0 | J39: 0 | K39: 0 | L39: 0
B42: 2.16.3 - DUAL FUNCTION ASSETS - OPEX BY DRIVER
C43: EXPENDITURE
C44: =CONCATENATE("Forecast ($0's, real ", dms_DollarReal,")") -> Forecast ($0's, real June 2021)
C45: 2017 | D45: 2018 | E45: 2019 | F45: 2020 | G45: 2021 | H45: =FRCP_y1 -> 2021-22 | I45: =FRCP_y2 -> 2022-23 | J45: =FRCP_y3 -> 2023-24 | K45: =FRCP_y4 -> 2024-25 | L45: =FRCP_y5 -> 2025-26
B46: Base year total opex, excluding category specific
B47: Increment from base year to final year
B48: Price growth
B49: Output growth
B50: Productivity growth
B51: Step changes
B52: Category specific
B53: Total opex | C53: =SUM(C46:C52) -> 0 | D53: 0 | E53: 0 | F53: 0 | G53: 0 | H53: 0 | I53: 0 | J53: 0 | K53: 0 | L53: 0
B56: 2.16.4 - DUAL FUNCTION ASSETS - OPEX BY CATEGORY
C57: EXPENDITURE
C58: =CONCATENATE("Forecast ($0's, real ", dms_DollarReal,")") -> Forecast ($0's, real June 2021)
C59: =CRCP_y1 -> 2016-17 | D59: =CRCP_y2 -> 2017-18 | E59: =CRCP_y3 -> 2018-19 | F59: =CRCP_y4 -> 2019-20 | G59: =CRCP_y5 -> 2020-21 | H59: =FRCP_y1 -> 2021-22 | I59: =FRCP_y2 -> 2022-23 | J59: =FRCP_y3 -> 2023-24 | K59: =FRCP_y4 -> 2024-25 | L59: =FRCP_y5 -> 2025-26
B60: Vegetation management
B61: Maintenance
B62: Emergency response
B63: Non-network
B64: Metering
B65: Network overheads
B66: Corporate overheads
B67: Total opex | C67: =SUM(C60:C66) -> 0 | D67: 0 | E67: 0 | F67: 0 | G67: 0 | H67: 0 | I67: 0 | J67: 0 | K67: 0 | L67: 0

Sheet 2.17 Step Changes
B1: =INDEX(dms_Worksheet_List,MATCH(dms_Model,dms_Model_List)) -> REGULATORY REPORTING STATEMENT
B2: =INDEX(dms_TradingNameFull_List,MATCH(dms_TradingName,dms_TradingName_List)) -> United Energy
B3: =dms_Header_Span -> 2021-22 to 2025-26
B4: 2.17 STEP CHANGES
B6: There are FIVE tables on this worksheet. Each table has been 'grouped' (and 'sub-grouped') for easy navigation. See the Instructions sheet on how to group or ungroup data.
B8: 2.17.1 - STEP CHANGES FOR STANDARD CONTROL SERVICES - FORECAST OPEX
E9: EXPENDITURE
E10: =CONCATENATE("Forecast ($0's, real ", dms_DollarReal, ")") -> Forecast ($0's, real June 2021)
B11: Step change | C11: Description | E11: =CRCP_y4 -> 2019-20 | F11: =CRCP_y5 -> 2020-21 | G11: =FRCP_y1 -> 2021-22 | H11: =FRCP_y2 -> 2022-23 | I11: =FRCP_y3 -> 2023-24 | J11: =FRCP_y4 -> 2024-25 | K11: =FRCP_y5 -> 2025-26
B12: Security of critical infrastructure | C12: To comply with new critical infrastructure system and data control regulatory obligations | G12: 10050225.04 | H12: 8811196.511 | I12: 8921952.153 | J12: 9020954.915 | K12: 9110930.487
B13: Demand management programs | C13: Reducing costs for customers through efficient demand management initiatives | G13: 1482883.545 | H13: 1627236.35 | I13: 2057858.556 | J13: 1972201.277 | K13: 1474029.04
B14: IT cloud solutions | C14: Reducing costs and delivering customer benefits by migrating IT infrastructure to cloud | G14: 704613.9872 | H14: 703319.6384 | I14: 1009130.417 | J14: 1159264.4 | K14: 1155037.058
B15: Solar enablement | C15: Operating expenditure associated with enabling more solar on the network | G15: 929932.495 | H15: 794608.089 | I15: 832283.9507 | J15: 791511.112 | K15: 829709.9497
B16: 5 minute settlement | C16: To comply with the 5-minute settlement rule change | G16: 591623.093 | H16: 619115.4659 | I16: 774888.8658 | J16: 909816.4999 | K16: 1053566.853
B17: ESV levy | C17: Material increase in ESV levy | G17: 447599.7305 | H17: 469109.2901 | I17: 490779.4081 | J17: 512611.2831 | K17: 534606.1224
B18: Increasing insurance premiums | C18: Material increase in insurance premiums due to worsening global insurance market conditions | G18: 432976.6249 | H18: 432976.6249 | I18: 432976.6249 | J18: 432976.6249 | K18: 432976.6249
B19: Financial year RIN | C19: Prepare and audit an additional RIN on annual basis for calendar year accounts | G19: 352829.7356 | H19: 357289.68 | I19: 361780.7668 | J19: 365795.28 | K19: 369443.7452
B22: Total | E22: =SUM(E12:E21) -> 0 | F22: 0 | G22: 14992684.25 | H22: 13814851.65 | I22: 14881650.74 | J22: 15165131.39 | K22: 14960299.88
B23: Check | G23: =IF(ROUND(G$22,0)-ROUND('2.16 Opex Summary'!H$23,0)=0,"OK","Error") -> OK | H23: =IF(ROUND(H$22,0)-ROUND('2.16 Opex Summary'!I$23,0)=0,"OK","Error") -> OK | I23: =IF(ROUND(I$22,0)-ROUND('2.16 Opex Summary'!J$23,0)=0,"OK","Error") -> OK | J23: =IF(ROUND(J$22,0)-ROUND('2.16 Opex Summary'!K$23,0)=0,"OK","Error") -> OK | K23: =IF(ROUND(K$22,0)-ROUND('2.16 Opex Summary'!L$23,0)=0,"OK","Error") -> OK
B25: 2.17.2 - STEP CHANGES FOR STANDARD CONTROL SERVICES - FORECAST CAPEX
E26: EXPENDITURE
E27: =CONCATENATE("Forecast ($0's, real ", dms_DollarReal, ")") -> Forecast ($0's, real June 2021)
B28: Step change | C28: Description | E28: =CRCP_y4 -> 2019-20 | F28: =CRCP_y5 -> 2020-21 | G28: =FRCP_y1 -> 2021-22 | H28: =FRCP_y2 -> 2022-23 | I28: =FRCP_y3 -> 2023-24 | J28: =FRCP_y4 -> 2024-25 | K28: =FRCP_y5 -> 2025-26
B39: Total | E39: =SUM(E29:E38) -> 0 | F39: 0 | G39: 0 | H39: 0 | I39: 0 | J39: 0 | K39: 0
B41: 2.17.3 - STEP CHANGES FOR DUAL FUNCTION ASSETS - FORECAST OPEX
E42: EXPENDITURE
E43: =CONCATENATE("Forecast ($0's, real ", dms_DollarReal, ")") -> Forecast ($0's, real June 2021)
B44: Step change | C44: Description | E44: =CRCP_y4 -> 2019-20 | F44: =CRCP_y5 -> 2020-21 | G44: =FRCP_y1 -> 2021-22 | H44: =FRCP_y2 -> 2022-23 | I44: =FRCP_y3 -> 2023-24 | J44: =FRCP_y4 -> 2024-25 | K44: =FRCP_y5 -> 2025-26
B55: Total | E55: =SUM(E45:E54) -> 0 | F55: 0 | G55: 0 | H55: 0 | I55: 0 | J55: 0 | K55: 0
B56: Check | G56: =IF(ROUND(G$22,0)-ROUND('2.16 Opex Summary'!H$51,0)=0,"OK","Error") -> Error | H56: =IF(ROUND(H$22,0)-ROUND('2.16 Opex Summary'!I$51,0)=0,"OK","Error") -> Error | I56: =IF(ROUND(I$22,0)-ROUND('2.16 Opex Summary'!J$51,0)=0,"OK","Error") -> Error | J56: =IF(ROUND(J$22,0)-ROUND('2.16 Opex Summary'!K$51,0)=0,"OK","Error") -> Error | K56: =IF(ROUND(K$22,0)-ROUND('2.16 Opex Summary'!L$51,0)=0,"OK","Error") -> Error
B58: 2.17.4 - STEP CHANGES FOR DUAL FUNCTION ASSETS - FORECAST CAPEX
E59: EXPENDITURE
E60: =CONCATENATE("Forecast ($0's, real ", dms_DollarReal, ")") -> Forecast ($0's, real June 2021)
B61: Step change | C61: Description | E61: =CRCP_y4 -> 2019-20 | F61: =CRCP_y5 -> 2020-21 | G61: =FRCP_y1 -> 2021-22 | H61: =FRCP_y2 -> 2022-23 | I61: =FRCP_y3 -> 2023-24 | J61: =FRCP_y4 -> 2024-25 | K61: =FRCP_y5 -> 2025-26
B72: Total | E72: =SUM(E62:E71) -> 0 | F72: 0 | G72: 0 | H72: 0 | I72: 0 | J72: 0 | K72: 0
B75: 2.17.5 - FORECAST CATEGORY SPECIFIC OPEX
D76: EXPENDITURE
D77: =CONCATENATE("Forecast ($0's, real ", dms_DollarReal, ")") -> Forecast ($0's, real June 2021)
B78: Category | C78: Description | D78: =CRCP_y3 -> 2018-19 | E78: =CRCP_y4 -> 2019-20 | F78: =CRCP_y5 -> 2020-21 | G78: =FRCP_y1 -> 2021-22 | H78: =FRCP_y2 -> 2022-23 | I78: =FRCP_y3 -> 2023-24 | J78: =FRCP_y4 -> 2024-25 | K78: =FRCP_y5 -> 2025-26
B79: Communications network | C79: Reclassification from metering services to standard control | G79: 933370.3055 | H79: =G79 -> 933370.3055 | I79: =H79 -> 933370.3055 | J79: 933370.3055 | K79: 933370.3055
B80: Wasted truck visits | C80: Reclassification from alternative control services to standard control | G80: 221838.3453 | H80: =G80 -> 221838.3453 | I80: 221838.3453 | J80: 221838.3453 | K80: 221838.3453
B81: Replacement expenditure on faults and minor repairs | C81: Reclassification from capital expenditure to operating expenditure | G81: 5249523.967 | H81: =G81 -> 5249523.967 | I81: 5249523.967 | J81: 5249523.967 | K81: 5249523.967
B89: Total | D89: =SUM(D86:D88) -> 0 | E89: 0 | F89: 0 | G89: =SUM(G79:G88) -> 6404732.618 | H89: =SUM(H79:H88) -> 6404732.618 | I89: 6404732.618 | J89: 6404732.618 | K89: 6404732.618

Sheet 3.1 Revenue
B1: =INDEX(dms_Worksheet_List,MATCH(dms_Model,dms_Model_List)) -> REGULATORY REPORTING STATEMENT
B2: =INDEX(dms_TradingNameFull_List,MATCH(dms_TradingName,dms_TradingName_List)) -> United Energy
B3: =dms_Header_Span -> 2021-22 to 2025-26
B4: 3.1 REVENUE
B6: There are THREE tables on this worksheet. Each table has been 'grouped' (and 'sub-grouped') for easy navigation. See the Instructions sheet on how to group or ungroup data.
B8: 3.1.1 - REVENUE GROUPING BY CHARGEABLE QUANTITY
C9: Standard control services | K9: Alternative control services
C10: REVENUE | K10: REVENUE
C11: =CONCATENATE("Forecast ($0's, real ", dms_DollarReal,")") -> Forecast ($0's, real June 2021) | K11: =CONCATENATE("Forecast ($0's, real ", dms_DollarReal,")") -> Forecast ($0's, real June 2021)
C12: =CRCP_y4 -> 2019-20 | D12: =CRCP_y5 -> 2020-21 | E12: =FRCP_y1 -> 2021-22 | F12: =FRCP_y2 -> 2022-23 | G12: =FRCP_y3 -> 2023-24 | H12: =FRCP_y4 -> 2024-25 | I12: =FRCP_y5 -> 2025-26 | K12: =CRCP_y4 -> 2019-20 | L12: =CRCP_y5 -> 2020-21 | M12: =FRCP_y1 -> 2021-22 | N12: =FRCP_y2 -> 2022-23 | O12: =FRCP_y3 -> 2023-24 | P12: =FRCP_y4 -> 2024-25 | Q12: =FRCP_y5 -> 2025-26
A13: DREV0101 | B13: Revenue from Fixed Customer Charges | C13: 20114674.13 | D13: 24957004.99 | E13: 57249219 | F13: 56711434.35 | G13: 56135414.7 | H13: 55533719.82 | I13: 54905105.53 | K13: 0 | L13: 0 | M13: 0 | N13: 0 | O13: 0 | P13: 0 | Q13: 0
A14: DREV0102 | B14: Revenue from Energy Delivery charges where time of use is not a determinant | C14: 230722557.9 | D14: 214250303.5 | E14: 184180911.4 | F14: 175538234.6 | G14: 165148873.6 | H14: 154783152 | I14: 144439363.1 | K14: 0 | L14: 0 | M14: 0 | N14: 0 | O14: 0 | P14: 0 | Q14: 0
A15: DREV0103 | B15: Revenue from On–Peak Energy Delivery charges | C15: 47423492.58 | D15: 44034560.22 | E15: 47467955.82 | F15: 52757294.03 | G15: 59179638.62 | H15: 65599095.22 | I15: 72017218.35 | K15: 0 | L15: 0 | M15: 0 | N15: 0 | O15: 0 | P15: 0 | Q15: 0
A16: DREV0104 | B16: Revenue from Shoulder period Energy Delivery Charges | C16: 1883523.26 | D16: 1748972.565 | E16: 1581992.51 | F16: 0 | G16: 0 | H16: 0 | I16: 0 | K16: 0 | L16: 0 | M16: 0 | N16: 0 | O16: 0 | P16: 0 | Q16: 0
A17: DREV0105 | B17: Revenue from Off–Peak Energy Delivery charges | C17: 28453658.61 | D17: 26416864.73 | E17: 28054063.02 | F17: 32385022.75 | G17: 36736419.77 | H17: 41085615.77 | I17: 45433653.57 | K17: 0 | L17: 0 | M17: 0 | N17: 0 | O17: 0 | P17: 0 | Q17: 0
A18: DREV0106 | B18: Revenue from controlled load customer charges | C18: 1966716.73 | D18: 1826223.056 | E18: 1651867.648 | F18: 1670807.862 | G18: 1673985.787 | H18: 1677281.86 | I18: 1680701.947 | K18: 0 | L18: 0 | M18: 0 | N18: 0 | O18: 0 | P18: 0 | Q18: 0
A19: DREV0107 | B19: Revenue from unmetered supplies | C19: 3327212.803 | D19: 3089531.217 | E19: 2794563.702 | F19: 2826606 | G19: 2831982.286 | H19: 2837558.452 | I19: 2843344.417 | K19: 0 | L19: 0 | M19: 0 | N19: 0 | O19: 0 | P19: 0 | Q19: 0
A20: DREV0108 | B20: Revenue from Contracted Maximum Demand charges | C20: 0 | D20: 0 | E20: 0 | F20: 0 | G20: 0 | H20: 0 | I20: 0 | K20: 0 | L20: 0 | M20: 0 | N20: 0 | O20: 0 | P20: 0 | Q20: 0
A21: DREV0109 | B21: Revenue from Measured Maximum Demand charges | C21: 112722066.8 | D21: 105175167.9 | E21: 95166515.65 | F21: 96257689.18 | G21: 96440774.05 | H21: 96630665.69 | I21: 96827701.88 | K21: 0 | L21: 0 | M21: 0 | N21: 0 | O21: 0 | P21: 0 | Q21: 0
A22: DREV0110 | B22: Revenue from metering charges | C22: 0 | D22: 0 | E22: 0 | F22: 0 | G22: 0 | H22: 0 | I22: 0 | K22: 39328706.33 | L22: 19664371.96 | M22: 30882141.2 | N22: 30882141.2 | O22: 30882141.2 | P22: 30882141.2 | Q22: 30882141.2
A23: DREV0111 | B23: Revenue from connection charges | C23: 0 | D23: 0 | E23: 0 | F23: 0 | G23: 0 | H23: 0 | I23: 0 | K23: =SUM('4.2 Metering'!E44:E46) -> 10368184.34 | L23: =SUM('4.2 Metering'!F44:F46) -> 13182785.15 | M23: =SUM('4.2 Metering'!G44:G46) -> 11098143.31 | N23: =SUM('4.2 Metering'!H44:H46) -> 10934742.26 | O23: =SUM('4.2 Metering'!I44:I46) -> 10794779.02 | P23: =SUM('4.2 Metering'!J44:J46) -> 10729215.19 | Q23: =SUM('4.2 Metering'!K44:K46) -> 10640581.86
A24: DREV0112 | B24: Revenue from public lighting charges | C24: 0 | D24: 0 | E24: 0 | F24: 0 | G24: 0 | H24: 0 | I24: 0 | K24: 4610914.151 | L24: 4703132.434 | M24: 6907949.967 | N24: 6746595.867 | O24: 6603494.812 | P24: 6446218.592 | Q24: 6356693.099
A25: DREV0113 | B25: Revenue from other Sources | C25: 0 | D25: 0 | E25: 0 | F25: 0 | G25: 0 | H25: 0 | I25: 0 | K25: =L25/1.02 -> 3979208.169 | L25: =M25/1.02 -> 4058792.332 | M25: 4139968.179 | N25: 4198880.861 | O25: 4264623.795 | P25: 4338014.22 | Q25: 4419967.417
A26: DREV01 | B26: Total revenue by chargeable quantity | C26: =SUM(C13:C25) -> 446613902.8 | D26: 421498628.2 | E26: 418147088.8 | F26: 418147088.8 | G26: 418147088.8 | H26: 418147088.8 | I26: 418147088.8 | K26: =SUM(K13:K25) -> 58287012.99 | L26: 41609081.87 | M26: 53028202.66 | N26: 52762360.19 | O26: 52545038.82 | P26: 52395589.2 | Q26: 52299383.58
B29: 3.1.2 - REVENUE GROUPING BY CUSTOMER TYPE OR CLASS
C30: Standard control services | K30: Alternative control services
C31: REVENUE | K31: REVENUE
C32: =CONCATENATE("Forecast ($0's, real ", dms_DollarReal,")") -> Forecast ($0's, real June 2021) | K32: =CONCATENATE("Forecast ($0's, real ", dms_DollarReal,")") -> Forecast ($0's, real June 2021)
C33: =CRCP_y4 -> 2019-20 | D33: =CRCP_y5 -> 2020-21 | E33: =FRCP_y1 -> 2021-22 | F33: =FRCP_y2 -> 2022-23 | G33: =FRCP_y3 -> 2023-24 | H33: =FRCP_y4 -> 2024-25 | I33: =FRCP_y5 -> 2025-26 | K33: =CRCP_y4 -> 2019-20 | L33: =CRCP_y5 -> 2020-21 | M33: =FRCP_y1 -> 2021-22 | N33: =FRCP_y2 -> 2022-23 | O33: =FRCP_y3 -> 2023-24 | P33: =FRCP_y4 -> 2024-25 | Q33: =FRCP_y5 -> 2025-26
A34: DREV0201 | B34: Revenue from residential Customers | C34: 209038663.2 | D34: 199865675.5 | E34: 211552081.6 | F34: 209323254.3 | G34: 209007400.4 | H34: 208680187.7 | I34: 208341049.8 | K34: 0 | L34: 0 | M34: 0 | N34: 0 | O34: 0 | P34: 0 | Q34: 0
A35: DREV0202 | B35: Revenue from Non residential customers not on demand tariffs | C35: 56562470.55 | D35: 52825324.83 | E35: 31807879.37 | F35: 30516930.45 | G35: 28965544.26 | H35: 27421302.39 | I35: 25883941.35 | K35: 0 | L35: 0 | M35: 0 | N35: 0 | O35: 0 | P35: 0 | Q35: 0
A36: DREV0203 | B36: Revenue from Non-residential low voltage demand tariff customers | C36: 152539928.7 | D36: 142057129.4 | E36: 130488033.5 | F36: 131963960.4 | G36: 132203368.1 | H36: 132451604.4 | I36: 132709107.8 | K36: 0 | L36: 0 | M36: 0 | N36: 0 | O36: 0 | P36: 0 | Q36: 0
A37: DREV0204 | B37: Revenue from Non-residential high voltage demand tariff customers | C37: 23198116.48 | D37: 21540944.12 | E37: 19484360.66 | F37: 19707767.17 | G37: 19745251.9 | H37: 19784130.26 | I37: 19824471.38 | K37: 0 | L37: 0 | M37: 0 | N37: 0 | O37: 0 | P37: 0 | Q37: 0
A38: DREV0205 | B38: Revenue from unmetered supplies | C38: 3327212.803 | D38: 3089531.217 | E38: 2794563.702 | F38: 2826606 | G38: 2831982.286 | H38: 2837558.452 | I38: 2843344.417 | K38: 0 | L38: 0 | M38: 0 | N38: 0 | O38: 0 | P38: 0 | Q38: 0
A39: DREV0206 | B39: Revenue from Other Customers | C39: 1947510.957 | D39: 2120023.257 | E39: 22020169.93 | F39: 23808570.46 | G39: 25393541.82 | H39: 26972305.61 | I39: 28545174 | K39: =K26 -> 58287012.99 | L39: =L26 -> 41609081.87 | M39: 53028202.66 | N39: 52762360.19 | O39: 52545038.82 | P39: 52395589.2 | Q39: 52299383.58
A40: DREV02 | B40: Total revenue by customer class | C40: =SUM(C34:C39) -> 446613902.8 | D40: 421498628.2 | E40: 418147088.8 | F40: 418147088.8 | G40: 418147088.8 | H40: 418147088.8 | I40: 418147088.8 | K40: =SUM(K34:K39) -> 58287012.99 | L40: 41609081.87 | M40: 53028202.66 | N40: 52762360.19 | O40: 52545038.82 | P40: 52395589.2 | Q40: 52299383.58
B43: 3.1.3 - REVENUE (penalties) ALLOWED (deducted) THROUGH INCENTIVE SCHEMES
C44: Standard control services | K44: Alternative control services
C45: REVENUE | K45: REVENUE
C46: =CONCATENATE("Forecast ($0's, real ", dms_DollarReal,")") -> Forecast ($0's, real June 2021) | K46: =CONCATENATE("Forecast ($0's, real ", dms_DollarReal,")") -> Forecast ($0's, real June 2021)
C47: =CRCP_y4 -> 2019-20 | D47: =CRCP_y5 -> 2020-21 | E47: =FRCP_y1 -> 2021-22 | F47: =FRCP_y2 -> 2022-23 | G47: =FRCP_y3 -> 2023-24 | H47: =FRCP_y4 -> 2024-25 | I47: =FRCP_y5 -> 2025-26 | K47: =CRCP_y4 -> 2019-20 | L47: =CRCP_y5 -> 2020-21 | M47: =FRCP_y1 -> 2021-22 | N47: =FRCP_y2 -> 2022-23 | O47: =FRCP_y3 -> 2023-24 | P47: =FRCP_y4 -> 2024-25 | Q47: =FRCP_y5 -> 2025-26
A48: DREV0301 | B48: EBSS | C48: 5236890.093 | D48: 0 | E48: 31222586.84 | F48: 30296272.1 | G48: 12309280.96 | H48: -1389150.125 | I48: 0 | K48: 0 | L48: 0 | M48: 0 | N48: 0 | O48: 0 | P48: 0 | Q48: 0
A49: DREV0302 | B49: STPIS | C49: 17680471.73 | D49: 9458581.388 | E49: 0 | F49: 0 | G49: 0 | H49: 0 | I49: 0 | K49: 0 | L49: 0 | M49: 0 | N49: 0 | O49: 0 | P49: 0 | Q49: 0
A50: DREV0303 | B50: F-Factor | C50: 114750 | D50: 2550 | E50: 0 | F50: 0 | G50: 0 | H50: 0 | I50: 0 | K50: 0 | L50: 0 | M50: 0 | N50: 0 | O50: 0 | P50: 0 | Q50: 0
A51: DREV0304 | B51: S-Factor True up | C51: 0 | D51: 0 | E51: 0 | F51: 0 | G51: 0 | H51: 0 | I51: 0 | K51: 0 | L51: 0 | M51: 0 | N51: 0 | O51: 0 | P51: 0 | Q51: 0
A52: DREV0305 | B52: Other | C52: -160892.0148 | D52: -80446.00742 | E52: 8089940.461 | F52: 8089940.461 | G52: 8089940.461 | H52: 8089940.461 | I52: 8089940.461 | K52: 0 | L52: 0 | M52: 0 | N52: 0 | O52: 0 | P52: 0 | Q52: 0
A53: DREV03 | B53: Total revenue of incentive schemes | C53: =SUM(C48:C52) -> 22871219.81 | D53: 9380685.381 | E53: 39312527.3 | F53: 38386212.56 | G53: 20399221.42 | H53: 6700790.336 | I53: 8089940.461 | K53: =SUM(K48:K52) -> 0 | L53: 0 | M53: 0 | N53: 0 | O53: 0 | P53: 0 | Q53: 0

Sheet 3.2 Operating expenditure
B1: =INDEX(dms_Worksheet_List,MATCH(dms_Model,dms_Model_List)) -> REGULATORY REPORTING STATEMENT
B2: =INDEX(dms_TradingNameFull_List,MATCH(dms_TradingName,dms_TradingName_List)) -> United Energy
B3: =dms_Header_Span -> 2021-22 to 2025-26
B4: 3.2 OPERATING EXPENDITURE
B6: There are THREE tables on this worksheet. Both ROWS and COLUMNS have been grouped for ease of navigation. see the Instructions sheet on how to group or ungroup tables.
B8: 3.2.1 - OPEX CATEGORIES
B9: CURRENT OPEX CATEGORIES AND COST ALLOCATIONS
C10: Standard control services | K10: Alternative control services
C11: EXPENDITURE | K11: EXPENDITURE
C12: =CONCATENATE("Forecast ($0's, real ",dms_DollarReal,")") -> Forecast ($0's, real June 2021) | K12: =CONCATENATE("Forecast ($0's, real ",dms_DollarReal,")") -> Forecast ($0's, real June 2021)
C13: =CRCP_y4 -> 2019-20 | D13: =CRCP_y5 -> 2020-21 | E13: =FRCP_y1 -> 2021-22 | F13: =FRCP_y2 -> 2022-23 | G13: =FRCP_y3 -> 2023-24 | H13: =FRCP_y4 -> 2024-25 | I13: =FRCP_y5 -> 2025-26 | K13: =CRCP_y4 -> 2019-20 | L13: =CRCP_y5 -> 2020-21 | M13: =FRCP_y1 -> 2021-22 | N13: =FRCP_y2 -> 2022-23 | O13: =FRCP_y3 -> 2023-24 | P13: =FRCP_y4 -> 2024-25 | Q13: =FRCP_y5 -> 2025-26
A14: DOPEX0101 | B14: Maintenance | C14: ='2.1 Expenditure summary'!C26 -> 24835105.91 | D14: ='2.1 Expenditure summary'!D26 -> 26414613.05 | E14: ='2.17 Step Changes'!G$13+(('2.16 Opex Summary'!H$25-'2.17 Step Changes'!G$13-'3.2 Operating expenditure'!E$17)*'3.2 Operating expenditure'!$D14/SUM('3.2 Operating expenditure'!$D$14:$D$16)) -> 29088309.01 | F14: ='2.17 Step Changes'!H$13+(('2.16 Opex Summary'!I$25-'2.17 Step Changes'!H$13-'3.2 Operating expenditure'!F$17)*'3.2 Operating expenditure'!$D14/SUM('3.2 Operating expenditure'!$D$14:$D$16)) -> 29706499.96 | G14: ='2.17 Step Changes'!I$13+(('2.16 Opex Summary'!J$25-'2.17 Step Changes'!I$13-'3.2 Operating expenditure'!G$17)*'3.2 Operating expenditure'!$D14/SUM('3.2 Operating expenditure'!$D$14:$D$16)) -> 30682176.97 | H14: ='2.17 Step Changes'!J$13+(('2.16 Opex Summary'!K$25-'2.17 Step Changes'!J$13-'3.2 Operating expenditure'!H$17)*'3.2 Operating expenditure'!$D14/SUM('3.2 Operating expenditure'!$D$14:$D$16)) -> 31107132.33 | I14: ='2.17 Step Changes'!K$13+(('2.16 Opex Summary'!L$25-'2.17 Step Changes'!K$13-'3.2 Operating expenditure'!I$17)*'3.2 Operating expenditure'!$D14/SUM('3.2 Operating expenditure'!$D$14:$D$16)) -> 31177177.21
A15: DOPEX0102 | B15: Vegetation Management | C15: ='2.1 Expenditure summary'!C25 -> 16480082.35 | D15: ='2.1 Expenditure summary'!D25 -> 17528211.87 | E15: =(('2.16 Opex Summary'!H$25-'2.17 Step Changes'!G$13-'3.2 Operating expenditure'!E$17)*'3.2 Operating expenditure'!$D15/SUM('3.2 Operating expenditure'!$D$14:$D$16)) -> 18318411.31 | F15: =(('2.16 Opex Summary'!I$25-'2.17 Step Changes'!H$13-'3.2 Operating expenditure'!F$17)*'3.2 Operating expenditure'!$D15/SUM('3.2 Operating expenditure'!$D$14:$D$16)) -> 18632840.88 | G15: =(('2.16 Opex Summary'!J$25-'2.17 Step Changes'!I$13-'3.2 Operating expenditure'!G$17)*'3.2 Operating expenditure'!$D15/SUM('3.2 Operating expenditure'!$D$14:$D$16)) -> 18994528.4 | H15: =(('2.16 Opex Summary'!K$25-'2.17 Step Changes'!J$13-'3.2 Operating expenditure'!H$17)*'3.2 Operating expenditure'!$D15/SUM('3.2 Operating expenditure'!$D$14:$D$16)) -> 19333360.8 | I15: =(('2.16 Opex Summary'!L$25-'2.17 Step Changes'!K$13-'3.2 Operating expenditure'!I$17)*'3.2 Operating expenditure'!$D15/SUM('3.2 Operating expenditure'!$D$14:$D$16)) -> 19710418.37
A16: DOPEX0103 | B16: Emergency | C16: ='2.1 Expenditure summary'!C27 -> 15580195.77 | D16: ='2.1 Expenditure summary'!D27 -> 16571092.71 | E16: =(('2.16 Opex Summary'!H$25-'2.17 Step Changes'!G$13-'3.2 Operating expenditure'!E$17)*'3.2 Operating expenditure'!$D16/SUM('3.2 Operating expenditure'!$D$14:$D$16)) -> 17318143.7 | F16: =(('2.16 Opex Summary'!I$25-'2.17 Step Changes'!H$13-'3.2 Operating expenditure'!F$17)*'3.2 Operating expenditure'!$D16/SUM('3.2 Operating expenditure'!$D$14:$D$16)) -> 17615404 | G16: =(('2.16 Opex Summary'!J$25-'2.17 Step Changes'!I$13-'3.2 Operating expenditure'!G$17)*'3.2 Operating expenditure'!$D16/SUM('3.2 Operating expenditure'!$D$14:$D$16)) -> 17957341.76 | H16: =(('2.16 Opex Summary'!K$25-'2.17 Step Changes'!J$13-'3.2 Operating expenditure'!H$17)*'3.2 Operating expenditure'!$D16/SUM('3.2 Operating expenditure'!$D$14:$D$16)) -> 18277672.39 | I16: =(('2.16 Opex Summary'!L$25-'2.17 Step Changes'!K$13-'3.2 Operating expenditure'!I$17)*'3.2 Operating expenditure'!$D16/SUM('3.2 Operating expenditure'!$D$14:$D$16)) -> 18634140.93
A17: DOPEX0104 | B17: Overheads | C17: ='2.10 Overheads'!D12+'2.10 Overheads'!D27 -> 70761870.16 | D17: ='2.10 Overheads'!E12+'2.10 Overheads'!E27 -> 72115358.77 | E17: ='2.10 Overheads'!F12+'2.10 Overheads'!F27 -> 86074604.29 | F17: ='2.10 Overheads'!G12+'2.10 Overheads'!G27 -> 86327693.16 | G17: ='2.10 Overheads'!H12+'2.10 Overheads'!H27 -> 88354528.5 | H17: ='2.10 Overheads'!I12+'2.10 Overheads'!I27 -> 90192236.07 | I17: ='2.10 Overheads'!J12+'2.10 Overheads'!J27 -> 91937681.43
A18: DOPEX0105 | B18: Public Lighting | K18: ='2.1 Expenditure summary'!C52 -> 2749666.444 | L18: ='2.1 Expenditure summary'!D52 -> 3394785.084 | M18: ='2.1 Expenditure summary'!E52 -> 4039903.725 | N18: ='2.1 Expenditure summary'!F52 -> 3973100.458 | O18: ='2.1 Expenditure summary'!G52 -> 3918291.718 | P18: ='2.1 Expenditure summary'!H52 -> 3855224.496 | Q18: ='2.1 Expenditure summary'!I52 -> 3837635.964
A19: DOPEX0106 | B19: Connections | K19: ='2.1 Expenditure summary'!C50 -> 10368184.34 | L19: ='2.1 Expenditure summary'!D50 -> 13182785.15 | M19: ='2.1 Expenditure summary'!E50 -> 11098143.31 | N19: ='2.1 Expenditure summary'!F50 -> 10934742.26 | O19: ='2.1 Expenditure summary'!G50 -> 10794779.02 | P19: ='2.1 Expenditure summary'!H50 -> 10729215.19 | Q19: ='2.1 Expenditure summary'!I50 -> 10640581.86
A20: DOPEX0107 | B20: Metering | K20: ='2.1 Expenditure summary'!C51 -> 7638696.077 | L20: ='2.1 Expenditure summary'!D51 -> 7857970.679 | M20: ='2.1 Expenditure summary'!E51 -> 7017502.563 | N20: ='2.1 Expenditure summary'!F51 -> 7205805.204 | O20: ='2.1 Expenditure summary'!G51 -> 7396434.421 | P20: ='2.1 Expenditure summary'!H51 -> 7580823.284 | Q20: ='2.1 Expenditure summary'!I51 -> 7754817.948
A21: DOPEX0108 | B21: Fee and quoted | K21: ='2.1 Expenditure summary'!C53 -> 5022068.716 | L21: ='2.1 Expenditure summary'!D53 -> 5167244.417 | M21: ='2.1 Expenditure summary'!E53 -> 4083384.36 | N21: ='2.1 Expenditure summary'!F53 -> 4142297.042 | O21: ='2.1 Expenditure summary'!G53 -> 4208039.977 | P21: ='2.1 Expenditure summary'!H53 -> 4281430.401 | Q21: ='2.1 Expenditure summary'!I53 -> 4363383.598
A22: DOPEX0109
A23: DOPEX0110
A24: DOPEX0111
A25: DOPEX0112
A26: DOPEX0113
A27: DOPEX0114
A28: DOPEX0115
A29: DOPEX0116
A30: DOPEX0117
A31: DOPEX0118
A32: DOPEX0119
A33: DOPEX0120
A34: DOPEX0121
A35: DOPEX0122
A36: DOPEX0123
A37: DOPEX0124
A38: DOPEX0125
A39: DOPEX0126
A40: DOPEX0127
A41: DOPEX0128
A42: DOPEX0129
A43: DOPEX0130
A44: DOPEX0131
A45: DOPEX0132
A46: DOPEX0133
A47: DOPEX0134
A48: DOPEX0135
A49: DOPEX0136
A50: DOPEX0137
A51: DOPEX0138
A52: DOPEX0139
A53: DOPEX0140
A54: DOPEX0141
A55: DOPEX0142
A56: DOPEX0143
A57: DOPEX0144
A58: DOPEX0145
A59: DOPEX0146
A60: DOPEX0147
A61: DOPEX0148
A62: DOPEX0149
A63: DOPEX01 | B63: Total opex | C63: =SUM(C14:C62) -> 127657254.2 | D63: 132629276.4 | E63: 150799468.3 | F63: 152282438 | G63: 155988575.6 | H63: 158910401.6 | I63: 161459417.9 | K63: =SUM(K14:K62) -> 25778615.57 | L63: 29602785.33 | M63: 26238933.96 | N63: 26255944.96 | O63: 26317545.13 | P63: 26446693.38 | Q63: 26596419.37
B66: 3.2.2 - OPEX CONSISTENCY
B67: OPEX CONSISTENCY - CURRENT COST ALLOCATION APPROACH
C68: Standard control services | K68: Alternative control services
C69: EXPENDITURE | K69: EXPENDITURE
C70: =CONCATENATE("Forecast ($0's, real ",dms_DollarReal,")") -> Forecast ($0's, real June 2021) | K70: =CONCATENATE("Forecast ($0's, real ",dms_DollarReal,")") -> Forecast ($0's, real June 2021)
C71: =CRCP_y4 -> 2019-20 | D71: =CRCP_y5 -> 2020-21 | E71: =FRCP_y1 -> 2021-22 | F71: =FRCP_y2 -> 2022-23 | G71: =FRCP_y3 -> 2023-24 | H71: =FRCP_y4 -> 2024-25 | I71: =FRCP_y5 -> 2025-26 | K71: =CRCP_y4 -> 2019-20 | L71: =CRCP_y5 -> 2020-21 | M71: =FRCP_y1 -> 2021-22 | N71: =FRCP_y2 -> 2022-23 | O71: =FRCP_y3 -> 2023-24 | P71: =FRCP_y4 -> 2024-25 | Q71: =FRCP_y5 -> 2025-26
A72: DOPEX0201 | B72: Opex for network services | C72: =C63-C74 -> 125104109.1 | D72: =D63-D74 -> 129976690.9 | E72: 147783478.9 | F72: 149236789.2 | G72: 152868804.1 | H72: 155732193.6 | I72: 158230229.6
A73: DOPEX0202 | B73: Opex for metering | K73: =K20 -> 7638696.077 | L73: =L20 -> 7857970.679 | M73: 7017502.563 | N73: 7205805.204 | O73: 7396434.421 | P73: 7580823.284 | Q73: 7754817.948
A74: DOPEX0203 | B74: Opex for connection services | C74: =C63*0.02 -> 2553145.084 | D74: =D63*0.02 -> 2652585.528 | E74: 3015989.366 | F74: 3045648.76 | G74: 3119771.513 | H74: 3178208.032 | I74: 3229188.359 | K74: =K19 -> 10368184.34 | L74: =L19 -> 13182785.15 | M74: 11098143.31 | N74: 10934742.26 | O74: 10794779.02 | P74: 10729215.19 | Q74: 10640581.86
A75: DOPEX0204 | B75: Opex for public lighting | K75: =K18 -> 2749666.444 | L75: =L18 -> 3394785.084 | M75: 4039903.725 | N75: 3973100.458 | O75: 3918291.718 | P75: 3855224.496 | Q75: 3837635.964
A76: DOPEX0205 | B76: Opex for amounts payable for easement levy or similar direct charges on DNSP
A77: DOPEX0207 | B77: Opex for transmission connection point planning
B80: 3.2.4 - OPEX FOR HIGH VOLTAGE CUSTOMERS
C81: End user costs (not standard control services)
C82: EXPENDITURE
C83: =CONCATENATE("Forecast ($0's, real ",dms_DollarReal,")") -> Forecast ($0's, real June 2021)
C84: =CRCP_y4 -> 2019-20 | D84: =CRCP_y5 -> 2020-21 | E84: =FRCP_y1 -> 2021-22 | F84: =FRCP_y2 -> 2022-23 | G84: =FRCP_y3 -> 2023-24 | H84: =FRCP_y4 -> 2024-25 | I84: =FRCP_y5 -> 2025-26
A85: DOPEX0401 | B85: Opex for high voltage customers

Sheet 3.3 Assets (RAB)
B1: =INDEX(dms_Worksheet_List,MATCH(dms_Model,dms_Model_List)) -> REGULATORY REPORTING STATEMENT
B2: =INDEX(dms_TradingNameFull_List,MATCH(dms_TradingName,dms_TradingName_List)) -> United Energy
B3: =dms_Header_Span -> 2021-22 to 2025-26
B4: 3.3 ASSETS
B6: There are FOUR tables on this worksheet. Both ROWS and COLUMNS in each have been grouped (and sub-grouped) for ease of navigation. see the Instructions sheet on how to group or ungroup tables.
B8: 3.3.1 - REGULATORY ASSET BASE VALUES
C9: Network services | K9: Standard control services | S9: Alternative control services
C10: =CONCATENATE("Forecast ($0's, real ", dms_DollarReal,")") -> Forecast ($0's, real June 2021) | K10: =CONCATENATE("Forecast ($0's, real ", dms_DollarReal,")") -> Forecast ($0's, real June 2021) | S10: =CONCATENATE("Forecast ($0's, real ", dms_DollarReal,")") -> Forecast ($0's, real June 2021)
C11: =CRCP_y4 -> 2019-20 | D11: =CRCP_y5 -> 2020-21 | E11: =FRCP_y1 -> 2021-22 | F11: =FRCP_y2 -> 2022-23 | G11: =FRCP_y3 -> 2023-24 | H11: =FRCP_y4 -> 2024-25 | I11: =FRCP_y5 -> 2025-26 | K11: =CRCP_y4 -> 2019-20 | L11: =CRCP_y5 -> 2020-21 | M11: =FRCP_y1 -> 2021-22 | N11: =FRCP_y2 -> 2022-23 | O11: =FRCP_y3 -> 2023-24 | P11: =FRCP_y4 -> 2024-25 | Q11: =FRCP_y5 -> 2025-26 | S11: =CRCP_y4 -> 2019-20 | T11: =CRCP_y5 -> 2020-21 | U11: =FRCP_y1 -> 2021-22 | V11: =FRCP_y2 -> 2022-23 | W11: =FRCP_y3 -> 2023-24 | X11: =FRCP_y4 -> 2024-25 | Y11: =FRCP_y5 -> 2025-26
B12: For total asset base:
A13: DRAB0101 | B13: Opening value | C13: 2288414511 | D13: =C18 -> 2320570787 | E13: 2386036195 | F13: 2497732784 | G13: 2587722037 | H13: 2666523674 | I13: 2727681019 | K13: 2372831835 | L13: =K18 -> 2405672678 | M13: 2473302106 | N13: 2589119071 | O13: 2682427937 | P13: 2764136488 | Q13: 2827549866 | S13: 0 | T13: =S18 -> 0 | U13: 0 | V13: 0 | W13: 0 | X13: 0 | Y13: 0
A14: DRAB0102 | B14: Inflation addition | C14: 0 | D14: 0 | E14: 0 | F14: 0 | G14: 0 | H14: 0 | I14: 0 | K14: 0 | L14: 0 | M14: 0 | N14: 0 | O14: 0 | P14: 0 | Q14: 0 | S14: 0 | T14: 0 | U14: 0 | V14: 0 | W14: 0 | X14: 0 | Y14: 0
A15: DRAB0103 | B15: Straight line depreciation | C15: -140956105.3 | D15: -137800192 | E15: -142737998 | F15: -155386252.9 | G15: -168506267.4 | H15: -178164653.7 | I15: -186869650.8 | K15: -146155835.1 | L15: -142883503.3 | M15: -148003460.1 | N15: -161118296.4 | O15: -174722295.2 | P15: -184736969.7 | Q15: -193763085.4 | S15: 0 | T15: 0 | U15: 0 | V15: 0 | W15: 0 | X15: 0 | Y15: 0
A16: DRAB0105 | B16: Actual additions (recognised in RAB) | C16: 173112380.8 | D16: 203265600.1 | E16: 254434587.2 | F16: 245375505.5 | G16: 247307904.7 | H16: 239321998.5 | I16: 204163820.7 | K16: 179498323.5 | L16: 210763864.9 | M16: 263820424.8 | N16: 254427162.6 | O16: 256430846.1 | P16: 248150347.7 | Q16: 211695220 | S16: 0 | T16: 0 | U16: 0 | V16: 0 | W16: 0 | X16: 0 | Y16: 0
A17: DRAB0106 | B17: Disposals | C17: 0 | D17: 0 | E17: 0 | F17: 0 | G17: 0 | H17: 0 | I17: 0 | K17: -501644.8234 | L17: -250933.8519 | M17: 0 | N17: 0 | O17: 0 | P17: 0 | Q17: -2671555.609 | S17: 0 | T17: 0 | U17: 0 | V17: 0 | W17: 0 | X17: 0 | Y17: 0
A18: DRAB0107 | B18: Closing value | C18: =SUM(C13+C14+C15+C16+C17) -> 2320570787 | D18: =SUM(D13+D14+D15+D16+D17) -> 2386036195 | E18: 2497732784 | F18: 2587722037 | G18: 2666523674 | H18: 2727681019 | I18: 2744975189 | K18: =SUM(K13+K14+K15+K16+K17) -> 2405672678 | L18: 2473302106 | M18: 2589119071 | N18: 2682427937 | O18: 2764136488 | P18: 2827549866 | Q18: 2842810445 | S18: =SUM(S13+S14+S15+S16+S17) -> 0 | T18: 0 | U18: 0 | V18: 0 | W18: 0 | X18: 0 | Y18: 0
B21: 3.3.2 - ASSET VALUE ROLL FORWARD
C22: Network services | K22: Standard control services | S22: Alternative control services
C23: =CONCATENATE("Forecast ($0's, real ", dms_DollarReal,")") -> Forecast ($0's, real June 2021) | K23: =CONCATENATE("Forecast ($0's, real ", dms_DollarReal,")") -> Forecast ($0's, real June 2021) | S23: =CONCATENATE("Forecast ($0's, real ", dms_DollarReal,")") -> Forecast ($0's, real June 2021)
C24: =CRCP_y4 -> 2019-20 | D24: =CRCP_y5 -> 2020-21 | E24: =FRCP_y1 -> 2021-22 | F24: =FRCP_y2 -> 2022-23 | G24: =FRCP_y3 -> 2023-24 | H24: =FRCP_y4 -> 2024-25 | I24: =FRCP_y5 -> 2025-26 | K24: =CRCP_y4 -> 2019-20 | L24: =CRCP_y5 -> 2020-21 | M24: =FRCP_y1 -> 2021-22 | N24: =FRCP_y2 -> 2022-23 | O24: =FRCP_y3 -> 2023-24 | P24: =FRCP_y4 -> 2024-25 | Q24: =FRCP_y5 -> 2025-26 | S24: =CRCP_y4 -> 2019-20 | T24: =CRCP_y5 -> 2020-21 | U24: =FRCP_y1 -> 2021-22 | V24: =FRCP_y2 -> 2022-23 | W24: =FRCP_y3 -> 2023-24 | X24: =FRCP_y4 -> 2024-25 | Y24: =FRCP_y5 -> 2025-26
B25: For overhead network assets less than 33kV:
A26: DRAB0201 | B26: Opening value | C26: 933084929.2 | D26: =C31 -> 945128533.4 | E26: 962521827.9 | F26: 1010633249 | G26: 1053375981 | H26: 1090081542 | I26: 1120549719 | K26: 967505499.5 | L26: =K31 -> 979993380.2 | M26: 998028295.9 | N26: 1047914500 | O26: 1092233968 | P26: 1130293560 | Q26: 1161885678 | S26: 0 | T26: =S31 -> 0 | U26: 0 | V26: 0 | W26: 0 | X26: 0 | Y26: 0
A27: DRAB0202 | B27: Inflation addition | C27: 0 | D27: 0 | E27: 0 | F27: 0 | G27: 0 | H27: 0 | I27: 0 | K27: 0 | L27: 0 | M27: 0 | N27: 0 | O27: 0 | P27: 0 | Q27: 0 | S27: 0 | T27: 0 | U27: 0 | V27: 0 | W27: 0 | X27: 0 | Y27: 0
A28: DRAB0203 | B28: Straight line depreciation | C28: -44210838.87 | D28: -45328475.9 | E28: -46777300.21 | F28: -53349830.2 | G28: -58887197.93 | H28: -64367341.08 | I28: -69640478.99 | K28: -45841732.52 | L28: -47000598.06 | M28: -48502868.06 | N28: -55317852.11 | O28: -61059487.8 | P28: -66741787.95 | Q28: -72209446.65 | S28: 0 | T28: 0 | U28: 0 | V28: 0 | W28: 0 | X28: 0 | Y28: 0
A29: DRAB0205 | B29: Actual additions (recognised in RAB) | C29: 56254443.09 | D29: 62721770.36 | E29: 94888721.59 | F29: 96092561.54 | G29: 95592758.92 | H29: 94835518.74 | I29: 81297473.76 | K29: 58329613.26 | L29: 65035513.77 | M29: 98389071.68 | N29: 99637320.08 | O29: 99119080.24 | P29: 98333906.22 | Q29: 84296456.3 | S29: 0 | T29: 0 | U29: 0 | V29: 0 | W29: 0 | X29: 0 | Y29: 0
A30: DRAB0206 | B30: Disposals | C30: 0 | D30: 0 | E30: 0 | F30: 0 | G30: 0 | H30: 0 | I30: 0 | K30: 0 | L30: 0 | M30: 0 | N30: 0 | O30: 0 | P30: 0 | Q30: -1138940.74 | S30: 0 | T30: 0 | U30: 0 | V30: 0 | W30: 0 | X30: 0 | Y30: 0
A31: DRAB0207 | B31: Closing value | C31: =SUM(C26+C27+C28+C29+C30) -> 945128533.4 | D31: 962521827.9 | E31: 1010633249 | F31: 1053375981 | G31: 1090081542 | H31: 1120549719 | I31: 1132206714 | K31: =SUM(K26+K27+K28+K29+K30) -> 979993380.2 | L31: 998028295.9 | M31: 1047914500 | N31: 1092233968 | O31: 1130293560 | P31: 1161885678 | Q31: 1172833747 | S31: =SUM(S26+S27+S28+S29+S30) -> 0 | T31: 0 | U31: 0 | V31: 0 | W31: 0 | X31: 0 | Y31: 0
B32: For underground network assets less than 33kV:
A33: DRAB0301 | B33: Opening value | C33: 418892657.6 | D33: =C38 -> 424299429.5 | E33: 432107854.2 | F33: 453706661 | G33: 472895285.5 | H33: 489373624.7 | I33: 503051796.5 | K33: 434345189 | L33: =K38 -> 439951411.4 | M33: 448047881 | N33: 470443446.2 | O33: 490339919.9 | P33: 507426128.6 | Q33: 521608874.4 | S33: 0 | T33: =S38 -> 0 | U33: 0 | V33: 0 | W33: 0 | X33: 0 | Y33: 0
A34: DRAB0302 | B34: Inflation addition | C34: 0 | D34: 0 | E34: 0 | F34: 0 | G34: 0 | H34: 0 | I34: 0 | K34: 0 | L34: 0 | M34: 0 | N34: 0 | O34: 0 | P34: 0 | Q34: 0 | S34: 0 | T34: 0 | U34: 0 | V34: 0 | W34: 0 | X34: 0 | Y34: 0
A35: DRAB0303 | B35: Straight line depreciation | C35: -19847706.47 | D35: -20349450.67 | E35: -20999875.78 | F35: -23950501.67 | G35: -26436409.02 | H35: -28896626.37 | I35: -31263912.22 | K35: -20579868.53 | L35: -21100121.56 | M35: -21774540.2 | N35: -24834011.74 | O35: -27411621.73 | P35: -29962594.03 | Q35: -32417206.69 | S35: 0 | T35: 0 | U35: 0 | V35: 0 | W35: 0 | X35: 0 | Y35: 0
A36: DRAB0305 | B36: Actual additions (recognised in RAB) | C36: 25254478.38 | D36: 28157875.3 | E36: 42598682.63 | F36: 43139126.16 | G36: 42914748.25 | H36: 42574798.11 | I36: 36497122.37 | K36: 26186090.84 | L36: 29196591.17 | M36: 44170105.45 | N36: 44730485.41 | O36: 44497830.42 | P36: 44145339.85 | Q36: 37843464.73 | S36: 0 | T36: 0 | U36: 0 | V36: 0 | W36: 0 | X36: 0 | Y36: 0
A37: DRAB0306 | B37: Disposals | C37: 0 | D37: 0 | E37: 0 | F37: 0 | G37: 0 | H37: 0 | I37: 0 | K37: 0 | L37: 0 | M37: 0 | N37: 0 | O37: 0 | P37: 0 | Q37: -511308.1332 | S37: 0 | T37: 0 | U37: 0 | V37: 0 | W37: 0 | X37: 0 | Y37: 0
A38: DRAB0307 | B38: Closing value | C38: =SUM(C33+C34+C35+C36+C37) -> 424299429.5 | D38: 432107854.2 | E38: 453706661 | F38: 472895285.5 | G38: 489373624.7 | H38: 503051796.5 | I38: 508285006.6 | K38: =SUM(K33+K34+K35+K36+K37) -> 439951411.4 | L38: 448047881 | M38: 470443446.2 | N38: 490339919.9 | O38: 507426128.6 | P38: 521608874.4 | Q38: 526523824.3 | S38: =SUM(S33+S34+S35+S36+S37) -> 0 | T38: 0 | U38: 0 | V38: 0 | W38: 0 | X38: 0 | Y38: 0
B39: For distribution substations and transformers:
A40: DRAB0401 | B40: Opening value | C40: 212173611.9 | D40: =C45 -> 214912199.7 | E40: 218867250.3 | F40: 229807277 | G40: 239526520.6 | H40: 247872975.7 | I40: 254801116 | K40: 212173611.9 | L40: =K45 -> 214912199.7 | M40: 218867250.3 | N40: 229807277 | O40: 239526520.6 | P40: 247872975.7 | Q40: 254801116 | S40: 0 | T40: =S45 -> 0 | U40: 0 | V40: 0 | W40: 0 | X40: 0 | Y40: 0
A41: DRAB0402 | B41: Inflation addition | C41: 0 | D41: 0 | E41: 0 | F41: 0 | G41: 0 | H41: 0 | I41: 0 | K41: 0 | L41: 0 | M41: 0 | N41: 0 | O41: 0 | P41: 0 | Q41: 0 | S41: 0 | T41: 0 | U41: 0 | V41: 0 | W41: 0 | X41: 0 | Y41: 0
A42: DRAB0403 | B42: Straight line depreciation | C42: -10053075.64 | D42: -10307214.44 | E42: -10636661.71 | F42: -12131185.29 | G42: -13390323.96 | H42: -14636450.36 | I42: -15835505.96 | K42: -10053075.64 | L42: -10307214.44 | M42: -10636661.71 | N42: -12131185.29 | O42: -13390323.96 | P42: -14636450.36 | Q42: -15835505.96 | S42: 0 | T42: 0 | U42: 0 | V42: 0 | W42: 0 | X42: 0 | Y42: 0
A43: DRAB0405 | B43: Actual additions (recognised in RAB) | C43: 12791663.44 | D43: 14262265.04 | E43: 21576688.42 | F43: 21850428.85 | G43: 21736779.04 | H43: 21564590.66 | I43: 18486182.88 | K43: 12791663.44 | L43: 14262265.04 | M43: 21576688.42 | N43: 21850428.85 | O43: 21736779.04 | P43: 21564590.66 | Q43: 18486182.88 | S43: 0 | T43: 0 | U43: 0 | V43: 0 | W43: 0 | X43: 0 | Y43: 0
A44: DRAB0406 | B44: Disposals | C44: 0 | D44: 0 | E44: 0 | F44: 0 | G44: 0 | H44: 0 | I44: 0 | K44: 0 | L44: 0 | M44: 0 | N44: 0 | O44: 0 | P44: 0 | Q44: -249769.2991 | S44: 0 | T44: 0 | U44: 0 | V44: 0 | W44: 0 | X44: 0 | Y44: 0
A45: DRAB0407 | B45: Closing value | C45: =SUM(C40+C41+C42+C43+C44) -> 214912199.7 | D45: 218867250.3 | E45: 229807277 | F45: 239526520.6 | G45: 247872975.7 | H45: 254801116 | I45: 257451792.9 | K45: =SUM(K40+K41+K42+K43+K44) -> 214912199.7 | L45: 218867250.3 | M45: 229807277 | N45: 239526520.6 | O45: 247872975.7 | P45: 254801116 | Q45: 257202023.6 | S45: =SUM(S40+S41+S42+S43+S44) -> 0 | T45: 0 | U45: 0 | V45: 0 | W45: 0 | X45: 0 | Y45: 0
B46: For overhead network assets 33kV and above:
A47: DRAB0501 | B47: Opening value | C47: 378217265.3 | D47: =C52 -> 383099027.9 | E47: 390149237.4 | F47: 409650752.9 | G47: 426976120.1 | H47: 441854376.5 | I47: 454204367.9 | K47: 378217265.3 | L47: =K52 -> 383099027.9 | M47: 390149237.4 | N47: 409650752.9 | O47: 426976120.1 | P47: 441854376.5 | Q47: 454204367.9 | S47: 0 | T47: =S52 -> 0 | U47: 0 | V47: 0 | W47: 0 | X47: 0 | Y47: 0
A48: DRAB0502 | B48: Inflation addition | C48: 0 | D48: 0 | E48: 0 | F48: 0 | G48: 0 | H48: 0 | I48: 0 | K48: 0 | L48: 0 | M48: 0 | N48: 0 | O48: 0 | P48: 0 | Q48: 0 | S48: 0 | T48: 0 | U48: 0 | V48: 0 | W48: 0 | X48: 0 | Y48: 0
A49: DRAB0503 | B49: Straight line depreciation | C49: -17920450.81 | D49: -18373474.55 | E49: -18960741.96 | F49: -21624855.63 | G49: -23869375.95 | H49: -26090700.81 | I49: -28228118.04 | K49: -17920450.81 | L49: -18373474.55 | M49: -18960741.96 | N49: -21624855.63 | O49: -23869375.95 | P49: -26090700.81 | Q49: -28228118.04 | S49: 0 | T49: 0 | U49: 0 | V49: 0 | W49: 0 | X49: 0 | Y49: 0
A50: DRAB0505 | B50: Actual additions (recognised in RAB) | C50: 22802213.35 | D50: 25423684.08 | E50: 38462257.47 | F50: 38950222.76 | G50: 38747632.43 | H50: 38440692.19 | I50: 32953172.04 | K50: 22802213.35 | L50: 25423684.08 | M50: 38462257.47 | N50: 38950222.76 | O50: 38747632.43 | P50: 38440692.19 | Q50: 32953172.04 | S50: 0 | T50: 0 | U50: 0 | V50: 0 | W50: 0 | X50: 0 | Y50: 0
A51: DRAB0506 | B51: Disposals | C51: 0 | D51: 0 | E51: 0 | F51: 0 | G51: 0 | H51: 0 | I51: 0 | K51: 0 | L51: 0 | M51: 0 | N51: 0 | O51: 0 | P51: 0 | Q51: -445234.7322 | S51: 0 | T51: 0 | U51: 0 | V51: 0 | W51: 0 | X51: 0 | Y51: 0
A52: DRAB0507 | B52: Closing value | C52: =SUM(C47+C48+C49+C50+C51) -> 383099027.9 | D52: 390149237.4 | E52: 409650752.9 | F52: 426976120.1 | G52: 441854376.5 | H52: 454204367.9 | I52: 458929421.9 | K52: =SUM(K47+K48+K49+K50+K51) -> 383099027.9 | L52: 390149237.4 | M52: 409650752.9 | N52: 426976120.1 | O52: 441854376.5 | P52: 454204367.9 | Q52: 458484187.2 | S52: =SUM(S47+S48+S49+S50+S51) -> 0 | T52: 0 | U52: 0 | V52: 0 | W52: 0 | X52: 0 | Y52: 0
B53: For underground network assets 33kV and above:
A54: DRAB0601 | B54: Opening value | C54: 100900603.5 | D54: =C59 -> 102202957.5 | E54: 104083808.7 | F54: 109286412.8 | G54: 113908465.1 | H54: 117877678.6 | I54: 121172402.8 | K54: 100900603.5 | L54: =K59 -> 102202957.5 | M54: 104083808.7 | N54: 109286412.8 | O54: 113908465.1 | P54: 117877678.6 | Q54: 121172402.8 | S54: 0 | T54: =S59 -> 0 | U54: 0 | V54: 0 | W54: 0 | X54: 0 | Y54: 0
A55: DRAB0602 | B55: Inflation addition | C55: 0 | D55: 0 | E55: 0 | F55: 0 | G55: 0 | H55: 0 | I55: 0 | K55: 0 | L55: 0 | M55: 0 | N55: 0 | O55: 0 | P55: 0 | Q55: 0 | S55: 0 | T55: 0 | U55: 0 | V55: 0 | W55: 0 | X55: 0 | Y55: 0
A56: DRAB0603 | B56: Straight line depreciation | C56: -4780808.458 | D56: -4901665.893 | E56: -5058336.784 | F56: -5769067.632 | G56: -6367859.583 | H56: -6960463.464 | I56: -7530682.509 | K56: -4780808.458 | L56: -4901665.893 | M56: -5058336.784 | N56: -5769067.632 | O56: -6367859.583 | P56: -6960463.464 | Q56: -7530682.509 | S56: 0 | T56: 0 | U56: 0 | V56: 0 | W56: 0 | X56: 0 | Y56: 0
A57: DRAB0605 | B57: Actual additions (recognised in RAB) | C57: 6083162.505 | D57: 6782517.092 | E57: 10260940.85 | F57: 10391119.98 | G57: 10337073.04 | H57: 10255187.68 | I57: 8791229.937 | K57: 6083162.505 | L57: 6782517.092 | M57: 10260940.85 | N57: 10391119.98 | O57: 10337073.04 | P57: 10255187.68 | Q57: 8791229.937 | S57: 0 | T57: 0 | U57: 0 | V57: 0 | W57: 0 | X57: 0 | Y57: 0
A58: DRAB0606 | B58: Disposals | C58: 0 | D58: 0 | E58: 0 | F58: 0 | G58: 0 | H58: 0 | I58: 0 | K58: 0 | L58: 0 | M58: 0 | N58: 0 | O58: 0 | P58: 0 | Q58: -118779.4881 | S58: 0 | T58: 0 | U58: 0 | V58: 0 | W58: 0 | X58: 0 | Y58: 0
A59: DRAB0607 | B59: Closing value | C59: =SUM(C54+C55+C56+C57+C58) -> 102202957.5 | D59: 104083808.7 | E59: 109286412.8 | F59: 113908465.1 | G59: 117877678.6 | H59: 121172402.8 | I59: 122432950.2 | K59: =SUM(K54+K55+K56+K57+K58) -> 102202957.5 | L59: 104083808.7 | M59: 109286412.8 | N59: 113908465.1 | O59: 117877678.6 | P59: 121172402.8 | Q59: 122314170.7 | S59: =SUM(S54+S55+S56+S57+S58) -> 0 | T59: 0 | U59: 0 | V59: 0 | W59: 0 | X59: 0 | Y59: 0
B60: Zone substations and transformers
A61: DRAB0701 | B61: Opening value | C61: 176286479.3 | D61: =C66 -> 178561861.2 | E61: 181847952.9 | F61: 190937579 | G61: 199012905.6 | H61: 205947637.9 | I61: 211703949.6 | K61: 176286479.3 | L61: =K66 -> 178561861.2 | M61: 181847952.9 | N61: 190937579 | O61: 199012905.6 | P61: 205947637.9 | Q61: 211703949.6 | S61: 0 | T61: =S66 -> 0 | U61: 0 | V61: 0 | W61: 0 | X61: 0 | Y61: 0
A62: DRAB0702 | B62: Inflation addition | C62: 0 | D62: 0 | E62: 0 | F62: 0 | G62: 0 | H62: 0 | I62: 0 | K62: 0 | L62: 0 | M62: 0 | N62: 0 | O62: 0 | P62: 0 | Q62: 0 | S62: 0 | T62: 0 | U62: 0 | V62: 0 | W62: 0 | X62: 0 | Y62: 0
A63: DRAB0703 | B63: Straight line depreciation | C63: -8352694.257 | D63: -8563847.917 | E63: -8837572.343 | F63: -10079311.58 | G63: -11125479.01 | H63: -12160835.08 | I63: -13157081.92 | K63: -8352694.257 | L63: -8563847.917 | M63: -8837572.343 | N63: -10079311.58 | O63: -11125479.01 | P63: -12160835.08 | Q63: -13157081.92 | S63: 0 | T63: 0 | U63: 0 | V63: 0 | W63: 0 | X63: 0 | Y63: 0
A64: DRAB0705 | B64: Actual additions (recognised in RAB) | C64: 10628076.19 | D64: 11849939.62 | E64: 17927198.4 | F64: 18154638.26 | G64: 18060211.23 | H64: 17917146.86 | I64: 15359422.25 | K64: 10628076.19 | L64: 11849939.62 | M64: 17927198.4 | N64: 18154638.26 | O64: 18060211.23 | P64: 17917146.86 | Q64: 15359422.25 | S64: 0 | T64: 0 | U64: 0 | V64: 0 | W64: 0 | X64: 0 | Y64: 0
A65: DRAB0706 | B65: Disposals | C65: 0 | D65: 0 | E65: 0 | F65: 0 | G65: 0 | H65: 0 | I65: 0 | K65: 0 | L65: 0 | M65: 0 | N65: 0 | O65: 0 | P65: 0 | Q65: -207523.2163 | S65: 0 | T65: 0 | U65: 0 | V65: 0 | W65: 0 | X65: 0 | Y65: 0
A66: DRAB0707 | B66: Closing value | C66: =SUM(C61+C62+C63+C64+C65) -> 178561861.2 | D66: 181847952.9 | E66: 190937579 | F66: 199012905.6 | G66: 205947637.9 | H66: 211703949.6 | I66: 213906290 | K66: =SUM(K61+K62+K63+K64+K65) -> 178561861.2 | L66: 181847952.9 | M66: 190937579 | N66: 199012905.6 | O66: 205947637.9 | P66: 211703949.6 | Q66: 213698766.7 | S66: =SUM(S61+S62+S63+S64+S65) -> 0 | T66: 0 | U66: 0 | V66: 0 | W66: 0 | X66: 0 | Y66: 0
B67: For easements:
A68: DRAB0801 | B68: Opening value | C68: 0 | D68: =C72 -> 0 | E68: 0 | F68: 0 | G68: 0 | H68: 0 | I68: 0 | K68: 0 | L68: =K72 -> 0 | M68: 0 | N68: 0 | O68: 0 | P68: 0 | Q68: 0 | S68: 0 | T68: =S72 -> 0 | U68: 0 | V68: 0 | W68: 0 | X68: 0 | Y68: 0
A69: DRAB0802 | B69: Inflation addition | C69: 0 | D69: 0 | E69: 0 | F69: 0 | G69: 0 | H69: 0 | I69: 0 | K69: 0 | L69: 0 | M69: 0 | N69: 0 | O69: 0 | P69: 0 | Q69: 0 | S69: 0 | T69: 0 | U69: 0 | V69: 0 | W69: 0 | X69: 0 | Y69: 0
A70: DRAB0803 | B70: Actual additions (recognised in RAB) | C70: 0 | D70: 0 | E70: 0 | F70: 0 | G70: 0 | H70: 0 | I70: 0 | K70: 0 | L70: 0 | M70: 0 | N70: 0 | O70: 0 | P70: 0 | Q70: 0 | S70: 0 | T70: 0 | U70: 0 | V70: 0 | W70: 0 | X70: 0 | Y70: 0
A71: DRAB0804 | B71: Disposals | C71: 0 | D71: 0 | E71: 0 | F71: 0 | G71: 0 | H71: 0 | I71: 0 | K71: 0 | L71: 0 | M71: 0 | N71: 0 | O71: 0 | P71: 0 | Q71: 0 | S71: 0 | T71: 0 | U71: 0 | V71: 0 | W71: 0 | X71: 0 | Y71: 0
A72: DRAB0805 | B72: Closing value | C72: 0 | D72: 0 | E72: 0 | F72: 0 | G72: 0 | H72: 0 | I72: 0 | K72: 0 | L72: 0 | M72: 0 | N72: 0 | O72: 0 | P72: 0 | Q72: 0 | S72: =SUM(S68+S69+S70+S71) -> 0 | T72: 0 | U72: 0 | V72: 0 | W72: 0 | X72: 0 | Y72: 0
B73: For meters:
A74: DRAB0901 | B74: Opening value | C74: 0 | D74: =C79 -> 0 | E74: 0 | F74: 0 | G74: 0 | H74: 0 | I74: 0 | K74: 0 | L74: =K79 -> 0 | M74: 0 | N74: 0 | O74: 0 | P74: 0 | Q74: 0 | S74: 145508234 | T74: =S79 -> 140606630.6 | U74: 135491783 | V74: 130101303.3 | W74: 121554107.8 | X74: 111884431.6 | Y74: 102167877.4
A75: DRAB0902 | B75: Inflation addition | C75: 0 | D75: 0 | E75: 0 | F75: 0 | G75: 0 | H75: 0 | I75: 0 | K75: 0 | L75: 0 | M75: 0 | N75: 0 | O75: 0 | P75: 0 | Q75: 0 | S75: 0 | T75: 0 | U75: 0 | V75: 0 | W75: 0 | X75: 0 | Y75: 0
A76: DRAB0903 | B76: Straight line depreciation | C76: 0 | D76: 0 | E76: 0 | F76: 0 | G76: 0 | H76: 0 | I76: 0 | K76: 0 | L76: 0 | M76: 0 | N76: 0 | O76: 0 | P76: 0 | Q76: 0 | S76: -18449038.75 | T76: -18197040.86 | U76: -17903375 | V76: -18850457.04 | W76: -19549922.89 | X76: -20230546.82 | Y76: -20945869.26
A77: DRAB0905 | B77: Actual additions (recognised in RAB) | C77: 0 | D77: 0 | E77: 0 | F77: 0 | G77: 0 | H77: 0 | I77: 0 | K77: 0 | L77: 0 | M77: 0 | N77: 0 | O77: 0 | P77: 0 | Q77: 0 | S77: 13547435.32 | T77: 13082193.23 | U77: 12512895.37 | V77: 10303261.52 | W77: 9880246.714 | X77: 10513992.53 | Y77: 12646550.36
A78: DRAB0906 | B78: Disposals | C78: 0 | D78: 0 | E78: 0 | F78: 0 | G78: 0 | H78: 0 | I78: 0 | K78: 0 | L78: 0 | M78: 0 | N78: 0 | O78: 0 | P78: 0 | Q78: 0 | S78: 0 | T78: 0 | U78: 0 | V78: 0 | W78: 0 | X78: 0 | Y78: 0
A79: DRAB0907 | B79: Closing value | C79: =SUM(C74+C75+C76+C77+C78) -> 0 | D79: 0 | E79: 0 | F79: 0 | G79: 0 | H79: 0 | I79: 0 | K79: =SUM(K74+K75+K76+K77+K78) -> 0 | L79: 0 | M79: 0 | N79: 0 | O79: 0 | P79: 0 | Q79: 0 | S79: =SUM(S74+S75+S76+S77+S78) -> 140606630.6 | T79: 135491783 | U79: 130101303.3 | V79: 121554107.8 | W79: 111884431.6 | X79: 102167877.4 | Y79: 93868558.46
B80: For “other” asset items with long lives:
A81: DRAB1001 | B81: Opening value | C81: 24286510.1 | D81: =C86 -> 28199978.12 | E81: 37284926.33 | F81: 61237045.01 | G81: 72820463.75 | H81: 82682456.23 | I81: 85107332.42 | K81: 24286510.1 | L81: =K86 -> 27710827.05 | M81: 36551091.07 | N81: 60503209.74 | O81: 72086628.49 | P81: 81948620.96 | Q81: 84373497.16 | S81: 0 | T81: =S86 -> 0 | U81: 0 | V81: 0 | W81: 0 | X81: 0 | Y81: 0
A82: DRAB1002 | B82: Inflation addition | C82: 0 | D82: 0 | E82: 0 | F82: 0 | G82: 0 | H82: 0 | I82: 0 | K82: 0 | L82: 0 | M82: 0 | N82: 0 | O82: 0 | P82: 0 | Q82: 0 | S82: 0 | T82: 0 | U82: 0 | V82: 0 | W82: 0 | X82: 0 | Y82: 0
A83: DRAB1003 | B83: Straight line depreciation | C83: -7970395.41 | D83: -4289855.529 | E83: -4297804.456 | F83: -5863723.928 | G83: -10689589.73 | H83: -12046229.81 | I83: -13294530.42 | K83: -7970395.41 | L83: -4289855.529 | M83: -4297804.456 | N83: -5863723.928 | O83: -10689589.73 | P83: -12046229.81 | Q83: -13294530.42 | S83: 0 | T83: 0 | U83: 0 | V83: 0 | W83: 0 | X83: 0 | Y83: 0
A84: DRAB1005 | B84: Actual additions (recognised in RAB) | C84: 11883863.43 | D84: 13374803.74 | E84: 28249923.13 | F84: 17447142.67 | G84: 20551582.21 | H84: 14471106 | I84: 11917761.13 | K84: 11883863.43 | L84: 13374803.74 | M84: 28249923.13 | N84: 17447142.67 | O84: 20551582.21 | P84: 14471106 | Q84: 11917761.13 | S84: 0 | T84: 0 | U84: 0 | V84: 0 | W84: 0 | X84: 0 | Y84: 0
A85: DRAB1006 | B85: Disposals | C85: 0 | D85: 0 | E85: 0 | F85: 0 | G85: 0 | H85: 0 | I85: 0 | K85: -489151.0678 | L85: -244684.1987 | M85: 0 | N85: 0 | O85: 0 | P85: 0 | Q85: 0 | S85: 0 | T85: 0 | U85: 0 | V85: 0 | W85: 0 | X85: 0 | Y85: 0
A86: DRAB1007 | B86: Closing value | C86: =SUM(C81+C82+C83+C84+C85) -> 28199978.12 | D86: 37284926.33 | E86: 61237045.01 | F86: 72820463.75 | G86: 82682456.23 | H86: 85107332.42 | I86: 83730563.13 | K86: =SUM(K81+K82+K83+K84+K85) -> 27710827.05 | L86: 36551091.07 | M86: 60503209.74 | N86: 72086628.49 | O86: 81948620.96 | P86: 84373497.16 | Q86: 82996727.86 | S86: =SUM(S81+S82+S83+S84+S85) -> 0 | T86: 0 | U86: 0 | V86: 0 | W86: 0 | X86: 0 | Y86: 0
B87: For “other” asset items with short lives:
A88: DRAB1101 | B88: Opening value | C88: 79116676.25 | D88: =C93 -> 79253507.27 | E88: 95745332.35 | F88: 70594637.18 | G88: 48362153.31 | H88: 30934253.39 | I88: 17818723.46 | K88: 79116676.25 | L88: =K93 -> 79241013.52 | M88: 95726588.94 | N88: 70575893.77 | O88: 48343409.9 | P88: 30915509.98 | Q88: 17799980.05 | S88: 20996141.85 | T88: =S93 -> 20874026.71 | U88: 20628639.23 | V88: 20307553.11 | W88: 21073780.9 | X88: 21795001.83 | Y88: 22697068.07
A89: DRAB1102 | B89: Inflation addition | C89: 0 | D89: 0 | E89: 0 | F89: 0 | G89: 0 | H89: 0 | I89: 0 | K89: 0 | L89: 0 | M89: 0 | N89: 0 | O89: 0 | P89: 0 | Q89: 0 | S89: -492057.8897 | T89: -489196.0439 | U89: -483445.2327 | V89: -475920.3761 | W89: -493877.4098 | X89: -510779.6794 | Y89: -531920.1735
A90: DRAB1103 | B90: Straight line depreciation | C90: -30656809.5 | D90: -28346725.34 | E90: -29934934.59 | F90: -25498288.49 | G90: -20808557.45 | H90: -16137908.2 | I90: -11090513.18 | K90: -30656809.5 | L90: -28346725.34 | M90: -29934934.59 | N90: -25498288.49 | O90: -20808557.45 | P90: -16137908.2 | Q90: -11090513.18 | S90: -1568961.297 | T90: -1610015.892 | U90: -1634724.884 | V90: -1674499.627 | W90: -1741603.22 | X90: -1574151.098 | Y90: -1646366.82
A91: DRAB1105 | B91: Actual additions (recognised in RAB) | C91: 30793640.52 | D91: 44838550.42 | E91: 4784239.421 | F91: 3265804.623 | G91: 3380657.527 | H91: 3022378.276 | I91: 2047530.694 | K91: 30793640.52 | L91: 44838550.42 | M91: 4784239.421 | N91: 3265804.623 | O91: 3380657.527 | P91: 3022378.276 | Q91: 2047530.694 | S91: 1938904.045 | T91: 1853824.45 | U91: 1797084.002 | V91: 2916647.787 | W91: 2956701.561 | X91: 2986997.022 | Y91: 3004074.516
A92: DRAB1106 | B92: Disposals | C92: 0 | D92: 0 | E92: 0 | F92: 0 | G92: 0 | H92: 0 | I92: 0 | K92: -12493.75556 | L92: -6249.653265 | M92: 0 | N92: 0 | O92: 0 | P92: 0 | Q92: 0 | S92: 0 | T92: 0 | U92: 0 | V92: 0 | W92: 0 | X92: 0 | Y92: 0
A93: DRAB1107 | B93: Closing value | C93: =SUM(C88+C89+C90+C91+C92) -> 79253507.27 | D93: 95745332.35 | E93: 70594637.18 | F93: 48362153.31 | G93: 30934253.39 | H93: 17818723.46 | I93: 8775740.973 | K93: =SUM(K88+K89+K90+K91+K92) -> 79241013.52 | L93: 95726588.94 | M93: 70575893.77 | N93: 48343409.9 | O93: 30915509.98 | P93: 17799980.05 | Q93: 8756997.565 | S93: =SUM(S88+S89+S90+S91+S92) -> 20874026.71 | T93: 20628639.23 | U93: 20307553.11 | V93: 21073780.9 | W93: 21795001.83 | X93: 22697068.07 | Y93: 23522855.59
B97: 3.3.3 - TOTAL DISAGGREGATED RAB ASSET VALUES
C98: Network services | K98: Standard control services | S98: Alternative control services
C99: =CONCATENATE("Forecast ($0's, real ", dms_DollarReal,")") -> Forecast ($0's, real June 2021) | K99: =CONCATENATE("Forecast ($0's, real ", dms_DollarReal,")") -> Forecast ($0's, real June 2021) | S99: =CONCATENATE("Forecast ($0's, real ", dms_DollarReal,")") -> Forecast ($0's, real June 2021)
C100: =CRCP_y4 -> 2019-20 | D100: =CRCP_y5 -> 2020-21 | E100: =FRCP_y1 -> 2021-22 | F100: =FRCP_y2 -> 2022-23 | G100: =FRCP_y3 -> 2023-24 | H100: =FRCP_y4 -> 2024-25 | I100: =FRCP_y5 -> 2025-26 | K100: =CRCP_y4 -> 2019-20 | L100: =CRCP_y5 -> 2020-21 | M100: =FRCP_y1 -> 2021-22 | N100: =FRCP_y2 -> 2022-23 | O100: =FRCP_y3 -> 2023-24 | P100: =FRCP_y4 -> 2024-25 | Q100: =FRCP_y5 -> 2025-26 | S100: =CRCP_y4 -> 2019-20 | T100: =CRCP_y5 -> 2020-21 | U100: =FRCP_y1 -> 2021-22 | V100: =FRCP_y2 -> 2022-23 | W100: =FRCP_y3 -> 2023-24 | X100: =FRCP_y4 -> 2024-25 | Y100: =FRCP_y5 -> 2025-26
A101: DRAB1201 | B101: Overhead network assets less than 33kV (wires and poles) | C101: 939106731.3 | D101: 953825180.6 | E101: 986577538.6 | F101: 1032004615 | G101: 1071728761 | H101: 1105315630 | I101: 1126378217 | K101: 973749439.9 | L101: 989010838.1 | M101: 1022971398 | N101: 1070074234 | O101: 1111263764 | P101: 1146089619 | Q101: 1167359713 | S101: 0 | T101: 0 | U101: 0 | V101: 0 | W101: 0 | X101: 0 | Y101: 0
A102: DRAB1202 | B102: Underground network assets less than 33kV (cables) | C102: 421596043.6 | D102: 428203641.9 | E102: 442907257.6 | F102: 463300973.3 | G102: 481134455.1 | H102: 496212710.6 | I102: 505668401.6 | K102: 437148300.2 | L102: 443999646.2 | M102: 459245663.6 | N102: 480391683 | O102: 498883024.2 | P102: 514517501.5 | Q102: 524066349.3 | S102: 0 | T102: 0 | U102: 0 | V102: 0 | W102: 0 | X102: 0 | Y102: 0
A103: DRAB1203 | B103: Distribution substations including transformers | C103: 213542905.8 | D103: 216889725 | E103: 224337263.7 | F103: 234666898.8 | G103: 243699748.1 | H103: 251337045.8 | I103: 256126454.4 | K103: 213542905.8 | L103: 216889725 | M103: 224337263.7 | N103: 234666898.8 | O103: 243699748.1 | P103: 251337045.8 | Q103: 256001569.8 | S103: 0 | T103: 0 | U103: 0 | V103: 0 | W103: 0 | X103: 0 | Y103: 0
A104: DRAB1204 | B104: Overhead network assets 33kV and above (wires and towers / poles etc) | C104: 380658146.6 | D104: 386624132.6 | E104: 399899995.2 | F104: 418313436.5 | G104: 434415248.3 | H104: 448029372.2 | I104: 456566894.9 | K104: 380658146.6 | L104: 386624132.6 | M104: 399899995.2 | N104: 418313436.5 | O104: 434415248.3 | P104: 448029372.2 | Q104: 456344277.6 | S104: 0 | T104: 0 | U104: 0 | V104: 0 | W104: 0 | X104: 0 | Y104: 0
A105: DRAB1205 | B105: Underground network assets 33kV and above(cables, ducts etc) | C105: 101551780.5 | D105: 103143383.1 | E105: 106685110.8 | F105: 111597439 | G105: 115893071.9 | H105: 119525040.7 | I105: 121802676.5 | K105: 101551780.5 | L105: 103143383.1 | M105: 106685110.8 | N105: 111597439 | O105: 115893071.9 | P105: 119525040.7 | Q105: 121743286.8 | S105: 0 | T105: 0 | U105: 0 | V105: 0 | W105: 0 | X105: 0 | Y105: 0
A106: DRAB1206 | B106: Zone substations and transformers | C106: 177424170.2 | D106: 180204907.1 | E106: 186392765.9 | F106: 194975242.3 | G106: 202480271.7 | H106: 208825793.7 | I106: 212805119.8 | K106: 177424170.2 | L106: 180204907.1 | M106: 186392765.9 | N106: 194975242.3 | O106: 202480271.7 | P106: 208825793.7 | Q106: 212701358.2 | S106: 0 | T106: 0 | U106: 0 | V106: 0 | W106: 0 | X106: 0 | Y106: 0
A107: DRAB1207 | B107: Easements | C107: 0 | D107: 0 | E107: 0 | F107: 0 | G107: 0 | H107: 0 | I107: 0 | K107: 0 | L107: 0 | M107: 0 | N107: 0 | O107: 0 | P107: 0 | Q107: 0 | S107: 0 | T107: 0 | U107: 0 | V107: 0 | W107: 0 | X107: 0 | Y107: 0
A108: DRAB1208 | B108: Meters | C108: 0 | D108: 0 | E108: 0 | F108: 0 | G108: 0 | H108: 0 | I108: 0 | K108: 0 | L108: 0 | M108: 0 | N108: 0 | O108: 0 | P108: 0 | Q108: 0 | S108: =AVERAGE(S74,S79) -> 143057432.3 | T108: =AVERAGE(T74,T79) -> 138049206.8 | U108: 132796543.2 | V108: 125827705.6 | W108: 116719269.7 | X108: 107026154.5 | Y108: 98018217.91
A109: DRAB1209 | B109: “Other” assets with long lives | C109: 26243244.11 | D109: 32742452.22 | E109: 49260985.67 | F109: 67028754.38 | G109: 77751459.99 | H109: 83894894.33 | I109: 84418947.78 | K109: 25998668.57 | L109: 32130959.06 | M109: 48527150.4 | N109: 66294919.11 | O109: 77017624.72 | P109: 83161059.06 | Q109: 83685112.51 | S109: 0 | T109: 0 | U109: 0 | V109: 0 | W109: 0 | X109: 0 | Y109: 0
A110: DRAB1210 | B110: “Other” assets with short lives | C110: 79185091.76 | D110: 87499419.81 | E110: 83169984.77 | F110: 59478395.25 | G110: 39648203.35 | H110: 24376488.43 | I110: 13297232.22 | K110: 79178844.88 | L110: 87483801.23 | M110: 83151241.36 | N110: 59459651.84 | O110: 39629459.94 | P110: 24357745.02 | Q110: 13278488.81 | S110: =AVERAGE(S88,S93) -> 20935084.28 | T110: =AVERAGE(T88,T93) -> 20751332.97 | U110: 20468096.17 | V110: 20690667 | W110: 21434391.36 | X110: 22246034.95 | Y110: 23109961.83
A111: DRAB13 | B111: Value of Capital Contributions or Contributed Assets (included in the above) | C111: 0 | D111: 0 | E111: 0 | F111: 0 | G111: 0 | H111: 0 | I111: 0 | K111: 0 | L111: 0 | M111: 0 | N111: 0 | O111: 0 | P111: 0 | Q111: 0 | S111: 0 | T111: 0 | U111: 0 | V111: 0 | W111: 0 | X111: 0 | Y111: 0
B114: 3.3.4 - ASSET LIVES
C115: Network services | K115: Standard control services | S115: Alternative control services
C116: Forecast ( years ) | K116: Forecast ( years ) | S116: Forecast ( years )
C117: =CRCP_y4 -> 2019-20 | D117: =CRCP_y5 -> 2020-21 | E117: =FRCP_y1 -> 2021-22 | F117: =FRCP_y2 -> 2022-23 | G117: =FRCP_y3 -> 2023-24 | H117: =FRCP_y4 -> 2024-25 | I117: =FRCP_y5 -> 2025-26 | K117: =CRCP_y4 -> 2019-20 | L117: =CRCP_y5 -> 2020-21 | M117: =FRCP_y1 -> 2021-22 | N117: =FRCP_y2 -> 2022-23 | O117: =FRCP_y3 -> 2023-24 | P117: =FRCP_y4 -> 2024-25 | Q117: =FRCP_y5 -> 2025-26 | S117: =CRCP_y4 -> 2019-20 | T117: =CRCP_y5 -> 2020-21 | U117: =FRCP_y1 -> 2021-22 | V117: =FRCP_y2 -> 2022-23 | W117: =FRCP_y3 -> 2023-24 | X117: =FRCP_y4 -> 2024-25 | Y117: =FRCP_y5 -> 2025-26
B118: Estimated service life of new assets
A119: DRAB1401 | B119: Overhead network assets less than 33kV (wires and poles) | C119: 42.45671481 | D119: 42.45671481 | E119: 40.16401031 | F119: 40.16401031 | G119: 40.16401031 | H119: 40.16401031 | I119: 40.16401031 | K119: 42.45671481 | L119: 42.45671481 | M119: 40.16401031 | N119: 40.16401031 | O119: 40.16401031 | P119: 40.16401031 | Q119: 40.16401031 | S119: 0 | T119: 0 | U119: 0 | V119: 0 | W119: 0 | X119: 0 | Y119: 0
A120: DRAB1402 | B120: Underground network assets less than 33kV (cables) | C120: 42.45671481 | D120: 42.45671481 | E120: 40.16401031 | F120: 40.16401031 | G120: 40.16401031 | H120: 40.16401031 | I120: 40.16401031 | K120: 42.45671481 | L120: 42.45671481 | M120: 40.16401031 | N120: 40.16401031 | O120: 40.16401031 | P120: 40.16401031 | Q120: 40.16401031 | S120: 0 | T120: 0 | U120: 0 | V120: 0 | W120: 0 | X120: 0 | Y120: 0
A121: DRAB1403 | B121: Distribution substations including transformers | C121: 42.45671481 | D121: 42.45671481 | E121: 40.16401031 | F121: 40.16401031 | G121: 40.16401031 | H121: 40.16401031 | I121: 40.16401031 | K121: 42.45671481 | L121: 42.45671481 | M121: 40.16401031 | N121: 40.16401031 | O121: 40.16401031 | P121: 40.16401031 | Q121: 40.16401031 | S121: 0 | T121: 0 | U121: 0 | V121: 0 | W121: 0 | X121: 0 | Y121: 0
A122: DRAB1404 | B122: Overhead network assets 33kV and above (wires and towers / poles etc) | C122: 42.45671481 | D122: 42.45671481 | E122: 40.16401031 | F122: 40.16401031 | G122: 40.16401031 | H122: 40.16401031 | I122: 40.16401031 | K122: 42.45671481 | L122: 42.45671481 | M122: 40.16401031 | N122: 40.16401031 | O122: 40.16401031 | P122: 40.16401031 | Q122: 40.16401031 | S122: 0 | T122: 0 | U122: 0 | V122: 0 | W122: 0 | X122: 0 | Y122: 0
A123: DRAB1405 | B123: Underground network assets 33kV and above(cables, ducts etc) | C123: 42.45671481 | D123: 42.45671481 | E123: 40.16401031 | F123: 40.16401031 | G123: 40.16401031 | H123: 40.16401031 | I123: 40.16401031 | K123: 42.45671481 | L123: 42.45671481 | M123: 40.16401031 | N123: 40.16401031 | O123: 40.16401031 | P123: 40.16401031 | Q123: 40.16401031 | S123: 0 | T123: 0 | U123: 0 | V123: 0 | W123: 0 | X123: 0 | Y123: 0
A124: DRAB1406 | B124: Zone substations and transformers | C124: 42.45671481 | D124: 42.45671481 | E124: 40.16401031 | F124: 40.16401031 | G124: 40.16401031 | H124: 40.16401031 | I124: 40.16401031 | K124: 42.45671481 | L124: 42.45671481 | M124: 40.16401031 | N124: 40.16401031 | O124: 40.16401031 | P124: 40.16401031 | Q124: 40.16401031 | S124: 0 | T124: 0 | U124: 0 | V124: 0 | W124: 0 | X124: 0 | Y124: 0
A125: DRAB1407 | B125: Meters | C125: 0 | D125: 0 | E125: 0 | F125: 0 | G125: 0 | H125: 0 | I125: 0 | K125: 0 | L125: 0 | M125: 0 | N125: 0 | O125: 0 | P125: 0 | Q125: 0 | S125: 15 | T125: 15 | U125: 15 | V125: 15 | W125: 15 | X125: 15 | Y125: 15
A126: DRAB1408 | B126: “Other” assets with long lives | C126: 9.449246934 | D126: 9.449246934 | E126: 15.06966035 | F126: 15.06966035 | G126: 15.06966035 | H126: 15.06966035 | I126: 15.06966035 | K126: 9.449246934 | L126: 9.449246934 | M126: 15.06966035 | N126: 15.06966035 | O126: 15.06966035 | P126: 15.06966035 | Q126: 15.06966035 | S126: 0 | T126: 0 | U126: 0 | V126: 0 | W126: 0 | X126: 0 | Y126: 0
A127: DRAB1409 | B127: “Other” assets with short lives | C127: 5 | D127: 5 | E127: 5 | F127: 5 | G127: 5 | H127: 5 | I127: 5 | K127: 5 | L127: 5 | M127: 5 | N127: 5 | O127: 5 | P127: 5 | Q127: 5 | S127: 25 | T127: 25 | U127: 25 | V127: 25 | W127: 25 | X127: 25 | Y127: 25
B128: Estimated residual service life
A129: DRAB1501 | B129: Overhead network assets less than 33kV (wires and poles) | C129: 21 | D129: 21 | E129: 21 | F129: 19 | G129: 18 | H129: 17 | I129: 16 | K129: 21 | L129: 21 | M129: 21 | N129: 19 | O129: 18 | P129: 17 | Q129: 16 | S129: 0 | T129: 0 | U129: 0 | V129: 0 | W129: 0 | X129: 0 | Y129: 0
A130: DRAB1502 | B130: Underground network assets less than 33kV (cables) | C130: 21 | D130: 21 | E130: 21 | F130: 19 | G130: 18 | H130: 17 | I130: 16 | K130: 21 | L130: 21 | M130: 21 | N130: 19 | O130: 18 | P130: 17 | Q130: 16 | S130: 0 | T130: 0 | U130: 0 | V130: 0 | W130: 0 | X130: 0 | Y130: 0
A131: DRAB1503 | B131: Distribution substations including transformers | C131: 21 | D131: 21 | E131: 21 | F131: 19 | G131: 18 | H131: 17 | I131: 16 | K131: 21 | L131: 21 | M131: 21 | N131: 19 | O131: 18 | P131: 17 | Q131: 16 | S131: 0 | T131: 0 | U131: 0 | V131: 0 | W131: 0 | X131: 0 | Y131: 0
A132: DRAB1504 | B132: Overhead network assets 33kV and above (wires and towers / poles etc) | C132: 21 | D132: 21 | E132: 21 | F132: 19 | G132: 18 | H132: 17 | I132: 16 | K132: 21 | L132: 21 | M132: 21 | N132: 19 | O132: 18 | P132: 17 | Q132: 16 | S132: 0 | T132: 0 | U132: 0 | V132: 0 | W132: 0 | X132: 0 | Y132: 0
A133: DRAB1505 | B133: Underground network assets 33kV and above (cables, ducts etc) | C133: 21 | D133: 21 | E133: 21 | F133: 19 | G133: 18 | H133: 17 | I133: 16 | K133: 21 | L133: 21 | M133: 21 | N133: 19 | O133: 18 | P133: 17 | Q133: 16 | S133: 0 | T133: 0 | U133: 0 | V133: 0 | W133: 0 | X133: 0 | Y133: 0
A134: DRAB1506 | B134: Zone substations and transformers | C134: 21 | D134: 21 | E134: 21 | F134: 19 | G134: 18 | H134: 17 | I134: 16 | K134: 21 | L134: 21 | M134: 21 | N134: 19 | O134: 18 | P134: 17 | Q134: 16 | S134: 0 | T134: 0 | U134: 0 | V134: 0 | W134: 0 | X134: 0 | Y134: 0
A135: DRAB1507 | B135: Meters | C135: 0 | D135: 0 | E135: 0 | F135: 0 | G135: 0 | H135: 0 | I135: 0 | K135: 0 | L135: 0 | M135: 0 | N135: 0 | O135: 0 | P135: 0 | Q135: 0 | S135: =-S74/S76 -> 7.887036068 | T135: =-T74/T76 -> 7.72689536 | U135: 7.567946434 | V135: 6.901758566 | W135: 6.217625947 | X135: 5.53046997 | Y135: 4.877710068
A136: DRAB1508 | B136: “Other” assets with long lives | C136: 3 | D136: 6 | E136: 9 | F136: 10 | G136: 7 | H136: 7 | I136: 6 | K136: 3 | L136: 6 | M136: 9 | N136: 10 | O136: 7 | P136: 7 | Q136: 6 | S136: 0 | T136: 0 | U136: 0 | V136: 0 | W136: 0 | X136: 0 | Y136: 0
A137: DRAB1509 | B137: “Other” assets with short lives | C137: 3 | D137: 3 | E137: 3 | F137: 3 | G137: 2 | H137: 2 | I137: 2 | K137: 3 | L137: 3 | M137: 3 | N137: 3 | O137: 2 | P137: 2 | Q137: 2 | S137: =-S88/S90 -> 13.38219235 | T137: =-T88/T90 -> 12.96510601 | U137: 12.61902808 | V137: 12.12753516 | W137: 12.1002193 | X137: 13.84555895 | Y137: 13.78615494

Sheet 3.4 Operational data
B1: =INDEX(dms_Worksheet_List,MATCH(dms_Model,dms_Model_List)) -> REGULATORY REPORTING STATEMENT
B2: =INDEX(dms_TradingNameFull_List,MATCH(dms_TradingName,dms_TradingName_List)) -> United Energy
B3: =dms_Header_Span -> 2021-22 to 2025-26
B4: 3.4 OPERATIONAL DATA
B6: There are TWO tables on this worksheet. Each table has been grouped for ease of navigation. See the Instructions sheet on how to group or ungroup tables.
B8: 3.4.1 - ENERGY DELIVERY
D9: Standard control services
D10: Forecast
C11: Units | D11: =CRCP_y4 -> 2019-20 | E11: =CRCP_y5 -> 2020-21 | F11: =FRCP_y1 -> 2021-22 | G11: =FRCP_y2 -> 2022-23 | H11: =FRCP_y3 -> 2023-24 | I11: =FRCP_y4 -> 2024-25 | J11: =FRCP_y5 -> 2025-26
A12: DOPED01 | B12: Total energy delivered | C12: GWh
B13: 3.4.1.1 - Energy grouping - delivery by chargeable quantity
A14: DOPED0201 | B14: Energy Delivery where time of use is not a determinant | C14: GWh | D14: 3291.210069 | E14: 3421.001156 | F14: 3358.377621 | G14: 3198.560917 | H14: 3037.945129 | I14: 2876.526262 | J14: 2714.300301
A15: DOPED0202 | B15: Energy Delivery at On-peak times | C15: GWh | D15: 1766.427464 | E15: 1775.26781 | F15: 1802.477004 | G15: 1875.211428 | H15: 1948.309524 | I15: 2021.77311 | J15: 2095.604015
A16: DOPED0203 | B16: Energy Delivery at Shoulder times | C16: GWh | D16: 42.24136276 | E16: 42.99620892 | F16: 43.10343139 | G16: 0 | H16: 0 | I16: 0 | J16: 0
A17: DOPED0204 | B17: Energy Delivery at Off-peak times | C17: GWh | D17: 2243.326346 | E17: 2184.161928 | F17: 2238.055389 | G17: 2405.451168 | H17: 2530.364977 | I17: 2655.903355 | J17: 2782.069426
A18: DOPED0205 | B18: Controlled load energy deliveries | C18: GWh | D18: 91.30865679 | E18: 92.94032738 | F18: 93.17209877 | G18: 93.63795926 | H18: 94.10614906 | I18: 94.5766798 | J18: 95.0495632
A19: DOPED0206 | B19: Energy Delivery to unmetered supplies | C19: GWh | D19: 85.93706681 | E19: 87.47269805 | F19: 87.6908845 | G19: 88.12943215 | H19: 88.570166 | I19: 89.01309882 | J19: 89.458241
B20: 3.4.1.2 - Energy - received from TNSP and other DNSPs by time of receipt
A21: DOPED0301 | B21: Energy into DNSP network at On-peak times | C21: GWh | D21: 0 | E21: 0 | F21: 0 | G21: 0 | H21: 0 | I21: 0 | J21: 0
A22: DOPED0302 | B22: Energy into DNSP network at Shoulder times | C22: GWh | D22: 0 | E22: 0 | F22: 0 | G22: 0 | H22: 0 | I22: 0 | J22: 0
A23: DOPED0303 | B23: Energy into DNSP network at Off-peak times | C23: GWh | D23: 0 | E23: 0 | F23: 0 | G23: 0 | H23: 0 | I23: 0 | J23: 0
A24: DOPED0304 | B24: Energy received from TNSP and other DNSPs not included in the above categories | C24: GWh | D24: =SUM(D14:D19)*(1+'3.6 Quality of service'!D16)-SUM(D26:D33) -> 7563.326867 | E24: =SUM(E14:E19)*(1+'3.6 Quality of service'!E16)-SUM(E26:E33) -> 7614.895639 | F24: =SUM(F14:F19)*(1+'3.6 Quality of service'!F16)-SUM(F26:F33) -> 7599.256224 | G24: =SUM(G14:G19)*(1+'3.6 Quality of service'!G16)-SUM(G26:G33) -> 7603.636855 | H24: =SUM(H14:H19)*(1+'3.6 Quality of service'!H16)-SUM(H26:H33) -> 7608.190551 | I24: =SUM(I14:I19)*(1+'3.6 Quality of service'!I16)-SUM(I26:I33) -> 7612.91792 | J24: =SUM(J14:J19)*(1+'3.6 Quality of service'!J16)-SUM(J26:J33) -> 7617.883273
B25: 3.4.1.3 - Energy - received into DNSP system from embedded generation by time of receipt
A26: DOPED0401 | B26: Energy into DNSP network at On-peak times from non-residential embedded generation | C26: GWh | D26: 0 | E26: 0 | F26: 0 | G26: 0 | H26: 0 | I26: 0 | J26: 0
A27: DOPED0402 | B27: Energy into DNSP network at Shoulder times from non-residential embedded generation | C27: GWh | D27: 0 | E27: 0 | F27: 0 | G27: 0 | H27: 0 | I27: 0 | J27: 0
A28: DOPED0403 | B28: Energy into DNSP network at Off-peak times from non-residential embedded generation | C28: GWh | D28: 0 | E28: 0 | F28: 0 | G28: 0 | H28: 0 | I28: 0 | J28: 0
A29: DOPED0404 | B29: Energy received from embedded generation not included in above categories from non-residential embedded generation | C29: GWh | D29: 111.65 | E29: 113.32475 | F29: 115.0246212 | G29: 116.7499906 | H29: 118.5012404 | I29: 120.278759 | J29: 122.0829404
A30: DOPED0405 | B30: Energy into DNSP network at On-peak times from residential embedded generation | C30: GWh | D30: 0 | E30: 0 | F30: 0 | G30: 0 | H30: 0 | I30: 0 | J30: 0
A31: DOPED0406 | B31: Energy into DNSP network at Shoulder times from residential embedded generation | C31: GWh | D31: 0 | E31: 0 | F31: 0 | G31: 0 | H31: 0 | I31: 0 | J31: 0
A32: DOPED0407 | B32: Energy into DNSP network at Off-peak times from residential embedded generation | C32: GWh | D32: 0 | E32: 0 | F32: 0 | G32: 0 | H32: 0 | I32: 0 | J32: 0
A33: DOPED0408 | B33: Energy received from embedded generation not included in above categories from residential embedded generation | C33: GWh | D33: 176.1565839 | E33: 209.9689391 | F33: 243.7818297 | G33: 277.4662397 | H33: 311.1506496 | I33: 344.8350596 | J33: 378.4557645
B34: 3.4.1.4 - Energy grouping - customer type or class
A35: DOPED0501 | B35: Residential customers energy deliveries | C35: GWh | D35: 2747.373739 | E35: 2796.468853 | F35: 2803.442591 | G35: 2817.459804 | H35: 2831.547103 | I35: 2845.704838 | J35: 2859.933363
A36: DOPED0502 | B36: Non residential customers not on demand tariffs energy deliveries | C36: GWh | D36: 387.4310476 | E36: 525.226361 | F36: 395.3378037 | G36: 376.2485808 | H36: 357.0639118 | I36: 337.7833195 | J36: 318.4063242
A37: DOPED0503 | B37: Non-residential low voltage demand tariff customers energy deliveries | C37: GWh | D37: 2916.817213 | E37: 2958.550593 | F37: 2976.344095 | G37: 2991.225815 | H37: 3006.181945 | I37: 3021.212854 | J37: 3036.318919
A38: DOPED0504 | B38: Non-residential high voltage demand tariff customers energy deliveries | C38: GWh | D38: 1043.59652 | E38: 1062.245417 | F38: 1064.894408 | G38: 1070.21888 | H38: 1075.569974 | I38: 1080.947824 | J38: 1086.352563
A39: DOPED0505 | B39: Other Customer Class Energy Deliveries | C39: GWh | D39: 425.2324454 | E39: 261.3489049 | F39: 382.8575307 | G39: 405.8378235 | H39: 428.9330112 | I39: 452.1436701 | J39: 475.470377
B43: 3.4.3 - SYSTEM DEMAND
D44: Standard control services
D45: Forecast
C46: Units | D46: =CRCP_y4 -> 2019-20 | E46: =CRCP_y5 -> 2020-21 | F46: =FRCP_y1 -> 2021-22 | G46: =FRCP_y2 -> 2022-23 | H46: =FRCP_y3 -> 2023-24 | I46: =FRCP_y4 -> 2024-25 | J46: =FRCP_y5 -> 2025-26
B47: 3.4.3.1 - Annual system maximum demand characteristics at the zone substation level – MW measure
A48: DOPSD0102 | B48: Non–coincident Summated Weather Adjusted System Annual Maximum Demand 10% POE | C48: MW | D48: 2452.835888 | E48: 2459.454053 | F48: 2471.273494 | G48: 2507.407488 | H48: 2522.655107 | I48: 2573.936032 | J48: 2622.924529
A49: DOPSD0103 | B49: Non–coincident Summated Weather Adjusted System Annual Maximum Demand 50% POE | C49: MW | D49: 2300.972223 | E49: 2307.291641 | F49: 2318.476122 | G49: 2352.361292 | H49: 2366.644675 | I49: 2414.748243 | J49: 2460.671907
A50: DOPSD0105 | B50: Coincident Weather Adjusted System Annual Maximum Demand 10% POE | C50: MW | D50: 2200.664848 | E50: 2206.409325 | F50: 2216.926435 | G50: 2249.233424 | H50: 2262.766481 | I50: 2308.652649 | J50: 2352.455673
A51: DOPSD0106 | B51: Coincident Weather Adjusted System Annual Maximum Demand 50% POE | C51: MW | D51: 2063.708931 | E51: 2069.1938 | F51: 2079.145687 | G51: 2109.440518 | H51: 2122.123552 | I51: 2165.160821 | J51: 2206.216874
B52: 3.4.3.2 - Annual system maximum demand characteristics at the transmission connection point – MW measure
A53: DOPSD0108 | B53: Non–coincident Summated Weather Adjusted System Annual Maximum Demand 10% POE | C53: MW | D53: 2286.501677 | E53: 2292.8033 | F53: 2304.315509 | G53: 2339.126427 | H53: 2353.946573 | I53: 2403.063892 | J53: 2450.037397
A54: DOPSD0109 | B54: Non–coincident Summated Weather Adjusted System Annual Maximum Demand 50% POE | C54: MW | D54: 2072.98089 | E54: 2078.349858 | F54: 2095.413361 | G54: 2133.365739 | H54: 2151.357715 | I54: 2180.657672 | J54: 2224.860457
A55: DOPSD0111 | B55: Coincident Weather Adjusted System Annual Maximum Demand 10% POE | C55: MW | D55: 2242 | E55: 2248 | F55: 2259 | G55: 2293 | H55: 2307 | I55: 2355 | J55: 2401
A56: DOPSD0112 | B56: Coincident Weather Adjusted System Annual Maximum Demand 50% POE | C56: MW | D56: 2012 | E56: 2018 | F56: 2035 | G56: 2073 | H56: 2091 | I56: 2117 | J56: 2160
B57: 3.4.3.3 - Annual system maximum demand characteristics at the zone substation level – MVA measure
A58: DOPSD0202 | B58: Non–coincident Summated Weather Adjusted System Annual Maximum Demand 10% POE | C58: MVA | D58: 2462.805795 | E58: 2469.592378 | F58: 2481.58019 | G58: 2517.926182 | H58: 2533.208589 | I58: 2584.885867 | J58: 2634.399537
A59: DOPSD0203 | B59: Non–coincident Summated Weather Adjusted System Annual Maximum Demand 50% POE | C59: MVA | D59: 2310.872923 | E59: 2317.346382 | F59: 2328.688627 | G59: 2362.785357 | H59: 2377.099635 | I59: 2425.595549 | J59: 2472.032899
A60: DOPSD0205 | B60: Coincident Weather Adjusted System Annual Maximum Demand 10% POE | C60: MVA | D60: 2205.574431 | E60: 2211.450613 | F60: 2222.073894 | G60: 2254.483906 | H60: 2268.005309 | I60: 2314.096206 | J60: 2358.230812
A61: DOPSD0206 | B61: Coincident Weather Adjusted System Annual Maximum Demand 50% POE | C61: MVA | D61: 2068.722 | E61: 2074.326206 | F61: 2084.376018 | G61: 2114.77633 | H61: 2127.445682 | I61: 2170.689727 | J61: 2212.072211
B62: 3.4.3.4 - Annual system maximum demand characteristics at the transmission connection point – MVA measure
A63: DOPSD0208 | B63: Non–coincident Summated Weather Adjusted System Annual Maximum Demand 10% POE | C63: MVA | D63: 2343.188956 | E63: 2349.570494 | F63: 2361.309879 | G63: 2396.947022 | H63: 2412.120955 | I63: 2462.454485 | J63: 2510.602291
A64: DOPSD0209 | B64: Non–coincident Summated Weather Adjusted System Annual Maximum Demand 50% POE | C64: MVA | D64: 2124.558704 | E64: 2129.993282 | F64: 2147.419832 | G64: 2186.273485 | H64: 2204.694012 | I64: 2234.743009 | J64: 2280.05227
A65: DOPSD0211 | B65: Coincident Weather Adjusted System Annual Maximum Demand 10% POE | C65: MVA | D65: 2293.160797 | E65: 2299.297713 | F65: 2310.548725 | G65: 2345.32458 | H65: 2359.64405 | I65: 2408.739374 | J65: 2455.789061
A66: DOPSD0212 | B66: Coincident Weather Adjusted System Annual Maximum Demand 50% POE | C66: MVA | D66: 2057.912366 | E66: 2064.049281 | F66: 2081.437209 | G66: 2120.304341 | H66: 2138.715088 | I66: 2165.308389 | J66: 2209.289617
B67: 3.4.3.5 - Power factor conversion between MVA and MW
A68: DOPSD0301 | B68: Average overall network power factor conversion between MVA and MW | C68: Factor | D68: 0.9776898344 | E68: 0.9776898344 | F68: 0.9776898344 | G68: 0.9776898344 | H68: 0.9776898344 | I68: 0.9776898344 | J68: 0.9776898344
A69: DOPSD0302 | B69: Average power factor conversion for low voltage distribution lines | C69: Factor | D69: 0.9231336418 | E69: 0.9231336418 | F69: 0.9231336418 | G69: 0.9231336418 | H69: 0.9231336418 | I69: 0.9231336418 | J69: 0.9231336418
A70: DOPSD0303 | B70: Average power factor conversion for 3.3 kV lines | C70: Factor | D70: 0 | E70: 0 | F70: 0 | G70: 0 | H70: 0 | I70: 0 | J70: 0
A71: DOPSD0304 | B71: Average power factor conversion for 6.6 kV lines | C71: Factor | D71: 0.9776214265 | E71: 0.9776214265 | F71: 0.9776214265 | G71: 0.9776214265 | H71: 0.9776214265 | I71: 0.9776214265 | J71: 0.9776214265
A72: DOPSD0305 | B72: Average power factor conversion for 7.6 kV lines | C72: Factor | D72: 0 | E72: 0 | F72: 0 | G72: 0 | H72: 0 | I72: 0 | J72: 0
A73: DOPSD0306 | B73: Average power factor conversion for 11 kV lines | C73: Factor | D73: 0.98809469 | E73: 0.9880668884 | F73: 0.9880194656 | G73: 0.9877953261 | H73: 0.9877098612 | I73: 0.9873140653 | J73: 0.986971403
A74: DOPSD0307 | B74: Average power factor conversion for SWER lines | C74: Factor | D74: 0.9084765611 | E74: 0.9084765611 | F74: 0.9084765611 | G74: 0.9084765611 | H74: 0.9084765611 | I74: 0.9084765611 | J74: 0.9084765611
A75: DOPSD0308 | B75: Average power factor conversion for 22 kV lines | C75: Factor | D75: 0.983059024 | E75: 0.9828829539 | F75: 0.9826778583 | G75: 0.9822407053 | H75: 0.9820905936 | I75: 0.9815229632 | J75: 0.9809730931
A76: DOPSD0309 | B76: Average power factor conversion for 33 kV lines | C76: Factor | D76: 0 | E76: 0 | F76: 0 | G76: 0 | H76: 0 | I76: 0 | J76: 0
A77: DOPSD0310 | B77: Average power factor conversion for 44 kV lines | C77: Factor | D77: 0 | E77: 0 | F77: 0 | G77: 0 | H77: 0 | I77: 0 | J77: 0
A78: DOPSD0311 | B78: Average power factor conversion for 66 kV lines | C78: Factor | D78: 0.9776898344 | E78: 0.9776898344 | F78: 0.9776898344 | G78: 0.9776898344 | H78: 0.9776898344 | I78: 0.9776898344 | J78: 0.9776898344
A79: DOPSD0312 | B79: Average power factor conversion for 110 kV lines | C79: Factor | D79: 0 | E79: 0 | F79: 0 | G79: 0 | H79: 0 | I79: 0 | J79: 0
A80: DOPSD0313 | B80: Average power factor conversion for 132 kV lines | C80: Factor | D80: 0 | E80: 0 | F80: 0 | G80: 0 | H80: 0 | I80: 0 | J80: 0
A81: DOPSD0314 | B81: Average power factor conversion for 220 kV lines | C81: Factor | D81: 0 | E81: 0 | F81: 0 | G81: 0 | H81: 0 | I81: 0 | J81: 0
B82: 3.4.3.6 - Demand supplied (for customers charged on this basis) – MW measure
A83: DOPSD0401 | B83: Summated Chargeable Contracted Maximum Demand | C83: MW
A84: DOPSD0402 | B84: Summated Chargeable Measured Maximum Demand | C84: MW
B85: 3.4.3.7 - Demand supplied (for customers charged on this basis) – MVA measure
A86: DOPSD0403 | B86: Summated Chargeable Contracted Maximum Demand | C86: MVA
A87: DOPSD0404 | B87: Summated Chargeable Measured Maximum Demand | C87: MVA

Sheet 3.5 Physical assets
B1: =INDEX(dms_Worksheet_List,MATCH(dms_Model,dms_Model_List)) -> REGULATORY REPORTING STATEMENT
B2: =INDEX(dms_TradingNameFull_List,MATCH(dms_TradingName,dms_TradingName_List)) -> United Energy
B3: =dms_Header_Span -> 2021-22 to 2025-26
B4: 3.5 PHYSICAL ASSETS DATA
B6: There are THREE tables on this worksheet. Each table has been grouped (and sub-grouped) for ease of navigation. See the Instructions sheet on how to group or ungroup tables.
B8: 3.5.1 - NETWORK CAPACITIES VARIABLES
D9: VOLUMES
C10: Units | D10: =CRCP_y4 -> 2019-20 | E10: =CRCP_y5 -> 2020-21 | F10: =FRCP_y1 -> 2021-22 | G10: =FRCP_y2 -> 2022-23 | H10: =FRCP_y3 -> 2023-24 | I10: =FRCP_y4 -> 2024-25 | J10: =FRCP_y5 -> 2025-26
B11: CIRCUIT LENGTH
B12: 3.5.1.1 - Overhead network length of circuit at each voltage
A13: DPA0101 | B13: Overhead low voltage distribution | C13: km | D13: 5808.761083 | E13: 5798.600845 | F13: 5788.458377 | G13: 5778.333651 | H13: 5768.226633 | I13: 5758.137294 | J13: 5748.065603
A14: DPA0102 | B14: Overhead 2.2 kV | C14: km
A15: DPA0103 | B15: Overhead 7.6 kV | C15: km | D15: 19.52152929 | E15: 19.48738373 | F15: 19.45329789 | G15: 19.41927168 | H15: 19.38530498 | I15: 19.35139769 | J15: 19.31754971
A16: DPA0104 | B16: Overhead 11 kV | C16: km | D16: 640.6130841 | E16: 639.4925729 | F16: 638.3740216 | G16: 637.2574268 | H16: 636.1427851 | I16: 635.030093 | J16: 633.9193471
A17: DPA0105 | B17: Overhead SWER | C17: km | D17: 37.18955962 | E17: 37.1245105 | F17: 37.05957516 | G17: 36.9947534 | H17: 36.93004502 | I17: 36.86544982 | J17: 36.8009676
A18: DPA0106 | B18: Overhead 22 kV | C18: km | D18: 2906.012318 | E18: 2900.929345 | F18: 2895.855262 | G18: 2890.790054 | H18: 2885.733706 | I18: 2880.686203 | J18: 2875.647528
A19: DPA0107 | B19: Overhead 33 kV | C19: km
A20: DPA0108 | B20: Overhead 44 kV | C20: km
A21: DPA0109 | B21: Overhead 66 kV | C21: km | D21: 596.7818199 | E21: 595.737975 | F21: 594.6959559 | G21: 593.6557594 | H21: 592.6173823 | I21: 591.5808215 | J21: 590.5460738
A22: DPA0110 | B22: Overhead 132 kV | C22: km
A23: DPA0111 | B23: Overhead 6.6kv | C23: km
A24: DPA0112 | B24: Overhead 110kV | C24: km
A25: DPA0113 | B25: Overhead 220kV | C25: km
A26: DPA0114 | B26: Other | C26: km
A27: DPA01 | B27: Total overhead circuit km | D27: =SUM(D13:D26) -> 10008.87939 | E27: 9991.372632 | F27: 9973.89649 | G27: 9956.450916 | H27: 9939.035857 | I27: 9921.651259 | J27: 9904.297069
B28: 3.5.1.2 - Underground network circuit length at each voltage
A29: DPA0201 | B29: Underground low voltage distribution | C29: km | D29: 2435.1007 | E29: 2561.78588 | F29: 2695.061809 | G29: 2835.271366 | H29: 2982.775272 | I29: 3137.953013 | J29: 3301.203815
A30: DPA0202 | B30: Underground 5 kV | C30: km
A31: DPA0203 | B31: Underground 6.6 Kv | C31: km | D31: 1.50518788 | E31: 1.583494703 | F31: 1.665875408 | G31: 1.752541937 | H31: 1.84371726 | I31: 1.939635943 | J31: 2.04054476
A32: DPA0204 | B32: Underground 7.6 kV | C32: km
A33: DPA0205 | B33: Underground 11 kV | C33: km | D33: 241.925749 | E33: 254.5118434 | F33: 267.7527245 | G33: 281.6824574 | H33: 296.3368793 | I33: 311.7536918 | J33: 327.9725581
A34: DPA0206 | B34: Underground SWER | C34: km | D34: 0.5865805709 | E34: 0.6170972003 | F34: 0.6492014456 | G34: 0.682975902 | H34: 0.7185074615 | I34: 0.7558875368 | J34: 0.7952122961
A35: DPA0207 | B35: Underground 22 kV | C35: km | D35: 989.0080452 | E35: 1040.46081 | F35: 1094.590385 | G35: 1151.53603 | H35: 1211.44425 | I35: 1274.469173 | J35: 1340.772943
A36: DPA0208 | B36: Underground 33 kV | C36: km
A37: DPA0209 | B37: Underground 66 kV | C37: km | D37: 4.128199112 | E37: 4.342967089 | F37: 4.568908287 | G37: 4.806603989 | H37: 5.056665719 | I37: 5.319736815 | J37: 5.596494084
A38: DPA0210 | B38: Underground 110 kV | C38: km
A39: DPA0211 | B39: Underground 132 kV | C39: km
A40: DPA0212 | B40: Other | C40: km
A41: DPA02 | B41: Total underground circuit km | D41: =SUM(D29:D40) -> 3672.254461 | E41: 3863.302092 | F41: 4064.288903 | G41: 4275.731975 | H41: 4498.175292 | I41: 4732.191138 | J41: 4978.381568
B43: CIRCUIT CAPACITY MVA
B44: 3.5.1.3 - Estimated overhead network weighted average MVA capacity by voltage class
A45: DPA0301 | B45: Overhead low voltage distribution | C45: MVA | D45: 0.1936268208 | E45: 0.1943976268 | F45: 0.1951516211 | G45: 0.1958783649 | H45: 0.1965558758 | I45: 0.1970883509 | J45: 0.1974662303
A46: DPA0302 | B46: Overhead 6.6 kV | C46: MVA | D46: 2.996776987 | E46: 2.996776987 | F46: 2.996776987 | G46: 2.996776987 | H46: 2.996776987 | I46: 2.996776987 | J46: 2.996776987
A47: DPA0303 | B47: Overhead 7.6 kV | C47: MVA | D47: 0 | E47: 0 | F47: 0 | G47: 0 | H47: 0 | I47: 0 | J47: 0
A48: DPA0304 | B48: Overhead 11 kV | C48: MVA | D48: 5.722146588 | E48: 5.728851826 | F48: 5.728851826 | G48: 5.731229549 | H48: 5.744768749 | I48: 5.747009764 | J48: 5.755716907
A49: DPA0305 | B49: Overhead SWER | C49: MVA | D49: 0.1 | E49: 0.1 | F49: 0.1 | G49: 0.1 | H49: 0.1 | I49: 0.1 | J49: 0.1
A50: DPA0306 | B50: Overhead 22 kV | C50: MVA | D50: 11.75873033 | E50: 11.76082871 | F50: 11.79057304 | G50: 11.81626023 | H50: 11.81626023 | I50: 11.82447641 | J50: 11.8258236
A51: DPA0307 | B51: Overhead 33 kV | C51: MVA | D51: 0 | E51: 0 | F51: 0 | G51: 0 | H51: 0 | I51: 0 | J51: 0
A52: DPA0308 | B52: Overhead 44 kV | C52: MVA | D52: 0 | E52: 0 | F52: 0 | G52: 0 | H52: 0 | I52: 0 | J52: 0
A53: DPA0309 | B53: Overhead 66 kV | C53: MVA | D53: 101.0423467 | E53: 101.0423467 | F53: 101.0423467 | G53: 101.0423467 | H53: 101.0423467 | I53: 101.0423467 | J53: 101.5145188
A54: DPA0310 | B54: Overhead 110 kV | C54: MVA | D54: 0 | E54: 0 | F54: 0 | G54: 0 | H54: 0 | I54: 0 | J54: 0
A55: DPA0311 | B55: Overhead 132 kV | C55: MVA | D55: 0 | E55: 0 | F55: 0 | G55: 0 | H55: 0 | I55: 0 | J55: 0
A56: DPA0312 | B56: Overhead 220 kV | C56: MVA | D56: 0 | E56: 0 | F56: 0 | G56: 0 | H56: 0 | I56: 0 | J56: 0
A57: DPA0313 | B57: Other | C57: MVA | D57: 0 | E57: 0 | F57: 0 | G57: 0 | H57: 0 | I57: 0 | J57: 0
B58: 3.5.1.4 - Estimated underground network weighted average MVA capacity by voltage class
A59: DPA0401 | B59: Underground low voltage distribution | C59: MVA | D59: 0.1936268208 | E59: 0.1943976268 | F59: 0.1951516211 | G59: 0.1958783649 | H59: 0.1965558758 | I59: 0.1970883509 | J59: 0.1974662303
A60: DPA0402 | B60: Underground 5 kV | C60: MVA | D60: 0 | E60: 0 | F60: 0 | G60: 0 | H60: 0 | I60: 0 | J60: 0
A61: DPA0403 | B61: Underground 6.6 kV | C61: MVA | D61: 3.119094415 | E61: 3.119094415 | F61: 3.119094415 | G61: 3.119094415 | H61: 3.119094415 | I61: 3.119094415 | J61: 3.119094415
A62: DPA0404 | B62: Underground 7.6 kV | C62: MVA | D62: 0 | E62: 0 | F62: 0 | G62: 0 | H62: 0 | I62: 0 | J62: 0
A63: DPA0405 | B63: Underground 11 kV | C63: MVA | D63: 5.955703592 | E63: 5.962682512 | F63: 5.962682512 | G63: 5.965157286 | H63: 5.979249106 | I63: 5.981581591 | J63: 5.990644128
A64: DPA0406 | B64: Underground SWER | C64: MVA | D64: 0 | E64: 0 | F64: 0 | G64: 0 | H64: 0 | I64: 0 | J64: 0
A65: DPA0407 | B65: Underground 12.7 kV | C65: MVA | D65: 0 | E65: 0 | F65: 0 | G65: 0 | H65: 0 | I65: 0 | J65: 0
A66: DPA0408 | B66: Underground 22 kV | C66: MVA | D66: 12.2386785 | E66: 12.24086253 | F66: 12.27182092 | G66: 12.29855657 | H66: 12.29855657 | I66: 12.3071081 | J66: 12.30851027
A67: DPA0409 | B67: Underground 33 kV | C67: MVA | D67: 0 | E67: 0 | F67: 0 | G67: 0 | H67: 0 | I67: 0 | J67: 0
A68: DPA0410 | B68: Underground 66 kV | C68: MVA | D68: 134.1604986 | E68: 134.1604986 | F68: 134.1604986 | G68: 134.1604986 | H68: 134.1604986 | I68: 134.1604986 | J68: 134.1604986
A69: DPA0411 | B69: Underground 110 kV | C69: MVA | D69: 0 | E69: 0 | F69: 0 | G69: 0 | H69: 0 | I69: 0 | J69: 0
A70: DPA0412 | B70: Underground 132 kV | C70: MVA | D70: 0 | E70: 0 | F70: 0 | G70: 0 | H70: 0 | I70: 0 | J70: 0
A71: DPA0413 | B71: Other | C71: MVA | D71: 0 | E71: 0 | F71: 0 | G71: 0 | H71: 0 | I71: 0 | J71: 0
B75: 3.5.2 - TRANSFORMER CAPACITIES VARIABLES
D76: VOLUMES
C77: Units | D77: =CRCP_y4 -> 2019-20 | E77: =CRCP_y5 -> 2020-21 | F77: =FRCP_y1 -> 2021-22 | G77: =FRCP_y2 -> 2022-23 | H77: =FRCP_y3 -> 2023-24 | I77: =FRCP_y4 -> 2024-25 | J77: =FRCP_y5 -> 2025-26
B78: Distribution transformer total installed capacity
A79: DPA0501 | B79: Distribution transformer capacity owned by utility | C79: MVA | D79: 5262.348144 | E79: 5436.779509 | F79: 5621.704859 | G79: 5798.473588 | H79: 5984.73627 | I79: 6157.966187 | J79: 6309.337442
A80: DPA0502 | B80: Distribution transformer capacity owned by High Voltage Customers | C80: MVA | D80: 299.6990315 | E80: 299.6990315 | F80: 299.6990315 | G80: 299.6990315 | H80: 299.6990315 | I80: 299.6990315 | J80: 299.6990315
A81: DPA0503 | B81: Cold spare capacity included in DPA0501 | C81: MVA | D81: 23 | E81: 23 | F81: 23 | G81: 23 | H81: 23 | I81: 23 | J81: 23
B82: Zone substation transformer capacity
A83: DPA0601 | B83: Total installed capacity for first step transformation where there are two steps to reach distribution voltage | C83: MVA | D83: 0 | E83: 0 | F83: 0 | G83: 0 | H83: 0 | I83: 0 | J83: 0
A84: DPA0602 | B84: Total installed capacity for second step transformation where there are two steps to reach distribution voltage | C84: MVA | D84: 0 | E84: 0 | F84: 0 | G84: 0 | H84: 0 | I84: 0 | J84: 0
A85: DPA0603 | B85: Total zone substation transformer capacity where there is only a single step transformation to reach distribution voltage | C85: MVA | D85: 3384.5 | E85: 3384.5 | F85: 3384.5 | G85: 3417.5 | H85: 3417.5 | I85: 3450.5 | J85: 3483.5
A86: DPA0604 | B86: Total zone substation transformer capacity | C86: MVA | D86: 3384.5 | E86: 3384.5 | F86: 3384.5 | G86: 3417.5 | H86: 3417.5 | I86: 3450.5 | J86: 3483.5
A87: DPA0605 | B87: Cold spare capacity of zone substation transformers included in DPA0604 | C87: MVA | D87: 0 | E87: 0 | F87: 0 | G87: 0 | H87: 0 | I87: 0 | J87: 0
B91: 3.5.3 - PUBLIC LIGHTING
D92: VOLUMES
C93: Units | D93: =CRCP_y4 -> 2019-20 | E93: =CRCP_y5 -> 2020-21 | F93: =FRCP_y1 -> 2021-22 | G93: =FRCP_y2 -> 2022-23 | H93: =FRCP_y3 -> 2023-24 | I93: =FRCP_y4 -> 2024-25 | J93: =FRCP_y5 -> 2025-26
A94: DPA0701 | B94: Public lighting luminaires | C94: 0's | D94: 82532.48468 | E94: 89045.61981 | F94: 95558.75494 | G94: 97263.86051 | H94: 98873.03606 | I94: 99678.30127 | J94: 99698.63384
A95: DPA0702 | B95: Public lighting poles | C95: 0's | D95: 35125 | E95: 35234.25467 | F95: 35343.84918 | G95: 35453.78457 | H95: 35564.06191 | I95: 35674.68226 | J95: 35785.6467

Sheet 3.6 Quality of service
B1: =INDEX(dms_Worksheet_List,MATCH(dms_Model,dms_Model_List)) -> REGULATORY REPORTING STATEMENT
B2: =INDEX(dms_TradingNameFull_List,MATCH(dms_TradingName,dms_TradingName_List)) -> United Energy
B3: =dms_Header_Span -> 2021-22 to 2025-26
B4: 3.6 QUALITY OF SERVICE DATA
B6: 3.6.2 - ENERGY NOT SUPPLIED
D7: Forecast
C8: Units | D8: =CRCP_y4 -> 2019-20 | E8: =CRCP_y5 -> 2020-21 | F8: =FRCP_y1 -> 2021-22 | G8: =FRCP_y2 -> 2022-23 | H8: =FRCP_y3 -> 2023-24 | I8: =FRCP_y4 -> 2024-25 | J8: =FRCP_y5 -> 2025-26
A9: DQS0201 | B9: Energy Not Supplied (planned) | C9: GWh | D9: 0.8407954769 | E9: 0.8501184859 | F9: 0.852246767 | G9: 0.8565080113 | H9: 0.860790561 | I9: 0.865094523 | J9: 0.8694200042
A10: DQS0202 | B10: Energy Not Supplied (unplanned) | C10: GWh | D10: 1.112094498 | E10: 1.124425758 | F10: 1.12724077 | G10: 1.132876988 | H10: 1.138541386 | I10: 1.144234105 | J10: 1.149955287
A11: DQS02 | B11: Total | D11: =SUM(D9:D10) -> 1.952889975 | E11: 1.974544244 | F11: 1.979487537 | G11: 1.989384999 | H11: 1.999331947 | I11: 2.009328628 | J11: 2.019375291
B13: 3.6.3 - SYSTEM LOSSES
D14: Forecast
C15: Units | D15: =CRCP_y4 -> 2019-20 | E15: =CRCP_y5 -> 2020-21 | F15: =FRCP_y1 -> 2021-22 | G15: =FRCP_y2 -> 2022-23 | H15: =FRCP_y3 -> 2023-24 | I15: =FRCP_y4 -> 2024-25 | J15: =FRCP_y5 -> 2025-26
A16: DQS03 | B16: System losses | C16: % | D16: 0.043971098 | E16: 0.043971098 | F16: 0.043971098 | G16: 0.043971098 | H16: 0.043971098 | I16: 0.043971098 | J16: 0.043971098
B18: 3.6.4 - CAPACITY UTILISATION
D19: Forecast
C20: Units | D20: =CRCP_y4 -> 2019-20 | E20: =CRCP_y5 -> 2020-21 | F20: =FRCP_y1 -> 2021-22 | G20: =FRCP_y2 -> 2022-23 | H20: =FRCP_y3 -> 2023-24 | I20: =FRCP_y4 -> 2024-25 | J20: =FRCP_y5 -> 2025-26
A21: DQS04 | B21: Overall utilisation | C21: % | D21: 0.6827811858 | E21: 0.6846938638 | F21: 0.6880450958 | G21: 0.691378305 | H21: 0.6955668281 | I21: 0.7029692939 | J21: 0.7096405625

Sheet 3.7 Operating Environment
B1: =INDEX(dms_Worksheet_List,MATCH(dms_Model,dms_Model_List)) -> REGULATORY REPORTING STATEMENT
B2: =INDEX(dms_TradingNameFull_List,MATCH(dms_TradingName,dms_TradingName_List)) -> United Energy
B3: =dms_Header_Span -> 2021-22 to 2025-26
B4: 3.7 OPERATING ENVIRONMENT FACTORS
B6: There are THREE tables on this worksheet. Each table has been grouped (and sub-grouped) for ease of navigation. See the Instructions sheet on how to group or ungroup tables.
A8: DOEF01 | B8: 3.7.1 - DENSITY FACTORS
D9: Forecast
C10: Units | D10: =CRCP_y4 -> 2019-20 | E10: =CRCP_y5 -> 2020-21 | F10: =FRCP_y1 -> 2021-22 | G10: =FRCP_y2 -> 2022-23 | H10: =FRCP_y3 -> 2023-24 | I10: =FRCP_y4 -> 2024-25 | J10: =FRCP_y5 -> 2025-26
A11: DOEF0101 | B11: Customer density | C11: Customer / km | D11: 101.5201717
A12: DOEF0102 | B12: Energy density | C12: MWh/customer | D12: 10.7055978
A13: DOEF0103 | B13: Demand density | C13: kVA / customer | D13: 3.289600079
A15: DOEF02 | B15: 3.7.2 - TERRAIN FACTORS
D16: Forecast
C17: Units | D17: =CRCP_y4 -> 2019-20 | E17: =CRCP_y5 -> 2020-21 | F17: =FRCP_y1 -> 2021-22 | G17: =FRCP_y2 -> 2022-23 | H17: =FRCP_y3 -> 2023-24 | I17: =FRCP_y4 -> 2024-25 | J17: =FRCP_y5 -> 2025-26
A18: DOEF0201 | B18: Rural proportion | C18: % | D18: 12
A19: DOEF0202 | B19: Urban and CBD vegetation maintenance spans | C19: 0's | D19: 47170
A20: DOEF0203 | B20: Rural vegetation maintenance spans | C20: 0's | D20: 11135
A21: DOEF0204 | B21: Total vegetation maintenance spans | C21: 0's | D21: 57012
A22: DOEF0205 | B22: Total number of spans | C22: 0's | D22: 184045
A23: DOEF0206 | B23: Average urban and CBD vegetation maintenance span cycle | C23: Years | D23: 2.273837087
A24: DOEF0207 | B24: Average rural vegetation maintenance span cycle | C24: Years | D24: 1.593476936
A25: DOEF0208 | B25: Average number of trees per urban and CBD vegetation maintenance span | C25: Trees | D25: 3.34
A26: DOEF0209 | B26: Average number of trees per rural vegetation maintenance span | C26: Trees | D26: 10.17333333
A27: DOEF0210 | B27: Average number of defects per urban and CBD vegetation maintenance span | C27: Defects | D27: 1
A28: DOEF0211 | B28: Average number of defects per rural vegetation maintenance span | C28: Defects | D28: 1
A29: DOEF0212 | B29: Tropical proportion | C29: Spans | D29: 0
A30: DOEF0213 | B30: Standard vehicle access | C30: km | D30: 69 | E30: =D30 -> 69 | F30: 69 | G30: 69 | H30: 69 | I30: 69 | J30: 69
A31: DOEF0214 | B31: Bushfire risk | C31: Spans | D31: 17952
A33: DOEF03 | B33: 3.7.3 - SERVICE AREA FACTORS
D34: Forecast
C35: Units | D35: =CRCP_y4 -> 2019-20 | E35: =CRCP_y5 -> 2020-21 | F35: =FRCP_y1 -> 2021-22 | G35: =FRCP_y2 -> 2022-23 | H35: =FRCP_y3 -> 2023-24 | I35: =FRCP_y4 -> 2024-25 | J35: =FRCP_y5 -> 2025-26
A36: DOEF0301 | B36: Route Line length | C36: km | D36: 6919.594054 | E36: 6907.12303 | F36: 6894.674483 | G36: 6882.248371 | H36: 6869.844654 | I36: 6857.463292 | J36: 6845.104245

Sheet 4.1 Public lighting
B1: =INDEX(dms_Worksheet_List,MATCH(dms_Model,dms_Model_List)) -> REGULATORY REPORTING STATEMENT
B2: =INDEX(dms_TradingNameFull_List,MATCH(dms_TradingName,dms_TradingName_List)) -> United Energy
B3: =dms_Header_Span -> 2021-22 to 2025-26
B4: 4.1 PUBLIC LIGHTING
B6: There are TWO tables on this worksheet. Each table has been grouped (and sub-grouped) for ease of navigation. See the Instructions sheet on how to group or ungroup tables.
B8: 4.1.2 - DESCRIPTOR METRICS ANNUALLY
D9: VOLUMES & EXPENDITURE
C10: Units | D10: =CRCP_y4 -> 2019-20 | E10: =CRCP_y5 -> 2020-21 | F10: =FRCP_y1 -> 2021-22 | G10: =FRCP_y2 -> 2022-23 | H10: =FRCP_y3 -> 2023-24 | I10: =FRCP_y4 -> 2024-25 | J10: =FRCP_y5 -> 2025-26
B11: LIGHT INSTALLATION
B12: Number of lights installed | C12: 0's | D12: 13264 | E12: 13264 | F12: 13264 | G12: 13264 | H12: 13264 | I12: 13264 | J12: 13264
B13: Number of poles installed | C13: 0's | D13: 0 | E13: 0 | F13: 0 | G13: 0 | H13: 0 | I13: 0 | J13: 0
B14: Total expenditure | C14: $0's | D14: 5849373.532 | E14: 5922508.598 | F14: 6022996.535 | G14: 6150067.673 | H14: 6284215.406 | I14: 6411194.423 | J14: 6526150.481
B15: LIGHT REPLACEMENT
B16: Number of lights replaced | C16: 0's | D16: 1912.266282 | E16: 1844.340688 | F16: 1776.415094 | G16: 1746.385441 | H16: 1719.915728 | I16: 1688.30298 | J16: 1669.129804
B17: Number of poles replaced | C17: 0's | D17: 208 | E17: 208 | F17: 224.8145455 | G17: 224.8145455 | H17: 224.8145455 | I17: 224.8145455 | J17: 224.8145455
B18: Total expenditure | C18: $0's | D18: 1873644.525 | E18: 1835364.264 | F18: 1797084.002 | G18: 2916647.787 | H18: 2956701.561 | I18: 2986997.022 | J18: 3004074.516
B19: LIGHT MAINTENANCE
B20: Number of lights maintained | C20: 0's | D20: 17503.44466 | E20: 17560.88931 | F20: 17618.33397 | G20: 17675.77863 | H20: 17733.22328 | I20: 17790.66794 | J20: 17848.1126
B21: Number of poles maintained | C21: 0's | D21: 4398.938574 | E21: 4417.262715 | F21: 4435.685644 | G21: 4454.207893 | H21: 4472.829999 | I21: 4491.552498 | J21: 4510.375933
B22: Total expenditure | C22: $0's | D22: 2749666.444 | E22: 3394785.084 | F22: 4039903.725 | G22: 3973100.458 | H22: 3918291.718 | I22: 3855224.496 | J22: 3837635.964
B23: QUALITY OF SUPPLY
B24: Mean days to rectify/replace public lighting assets | C24: days | D24: 3 | E24: 3 | F24: 3 | G24: 3 | H24: 3 | I24: 3 | J24: 3
B25: GSO breaches | C25: 0's | D25: 228 | E25: 228 | F25: 228 | G25: 228 | H25: 228 | I25: 228 | J25: 228
B26: GSL payments | C26: $0's | D26: 3250 | E26: 3250 | F26: 3250 | G26: 3250 | H26: 3250 | I26: 3250 | J26: 3250
B27: Customer complaints | C27: 0's | D27: 130 | E27: 130 | F27: 130 | G27: 130 | H27: 130 | I27: 130 | J27: 130
B31: 4.1.3 - COST METRICS
D32: =CONCATENATE("AVERAGE UNIT COST ($0's, real ",dms_DollarReal, ")") -> AVERAGE UNIT COST ($0's, real June 2021)
D33: =CRCP_y4 -> 2019-20 | E33: =CRCP_y5 -> 2020-21 | F33: =FRCP_y1 -> 2021-22 | G33: =FRCP_y2 -> 2022-23 | H33: =FRCP_y3 -> 2023-24 | I33: =FRCP_y4 -> 2024-25 | J33: =FRCP_y5 -> 2025-26
B34: LIGHT INSTALLATION
B35: New Light Major Road (CNJ) | D35: 1319.871339 | E35: 1335.028059 | F35: 1351.719995 | G35: 1374.654795 | H35: 1403.656796 | I35: 1434.273919 | J35: 1463.254894
B36: Pb.Light CapProj - Major Scheme (CLJ) | D36: 1893.446957 | E36: 1915.190322 | F36: 1939.136061 | G36: 1972.037623 | H36: 2013.643004 | I36: 2057.565389 | J36: 2099.140608
B37: New Light Minor Road (CNM) | D37: 528.5133567 | E37: 534.5825307 | F37: 541.266448 | G37: 550.4501828 | H37: 562.0633941 | I37: 574.3233454 | J37: 585.9281376
B38: New Light Watchman (CNW) | D38: 1495.816333 | E38: 1512.993514 | F38: 1531.910562 | G38: 1557.902678 | H38: 1590.77078 | I38: 1625.469308 | J38: 1658.313582
B39: New Sustainable Light (CNG) | D39: 682.5013696 | E39: 690.3388624 | F39: 698.9702103 | G39: 710.8297244 | H39: 725.8265689 | I39: 741.6585879 | J39: 756.6445603
B40: New Sustainable Lantern & Bracket (CNS) | D40: 2308.33485 | E40: 2334.842574 | F40: 2364.03525 | G40: 2404.146129 | H40: 2454.867988 | I40: 2508.414549 | J40: 2559.099638
B41: Pb.Light CapProj - Minor Scheme (CLN) | D41: 203.1097408 | E41: 205.4421481 | F41: 208.0108035 | G41: 211.5401485 | H41: 216.0031509 | I41: 220.7146978 | J41: 225.1744647
B95: LIGHT REPLACEMENT
B96: SINGLE MAJOR RD REPL (RLJ) | D96: 781.6469983 | E96: 781.6469983 | F96: 791.4199774 | G96: 804.8480981 | H96: 821.8285103 | I96: 839.754562 | J96: 856.7226642
B97: SINGLE MINOR RD REPL (RLM) | D97: 607.0713931 | E97: 607.0713931 | F97: 614.6616429 | G97: 625.0906831 | H97: 638.2786343 | I97: 652.2010228 | J97: 665.3794134
B98: SINGLE SUSTAINABLE LANTERN REPL (RLG) | D98: 364.9894271 | E98: 364.9894271 | F98: 369.5529117 | G98: 375.8231617 | H98: 383.7521513 | I98: 392.1227065 | J98: 400.0459479
B99: Single Sustainable Lantern Replacement (RLS) | D99: 2417.525254 | E99: 2417.525254 | F99: 2447.751717 | G99: 2489.283023 | H99: 2541.801072 | I99: 2597.243852 | J99: 2649.723828
B156: LIGHT MAINTENANCE
B157: PL Luminaires (MLF) | D157: 256.8686927 | E157: 260.0803372 | F157: 264.4931525 | G157: 270.0733394 | H157: 275.9642869 | I157: 281.5404283 | J157: 286.588595
B158: PL Poles (MLR) | D158: 275.1068197 | E158: 278.5464966 | F158: 283.2726295 | G158: 289.2490194 | H158: 295.5582345 | I158: 301.5302918 | J158: 306.9368871
B159: MINOR LAMP BULK (MRB) | D159: 57.51847587 | E159: 58.2376328 | F159: 59.22575793 | G159: 60.47528289 | H159: 61.79439391 | I159: 63.04301301 | J159: 64.1734071
B160: PL Luminaires (MRF) | D160: 224.2911482 | E160: 227.0954738 | F160: 230.9486309 | G160: 235.8211068 | H160: 240.9649309 | I160: 245.8338745 | J160: 250.241804
B161: PL Poles (MRR) | D161: 258.3094214 | E161: 261.5390795 | F161: 265.9766455 | G161: 271.5881306 | H161: 277.5121193 | I161: 283.1195363 | J161: 288.1960172
B162: Bulk Change Sustainable Lantern - Minor Rd (MRS) | D162: 65.93535461 | E162: 66.75974828 | F162: 67.89246919 | G162: 69.32484148 | H162: 70.83698261 | I162: 72.2683165 | J162: 73.56412508

Sheet 4.2 Metering
B1: =INDEX(dms_Worksheet_List,MATCH(dms_Model,dms_Model_List)) -> REGULATORY REPORTING STATEMENT
B2: =INDEX(dms_TradingNameFull_List,MATCH(dms_TradingName,dms_TradingName_List)) -> United Energy
B3: =dms_Header_Span -> 2021-22 to 2025-26
B4: 4.2 METERING
B6: There are TWO tables on this worksheet. Each table has been 'grouped' (and 'sub-grouped') for easy navigation. See the Instructions sheet on how to group or ungroup data.
B8: 4.2.1 - METERING DESCRIPTOR METRIC
E9: VOLUMES (0's)
B10: ASSET CATEGORY | C10: ASSET SUBCATEGORY | E10: =CRCP_y4 -> 2019-20 | F10: =CRCP_y5 -> 2020-21 | G10: =FRCP_y1 -> 2021-22 | H10: =FRCP_y2 -> 2022-23 | I10: =FRCP_y3 -> 2023-24 | J10: =FRCP_y4 -> 2024-25 | K10: =FRCP_y5 -> 2025-26
B11: Meter Type 4 | C11: Single phase meter population | E11: 583315.5937 | F11: 595740.2642 | G11: 610605.5956 | H11: 618581.1285 | I11: 625236.3841 | J11: 631677.4855 | K11: 637870.0133
C12: Multi phase meter population | E12: 111216.1504 | F12: 117694.4006 | G12: 124966.4689 | H12: 128950.0945 | I12: 132626.1467 | J12: 136215.777 | K12: 139706.7783
C13: Current transformer connected meter population | E13: 3783.788217 | F13: 4227.617167 | G13: 4756.19428 | H13: 5066.070495 | I13: 5361.227861 | J13: 5650.238343 | K13: 5932.290949
C14: Direct connect meter population | E14: 690747.956 | F14: 709207.0477 | G14: 730815.8703 | H14: 742465.1525 | I14: 752501.3029 | J14: 762243.0241 | K14: 771644.5007
B15: Meter Type 5 | C15: Single phase meter population | E15: 205.5773186 | F15: 156.8693432 | G15: 100.9612871 | H15: 84.62886173 | I15: 83.632224 | J15: 82.64110178 | K15: 81.65497925
C16: Multi phase meter population | E16: 392.8358663 | F16: 299.7602301 | G16: 192.9260238 | H16: 161.7165378 | I16: 159.8120716 | J16: 157.918145 | K16: 156.0337722
C17: Current transformer connected meter population | E17: 105.1633148 | F17: 80.24669371 | G17: 51.64686301 | H17: 43.29199197 | I17: 42.78216079 | J17: 42.27515107 | K17: 41.77069896
C18: Direct connect meter population | E18: 493.2498701 | F18: 376.3828795 | G18: 242.2404478 | H18: 203.0534075 | I18: 200.6621348 | J18: 198.2840957 | K18: 195.9180525
B19: Meter Type 6 | C19: Single phase meter population | E19: 10303.29096 | F19: 7862.105102 | G19: 5060.059753 | H19: 4241.498001 | I19: 4191.547702 | J19: 4141.873834 | K19: 4092.450544
C20: Multi phase meter population | E20: 5079.048869 | F20: 3875.656446 | G20: 2494.376881 | H20: 2090.863561 | I20: 2066.240359 | J20: 2041.753425 | K20: 2017.390015
C21: Current transformer connected meter population | E21: 65.81188088 | F21: 50.21889865 | G21: 32.32094008 | H21: 27.09240788 | I21: 26.77335224 | J21: 26.45606229 | K21: 26.1403729
C22: Direct connect meter population | E22: 15316.52795 | F22: 11687.54265 | G22: 7522.115694 | H22: 6305.269153 | I22: 6231.014709 | J22: 6157.171197 | K22: 6083.700187
B25: 4.2.2 - COST METRICS
B26: EXPENDITURE
E27: =CONCATENATE("EXPENDITURE ($0's, real ",dms_DollarReal,")") -> EXPENDITURE ($0's, real June 2021)
B28: SERVICE SUBCATEGORY | C28: METER TYPE | E28: =CRCP_y4 -> 2019-20 | F28: =CRCP_y5 -> 2020-21 | G28: =FRCP_y1 -> 2021-22 | H28: =FRCP_y2 -> 2022-23 | I28: =FRCP_y3 -> 2023-24 | J28: =FRCP_y4 -> 2024-25 | K28: =FRCP_y5 -> 2025-26
B29: Meter purchase | D29: Meter Type 4 | E29: 6971423.718 | F29: 7799339.605 | G29: 7135126.277 | H29: 7257337.958 | I29: 7363594.549 | J29: 7730922.095 | K29: 8276490.422
D30: Meter Type 5 | E30: 0 | F30: 0 | G30: 0 | H30: 0 | I30: 0 | J30: 0 | K30: 0
D31: Meter Type 6 | E31: 0 | F31: 0 | G31: 0 | H31: 0 | I31: 0 | J31: 0 | K31: 0
B32: Meter testing | D32: Meter Type 4 | E32: 178675.8735 | F32: 183804.9009 | G32: 190990.5282 | H32: 196115.4313 | I32: 201303.6553 | J32: 206322.0398 | K32: 211057.5326
D33: Meter Type 5 | E33: 0 | F33: 0 | G33: 0 | H33: 0 | I33: 0 | J33: 0 | K33: 0
D34: Meter Type 6 | E34: 5726.266614 | F34: 5890.643468 | G34: 4284.651669 | H34: 4399.622945 | I34: 4516.01475 | J34: 4628.596405 | K34: 4734.83171
B35: Meter investigation | D35: Meter Type 4 | E35: 99147.81607 | F35: 101993.9298 | G35: 105981.2575 | H35: 108825.0827 | I35: 111704.0448 | J35: 114488.7625 | K35: 117116.5027
D36: Meter Type 5 | E36: 14628.36631 | F36: 15048.28473 | G36: 10945.60528 | H36: 11239.31182 | I36: 11536.64725 | J36: 11824.24925 | K36: 12095.6388
D37: Meter Type 6 | E37: 26005.98454 | F37: 26752.50618 | G37: 19458.85384 | H37: 19980.99879 | I37: 20509.59512 | J37: 21020.88755 | K37: 21503.35787
B38: Scheduled meter reading | D38: Meter Type 4 | E38: 0 | F38: 0 | G38: 0 | H38: 0 | I38: 0 | J38: 0 | K38: 0
D39: Meter Type 5 | E39: 47926.4967 | F39: 49302.26337 | G39: 35860.77245 | H39: 36823.03475 | I39: 37797.1863 | J39: 38739.44845 | K39: 39628.59427
D40: Meter Type 6 | E40: 431192.936 | F40: 443570.6584 | G40: 322638.0567 | H40: 331295.4954 | I40: 340059.9012 | J40: 348537.3993 | K40: 356537.0117
B41: Special meter reading | D41: Meter Type 4 | E41: 0 | F41: 0 | G41: 0 | H41: 0 | I41: 0 | J41: 0 | K41: 0
D42: Meter Type 5 | E42: 0 | F42: 0 | G42: 0 | H42: 0 | I42: 0 | J42: 0 | K42: 0
D43: Meter Type 6 | E43: 0 | F43: 0 | G43: 0 | H43: 0 | I43: 0 | J43: 0 | K43: 0
B44: New meter installation | D44: Meter Type 4 | E44: 10368184.34 | F44: 13182785.15 | G44: 11098143.31 | H44: 10934742.26 | I44: 10794779.02 | J44: 10729215.19 | K44: 10640581.86
D45: Meter Type 5 | E45: 0 | F45: 0 | G45: 0 | H45: 0 | I45: 0 | J45: 0 | K45: 0
D46: Meter Type 6 | E46: 0 | F46: 0 | G46: 0 | H46: 0 | I46: 0 | J46: 0 | K46: 0
B47: Meter replacement | D47: Meter Type 4 | E47: 4777912.462 | F47: 2963192.892 | G47: 2916070.516 | H47: 2769807.709 | I47: 2130001.573 | J47: 2494815.024 | K47: 3096396.111
D48: Meter Type 5 | E48: 0 | F48: 0 | G48: 0 | H48: 0 | I48: 0 | J48: 0 | K48: 0
D49: Meter Type 6 | E49: 0 | F49: 0 | G49: 0 | H49: 0 | I49: 0 | J49: 0 | K49: 0
B50: Meter maintenance | D50: Meter Type 4 | E50: 0 | F50: 0 | G50: 0 | H50: 0 | I50: 0 | J50: 0 | K50: 0
D51: Meter Type 5 | E51: 0 | F51: 0 | G51: 0 | H51: 0 | I51: 0 | J51: 0 | K51: 0
D52: Meter Type 6 | E52: 0 | F52: 0 | G52: 0 | H52: 0 | I52: 0 | J52: 0 | K52: 0
B53: Remote meter reading | D53: Meter Type 4 | E53: 0 | F53: 0 | G53: 0 | H53: 0 | I53: 0 | J53: 0 | K53: 0
B54: Remote meter re-configuration | D54: Meter Type 4 | E54: 0 | F54: 0 | G54: 0 | H54: 0 | I54: 0 | J54: 0 | K54: 0
B55: Other metering | D55: Meter Type 4 | E55: 1993259.12 | F55: 2050477.145 | G55: 2130638.036 | H55: 2187810.052 | I55: 2245688.458 | J55: 2301672.182 | K55: 2354500.043
D56: Meter Type 5 | E56: 0 | F56: 0 | G56: 0 | H56: 0 | I56: 0 | J56: 0 | K56: 0
D57: Meter Type 6 | E57: 0 | F57: 0 | G57: 0 | H57: 0 | I57: 0 | J57: 0 | K57: 0
D58: Meter Type 7 | E58: 0 | F58: 0 | G58: 0 | H58: 0 | I58: 0 | J58: 0 | K58: 0
B59: IT infrastructure capex | D59: Meter Type 4 | E59: 880195.7511 | F59: 891200.8911 | G59: 1705836.157 | H59: 0 | I59: 114825.8825 | J59: 0 | K59: 894317.005
B60: IT infrastructure opex | D60: Meter Type 4 | E60: 3801198.181 | F60: 3910314.477 | G60: 4063183.429 | H60: 4172211.985 | I60: 4282587.645 | J60: 4389350.095 | K60: 4490094.232
B61: Communications infrastructure capex | D61: Meter Type 4 | E61: 1219338.309 | F61: 1219338.309 | G61: 156242.3204 | H61: 163327.7898 | I61: 170184.8331 | J61: 187045.5408 | K61: 265984.3018
B62: Communications infrastructure opex | D62: Meter Type 4 | E62: 1040935.036 | F62: 1070815.87 | G62: 133521.3725 | H62: 137104.1895 | I62: 140731.274 | J62: 144239.6238 | K62: 147550.2042
B64: VOLUMES
E65: VOLUMES (0's)
B66: SERVICE SUBCATEGORY | C66: METER TYPE | E66: =CRCP_y4 -> 2019-20 | F66: =CRCP_y5 -> 2020-21 | G66: =FRCP_y1 -> 2021-22 | H66: =FRCP_y2 -> 2022-23 | I66: =FRCP_y3 -> 2023-24 | J66: =FRCP_y4 -> 2024-25 | K66: =FRCP_y5 -> 2025-26
B67: Meter purchase | D67: Meter Type 4 | E67: 8424.265267 | F67: 22191.61369 | G67: 25927.46569 | H67: 24082.19836 | I67: 24460.9792 | J67: 24770.42492 | K67: 26022.09628
D68: Meter Type 5 | E68: 0 | F68: 0 | G68: 0 | H68: 0 | I68: 0 | J68: 0 | K68: 0
D69: Meter Type 6 | E69: 0 | F69: 0 | G69: 0 | H69: 0 | I69: 0 | J69: 0 | K69: 0
B70: Meter testing | D70: Meter Type 4 | E70: 890.9042938 | F70: 915.1518439 | G70: 943.5483925 | H70: 958.8888944 | I70: 972.1412858 | J70: 985.0081159 | K70: 997.4295751
D71: Meter Type 5 | E71: 0 | F71: 0 | G71: 0 | H71: 0 | I71: 0 | J71: 0 | K71: 0
D72: Meter Type 6 | E72: 0 | F72: 0 | G72: 0 | H72: 0 | I72: 0 | J72: 0 | K72: 0
B73: Meter investigation | D73: Meter Type 4 | E73: 375.6578013 | F73: 385.8819987 | G73: 397.8556586 | H73: 404.3241191 | I73: 409.912109 | J73: 415.3375235 | K73: 420.5751434
D74: Meter Type 5 | E74: 0 | F74: 0 | G74: 0 | H74: 0 | I74: 0 | J74: 0 | K74: 0
D75: Meter Type 6 | E75: 0 | F75: 0 | G75: 0 | H75: 0 | I75: 0 | J75: 0 | K75: 0
B76: Scheduled meter reading | D76: Meter Type 4 | E76: 0 | F76: 0 | G76: 0 | H76: 0 | I76: 0 | J76: 0 | K76: 0
D77: Meter Type 5 | E77: 3765.525143 | F77: 2873.349356 | G77: 1849.290901 | H77: 1550.132616 | I77: 1531.87737 | J77: 1513.723151 | K77: 1495.660511
D78: Meter Type 6 | E78: 64255.46382 | F78: 49031.24758 | G78: 31556.56651 | H78: 26451.6864 | I78: 26140.17626 | J78: 25830.39005 | K78: 25522.16655
B79: Special meter reading | D79: Meter Type 4 | E79: 0 | F79: 0 | G79: 0 | H79: 0 | I79: 0 | J79: 0 | K79: 0
D80: Meter Type 5 | E80: 0 | F80: 0 | G80: 0 | H80: 0 | I80: 0 | J80: 0 | K80: 0
D81: Meter Type 6 | E81: 0 | F81: 0 | G81: 0 | H81: 0 | I81: 0 | J81: 0 | K81: 0
B82: New meter installation | D82: Meter Type 4 | E82: 18405.77718 | F82: 23402.30441 | G82: 19701.61278 | H82: 19396.23604 | I82: 19134.66173 | J82: 19012.13091 | K82: 18846.48597
D83: Meter Type 5 | E83: 0 | F83: 0 | G83: 0 | H83: 0 | I83: 0 | J83: 0 | K83: 0
D84: Meter Type 6 | E84: 0 | F84: 0 | G84: 0 | H84: 0 | I84: 0 | J84: 0 | K84: 0
B85: Meter replacement | D85: Meter Type 4 | E85: 10509.83651 | F85: 7232.161277 | G85: 6733.585588 | H85: 6475.743157 | I85: 6482.763187 | J85: 7517.96537 | K85: 9338.048348
D86: Meter Type 5 | E86: 0 | F86: 0 | G86: 0 | H86: 0 | I86: 0 | J86: 0 | K86: 0
D87: Meter Type 6 | E87: 0 | F87: 0 | G87: 0 | H87: 0 | I87: 0 | J87: 0 | K87: 0
B88: Meter maintenance | D88: Meter Type 4 | E88: 0 | F88: 0 | G88: 0 | H88: 0 | I88: 0 | J88: 0 | K88: 0
D89: Meter Type 5 | E89: 0 | F89: 0 | G89: 0 | H89: 0 | I89: 0 | J89: 0 | K89: 0
D90: Meter Type 6 | E90: 0 | F90: 0 | G90: 0 | H90: 0 | I90: 0 | J90: 0 | K90: 0
B91: Remote meter reading | D91: Meter Type 4 | E91: 251238479 | F91: 258076382.5 | G91: 266084319.8 | H91: 270410401 | I91: 274147627 | J91: 277776123.2 | K91: 281279023
B92: Remote meter re-configuration | D92: Meter Type 4 | E92: 6950.695712 | F92: 7139.871298 | G92: 7361.416721 | H92: 7481.100914 | I92: 7584.493995 | J92: 7684.878987 | K92: 7781.789265

Sheet 4.3 Fee-based services
B1: =INDEX(dms_Worksheet_List,MATCH(dms_Model,dms_Model_List)) -> REGULATORY REPORTING STATEMENT
B2: =INDEX(dms_TradingNameFull_List,MATCH(dms_TradingName,dms_TradingName_List)) -> United Energy
B3: =dms_Header_Span -> 2021-22 to 2025-26
B4: 4.3 ANCILLARY SERVICES - FEE BASED SERVICES
B6: There are TWO tables on this worksheet. The COLUMNS representing each table have been 'grouped' for easy navigation. See the Instructions sheet on how to group or ungroup data.
B8: 4.3.1 - COST METRICS FOR FEE-BASED SERVICES
B9: SERVICE SUBCATEGORY | C9: =CONCATENATE("EXPENDITURE ($0's, real ", dms_DollarReal, ")") -> EXPENDITURE ($0's, real June 2021) | J9: VOLUMES (0's)
C10: =CRCP_y4 -> 2019-20 | D10: =CRCP_y5 -> 2020-21 | E10: =FRCP_y1 -> 2021-22 | F10: =FRCP_y2 -> 2022-23 | G10: =FRCP_y3 -> 2023-24 | H10: =FRCP_y4 -> 2024-25 | I10: =FRCP_y5 -> 2025-26 | J10: =CRCP_y4 -> 2019-20 | K10: =CRCP_y5 -> 2020-21 | L10: =FRCP_y1 -> 2021-22 | M10: =FRCP_y2 -> 2022-23 | N10: =FRCP_y3 -> 2023-24 | O10: =FRCP_y4 -> 2024-25 | P10: =FRCP_y5 -> 2025-26
B11: COMMON FEE-BASED SERVICES
B12: Energisation
B13: De-energisation | C13: 184824.8808 | D13: 190661.456 | E13: 196739.6323 | F13: 220348.3882 | G13: 246790.1948 | H13: 276405.0182 | I13: 309573.6203 | J13: 3758 | K13: 3825 | L13: 3868 | M13: 4332.16 | N13: 4852.0192 | O13: 5434.261504 | P13: 6086.372884
B14: Re-energisation | C14: 253237.4385 | D14: 257446.0172 | E14: 276072.9171 | F14: 309201.6671 | G14: 346305.8672 | H14: 387862.5712 | I14: 434406.0798 | J14: 4624 | K14: 4689 | L14: 4758 | M14: 5328.96 | N14: 5968.4352 | O14: 6684.647424 | P14: 7486.805115
B15: MISCELLANEOUS FEE-BASED SERVICES
B16: Service (DNSP to nominate) | C16: 206641.7245 | D16: 202508.8901 | E16: 217517.6048 | F16: 219692.7808 | G16: 221889.7086 | H16: 224108.6057 | I16: 226349.6918 | J16: 704.9475 | K16: 726.75 | L16: 765 | M16: 772.65 | N16: 780.3765 | O16: 788.180265 | P16: 796.0620677
C17: 30793.66876 | D17: 30177.79538 | E17: 32414.38816 | F17: 32414.38816 | G17: 32414.38816 | H17: 32414.38816 | I17: 32414.38816 | J17: 105.051 | K17: 108.3 | L17: 114 | M17: 114 | N17: 114 | O17: 114 | P17: 114
C18: 3154.130456 | D18: 3253.734576 | E18: 3320.137322 | F18: 3320.137322 | G18: 3320.137322 | H18: 3320.137322 | I18: 3320.137322 | J18: 139 | K18: 139 | L18: 139 | M18: 139 | N18: 139 | O18: 139 | P18: 139
C19: 1122881.721 | D19: 1150953.764 | E19: 0 | F19: 0 | G19: 0 | H19: 0 | I19: 0 | J19: 2089 | K19: 2089 | L19: 0 | M19: 0 | N19: 0 | O19: 0 | P19: 0
C20: 321045.615 | D20: 324256.0711 | E20: 0 | F20: 0 | G20: 0 | H20: 0 | I20: 0 | J20: 932 | K20: 932 | L20: 0 | M20: 0 | N20: 0 | O20: 0 | P20: 0
C21: 375663.54 | D21: 383330.1428 | E21: 391153.2069 | F21: 391153.2069 | G21: 391153.2069 | H21: 391153.2069 | I21: 391153.2069 | J21: 5768 | K21: 5768 | L21: 5768 | M21: 5768 | N21: 5768 | O21: 5768 | P21: 5768
C22: 514138.7 | D22: 523875.486 | E22: 0 | F22: 0 | G22: 0 | H22: 0 | I22: 0 | J22: 45499 | K22: 45953.99 | L22: 0 | M22: 0 | N22: 0 | O22: 0 | P22: 0
C23: 463639 | D23: 523875.486 | E23: 0 | F23: 0 | G23: 0 | H23: 0 | I23: 0 | J23: 41030 | K23: 45953.99 | L23: 0 | M23: 0 | N23: 0 | O23: 0 | P23: 0
C24: 0 | D24: 0 | E24: 188603.0124 | F24: 188603.0124 | G24: 188603.0124 | H24: 188603.0124 | I24: 188603.0124 | J24: 0 | K24: 0 | L24: 550.6604667 | M24: 550.6604667 | N24: 550.6604667 | O24: 550.6604667 | P24: 550.6604667
C25: 0 | D25: 0 | E25: 51745.05236 | F25: 51745.05236 | G25: 51745.05236 | H25: 51745.05236 | I25: 51745.05236 | J25: 0 | K25: 0 | L25: 86.18802841 | M25: 86.18802841 | N25: 86.18802841 | O25: 86.18802841 | P25: 86.18802841
C26: 0 | D26: 0 | E26: 837615.5472 | F26: 837615.5472 | G26: 837615.5472 | H26: 837615.5472 | I26: 837615.5472 | J26: 0 | K26: 0 | L26: 1413.501522 | M26: 1413.501522 | N26: 1413.501522 | O26: 1413.501522 | P26: 1413.501522
C27: 0 | D27: 0 | E27: 132933.7101 | F27: 132933.7101 | G27: 132933.7101 | H27: 132933.7101 | I27: 132933.7101 | J27: 0 | K27: 0 | L27: 169.6499831 | M27: 169.6499831 | N27: 169.6499831 | O27: 169.6499831 | P27: 169.6499831
C28: 0 | D28: 0 | E28: 191292.3891 | F28: 191292.3891 | G28: 191292.3891 | H28: 191292.3891 | I28: 191292.3891 | J28: 0 | K28: 0 | L28: 577 | M28: 577 | N28: 577 | O28: 577 | P28: 577

Sheet 4.4 Quoted services
B1: =INDEX(dms_Worksheet_List,MATCH(dms_Model,dms_Model_List)) -> REGULATORY REPORTING STATEMENT
B2: =INDEX(dms_TradingNameFull_List,MATCH(dms_TradingName,dms_TradingName_List)) -> United Energy
B3: =dms_Header_Span -> 2021-22 to 2025-26
B4: 4.4 ANCILLARY SERVICES - QUOTED SERVICES
B6: There are TWO tables on this worksheet. The COLUMNS representing each table have been 'grouped' for easy navigation. See the Instructions sheet on how to group or ungroup data.
B8: 4.4.1 - COST METRICS FOR QUOTED SERVICES
B9: SERVICE SUBCATEGORY | C9: =CONCATENATE("EXPENDITURE ($0's, real ", dms_DollarReal, ")") -> EXPENDITURE ($0's, real June 2021) | J9: VOLUMES (0's)
C10: =CRCP_y4 -> 2019-20 | D10: =CRCP_y5 -> 2020-21 | E10: =FRCP_y1 -> 2021-22 | F10: =FRCP_y2 -> 2022-23 | G10: =FRCP_y3 -> 2023-24 | H10: =FRCP_y4 -> 2024-25 | I10: =FRCP_y5 -> 2025-26 | J10: =CRCP_y4 -> 2019-20 | K10: =CRCP_y5 -> 2020-21 | L10: =FRCP_y1 -> 2021-22 | M10: =FRCP_y2 -> 2022-23 | N10: =FRCP_y3 -> 2023-24 | O10: =FRCP_y4 -> 2024-25 | P10: =FRCP_y5 -> 2025-26
B11: Service (DNSP to nominate)
B12: Connection services | C12: 12737.745 | D12: 12928.81117 | E12: 0 | F12: 0 | G12: 0 | H12: 0 | I12: 0 | J12: 57 | K12: 57 | L12: 0 | M12: 0 | N12: 0 | O12: 0 | P12: 0
B13: Ancillary services | C13: 1533310.551 | D13: 1563976.762 | E13: 0 | F13: 0 | G13: 0 | H13: 0 | I13: 0 | J13: 680 | K13: 680 | L13: 0 | M13: 0 | N13: 0 | O13: 0 | P13: 0
B14: Audit design and construction | C14: 0 | D14: 0 | E14: 619789.6917 | F14: 619789.6917 | G14: 619789.6917 | H14: 619789.6917 | I14: 619789.6917 | J14: 0 | K14: 0 | L14: 305 | M14: 305 | N14: 305 | O14: 305 | P14: 305
B15: Specification and design enquiry | C15: 0 | D15: 0 | E15: 746040.4625 | F15: 746040.4625 | G15: 746040.4625 | H15: 746040.4625 | I15: 746040.4625 | J15: 0 | K15: 0 | L15: 313 | M15: 313 | N15: 313 | O15: 313 | P15: 313
B16: High load escorts–surveying and lifting overhead lines | C16: 0 | D16: 0 | E16: 32833.82265 | F16: 32833.82265 | G16: 32833.82265 | H16: 32833.82265 | I16: 32833.82265 | J16: 0 | K16: 0 | L16: 25 | M16: 25 | N16: 25 | O16: 25 | P16: 25
B17: No-go zone safety-related services | C17: 0 | D17: 0 | E17: 94579.16685 | F17: 94579.16685 | G17: 94579.16685 | H17: 94579.16685 | I17: 94579.16685 | J17: 0 | K17: 0 | L17: 54 | M17: 54 | N17: 54 | O17: 54 | P17: 54
B18: Elective undergrounding | C18: 0 | D18: 0 | E18: 64937.35856 | F18: 64937.35856 | G18: 64937.35856 | H18: 64937.35856 | I18: 64937.35856 | J18: 0 | K18: 0 | L18: 36 | M18: 36 | N18: 36 | O18: 36 | P18: 36
B19: Reserve feeder maintenance | C19: 0 | D19: 0 | E19: 5796.260196 | F19: 5796.260196 | G19: 5796.260196 | H19: 5796.260196 | I19: 5796.260196 | J19: 0 | K19: 0 | L19: 4 | M19: 4 | N19: 4 | O19: 4 | P19: 4

Sheet 5.4 MD & utilisation-Spatial
B1: =INDEX(dms_Worksheet_List,MATCH(dms_Model,dms_Model_List)) -> REGULATORY REPORTING STATEMENT
B2: =INDEX(dms_TradingNameFull_List,MATCH(dms_TradingName,dms_TradingName_List)) -> United Energy
B3: =dms_Header_Span -> 2021-22 to 2025-26
B4: 5.4 MAXIMUM DEMAND AND UTILISATION AT SPATIAL LEVEL
B6: There are two tables on this worksheet. The tables have been sub-grouped for ease of navigation. See the Instructions sheet on how to group or ungroup tables.
B8: 5.4.1 - NON-COINCIDENT & COINCIDENT MAXIMUM DEMAND
B9: SUBTRANSMISSION SUBSTATION
F10: Demand
B11: SUBSTATION | C11: FORECASTING ELEMENTS | D11: UNIT | E11: MAX DEMAND | F11: =CRCP_y4 -> 2019-20 | G11: =CRCP_y5 -> 2020-21 | H11: =FRCP_y1 -> 2021-22 | I11: =FRCP_y2 -> 2022-23 | J11: =FRCP_y3 -> 2023-24 | K11: =FRCP_y4 -> 2024-25 | L11: =FRCP_y5 -> 2025-26
B12: <Enter substation name> | C12: Substation Rating | D12: MVA | E12: Non-Coincident
E13: Coincident
C14: Raw Adjusted MD | D14: MW | E14: Non-Coincident
E15: Coincident
C16: Raw Adjusted MD | D16: MVA | E16: Non-Coincident
E17: Coincident
C18: Date MD occurred | E18: Non-Coincident
E19: Coincident
C20: Half hour time period MD occurred | E20: Non-Coincident
E21: Coincident
C22: Winter/Summer Peaking | E22: Non-Coincident
E23: Coincident
C24: Adjustments - Embedded generation | D24: MW | E24: Non-Coincident
E25: Coincident
C26: Weather Corrected 10% POE | D26: MW | E26: Non-Coincident
E27: Coincident
C28: Weather Corrected MD 10% POE | D28: MVA | E28: Non-Coincident
E29: Coincident
C30: Weather Corrected MD 50% POE | D30: MW | E30: Non-Coincident
E31: Coincident
C32: Weather Corrected MD 50% POE | D32: MVA | E32: Non-Coincident
E33: Coincident
B34: <Enter substation name> | C34: Substation Rating | D34: MVA | E34: Non-Coincident
E35: Coincident
C36: Raw Adjusted MD | D36: MW | E36: Non-Coincident
E37: Coincident
C38: Raw Adjusted MD | D38: MVA | E38: Non-Coincident
E39: Coincident
C40: Date MD occurred | E40: Non-Coincident
E41: Coincident
C42: Half hour time period MD occurred | E42: Non-Coincident
E43: Coincident
C44: Winter/Summer Peaking | E44: Non-Coincident
E45: Coincident
C46: Adjustments - Embedded generation | D46: MW | E46: Non-Coincident
E47: Coincident
C48: Weather Corrected 10% POE | D48: MW | E48: Non-Coincident
E49: Coincident
C50: Weather Corrected MD 10% POE | D50: MVA | E50: Non-Coincident
E51: Coincident
C52: Weather Corrected MD 50% POE | D52: MW | E52: Non-Coincident
E53: Coincident
C54: Weather Corrected MD 50% POE | D54: MVA | E54: Non-Coincident
E55: Coincident
B56: <Enter substation name> | C56: Substation Rating | D56: MVA | E56: Non-Coincident
E57: Coincident
C58: Raw Adjusted MD | D58: MW | E58: Non-Coincident
E59: Coincident
C60: Raw Adjusted MD | D60: MVA | E60: Non-Coincident
E61: Coincident
C62: Date MD occurred | E62: Non-Coincident
E63: Coincident
C64: Half hour time period MD occurred | E64: Non-Coincident
E65: Coincident
C66: Winter/Summer Peaking | E66: Non-Coincident
E67: Coincident
C68: Adjustments - Embedded generation | D68: MW | E68: Non-Coincident
E69: Coincident
C70: Weather Corrected 10% POE | D70: MW | E70: Non-Coincident
E71: Coincident
C72: Weather Corrected MD 10% POE | D72: MVA | E72: Non-Coincident
E73: Coincident
C74: Weather Corrected MD 50% POE | D74: MW | E74: Non-Coincident
E75: Coincident
C76: Weather Corrected MD 50% POE | D76: MVA | E76: Non-Coincident
E77: Coincident
B78: <Enter substation name> | C78: Substation Rating | D78: MVA | E78: Non-Coincident
E79: Coincident
C80: Raw Adjusted MD | D80: MW | E80: Non-Coincident
E81: Coincident
C82: Raw Adjusted MD | D82: MVA | E82: Non-Coincident
E83: Coincident
C84: Date MD occurred | E84: Non-Coincident
E85: Coincident
C86: Half hour time period MD occurred | E86: Non-Coincident
E87: Coincident
C88: Winter/Summer Peaking | E88: Non-Coincident
E89: Coincident
C90: Adjustments - Embedded generation | D90: MW | E90: Non-Coincident
E91: Coincident
C92: Weather Corrected 10% POE | D92: MW | E92: Non-Coincident
E93: Coincident
C94: Weather Corrected MD 10% POE | D94: MVA | E94: Non-Coincident
E95: Coincident
C96: Weather Corrected MD 50% POE | D96: MW | E96: Non-Coincident
E97: Coincident
C98: Weather Corrected MD 50% POE | D98: MVA | E98: Non-Coincident
E99: Coincident
B100: <Enter substation name> | C100: Substation Rating | D100: MVA | E100: Non-Coincident
E101: Coincident
C102: Raw Adjusted MD | D102: MW | E102: Non-Coincident
E103: Coincident
C104: Raw Adjusted MD | D104: MVA | E104: Non-Coincident
E105: Coincident
C106: Date MD occurred | E106: Non-Coincident
E107: Coincident
C108: Half hour time period MD occurred | E108: Non-Coincident
E109: Coincident
C110: Winter/Summer Peaking | E110: Non-Coincident
E111: Coincident
C112: Adjustments - Embedded generation | D112: MW | E112: Non-Coincident
E113: Coincident
C114: Weather Corrected 10% POE | D114: MW | E114: Non-Coincident
E115: Coincident
C116: Weather Corrected MD 10% POE | D116: MVA | E116: Non-Coincident
E117: Coincident
C118: Weather Corrected MD 50% POE | D118: MW | E118: Non-Coincident
E119: Coincident
C120: Weather Corrected MD 50% POE | D120: MVA | E120: Non-Coincident
E121: Coincident
B122: <Enter substation name> | C122: Substation Rating | D122: MVA | E122: Non-Coincident
E123: Coincident
C124: Raw Adjusted MD | D124: MW | E124: Non-Coincident
E125: Coincident
C126: Raw Adjusted MD | D126: MVA | E126: Non-Coincident
E127: Coincident
C128: Date MD occurred | E128: Non-Coincident
E129: Coincident
C130: Half hour time period MD occurred | E130: Non-Coincident
E131: Coincident
C132: Winter/Summer Peaking | E132: Non-Coincident
E133: Coincident
C134: Adjustments - Embedded generation | D134: MW | E134: Non-Coincident
E135: Coincident
C136: Weather Corrected 10% POE | D136: MW | E136: Non-Coincident
E137: Coincident
C138: Weather Corrected MD 10% POE | D138: MVA | E138: Non-Coincident
E139: Coincident
C140: Weather Corrected MD 50% POE | D140: MW | E140: Non-Coincident
E141: Coincident
C142: Weather Corrected MD 50% POE | D142: MVA | E142: Non-Coincident
E143: Coincident
B144: <Enter substation name> | C144: Substation Rating | D144: MVA | E144: Non-Coincident
E145: Coincident
C146: Raw Adjusted MD | D146: MW | E146: Non-Coincident
E147: Coincident
C148: Raw Adjusted MD | D148: MVA | E148: Non-Coincident
E149: Coincident
C150: Date MD occurred | E150: Non-Coincident
E151: Coincident
C152: Half hour time period MD occurred | E152: Non-Coincident
E153: Coincident
C154: Winter/Summer Peaking | E154: Non-Coincident
E155: Coincident
C156: Adjustments - Embedded generation | D156: MW | E156: Non-Coincident
E157: Coincident
C158: Weather Corrected 10% POE | D158: MW | E158: Non-Coincident
E159: Coincident
C160: Weather Corrected MD 10% POE | D160: MVA | E160: Non-Coincident
E161: Coincident
C162: Weather Corrected MD 50% POE | D162: MW | E162: Non-Coincident
E163: Coincident
C164: Weather Corrected MD 50% POE | D164: MVA | E164: Non-Coincident
E165: Coincident
B166: <Enter substation name> | C166: Substation Rating | D166: MVA | E166: Non-Coincident
E167: Coincident
C168: Raw Adjusted MD | D168: MW | E168: Non-Coincident
E169: Coincident
C170: Raw Adjusted MD | D170: MVA | E170: Non-Coincident
E171: Coincident
C172: Date MD occurred | E172: Non-Coincident
E173: Coincident
C174: Half hour time period MD occurred | E174: Non-Coincident
E175: Coincident
C176: Winter/Summer Peaking | E176: Non-Coincident
E177: Coincident
C178: Adjustments - Embedded generation | D178: MW | E178: Non-Coincident
E179: Coincident
C180: Weather Corrected 10% POE | D180: MW | E180: Non-Coincident
E181: Coincident
C182: Weather Corrected MD 10% POE | D182: MVA | E182: Non-Coincident
E183: Coincident
C184: Weather Corrected MD 50% POE | D184: MW | E184: Non-Coincident
E185: Coincident
C186: Weather Corrected MD 50% POE | D186: MVA | E186: Non-Coincident
E187: Coincident
B188: <Enter substation name> | C188: Substation Rating | D188: MVA | E188: Non-Coincident
E189: Coincident
C190: Raw Adjusted MD | D190: MW | E190: Non-Coincident
E191: Coincident
C192: Raw Adjusted MD | D192: MVA | E192: Non-Coincident
E193: Coincident
C194: Date MD occurred | E194: Non-Coincident
E195: Coincident
C196: Half hour time period MD occurred | E196: Non-Coincident
E197: Coincident
C198: Winter/Summer Peaking | E198: Non-Coincident
E199: Coincident
C200: Adjustments - Embedded generation | D200: MW | E200: Non-Coincident
E201: Coincident
C202: Weather Corrected 10% POE | D202: MW | E202: Non-Coincident
... 11370 more rows

Sheet 6.1 Telephone answering
B1: =INDEX(dms_Worksheet_List,MATCH(dms_Model,dms_Model_List)) -> REGULATORY REPORTING STATEMENT
B2: =INDEX(dms_TradingNameFull_List,MATCH(dms_TradingName,dms_TradingName_List)) -> United Energy
B3: =dms_Header_Span -> 2021-22 to 2025-26
B4: 6.1 TELEPHONE ANSWERING
B6: 6.1.1 - TELEPHONE ANSWERING DATA
A7: C10 starts at first day of PRCP_y5 and goes for 5 full years | B7: Date | C7: Total number of calls (after removing excluded events) | D7: Number of calls answered within 30 seconds (after excluding excluded events)
B8: 2015-01-01
B9: =B8+1 -> 2015-01-02
B10: 2015-01-03
B11: 2015-01-04
B12: 2015-01-05
B13: 2015-01-06
B14: 2015-01-07
B15: 2015-01-08
B16: 2015-01-09
B17: 2015-01-10
B18: 2015-01-11
B19: 2015-01-12
B20: 2015-01-13
B21: 2015-01-14
B22: 2015-01-15
B23: 2015-01-16
B24: 2015-01-17
B25: 2015-01-18
B26: 2015-01-19
B27: 2015-01-20
B28: 2015-01-21
B29: 2015-01-22
B30: 2015-01-23
B31: 2015-01-24
B32: 2015-01-25
B33: 2015-01-26
B34: 2015-01-27
B35: 2015-01-28
B36: 2015-01-29
B37: 2015-01-30
B38: 2015-01-31
B39: 2015-02-01
B40: 2015-02-02
B41: 2015-02-03
B42: 2015-02-04
B43: 2015-02-05
B44: 2015-02-06
B45: 2015-02-07
B46: 2015-02-08
B47: 2015-02-09
B48: 2015-02-10
B49: 2015-02-11
B50: 2015-02-12
B51: 2015-02-13
B52: 2015-02-14
B53: 2015-02-15
B54: 2015-02-16
B55: 2015-02-17
B56: 2015-02-18
B57: 2015-02-19
B58: 2015-02-20
B59: 2015-02-21
B60: 2015-02-22
B61: 2015-02-23
B62: 2015-02-24
B63: 2015-02-25
B64: 2015-02-26
B65: 2015-02-27
B66: 2015-02-28
B67: 2015-03-01
B68: 2015-03-02
B69: 2015-03-03
B70: 2015-03-04
B71: 2015-03-05
B72: 2015-03-06
B73: =B72+1 -> 2015-03-07
B74: 2015-03-08
B75: 2015-03-09
B76: 2015-03-10
B77: 2015-03-11
B78: 2015-03-12
B79: 2015-03-13
B80: 2015-03-14
B81: 2015-03-15
B82: 2015-03-16
B83: 2015-03-17
B84: 2015-03-18
B85: 2015-03-19
B86: 2015-03-20
B87: 2015-03-21
B88: 2015-03-22
B89: 2015-03-23
B90: 2015-03-24
B91: 2015-03-25
B92: 2015-03-26
B93: 2015-03-27
B94: 2015-03-28
B95: 2015-03-29
B96: 2015-03-30
B97: 2015-03-31
B98: 2015-04-01
B99: 2015-04-02
B100: 2015-04-03
B101: 2015-04-04
B102: 2015-04-05
B103: 2015-04-06
B104: 2015-04-07
B105: 2015-04-08
B106: 2015-04-09
B107: 2015-04-10
B108: 2015-04-11
B109: 2015-04-12
B110: 2015-04-13
B111: 2015-04-14
B112: 2015-04-15
B113: 2015-04-16
B114: 2015-04-17
B115: 2015-04-18
B116: 2015-04-19
B117: 2015-04-20
B118: 2015-04-21
B119: 2015-04-22
B120: 2015-04-23
B121: 2015-04-24
B122: 2015-04-25
B123: 2015-04-26
B124: 2015-04-27
B125: 2015-04-28
B126: 2015-04-29
B127: 2015-04-30
B128: 2015-05-01
B129: 2015-05-02
B130: 2015-05-03
B131: 2015-05-04
B132: 2015-05-05
B133: 2015-05-06
B134: 2015-05-07
B135: 2015-05-08
B136: 2015-05-09
B137: =B136+1 -> 2015-05-10
B138: 2015-05-11
B139: 2015-05-12
B140: 2015-05-13
B141: 2015-05-14
B142: 2015-05-15
B143: 2015-05-16
B144: 2015-05-17
